Workbook

Sheet Readme
A1: MOSM: quick start guide
B3: General rule | N3: acronyms
C4: green cells are for user inputs | N4: MO | O4: Management option
C5: yellow cells are for model outputs | N5: TLMO | O5: Tillage and cropping MO
N6: AFMO | O6: Agricultural field MO
N7: BFMO | O7: Buffer MO
N8: WCMO | O8: Water conservation MO
N9: ICMO | O9: In Channel MO
B10: Contents of tabs | N10: RAMO | O10: Ravine MO
B11: Readme: | C11: Provides a quick information about the model | N11: NCMO | O11: Near-channel MO (bluff)
B12: CONTROL: | C12: Management Option input scenarios are entered in this tab.
C13: Summary model outputs can be found in this tab. | N13: Overview
B14: Reference Scenario Chart: | C14: Reference and user scenarios' simulated sediment loading reductions are plotted against cost. | N14: Management Option Simulation Model (MOSM) consists of a (1) Management Option (MO) allocation, (2) water routing, and (3) sediment routing algorithms.
B15: Your Scenarios: | C15: User scenarios are archived in this tab whenever "Save your scenarios" button is pressed on the CONTROL tab after running the model.
B16: Reference Scenarios: | C16: Contains the default reference scenarios consisting of implementation of individual MOs at various extents
B17: I|O Detail: | C17: Detail input and output information can be found in this tab.
C18: Total MO extent as well as number of sites across the watershed can be found here.
C19: User can specify site selection criteria as well as MO design elements.
B20: Output detail: | C20: Simulated sediment loading is displayed against observed values from nine gage locations.
C21: Simulated sediment deposition rates on field and along stream can be found.
B25: How do you run the model?
B26: How do you run a deterministic simulation?
B27: 1. Go to CONTROL tab.
B28: 2. Specify MO scenarios by entering various extents of management in different zones of the watershed.
B29: 3. Press "Run MOSM" button. When the model completes the simulation, it alerts the user.
B30: 4. Examine model outputs on the Reference Scenario Chart and Output Detail tab.
B31: 5. If necessary, save scenario outputs by pressing "Save your scenarios" on CONTROL tab.
B32: 6. If you want to save the entire sceanrio input for a future reference, press "Export all INPUT & OUTPUT." This will create a new workbook.
B34: How do you run a stochastic simulation?
B35: You can enter the number (2-1000) of Monte Carlo simulation in cell R2 on CONTROL tab.
B36: Entering 1 will execute a deterministic simulation.

Sheet MO cost example
B4: Tillage Management Option (TLMO) ALLOCATION | G4: Install range | H4: Install assumptions | I4: Maintenance details
B5: Extent of all farm land (ac) | C5: Install. ($/ac) | D5: Mntnc [$/(ac*yr)] | E5: Mntnc [$/(ac*yr)] | F5: (yr)
B6: Continuous corn9 | C6: 39 | E6: 90 | F6: 1
B7: Corn-soyben rotation9 | C7: 41 | E7: 86 | F7: 1
B8: Winter rye cover crop10 | C8: =13.1+7.5 -> 20.6 | E8: =20.6 -> 20.6 | F8: 1 | H8: Drilling and seeding | I8: Establishing cover
B9: Agricultural Field Management Option (AFMO) ALLOCATION
B10: Extent of all MOs (ft) | C10: Install. ($/ac) | D10: Mntnc [$/(ac*yr)] | E10: Mntnc [$/(ac*yr)] | F10: Life Span
B11: Input extent (ft) | C11: 3200 | D11: =17.45*2+12.25+16.6 -> 63.75 | E11: 64 7 | F11: 10 | G11: 1,900-4500/acre 3 2000-3000/acre 4 | H11: 35' width | I11: Mow 2x per year. Inspect/seed after heavy rain. Control weeds. Control vermin.
B12: Buffer Strip Management Option (BFMO) ALLOCATION
B13: Extent of all MOs (ft) | C13: Install. ($/ac) | D13: Mntnc [$/(ac*yr)] | E13: Mntnc [$/(ac*yr)] | F13: Life Span
B14: Input extent (ft) | C14: 1000 | D14: =17.45*2+10 -> 44.9 | E14: 45 7 | F14: 10 | G14: 500-2000/acre 4 750-1150/acre 3 | I14: Mowing 2x per year.Remove sediment at upper end of gradient every 2 years.
B15: Water Conservation Management Option (WCMO) ALLOCATION
B16: Extent of all MOs (ac) | C16: Install. ($/ac) | D16: Mntnc [$/(ac*yr)] | E16: Mntnc [$/(ac*yr)] | F16: Life Span
B17: Input extent (ac) | C17: 3000 | D17: =94.45*16/3+4*17.45 -> 573.5333333 | E17: 574 5,7 | F17: 25 | G17: 6000 (ea) 2 300-5,300/acre 3 100-150/ln ft, 12,000-17,000/acre 4 | I17: Inspect embankment/ridge and repair if necessary after heavy rain. Control weeds. Control vermin. Periodically clean channel with heavy equipment.
B18: In-Channel Management Option (ICMO) ALLOCATION
B19: Extent of all MOs (ft) | C19: Install. ($/ft) | D19: Mntnc [$/(ft*yr)] | E19: Mntnc [$/(ft*yr)] | F19: Life Span
B20: Input extent (ft) | C20: 250 | D20: =17.45*2/25 -> 1.396 | E20: 1.4 7 | F20: 10 | G20: 1000-3000 (ea) for structure 3 15,000-20,000 (ea) for rate control weir 4 | H20: cost based on flap gate structure | I20: Grease gate annually. Paint every few years.
B21: Ravine Management Option (RAMO) ALLOCATION
B22: number of ravine tips | C22: Install. ($/TIP) | D22: Mntnc [$/(tip*yr)] | E22: Mntnc [$/(tip*yr)] | F22: Life Span
B23: Input number of tips | C23: 6000 | D23: =17.45*2 -> 34.9 | E23: 35 7 | F23: 10 | G23: 1,000-11,500 (ea) 2 571-2,100/ft; 3,750-60,000 (ea) 1 1,000-21,000 (ea) 3 | I23: Check for pipe blockage
B24: Near-Channel Source Management Option (NCMO) ALLOCATION
B25: Extent of all MOs (ft) | C25: Install. ($/ft) | D25: Mntnc [$/(ft*yr)] | E25: Mntnc [$/(ft*yr)] | F25: Life Span
B26: Input extent (ft) | C26: 200 | D26: =17.45*2/50 -> 0.698 | E26: 0.7 7 | F26: 5 | G26: 11-77/ft 3 500-1000/ft 4 26-208/ft 6 62-226/ft 2 | H26: see the types of management and corresponding cost in the table below. | I26: Inspection, planting shrubs
G27: Treatment | H27: $ per LF
G28: Grade and shape | H28: $20 – 50
D29: Notes | G29: LWD toe | H29: $30 – 100
D30: Depends on height and toe treatment | G30: Cribwall | H30: $50-100
D31: Depends on height of bank | G31: Engineered log jam | H31: $30 – 100
D32: Depends on height of bank | G32: Geocell | H32: $50 - 100
D33: Depends on log size needed | G33: Coarse wood and lifts | H33: $30 – 100
D34: Depends on height of bank | G34: Encapsulated soil lifts | H34: $80 - 160
D35: Depends on height of bank
D36: Depends on height of bank
B39: References:
A40: 1 | B40: Miller, T.P., J.R.Peterson, C.F. Lenhart, and Y. Nomura. 2012. The Agricultural BMP Handbook for Minnesota. Minnesota Department of Agriculture.
A41: 2 | B41: Nelson, Paul. July 26, 2016. Personal Communication.
A42: 3 | B42: USDA-NRCS MN-WI-MI Regional Rates for Environmental Quality Incentive Program (EQIP). 2016. Accessed at http://www.nrcs.usda.gov/wps/portal/nrcs/detail/mn/programs/financial/eqip/
A43: 4 | B43: Lewandowski, A., Everett, L., Lenhart, C., Terry, K., Origer, M., & Moore, R. (2015). Fields to Streams: Managing Water in Rural Landscapes. Part Two, Managing Sediment and Water.
A44: 5 | B44: Iowa State University. 2016 Iowa Farm Custom Rate Survey. March 2016. Accessed at https://www.extension.iastate.edu/agdm/crops/pdf/a3-10.pdf
A45: 6 | B45: Melchoir, Marty. Jan 19, 2014. Personal Communication.
A46: 7 | B46: Center for Watershed Protection (2004). Stormwater Pond and Wetland Maintenance Guidebook. Accessed at http://www.stormwatercenter.net/Manual_Builder/Maintenance_Manual/pondwetlandguidebookdraft.pdf
A47: 8 | B47: Ambrosini, K. (2014). Analysis Of Flap Gate Design and Implementations for Water Delivery Systems in California and Nevada. Accessed athttp://digitalcommons.calpoly.edu/cgi/viewcontent.cgi?article=1125&context=braesp
A48: 9 | B48: Daberkow et al. (2008). Comparing continuous corn and corn-soybean cropping systems. Western Economics Forum, Spring 2008. http://ageconsearch.tind.io//bitstream/92853/2/0701001.pdf
A49: 10 | B49: Schnitkey et al. (2016). Farmdoc Daily, University of illinois at Urbana-Champaign. Costs and benefits of cover crops: an example with cereal rye. http://farmdocdaily.illinois.edu/2016/07/costs-and-benefits-of-cover-crops-example.html

Sheet CONTROL
A1: Welcome to the Management Options Simulation Model for the Greater Blue Earth River Basin (MOSM-GBERB) | J1: Press this button to clear previous inputs | K1: ---> | R1: User input only in Green Cells
A2: The model estimates average annual sediment loading at the mouth of the watershed | J2: Press this button to clear previous inputs | Q2: # MC runs: | R2: 1 | U2: Interest rate = | V2: 0.05 | W2: per year | Z2: Default cost of operation: default TLMO and no other MOs
A3: Col. B:P - Specify the location and extent of six water or sediment management options (ALLOCATION) | J3: and implement X% BFMO | K3: ---> | U3: Cost of agricultural land = | V3: 8297 | W3: $/ac | AA3: Upfront installation cost ($) | AB3: 72713834.52
A4: Col. Q:V - Specify the EFFECTIVENESS & COST of the management options | H4: Buffers (X%)= | J4: 30 | U4: Cost of marginal land = | V4: =V3 -> 8297 | W4: $/ac | AA4: Annual Maintenance Cost ($/yr) | AB4: 163899462.1
A5: River | B5: LeSueur | E5: Cobb | H5: Maple | K5: Blue Earth | N5: Watonwan | Q5: Extent | R5: Extent | S5: MO efficiency | T5: Installation | U5: Ann. Maintenance | V5: Life Span | W5: Total | AA5: Annual Cost of MOs ($/yr) | AB5: =AB3+AB4 -> 236613296.6
A6: Zone | B6: Upland | C6: Trans | D6: Incised | E6: Upland | F6: Trans | G6: Incised | H6: Upland | I6: Trans | J6: Incised | K6: Upland | L6: Trans | M6: Incised | N6: Upland | O6: Trans | P6: Incised | Q6: input | R6: selected | S6: % | T6: Cost | U6: Cost | V6: (yr) | W6: Cost ($/yr)
A7: Tillage Management Option (TLMO) ALLOCATION | S7: Tillage Management (TLMO) EFFECTIVENESS & COST
A8: Extent of all farm land (ac) | B8: 106433.0635 | C8: 61960.35242 | D8: 62635.04302 | E8: 53779.45445 | F8: 72924.26852 | G8: 39080.7183 | H8: 65447.81022 | I8: 92471.5994 | J8: 30751.1547 | K8: 601670.6281 | L8: 105826.4228 | M8: 80305.54198 | N8: 181529.8566 | O8: 230880.4927 | P8: 53390.9148 | Q8: =SUM(B8:P8) -> 1839087.321 | R8: acre | T8: Install. ($/ac) | U8: Mntnc [$/(ac*yr)] | V8: (yr) | W8: Total ($/yr) | Z8: Simulation output summary
A9: Corn-Soy Rotation with conventional tillage (%) | B9: 80 | C9: 80 | D9: 80 | E9: 80 | F9: 80 | G9: 80 | H9: 80 | I9: 80 | J9: 80 | K9: 80 | L9: 80 | M9: 80 | N9: 80 | O9: 80 | P9: 80 | Q9: =SUMPRODUCT(B$8:P$8,(B9:P9)/100) -> 1471269.857 | R9: ='I|O Detail'!Q10 -> 1471269.857 | T9: 39.14 | U9: =25.72+64.12 -> 89.84 | V9: 1 | W9: =(T9/(1+$V$2)*((1+$V$2)^V9*$V$2)/((1+$V$2)^V9-1)+U9)*R9 -> 189764386.2 | AA9: Present Sediment Load at Red Jacket (Mg/yr) | AB9: ='Output Detail'!C27 -> 439070.624
A10: Continuous Corn with conventional tillage (%) | B10: 20 | C10: 20 | D10: 20 | E10: 20 | F10: 20 | G10: 20 | H10: 20 | I10: 20 | J10: 20 | K10: 20 | L10: 20 | M10: 20 | N10: 20 | O10: 20 | P10: 20 | Q10: =SUMPRODUCT(B$8:P$8,(B10:P10)/100) -> 367817.4643 | R10: ='I|O Detail'!Q11 -> 367817.4643 | T10: 41.13 | U10: =27.74+58.5 -> 86.24 | V10: 1 | W10: =(T10/(1+$V$2)*((1+$V$2)^V10*$V$2)/((1+$V$2)^V10-1)+U10)*R10 -> 46848910.43 | AA10: Sediment Load w/ All MO (Mg/yr) | AB10: ='Output Detail'!C39 -> 439070.624 | AD10: +error | AE10: -error
A11: Corn-Soy Rotation with Winter Rye Cover Crop (%) | B11: 0 | C11: 0 | D11: 0 | E11: 0 | F11: 0 | G11: 0 | H11: 0 | I11: 0 | J11: 0 | K11: 0 | L11: 0 | M11: 0 | N11: 0 | O11: 0 | P11: 0 | Q11: =SUMPRODUCT(B$8:P$8,(B11:P11)/100) -> 0 | R11: ='I|O Detail'!Q12 -> 1.009539119e-10 | T11: =T9+7.5+13.1 -> 59.74 | U11: =U9+20.6 -> 110.44 | V11: 1 | W11: =(T11/(1+$V$2)*((1+$V$2)^V11*$V$2)/((1+$V$2)^V11-1)+U11)*R11 -> 1.718033673e-08 | AA11: Reduction in Sediment Load (Mg/yr) | AB11: =AB9-AB10 -> 0 | AD11: =IF(S2=1,0,ABS(AB11-('Output Detail'!G27-'Output Detail'!G39))) -> 0 | AE11: =IF(S2=1,0,ABS(AB11-('Output Detail'!H27-'Output Detail'!H39))) -> 0
A12: Agricultural Field Management Option (AFMO) ALLOCATION | S12: Agricultural Field Management (AFMO) EFFECTIVENESS & COST | AA12: Percent reduction in Sediment Load | AB12: =(AB9-AB10)/AB9 -> 0
A13: Extent of all MOs (ft) | B13: 343427.4777 | C13: 310709.6571 | D13: 173312.9007 | E13: 147872.2645 | F13: 321226.7722 | G13: 99426.63644 | H13: 181353.6229 | I13: 297924.6563 | J13: 40197.07933 | K13: 1273673.476 | L13: 206299.8528 | M13: 284107.3954 | N13: 822417.0832 | O13: 581993.0135 | P13: 163544.7904 | Q13: =SUM(B13:P13) -> 5247486.679 | R13: AFMO*W [ac] | S13: Sed. Delivery | T13: Install. ($/ac) | U13: Mntnc [$/(ac*yr)] | V13: Life Span | W13: Cost ($/yr) | Z13: Cost summary
A14: Input area (ft) | B14: 0 | C14: 0 | D14: 0 | E14: 0 | F14: 0 | G14: 0 | H14: 0 | I14: 0 | J14: 0 | K14: 0 | L14: 0 | M14: 0 | N14: 0 | O14: 0 | P14: 0 | Q14: =SUM(B14:P14) -> 0 | R14: ='I|O Detail'!Q24*'I|O Detail'!S22*0.0000229568 -> 0 | S14: 75 | T14: 3200 | U14: 64 | V14: 10 | W14: =((T14+V3)/(1+$V$2)*((1+$V$2)^V14*$V$2)/((1+$V$2)^V14-1)+U14)*R14 -> 0 | AA14: Upfront Land Acquisition Cost ($) | AB14: =(R14+R17+R20)*V3 -> 0
A15: Buffer Strip Management Option (BFMO) ALLOCATION | S15: Buffer Strip Management (BFMO) EFFECTIVENESS & COST | AA15: Upfront installation cost ($) | AB15: =T9*R9+T10*R10+T11*R11+T14*R14+T17*R17+T20*R20+T23*R23+T26*R26+T29*R29-AB3 -> 0
A16: Extent of all MOs (ft) | B16: 702022.5474 | C16: 747728.7963 | D16: 623967.1076 | E16: 335153.3572 | F16: 804145.4465 | G16: 358911.8359 | H16: 378766.0478 | I16: 939534.6035 | J16: 191453.0724 | K16: 4386558.239 | L16: 763225.4381 | M16: 1012171.842 | N16: 1913758.182 | O16: 2056145.799 | P16: 364996.0563 | Q16: =SUM(B16:P16) -> 15578538.37 | R16: BFMO*W [ac] | S16: Sed. Delivery | T16: Install. ($/ac) | U16: Mntnc [$/(ac*yr)] | V16: Life Span | W16: Cost ($/yr) | AA16: Annual Maintenance Cost ($/yr) | AB16: =U9*R9+U10*R10+U11*R11+U14*R14+U17*R17+U20*R20+U23*R23+U26*R26+U29*R29-AB4 -> 0
A17: Input area (ft) | B17: 0 | C17: 0 | D17: 0 | E17: 0 | F17: 0 | G17: 0 | H17: 0 | I17: 0 | J17: 0 | K17: 0 | L17: 0 | M17: 0 | N17: 0 | O17: 0 | P17: 0 | Q17: =SUM(B17:P17) -> 0 | R17: ='I|O Detail'!Q42 -> 0 | S17: 65 | T17: 1000 | U17: 45 | V17: 10 | W17: =((T17+V4)/(1+$V$2)*((1+$V$2)^V17*$V$2)/((1+$V$2)^V17-1)+U17)*R17 -> 0 | AA17: Annual Cost of MOs ($/yr) | AB17: =W9+W10+W11+W14+W17+W20+W23+W26+W29-AB5 -> 0
A18: Water Conservation Management Option (WCMO) ALLOCATION | S18: Water Conservation Management (WCMO) COST | AA18: Unit Cost ($/Mg) | AB18: =IF(AB11=0,"No sediment reduction",AB17/AB11) -> No sediment reduction
A19: Extent of all MOs (ac) | B19: 11794.10757 | C19: 8597.307397 | D19: 6673.969399 | E19: 3756.299023 | F19: 9258.56561 | G19: 3315.795782 | H19: 4623.165793 | I19: 12811.53945 | J19: 1553.000804 | K19: 50471.42947 | L19: 10923.16996 | M19: 6374.488757 | N19: 13868.71037 | O19: 23483.51507 | P19: 5568.08731 | Q19: =SUM(B19:P19) -> 173073.1518 | R19: WCMO [ac] | S19: Sed. Delivery | T19: Install. ($/ac) | U19: Mntnc [$/(ac*yr)] | V19: Life Span | W19: Total ($/yr)
A20: Input area (ac) | B20: 0 | C20: 0 | D20: 0 | E20: 0 | F20: 0 | G20: 0 | H20: 0 | I20: 0 | J20: 0 | K20: 0 | L20: 0 | M20: 0 | N20: 0 | O20: 0 | P20: 0 | Q20: =SUM(B20:P20) -> 0 | R20: ='I|O Detail'!Q54 -> 0 | S20: 90 | T20: 1500 | U20: 250 | V20: 25 | W20: =((T20+V3)/(1+$V$2)*((1+$V$2)^V20*$V$2)/((1+$V$2)^V20-1)+U20)*R20 -> 0
A21: In-Channel Management Option (ICMO) ALLOCATION | S21: In-Channel Management (ICMO) COST | Z21: TLMO | AA21: =W9+W10+W11-AB5 -> 0 | AB21: =AA21/AB$17 -> 
A22: Extent of all MOs (ft) | B22: 285228.1184 | C22: 269595.4106 | D22: 154817.9528 | E22: 28428.6024 | F22: 254111.6103 | G22: 34959.45956 | H22: 139554.3838 | I22: 335274.2399 | J22: 3063.821783 | K22: 1411326.153 | L22: 300844.9037 | M22: 44926.4551 | N22: 108422.6063 | O22: 236719.357 | P22: 75292.55148 | Q22: =SUM(B22:P22) -> 3682565.627 | R22: ICMO [ft] | T22: Install. ($/ft) | U22: Mntnc [$/(ft*yr)] | V22: Life Span | W22: Total ($/yr) | Z22: AFMO | AA22: =W14 -> 0 | AB22: =AA22/AB$17 -> 
A23: Input length (ft) | B23: 0 | C23: 0 | D23: 0 | E23: 0 | F23: 0 | G23: 0 | H23: 0 | I23: 0 | J23: 0 | K23: 0 | L23: 0 | M23: 0 | N23: 0 | O23: 0 | P23: 0 | Q23: =SUM(B23:P23) -> 0 | R23: ='I|O Detail'!Q69 -> 0 | T23: 250 | U23: 1.4 | V23: 10 | W23: =(T23/(1+$V$2)*((1+$V$2)^V23*$V$2)/((1+$V$2)^V23-1)+U23)*R23 -> 0 | Z23: BFMO | AA23: =W17 -> 0
A24: Ravine Management Option (RAMO) ALLOCATION | S24: Ravine Management (RAMO) EFFECTIVENESS & COST | Z24: WCMO | AA24: =W20 -> 0
A25: number of ravine tips | B25: 0 | C25: 0 | D25: 275 | E25: 0 | F25: 0 | G25: 132 | H25: 0 | I25: 14 | J25: 196 | K25: 1 | L25: 0 | M25: 589 | N25: 59 | O25: 17 | P25: 138 | Q25: =SUM(B25:P25) -> 1421 | R25: RAMO [tips] | S25: Sed. Delivery | T25: Install. ($/ac) | U25: Mntnc [$/(ac*yr)] | V25: Life Span | W25: Total ($/yr) | Z25: ICMO | AA25: =W23 -> 0
A26: Input number of tips | B26: 0 | C26: 0 | D26: 0 | E26: 0 | F26: 0 | G26: 0 | H26: 0 | I26: 0 | J26: 0 | K26: 0 | L26: 0 | M26: 0 | N26: 0 | O26: 0 | P26: 0 | Q26: =SUM(B26:P26) -> 0 | R26: ='I|O Detail'!Q84 -> 0 | S26: 25 | T26: 6000 | U26: 35 | V26: 10 | W26: =(T26/(1+$V$2)*((1+$V$2)^V26*$V$2)/((1+$V$2)^V26-1)+U26)*R26 -> 0 | Z26: RAMO | AA26: =W26 -> 0
A27: Near-Channel Source Management Option (NCMO) ALLOCATION | S27: Near-Channel Source Management (NCMO) EFFECTIVENESS & COST | Z27: NCMO | AA27: =W29 -> 0
A28: Extent of all MOs (ft) | B28: 28566.27388 | C28: 42621.39244 | D28: 63231.62932 | E28: 4425.85316 | F28: 7887.13936 | G28: 45554.4634 | H28: 0 | I28: 14694.88236 | J28: 46830.71016 | K28: 97555.7774 | L28: 37582.0222 | M28: 197283.4709 | N28: 61824.14896 | O28: 45442.91484 | P28: 56719.16192 | Q28: =SUM(B28:P28) -> 750219.8403 | R28: NCMO [ft] | S28: Sed. Delivery | T28: Install. ($/ft) | U28: Mntnc [$/(ft*yr)] | V28: Life Span | W28: Total ($/yr) | AA28: =SUM(AA21:AA27) -> 0
A29: Input length (ft) | B29: 0 | C29: 0 | D29: 0 | E29: 0 | F29: 0 | G29: 0 | H29: 0 | I29: 0 | J29: 0 | K29: 0 | L29: 0 | M29: 0 | N29: 0 | O29: 0 | P29: 0 | Q29: =SUM(B29:P29) -> 0 | R29: ='I|O Detail'!Q98 -> 0 | S29: 75 | T29: 400 | U29: 0.7 | V29: 5 | W29: =(T29/(1+$V$2)*((1+$V$2)^V29*$V$2)/((1+$V$2)^V29-1)+U29)*R29 -> 0 | Z29: +error | AA29: -error
Z30: 0 | AA30: 0
Z40: Run time
Z41: deterministic (MC=1) | AA41: ~30 | AB41: sec
Z42: stochastic (MC=1…N) | AA42: ~60 | AB42: sec

Sheet I|O Detail
A1: This worksheet contains some more detailed input that typically does not need to be changed for model runs | S1: User input only in Green Cells | Z1: TLMO reference condition (2006-2010) set up for soil loss calculation | AG1: Note: This sets the baseline tillage practice status at the study site where the baseline soil loss rates corresponding to these three types of TLMO are calculated. Consequently, the changes in the proportions of tillage practice will result in different soil erosion with respect to the baseline tillage option input here.
A2: The worksheet is accessible for purposes of evaluating model sensitivity to various fixed parameters | Z2: (a) Percent area allocation of crop-tillage practice for the reference period
A3: The worksheet also contains more detail on the allocation of management options | R3: Percentile output= | S3: 10 | T3: % | U3: An,min (%)= | V3: 5 | Z3: River | AA3: LeSueur | AD3: Cobb | AG3: Maple | AJ3: Blue Earth | AM3: Watonwan
A4: List of MOs: | B4: Field: | C4: TLMO | D4: AFMO | E4: BFMO | F4: Water conservation: | H4: WCMO | I4: ICMO | J4: Near-Channel: | L4: RAMO | M4: NCMO | R4: soil density= | S4: 1.3 | T4: Mg/m3 | U4: minimum area that wll not be affected by MOs | Z4: Zone | AA4: Upland | AB4: Trans | AC4: Incised | AD4: Upland | AE4: Trans | AF4: Incised | AG4: Upland | AH4: Trans | AI4: Incised | AJ4: Upland | AK4: Trans | AL4: Incised | AM4: Upland | AN4: Trans | AO4: Incised
A5: Tillage Management Option (LTMO) allocation and Sediment Loading Model | Z5: Reference Period Tillage Management Option (TLMO) Allocation
A6: River | B6: LES | C6: LES | D6: LES | E6: COB | F6: COB | G6: COB | H6: MAP | I6: MAP | J6: MAP | K6: BE | L6: BE | M6: BE | N6: WAT | O6: WAT | P6: WAT | Z6: Extent of all farm land (ac) | AA6: 95646.04306 | AB6: 73504.93915 | AC6: 51108.39569 | AD6: 36426.94521 | AE6: 99325.30264 | AF6: 29252.6884 | AG6: 55715.09816 | AH6: 110854.9616 | AI6: 19772.88356 | AJ6: 450635.35 | AK6: 104213.0068 | AL6: 79038.16972 | AM6: 178387.8123 | AN6: 226304.141 | AO6: 51917.85958
A7: Zone | B7: 1 | C7: 2 | D7: 3 | E7: 1 | F7: 2 | G7: 3 | H7: 1 | I7: 2 | J7: 3 | K7: 1 | L7: 2 | M7: 3 | N7: 1 | O7: 2 | P7: 3 | Q7: Total | Z7: Corn-Soy Rotation (%) | AA7: 80 | AB7: 80 | AC7: 80 | AD7: 80 | AE7: 80 | AF7: 80 | AG7: 80 | AH7: 80 | AI7: 80 | AJ7: 80 | AK7: 80 | AL7: 80 | AM7: 80 | AN7: 80 | AO7: 80
A8: Zone acre | B8: 126081.0019 | C8: 79815.80458 | D8: 88113.98585 | E8: 63540.90094 | F8: 83975.94081 | G8: 48159.67724 | H8: 72947.12574 | I8: 109861.7216 | J8: 37885.99034 | K8: 748034.6004 | L8: 124194.5282 | M8: 106955.2479 | N8: 207395.0535 | O8: 269204.3415 | P8: 64720.43194 | Q8: =SUM(B8:P8) -> 2230886.352 | Z8: Continuous Corn (%) | AA8: 20 | AB8: 20 | AC8: 20 | AD8: 20 | AE8: 20 | AF8: 20 | AG8: 20 | AH8: 20 | AI8: 20 | AJ8: 20 | AK8: 20 | AL8: 20 | AM8: 20 | AN8: 20 | AO8: 20
A9: Extent of potential MO sites (ac) | B9: 106433.0635 | C9: 61960.35242 | D9: 62635.04302 | E9: 53779.45445 | F9: 72924.26852 | G9: 39080.7183 | H9: 65447.81022 | I9: 92471.5994 | J9: 30751.1547 | K9: 601670.6281 | L9: 105826.4228 | M9: 80305.54198 | N9: 181529.8566 | O9: 230880.4927 | P9: 53390.9148 | Q9: =SUM(B9:P9) -> 1839087.321 | Z9: Corn-Soy Rotation with Winter Rye Cover Crop (%) | AA9: 0 | AB9: 0 | AC9: 0 | AD9: 0 | AE9: 0 | AF9: 0 | AG9: 0 | AH9: 0 | AI9: 0 | AJ9: 0 | AK9: 0 | AL9: 0 | AM9: 0 | AN9: 0 | AO9: 0
A10: Corn-Soy Rotation with conventional tillage (ac) | B10: 85146.45081 | C10: 49568.28194 | D10: 50108.03442 | E10: 43023.56356 | F10: 58339.41482 | G10: 31264.57464 | H10: 52358.24818 | I10: 73977.27952 | J10: 24600.92376 | K10: 481336.5024 | L10: 84661.13826 | M10: 64244.43358 | N10: 145223.8853 | O10: 184704.3941 | P10: 42712.73184 | Q10: =SUM(B10:P10) -> 1471269.857 | Z10: Crop-tillage options | AA10: Soil erosion factor (C-factor of the USLE)
A11: Continuous Corn with conventional tillage (ac) | B11: 21286.6127 | C11: 12392.07048 | D11: 12527.0086 | E11: 10755.89089 | F11: 14584.8537 | G11: 7816.14366 | H11: 13089.56204 | I11: 18494.31988 | J11: 6150.23094 | K11: 120334.1256 | L11: 21165.28457 | M11: 16061.1084 | N11: 36305.97131 | O11: 46176.09853 | P11: 10678.18296 | Q11: =SUM(B11:P11) -> 367817.4643 | Z11: Corn-Soy rotation with conventional till | AA11: 1.31 | AB11: "Soil Erosion and the Iowa Soil 2000 Program" by Miller (1988)
A12: Corn-Soy Rotation with Winter Rye Cover Crop (ac) | B12: 0 | C12: 7.275957614e-12 | D12: 5.456968211e-12 | E12: -5.456968211e-12 | F12: -3.637978807e-12 | G12: 3.637978807e-12 | H12: 0 | I12: 3.637978807e-12 | J12: 2.728484105e-12 | K12: 1.018634066e-10 | L12: -7.275957614e-12 | M12: -1.818989404e-12 | N12: -7.275957614e-12 | O12: 7.275957614e-12 | P12: -5.456968211e-12 | Q12: =SUM(B12:P12) -> 1.009539119e-10 | Z12: Continuous corn with conventional till | AA12: 1 | AB12: "Soil Erosion and the Iowa Soil 2000 Program" by Miller (1988)
A13: Corn-Soy Rotation with conventional tillage (%) | B13: 0.8 | C13: 0.8 | D13: 0.8 | E13: 0.8 | F13: 0.8 | G13: 0.8 | H13: 0.8 | I13: 0.8 | J13: 0.8 | K13: 0.8 | L13: 0.8 | M13: 0.8 | N13: 0.8 | O13: 0.8 | P13: 0.8 | Z13: Corn-Soy rotation with Winter Rye cover crop | AA13: 0.35 | AB13: "Assessment of USLE cover-management C-factors for 40 crop rotation systems on arable farms in the Kemmelbeek watershed, Belgium" by Gabriels et al., (2003)
A14: Continuous Corn with conventional tillage (%) | B14: 0.2 | C14: 0.2 | D14: 0.2 | E14: 0.2 | F14: 0.2 | G14: 0.2 | H14: 0.2 | I14: 0.2 | J14: 0.2 | K14: 0.2 | L14: 0.2 | M14: 0.2 | N14: 0.2 | O14: 0.2 | P14: 0.2 | Z14: (c ) Soil loss factor for the sediment loading module calculated based on the reference period allocation and soil erosion factor
A15: Corn-Soy Rotation with Winter Rye Cover Crop (%) | B15: 0 | C15: 1.174292484e-16 | D15: 8.712324519e-17 | E15: -1.014693858e-16 | F15: -4.988707985e-17 | G15: 9.308884189e-17 | H15: 0 | I15: 3.93415798e-17 | J15: 8.872785858e-17 | K15: 1.693009461e-16 | L15: -6.875369515e-17 | M15: -2.26508577e-17 | N15: -4.00813274e-17 | O15: 3.151395568e-17 | P15: -1.02207805e-16 | Z15: River | AA15: LeSueur | AD15: Cobb | AG15: Maple | AJ15: Blue Earth | AM15: Watonwan
B16: 0 | C16: 0 | D16: 0 | E16: 0 | F16: 0 | G16: 0 | H16: 0 | I16: 0 | J16: 0 | Z16: alpha1 | AA16: =1/(AA$7/100+$AA$12/$AA$11*AA$8/100+$AA$13/$AA$11*AA$9/100) -> 1.049679487 | AB16: 1.049679487 | AC16: 1.049679487 | AD16: 1.049679487 | AE16: 1.049679487 | AF16: 1.049679487 | AG16: 1.049679487 | AH16: 1.049679487 | AI16: 1.049679487 | AJ16: 1.049679487 | AK16: 1.049679487 | AL16: 1.049679487 | AM16: 1.049679487 | AN16: 1.049679487 | AO16: 1.049679487
A17: Agricultural Field Management Option (AFMO) allocation and Sediment Loading Model | S17: A | T17: Allocation Selection Criterion | Z17: alpha2 | AA17: =$AA$12/$AA$11*AA$16 -> 0.8012820513 | AB17: 0.8012820513 | AC17: 0.8012820513 | AD17: 0.8012820513 | AE17: 0.8012820513 | AF17: 0.8012820513 | AG17: 0.8012820513 | AH17: 0.8012820513 | AI17: 0.8012820513 | AJ17: 0.8012820513 | AK17: 0.8012820513 | AL17: 0.8012820513 | AM17: 0.8012820513 | AN17: 0.8012820513 | AO17: 0.8012820513
A18: River | B18: LES | C18: LES | D18: LES | E18: COB | F18: COB | G18: COB | H18: MAP | I18: MAP | J18: MAP | K18: BE | L18: BE | M18: BE | N18: WAT | O18: WAT | P18: WAT | S18: A*: | T18: Select sites with largest upstream drainage first | Z18: alpha3 | AA18: =$AA$13/$AA$11*AA16 -> 0.2804487179 | AB18: =$AA$13/$AA$11*AB16 -> 0.2804487179 | AC18: 0.2804487179 | AD18: 0.2804487179 | AE18: 0.2804487179 | AF18: 0.2804487179 | AG18: 0.2804487179 | AH18: 0.2804487179 | AI18: 0.2804487179 | AJ18: =$AA$13/$AA$11*AJ16 -> 0.2804487179 | AK18: 0.2804487179 | AL18: 0.2804487179 | AM18: 0.2804487179 | AN18: 0.2804487179 | AO18: 0.2804487179
A19: Zone | B19: 1 | C19: 2 | D19: 3 | E19: 1 | F19: 2 | G19: 3 | H19: 1 | I19: 2 | J19: 3 | K19: 1 | L19: 2 | M19: 3 | N19: 1 | O19: 2 | P19: 3 | Q19: Total | S19: B: | T19: Select larger sites located on hydric soil first
A20: Zone acre | B20: 126081.0019 | C20: 79815.80458 | D20: 88113.98585 | E20: 63540.90094 | F20: 83975.94081 | G20: 48159.67724 | H20: 72947.12574 | I20: 109861.7216 | J20: 37885.99034 | K20: 748034.6004 | L20: 124194.5282 | M20: 106955.2479 | N20: 207395.0535 | O20: 269204.3415 | P20: 64720.43194 | Q20: =SUM(B20:P20) -> 2230886.352 | S20: C: | T20: Select sites that are closest to stream network first.
A21: Extent of all MOs (ft) | B21: 343427.4777 | C21: 310709.6571 | D21: 173312.9007 | E21: 147872.2645 | F21: 321226.7722 | G21: 99426.63644 | H21: 181353.6229 | I21: 297924.6563 | J21: 40197.07933 | K21: 1273673.476 | L21: 206299.8528 | M21: 284107.3954 | N21: 822417.0832 | O21: 581993.0135 | P21: 163544.7904 | Q21: =SUM(B21:P21) -> 5247486.679
A22: number of all MOs | B22: 369 | C22: 379 | D22: 224 | E22: 156 | F22: 367 | G22: 118 | H22: 198 | I22: 328 | J22: 47 | K22: 1403 | L22: 250 | M22: 328 | N22: 804 | O22: 638 | P22: 168 | Q22: 5777 | R22: Design Width= | S22: 100 | T22: ft
A23: Input area (ft) | B23: =CONTROL!B14 -> 0 | C23: =CONTROL!C14 -> 0 | D23: =CONTROL!D14 -> 0 | E23: =CONTROL!E14 -> 0 | F23: =CONTROL!F14 -> 0 | G23: =CONTROL!G14 -> 0 | H23: =CONTROL!H14 -> 0 | I23: =CONTROL!I14 -> 0 | J23: =CONTROL!J14 -> 0 | K23: =CONTROL!K14 -> 0 | L23: =CONTROL!L14 -> 0 | M23: =CONTROL!M14 -> 0 | N23: =CONTROL!N14 -> 0 | O23: =CONTROL!O14 -> 0 | P23: =CONTROL!P14 -> 0 | Q23: 0
A24: extent selected | B24: 0 | C24: 0 | D24: 0 | E24: 0 | F24: 0 | G24: 0 | H24: 0 | I24: 0 | J24: 0 | K24: 0 | L24: 0 | M24: 0 | N24: 0 | O24: 0 | P24: 0 | Q24: 0 | R24: Pgw= | S24: 0.5 | T24: [0,1] degree of overlap between AFMO DA and WCMO DA
A25: Extent remaining (ft) | B25: 343427.4777 | C25: 310709.6571 | D25: 173312.9007 | E25: 147872.2645 | F25: 321226.7722 | G25: 99426.63644 | H25: 181353.6229 | I25: 297924.6563 | J25: 40197.07933 | K25: 1273673.476 | L25: 206299.8528 | M25: 284107.3954 | N25: 822417.0832 | O25: 581993.0135 | P25: 163544.7904 | Q25: 5247486.679 | S25: 0 | T25: no overlap between AFMO DA and WCMO DA
A26: # sites selected | B26: 0 | C26: 0 | D26: 0 | E26: 0 | F26: 0 | G26: 0 | H26: 0 | I26: 0 | J26: 0 | K26: 0 | L26: 0 | M26: 0 | N26: 0 | O26: 0 | P26: 0 | Q26: 0 | S26: 1 | T26: Complete overlap (i.e., AFMO DA is subsumed by WCMO DA
A27: next best AFMO area (ft) | B27: 1152.78835 | C27: 1152.78835 | D27: 1152.78835 | E27: 1152.78835 | F27: 1152.78835 | G27: 1152.78835 | H27: 1152.78835 | I27: 1152.78835 | J27: 1152.78835 | K27: 1152.78835 | L27: 1152.78835 | M27: 1152.78835 | N27: 1152.78835 | O27: 1152.78835 | P27: 1152.78835
B28: 0 | C28: 0 | D28: 0 | E28: 0 | F28: 0 | G28: 0 | H28: 0 | I28: 0 | J28: 0 | K28: 0 | L28: 0 | M28: 0 | N28: 0 | O28: 0 | P28: 0
B29: 0 | C29: 0 | D29: 0 | E29: 0 | F29: 0 | G29: 0 | H29: 0 | I29: 0 | J29: 0 | K29: 0 | L29: 0 | M29: 0 | N29: 0 | O29: 0 | P29: 0
B30: 0 | C30: 0 | D30: 0 | E30: 0 | F30: 0 | G30: 0 | H30: 0 | I30: 0 | J30: 0
A31: Buffer Management Option (BFMO) allocation and Sediment Loading Model | S31: B | T31: Allocation Selection Criterion
A32: River | B32: 0 | C32: 0 | D32: 0 | E32: 0 | F32: 0 | G32: 0 | H32: 0 | I32: 0 | J32: 0 | K32: BE | L32: BE | M32: BE | N32: WAT | O32: WAT | P32: WAT | S32: A: | T32: Select sites with largest upstream drainage area first
A33: Zone | B33: 6039.570794 | C33: 6039.570794 | D33: 6039.570794 | E33: 6039.570794 | F33: 6039.570794 | G33: 6039.570794 | H33: 6039.570794 | I33: 6039.570794 | J33: 6039.570794 | K33: 1 | L33: 2 | M33: 3 | N33: 1 | O33: 2 | P33: 3 | Q33: Total | S33: B*: | T33: Farthest upstream selected first (i.e. BFMO in zone 1)
A34: Zone acre | B34: 126081.0019 | C34: 79815.80458 | D34: 88113.98585 | E34: 63540.90094 | F34: 83975.94081 | G34: 48159.67724 | H34: 72947.12574 | I34: 109861.7216 | J34: 37885.99034 | K34: 748034.6004 | L34: 124194.5282 | M34: 106955.2479 | N34: 207395.0535 | O34: 269204.3415 | P34: 64720.43194 | Q34: =SUM(B34:P34) -> 2230886.352 | S34: C: | T34: Select sequentially: stream, canal ditch, connector, then artificial path
A35: Extent of all MOs (ft) | B35: 702022.5474 | C35: 747728.7963 | D35: 623967.1076 | E35: 335153.3572 | F35: 804145.4465 | G35: 358911.8359 | H35: 378766.0478 | I35: 939534.6035 | J35: 191453.0724 | K35: 4386558.239 | L35: 763225.4381 | M35: 1012171.842 | N35: 1913758.182 | O35: 2056145.799 | P35: 364996.0563 | Q35: =SUM(B35:P35) -> 15578538.37
A36: number of all MOs | B36: 67 | C36: 80 | D36: 72 | E36: 24 | F36: 87 | G36: 60 | H36: 37 | I36: 97 | J36: 13 | K36: 501 | L36: 51 | M36: 106 | N36: 312 | O36: 193 | P36: 32 | Q36: 1732 | R36: Drainage extent= | S36: 328 | T36: ft | U36: Buffers drain 100m of its surrounding area
A37: Input area (ft) | B37: =CONTROL!B17 -> 0 | C37: =CONTROL!C17 -> 0 | D37: =CONTROL!D17 -> 0 | E37: =CONTROL!E17 -> 0 | F37: =CONTROL!F17 -> 0 | G37: =CONTROL!G17 -> 0 | H37: =CONTROL!H17 -> 0 | I37: =CONTROL!I17 -> 0 | J37: =CONTROL!J17 -> 0 | K37: =CONTROL!K17 -> 0 | L37: =CONTROL!L17 -> 0 | M37: =CONTROL!M17 -> 0 | N37: =CONTROL!N17 -> 0 | O37: =CONTROL!O17 -> 0 | P37: =CONTROL!P17 -> 0 | Q37: 0
A38: extent selected | B38: 0 | C38: 0 | D38: 0 | E38: 0 | F38: 0 | G38: 0 | H38: 0 | I38: 0 | J38: 0 | K38: 0 | L38: 0 | M38: 0 | N38: 0 | O38: 0 | P38: 0 | Q38: 0 | S38: Buffer width | U38: DNR guideline:
A39: Extent remaining (ft) | B39: 702022.5474 | C39: 747728.7963 | D39: 623967.1076 | E39: 335153.3572 | F39: 804145.4465 | G39: 358911.8359 | H39: 378766.0478 | I39: 939534.6035 | J39: 191453.0724 | K39: 4386558.239 | L39: 763225.4381 | M39: 1012171.842 | N39: 1913758.182 | O39: 2056145.799 | P39: 364996.0563 | Q39: 15578538.37 | R39: Natural stream= | S39: 50 | T39: ft | U39: 16.5 feet on either side of the artificial water ways
A40: # sites selected | B40: 0 | C40: 0 | D40: 0 | E40: 0 | F40: 0 | G40: 0 | H40: 0 | I40: 0 | J40: 0 | K40: 0 | L40: 0 | M40: 0 | N40: 0 | O40: 0 | P40: 0 | Q40: 0 | R40: Artificial stream= | S40: 16.5 | T40: ft | U40: 50ft on either side of streams and rivers
A41: next best BFMO area (ft) | B41: 41510.64988 | C41: 41510.64988 | D41: 41510.64988 | E41: 41510.64988 | F41: 41510.64988 | G41: 41510.64988 | H41: 41510.64988 | I41: 41510.64988 | J41: 41510.64988 | K41: 41510.64988 | L41: 41510.64988 | M41: 41510.64988 | N41: 41510.64988 | O41: 41510.64988 | P41: 41510.64988 | Q41: 622659.7482
A42: selected BFMO area (ac) | B42: 0 | C42: 0 | D42: 0 | E42: 0 | F42: 0 | G42: 0 | H42: 0 | I42: 0 | J42: 0 | K42: 0 | L42: 0 | M42: 0 | N42: 0 | O42: 0 | P42: 0 | Q42: 0 | R42: <----------------------- | S42: Buffer width on either side of stream (ac) with standard width
A43: BFMO DA (ac) | B43: 0 | C43: 0 | D43: 0 | E43: 0 | F43: 0 | G43: 0 | H43: 0 | I43: 0 | J43: 0 | K43: 0 | L43: 0 | M43: 0 | N43: 0 | O43: 0 | P43: 0 | Q43: =Q38/Q34 -> 0 | R43: =Q42*43560/2/Q38 ->  | S43: ft | T43: average width of selected BFMO
A47: Water Conservation Management Option (WCMO) allocation and Water Routing model | S47: B | T47: Allocation Selection Criterion
A48: River | B48: 0 | C48: 0 | D48: 0 | E48: 0 | F48: 0 | G48: 0 | H48: 0 | I48: 0 | J48: 0 | K48: BE | L48: BE | M48: BE | N48: WAT | O48: WAT | P48: WAT | S48: A: | T48: Select sites with lower CPI value with higher natural depth (Crop Productivity Index (CPI) / Depth of WCMO)
A49: Zone | B49: 0 | C49: 0 | D49: 0 | E49: 0 | F49: 0 | G49: 0 | H49: 0 | I49: 0 | J49: 0 | K49: 1 | L49: 2 | M49: 3 | N49: 1 | O49: 2 | P49: 3 | Q49: Total | S49: B*: | T49: Select sites with higher natural depth located on Hydric soil first | Z49: Notes: Incised zone sediment loading prediction
A50: Zone acre | B50: 126081.0019 | C50: 79815.80458 | D50: 88113.98585 | E50: 63540.90094 | F50: 83975.94081 | G50: 48159.67724 | H50: 72947.12574 | I50: 109861.7216 | J50: 37885.99034 | K50: 748034.6004 | L50: 124194.5282 | M50: 106955.2479 | N50: 207395.0535 | O50: 269204.3415 | P50: 64720.43194 | Q50: =SUM(B50:P50) -> 2230886.352 | S50: C: | T50: Select sites closer to existing wetlands and CRP sites first | AB50: =SUM(AB52:AB54) -> 3661.272
A51: Extent of all MOs (ac) | B51: 11794.10757 | C51: 8597.307397 | D51: 6673.969399 | E51: 3756.299023 | F51: 9258.56561 | G51: 3315.795782 | H51: 4623.165793 | I51: 12811.53945 | J51: 1553.000804 | K51: 50471.42947 | L51: 10923.16996 | M51: 6374.488757 | N51: 13868.71037 | O51: 23483.51507 | P51: 5568.08731 | Q51: =SUM(B51:P51) -> 173073.1518 | R51: Drainage factor= | S51: 8.9 | U51: Determines the area WCMO drains | AA51: SB | AB51: D.A. [km2] | AC51: incised length [km]
A52: number of all MOs | B52: 1354 | C52: 1112 | D52: 754 | E52: 557 | F52: 1403 | G52: 333 | H52: 832 | I52: 1295 | J52: 227 | K52: 6949 | L52: 1752 | M52: 968 | N52: 2131 | O52: 3711 | P52: 751 | Q52: =SUM(B52:P52) -> 24129 | R52: Design Depth= | S52: 6.6 | T52: ft | U52: Average WCMO Depth | Z52: Le Sueur | AA52: 6 | AB52: 2000 | AC52: 50
A53: Input area (ac) | B53: =CONTROL!B20 -> 0 | C53: =CONTROL!C20 -> 0 | D53: =CONTROL!D20 -> 0 | E53: =CONTROL!E20 -> 0 | F53: =CONTROL!F20 -> 0 | G53: =CONTROL!G20 -> 0 | H53: =CONTROL!H20 -> 0 | I53: =CONTROL!I20 -> 0 | J53: =CONTROL!J20 -> 0 | K53: =CONTROL!K20 -> 0 | L53: =CONTROL!L20 -> 0 | M53: =CONTROL!M20 -> 0 | N53: =CONTROL!N20 -> 0 | O53: =CONTROL!O20 -> 0 | P53: =CONTROL!P20 -> 0 | Q53: 0 | R53: alpha= | S53: 0.5 | T53: - | U53: Fraction of the WCMO perimeter where water outflows | Z53: Cobb | AA53: 10 | AB53: 784.122 | AC53: 35.79
A54: extent selected (ac) | B54: 0 | C54: 0 | D54: 0 | E54: 0 | F54: 0 | G54: 0 | H54: 0 | I54: 0 | J54: 0 | K54: 0 | L54: 0 | M54: 0 | N54: 0 | O54: 0 | P54: 0 | Q54: 0 | R54: C= | S54: 2 | T54: m^0.5/hr | U54: variable coefficient of discharge | Z54: Maple | AA54: 13 | AB54: 877.15 | AC54: 31.91
A55: Extent remaining (ac) | B55: 11794.10757 | C55: 8597.307397 | D55: 6673.969399 | E55: 3756.299023 | F55: 9258.56561 | G55: 3315.795782 | H55: 4623.165793 | I55: 12811.53945 | J55: 1553.000804 | K55: 50471.42947 | L55: 10923.16996 | M55: 6374.488757 | N55: 13868.71037 | O55: 23483.51507 | P55: 5568.08731 | Q55: 173073.1518 | Z55: Blue Earth | AA55: 16 | AB55: 3500 | AC55: 100
A56: # sites selected | B56: 0 | C56: 0 | D56: 0 | E56: 0 | F56: 0 | G56: 0 | H56: 0 | I56: 0 | J56: 0 | K56: 0 | L56: 0 | M56: 0 | N56: 0 | O56: 0 | P56: 0 | Q56: 0 | R56: K= | S56: 1e-07 | T56: m/s | U56: Hydraulic conductivity to calculate seepage rate | Z56: Watonwan | AA56: 17 | AB56: 2291.74 | AC56: 42
A57: next best WCMO area (ac) | B57: 17.14037076 | C57: 17.14037076 | D57: 17.14037076 | E57: 17.14037076 | F57: 17.14037076 | G57: 17.14037076 | H57: 17.14037076 | I57: 17.14037076 | J57: 17.14037076 | K57: 17.14037076 | L57: 17.14037076 | M57: 17.14037076 | N57: 17.14037076 | O57: 17.14037076 | P57: 17.14037076 | R57: ET= | S57: 1.15741e-08 | T57: m/s | U57: Evapotranspiration rate to calculate water loss through surface area | AA57: 2002-01-01 | AB57: 2014-07-31
A58: %area selected in zone | B58: 0 | C58: 0 | D58: 0 | E58: 0 | F58: 0 | G58: 0 | H58: 0 | I58: 0 | J58: 0 | K58: 0 | L58: 0 | M58: 0 | N58: 0 | O58: 0 | P58: 0 | Q58: =Q54/Q50 -> 0 | Z58: Qthresh [mm/day] | AA58: 1 | AB58: 1 | AC58: Power fn input from the regression
Z59: Le Sueur [cms] | AA59: =AA$58*AB52/86.4 -> 23.14814815 | AB59: =LES_Qth -> 23.14814815 | AC59: a= | AD59: 0.6
Z60: Cobb [cms] | AA60: =AA$58*AB53/86.4 -> 9.075486111 | AB60: =COB_Qth -> 9.075486111 | AC60: b= | AD60: 2.2
Z61: Maple [cms] | AA61: 10.15219907 | AB61: =MAP_Qth -> 10.15219907
A62: In-Channel Management Option (ICMO) allocation and Water Routing model | S62: B | T62: Allocation Selection Criterion | Z62: Blue Earth [cms] | AA62: 40.50925926
A63: River | B63: LES | C63: LES | D63: LES | E63: COB | F63: COB | G63: COB | H63: MAP | I63: MAP | J63: MAP | K63: BE | L63: BE | M63: BE | N63: WAT | O63: WAT | P63: WAT | S63: A: | T63: Longest ditches selected first | Z63: Watonwan [cms] | AA63: 26.52476852
A64: Zone | B64: 1 | C64: 2 | D64: 3 | E64: 1 | F64: 2 | G64: 3 | H64: 1 | I64: 2 | J64: 3 | K64: 1 | L64: 2 | M64: 3 | N64: 1 | O64: 2 | P64: 3 | Q64: Total | S64: B*: | T64: Closest to SEDSB outlet (i.e., larger flow accumulation) | Z64: LES [cfs] | AA64: =LES_Qth*35.3147 -> 817.4699074
A65: Zone acre | B65: 126081.0019 | C65: 79815.80458 | D65: 88113.98585 | E65: 63540.90094 | F65: 83975.94081 | G65: 48159.67724 | H65: 72947.12574 | I65: 109861.7216 | J65: 37885.99034 | K65: 748034.6004 | L65: 124194.5282 | M65: 106955.2479 | N65: 207395.0535 | O65: 269204.3415 | P65: 64720.43194 | Q65: =SUM(B65:P65) -> 2230886.352 | S65: C: | T65: Farthest upstream selected first (i.e. ICMO in zone 1) | Z65: COB [cfs] | AA65: =COB_Qth*35.3147 -> 320.4980694
A66: Extent of all MOs (ft) | B66: 285228.1184 | C66: 269595.4106 | D66: 154817.9528 | E66: 28428.6024 | F66: 254111.6103 | G66: 34959.45956 | H66: 139554.3838 | I66: 335274.2399 | J66: 3063.821783 | K66: 1411326.153 | L66: 300844.9037 | M66: 44926.4551 | N66: 108422.6063 | O66: 236719.357 | P66: 75292.55148 | Q66: =SUM(B66:P66) -> 3682565.627 | Z66: MAP [cfs] | AA66: =MAP_Qth*35.3147 -> 358.5218646
A67: number of all MOs | B67: 125 | C67: 94 | D67: 45 | E67: 5 | F67: 90 | G67: 12 | H67: 38 | I67: 127 | J67: 1 | K67: 600 | L67: 138 | M67: 28 | N67: 46 | O67: 89 | P67: 19 | Q67: =SUM(B67:P67) -> 1457 | R67: Drainage factor= | S67: 9 | U67: Determines the area ICMO drains | Z67: Blue Earth [cfs]] | AA67: =BE_Qth*35.3147 -> 1430.572338
A68: Input length (ft) | B68: =CONTROL!B23 -> 0 | C68: =CONTROL!C23 -> 0 | D68: =CONTROL!D23 -> 0 | E68: =CONTROL!E23 -> 0 | F68: =CONTROL!F23 -> 0 | G68: =CONTROL!G23 -> 0 | H68: =CONTROL!H23 -> 0 | I68: =CONTROL!I23 -> 0 | J68: =CONTROL!J23 -> 0 | K68: =CONTROL!K23 -> 0 | L68: =CONTROL!L23 -> 0 | M68: =CONTROL!M23 -> 0 | N68: =CONTROL!N23 -> 0 | O68: =CONTROL!O23 -> 0 | P68: =CONTROL!P23 -> 0 | Q68: 0 | S68: e.g., Default value of 9 incidates that the ICMO drains 9 times its area | Z68: Watonwan [cfs] | AA68: =WAT_Qth*35.3147 -> 936.7142428
A69: extent selected (ft) | B69: 0 | C69: 0 | D69: 0 | E69: 0 | F69: 0 | G69: 0 | H69: 0 | I69: 0 | J69: 0 | K69: 0 | L69: 0 | M69: 0 | N69: 0 | O69: 0 | P69: 0 | Q69: 0 | S69: ICMO Geometry
A70: Extent remaining (ft) | B70: 285228.1184 | C70: 269595.4106 | D70: 154817.9528 | E70: 28428.6024 | F70: 254111.6103 | G70: 34959.45956 | H70: 139554.3838 | I70: 335274.2399 | J70: 3063.821783 | K70: 1411326.153 | L70: 300844.9037 | M70: 44926.4551 | N70: 108422.6063 | O70: 236719.357 | P70: 75292.55148 | Q70: 3682565.627 | R70: Design Depth= | S70: 10 | T70: ft | Z70: ICMO design input reference
A71: # sites selected | B71: 0 | C71: 0 | D71: 0 | E71: 0 | F71: 0 | G71: 0 | H71: 0 | I71: 0 | J71: 0 | K71: 0 | L71: 0 | M71: 0 | N71: 0 | O71: 0 | P71: 0 | Q71: 0 | R71: WW = | S71: 100 | T71: ft
A72: next best ICMO length (ft) | B72: 82.14164531 | C72: 82.14164531 | D72: 82.14164531 | E72: 82.14164531 | F72: 82.14164531 | G72: 82.14164531 | H72: 82.14164531 | I72: 82.14164531 | J72: 82.14164531 | K72: 82.14164531 | L72: 82.14164531 | M72: 82.14164531 | N72: 82.14164531 | O72: 82.14164531 | P72: 82.14164531 | Q72: 1232.12468 | R72: NW= | S72: 5 | T72: ft
A73: %area selected in zone | B73: 0 | C73: 0 | D73: 0 | E73: 0 | F73: 0 | G73: 0 | H73: 0 | I73: 0 | J73: 0 | K73: 0 | L73: 0 | M73: 0 | N73: 0 | O73: 0 | P73: 0 | Q73: =Q69/Q66 -> 0 | R73: NH= | S73: 1 | T73: ft
A77: Ravine Management Option (RAMO) and Sediment Loading Model
A78: River | B78: LES | C78: LES | D78: LES | E78: COB | F78: COB | G78: COB | H78: MAP | I78: MAP | J78: MAP | K78: BE | L78: BE | M78: BE | N78: WAT | O78: WAT | P78: WAT | S78: A | T78: Allocation Selection Criterion
A79: Zone | B79: 1 | C79: 2 | D79: 3 | E79: 1 | F79: 2 | G79: 3 | H79: 1 | I79: 2 | J79: 3 | K79: 1 | L79: 2 | M79: 3 | N79: 1 | O79: 2 | P79: 3 | Q79: Total | S79: A*: | T79: Select the ravines with largest load per tip
A80: Zone acre | B80: 126081.0019 | C80: 79815.80458 | D80: 88113.98585 | E80: 63540.90094 | F80: 83975.94081 | G80: 48159.67724 | H80: 72947.12574 | I80: 109861.7216 | J80: 37885.99034 | K80: 748034.6004 | L80: 124194.5282 | M80: 106955.2479 | N80: 207395.0535 | O80: 269204.3415 | P80: 64720.43194 | Q80: =SUM(B80:P80) -> 2230886.352 | S80: B: | T80: Select ravine by its evolution stages (0-3)
A81: Number of ravine tips | B81: 0 | C81: 0 | D81: 275 | E81: 0 | F81: 0 | G81: 132 | H81: 0 | I81: 14 | J81: 196 | K81: 1 | L81: 0 | M81: 589 | N81: 59 | O81: 17 | P81: 138 | Q81: =SUM(B81:P81) -> 1421 | T81: 0: ravine empties into channel
A82: number of ravines | B82: 0 | C82: 0 | D82: 29 | E82: 0 | F82: 0 | G82: 33 | H82: 0 | I82: 3 | J82: 41 | K82: 1 | L82: 0 | M82: 91 | N82: 59 | O82: 17 | P82: 33 | Q82: 307 | T82: 1: ravine ends on a terrace/abandoned channel | AA82: A
A83: input number of tips | B83: =CONTROL!B26 -> 0 | C83: =CONTROL!C26 -> 0 | D83: =CONTROL!D26 -> 0 | E83: =CONTROL!E26 -> 0 | F83: =CONTROL!F26 -> 0 | G83: =CONTROL!G26 -> 0 | H83: =CONTROL!H26 -> 0 | I83: =CONTROL!I26 -> 0 | J83: =CONTROL!J26 -> 0 | K83: =CONTROL!K26 -> 0 | L83: =CONTROL!L26 -> 0 | M83: =CONTROL!M26 -> 0 | N83: =CONTROL!N26 -> 0 | O83: =CONTROL!O26 -> 0 | P83: =CONTROL!P26 -> 0 | Q83: 0 | T83: 2: ravine has an alluvial fan | AA83: B
A84: tips selected | B84: 0 | C84: 0 | D84: 0 | E84: 0 | F84: 0 | G84: 0 | H84: 0 | I84: 0 | J84: 0 | K84: 0 | L84: 0 | M84: 0 | N84: 0 | O84: 0 | P84: 0 | Q84: 0 | T84: 3: ravine captured by another ravine | AA84: C
A85: remaining tips | B85: 0 | C85: 0 | D85: 275 | E85: 0 | F85: 0 | G85: 132 | H85: 0 | I85: 14 | J85: 196 | K85: 1 | L85: 0 | M85: 589 | N85: 59 | O85: 17 | P85: 138 | Q85: 1421
A86: number of ravines selected | B86: 0 | C86: 0 | D86: 0 | E86: 0 | F86: 0 | G86: 0 | H86: 0 | I86: 0 | J86: 0 | K86: 0 | L86: 0 | M86: 0 | N86: 0 | O86: 0 | P86: 0 | Q86: 0 | R86: Fr= | S86: 80 | T86: % sediment loading addressed from RAMO
A87: Next ravine's load per tip | B87: 14.59428 | C87: 14.59428 | D87: 14.59428 | E87: 14.59428 | F87: 14.59428 | G87: 14.59428 | H87: 14.59428 | I87: 14.59428 | J87: 14.59428 | K87: 14.59428 | L87: 14.59428 | M87: 14.59428 | N87: 14.59428 | O87: 14.59428 | P87: 14.59428 | S87: e.g. | T87: 0%: just prevents branch expansion
A88: % tips selected in zone | Q88: =Q84/Q80 -> 0
A91: Near-Channel Source Management Options (NCMOs) and Sediment Loading Model
A92: River | B92: LES | C92: LES | D92: LES | E92: COB | F92: COB | G92: COB | H92: MAP | I92: MAP | J92: MAP | K92: BE | L92: BE | M92: BE | N92: WAT | O92: WAT | P92: WAT | S92: B | T92: Allocation Selection Criterion
A93: Zone | B93: 1 | C93: 2 | D93: 3 | E93: 1 | F93: 2 | G93: 3 | H93: 1 | I93: 2 | J93: 3 | K93: 1 | L93: 2 | M93: 3 | N93: 1 | O93: 2 | P93: 3 | Q93: Total | S93: A: | T93: Select tallest bluffs with largest open surface area
A94: Zone acre | B94: 126081.0019 | C94: 79815.80458 | D94: 88113.98585 | E94: 63540.90094 | F94: 83975.94081 | G94: 48159.67724 | H94: 72947.12574 | I94: 109861.7216 | J94: 37885.99034 | K94: 748034.6004 | L94: 124194.5282 | M94: 106955.2479 | N94: 207395.0535 | O94: 269204.3415 | P94: 64720.43194 | Q94: =SUM(B94:P94) -> 2230886.352 | S94: B*: | T94: select bluffs with larger loads first
A95: Extent of all MOs (ft) | B95: 28566.27388 | C95: 42621.39244 | D95: 63231.62932 | E95: 4425.85316 | F95: 7887.13936 | G95: 45554.4634 | H95: 0 | I95: 14694.88236 | J95: 46830.71016 | K95: 97555.7774 | L95: 37582.0222 | M95: 197283.4709 | N95: 61824.14896 | O95: 45442.91484 | P95: 56719.16192 | Q95: =SUM(B95:P95) -> 750219.8403
A96: number of all reach segments | B96: 170 | C96: 256 | D96: 207 | E96: 44 | F96: 66 | G96: 157 | H96: 0 | I96: 68 | J96: 124 | K96: 615 | L96: 243 | M96: 519 | N96: 504 | O96: 296 | P96: 180 | Q96: 3449 | S96: Treatment | T96: $ per LF | U96: Notes
A97: Input length (ft) | B97: =CONTROL!B29 -> 0 | C97: =CONTROL!C29 -> 0 | D97: =CONTROL!D29 -> 0 | E97: =CONTROL!E29 -> 0 | F97: =CONTROL!F29 -> 0 | G97: =CONTROL!G29 -> 0 | H97: =CONTROL!H29 -> 0 | I97: =CONTROL!I29 -> 0 | J97: =CONTROL!J29 -> 0 | K97: =CONTROL!K29 -> 0 | L97: =CONTROL!L29 -> 0 | M97: =CONTROL!M29 -> 0 | N97: =CONTROL!N29 -> 0 | O97: =CONTROL!O29 -> 0 | P97: =CONTROL!P29 -> 0 | Q97: 0 | S97: Grade and shape | T97: $20 – 50 | U97: Depends on height and toe treatment
A98: extent selected | B98: 0 | C98: 0 | D98: 0 | E98: 0 | F98: 0 | G98: 0 | H98: 0 | I98: 0 | J98: 0 | K98: 0 | L98: 0 | M98: 0 | N98: 0 | O98: 0 | P98: 0 | Q98: 0 | S98: LWD toe | T98: $30 – 100 | U98: Depends on height of bank
A99: Extent remaining (ft) | B99: 28566.27388 | C99: 42621.39244 | D99: 63231.62932 | E99: 4425.85316 | F99: 7887.13936 | G99: 45554.4634 | H99: 0 | I99: 14694.88236 | J99: 46830.71016 | K99: 97555.7774 | L99: 37582.0222 | M99: 197283.4709 | N99: 61824.14896 | O99: 45442.91484 | P99: 56719.16192 | Q99: 750219.8403 | S99: Cribwall | T99: $50-100 | U99: Depends on height of bank
A100: # sites selected | B100: 0 | C100: 0 | D100: 0 | E100: 0 | F100: 0 | G100: 0 | H100: 0 | I100: 0 | J100: 0 | K100: 0 | L100: 0 | M100: 0 | N100: 0 | O100: 0 | P100: 0 | Q100: 0 | S100: Engineered log jam | T100: $30 – 100 | U100: Depends on log size needed
A101: Next site (ft) | B101: 3625.3282 | C101: 3625.3282 | D101: 3625.3282 | E101: 3625.3282 | F101: 3625.3282 | G101: 3625.3282 | H101: 3625.3282 | I101: 3625.3282 | J101: 3625.3282 | K101: 3625.3282 | L101: 3625.3282 | M101: 3625.3282 | N101: 3625.3282 | O101: 3625.3282 | P101: 3625.3282 | S101: Geocell | T101: $50 - 100 | U101: Depends on height of bank

Sheet Reference Scenarios
A1: 25
H2: AFMO | W2: BFMO | AL2: WCMO | BA2: RAMO | BP2: NCMO | CE2: % Reduction from NCSS
E3: SL reduction | F3: MO cost | H3: LES | K3: COB | N3: MAP | Q3: BE | T3: WAT | W3: LES | Z3: COB | AC3: MAP | AF3: BE | AI3: WAT | AL3: LES | AO3: COB | AR3: MAP | AU3: BE | AX3: WAT | BA3: LES | BD3: COB | BG3: MAP | BJ3: BE | BM3: WAT | BP3: LES | BS3: COB | BV3: MAP | BY3: BE | CB3: WAT | CE3: from WCMO implementation
B4: Test | C4: Strategy | D4: Scenario | E4: Mg/yr | F4: $/yr | G4: TLMO | H4: Zone1 | I4: Zone2 | J4: Zone3 | K4: Zone1 | L4: Zone2 | M4: Zone3 | N4: Zone1 | O4: Zone2 | P4: Zone3 | Q4: Zone1 | R4: Zone2 | S4: Zone3 | T4: Zone1 | U4: Zone2 | V4: Zone3 | W4: Zone1 | X4: Zone2 | Y4: Zone3 | Z4: Zone1 | AA4: Zone2 | AB4: Zone3 | AC4: Zone1 | AD4: Zone2 | AE4: Zone3 | AF4: Zone1 | AG4: Zone2 | AH4: Zone3 | AI4: Zone1 | AJ4: Zone2 | AK4: Zone3 | AL4: Zone1 | AM4: Zone2 | AN4: Zone3 | AO4: Zone1 | AP4: Zone2 | AQ4: Zone3 | AR4: Zone1 | AS4: Zone2 | AT4: Zone3 | AU4: Zone1 | AV4: Zone2 | AW4: Zone3 | AX4: Zone1 | AY4: Zone2 | AZ4: Zone3 | BA4: Zone1 | BB4: Zone2 | BC4: Zone3 | BD4: Zone1 | BE4: Zone2 | BF4: Zone3 | BG4: Zone1 | BH4: Zone2 | BI4: Zone3 | BJ4: Zone1 | BK4: Zone2 | BL4: Zone3 | BM4: Zone1 | BN4: Zone2 | BO4: Zone3 | BP4: Zone1 | BQ4: Zone2 | BR4: Zone3 | BS4: Zone1 | BT4: Zone2 | BU4: Zone3 | BV4: Zone1 | BW4: Zone2 | BX4: Zone3 | BY4: Zone1 | BZ4: Zone2 | CA4: Zone3 | CB4: Zone1 | CC4: Zone2 | CD4: Zone3 | CE4: MAP | CF4: COB | CG4: LES | CH4: BE | CI4: WAT
B5: 1 | C5: Ag Field Management | D5: T1AF2% | E5: 149.7314832 | F5: 402865.5813 | G5: T1:80%-20%-0% | H5: 0.02 | I5: 0.02 | J5: 0.02 | K5: 0.02 | L5: 0.02 | M5: 0.02 | N5: 0.02 | O5: 0.02 | P5: 0.02 | Q5: 0.02 | R5: 0.02 | S5: 0.02 | T5: 0.02 | U5: 0.02 | V5: 0.02
B6: =B5+1 -> 2 | C6: Ag Field Management | D6: T1AF5% | E6: 223.204576 | F6: 956684.3091 | G6: T1:80%-20%-0% | H6: 0.05 | I6: 0.05 | J6: 0.05 | K6: 0.05 | L6: 0.05 | M6: 0.05 | N6: 0.05 | O6: 0.05 | P6: 0.05 | Q6: 0.05 | R6: 0.05 | S6: 0.05 | T6: 0.05 | U6: 0.05 | V6: 0.05
B7: =B6+1 -> 3 | C7: Ag Field Management | D7: T1AF10% | E7: 390.0515436 | F7: 1841336.495 | G7: T1:80%-20%-0% | H7: 0.1 | I7: 0.1 | J7: 0.1 | K7: 0.1 | L7: 0.1 | M7: 0.1 | N7: 0.1 | O7: 0.1 | P7: 0.1 | Q7: 0.1 | R7: 0.1 | S7: 0.1 | T7: 0.1 | U7: 0.1 | V7: 0.1
B8: 4 | C8: Ag Field Management | D8: T1AF50% | E8: 2147.929516 | F8: 8951670.576 | G8: T1:80%-20%-0% | H8: 0.5 | I8: 0.5 | J8: 0.5 | K8: 0.5 | L8: 0.5 | M8: 0.5 | N8: 0.5 | O8: 0.5 | P8: 0.5 | Q8: 0.5 | R8: 0.5 | S8: 0.5 | T8: 0.5 | U8: 0.5 | V8: 0.5
B9: 5 | C9: Ag Field Management | D9: T1AF100% | E9: 4095.534698 | F9: 17851271.34 | G9: T1:80%-20%-0% | H9: 1 | I9: 1 | J9: 1 | K9: 1 | L9: 1 | M9: 1 | N9: 1 | O9: 1 | P9: 1 | Q9: 1 | R9: 1 | S9: 1 | T9: 1 | U9: 1 | V9: 1
B10: 6 | C10: Stream Buffer Mgmt | D10: T1BF2% | E10: 323.1675508 | F10: 1124376.202 | G10: T1:80%-20%-0% | W10: 0.02 | X10: 0.02 | Y10: 0.02 | Z10: 0.02 | AA10: 0.02 | AB10: 0.02 | AC10: 0.02 | AD10: 0.02 | AE10: 0.02 | AF10: 0.02 | AG10: 0.02 | AH10: 0.02 | AI10: 0.02 | AJ10: 0.02 | AK10: 0.02
B11: 7 | C11: Stream Buffer Mgmt | D11: T1BF5% | E11: 946.4215699 | F11: 2561959.509 | G11: T1:80%-20%-0% | W11: 0.05 | X11: 0.05 | Y11: 0.05 | Z11: 0.05 | AA11: 0.05 | AB11: 0.05 | AC11: 0.05 | AD11: 0.05 | AE11: 0.05 | AF11: 0.05 | AG11: 0.05 | AH11: 0.05 | AI11: 0.05 | AJ11: 0.05 | AK11: 0.05
B12: 8 | C12: Stream Buffer Mgmt | D12: T1BF10% | E12: 1330.367899 | F12: 4763000.561 | G12: T1:80%-20%-0% | W12: 0.1 | X12: 0.1 | Y12: 0.1 | Z12: 0.1 | AA12: 0.1 | AB12: 0.1 | AC12: 0.1 | AD12: 0.1 | AE12: 0.1 | AF12: 0.1 | AG12: 0.1 | AH12: 0.1 | AI12: 0.1 | AJ12: 0.1 | AK12: 0.1
B13: 9 | C13: Stream Buffer Mgmt | D13: T1BF50% | E13: 4227.115034 | F13: 21747049.5 | G13: T1:80%-20%-0% | W13: 0.5 | X13: 0.5 | Y13: 0.5 | Z13: 0.5 | AA13: 0.5 | AB13: 0.5 | AC13: 0.5 | AD13: 0.5 | AE13: 0.5 | AF13: 0.5 | AG13: 0.5 | AH13: 0.5 | AI13: 0.5 | AJ13: 0.5 | AK13: 0.5
B14: 10 | C14: Stream Buffer Mgmt | D14: T1BF100% | E14: 7300.304036 | F14: 36526413.66 | G14: T1:80%-20%-0% | W14: 1 | X14: 1 | Y14: 1 | Z14: 1 | AA14: 1 | AB14: 1 | AC14: 1 | AD14: 1 | AE14: 1 | AF14: 1 | AG14: 1 | AH14: 1 | AI14: 1 | AJ14: 1 | AK14: 1
B15: 11 | C15: Water Conservation | D15: T1WC2% | E15: 15700.98847 | F15: 3893328.851 | G15: T1:80%-20%-0% | AL15: 0.02 | AM15: 0.02 | AN15: 0.02 | AO15: 0.02 | AP15: 0.02 | AQ15: 0.02 | AR15: 0.02 | AS15: 0.02 | AT15: 0.02 | AU15: 0.02 | AV15: 0.02 | AW15: 0.02 | AX15: 0.02 | AY15: 0.02 | AZ15: 0.02 | CE15: 0.07423561636 | CF15: 0.03263395397 | CG15: 0.05563505139 | CH15: 0.02220245375 | CI15: 0.0331740623
B16: 12 | C16: Water Conservation | D16: T1WC5% | E16: 29465.11813 | F16: 8398910.279 | G16: T1:80%-20%-0% | AL16: 0.05 | AM16: 0.05 | AN16: 0.05 | AO16: 0.05 | AP16: 0.05 | AQ16: 0.05 | AR16: 0.05 | AS16: 0.05 | AT16: 0.05 | AU16: 0.05 | AV16: 0.05 | AW16: 0.05 | AX16: 0.05 | AY16: 0.05 | AZ16: 0.05 | CE16: 0.09713063999 | CF16: 0.08279056137 | CG16: 0.08385271541 | CH16: 0.06134211319 | CI16: 0.07683215689
B17: 13 | C17: Water Conservation | D17: T1WC10% | E17: 56357.16764 | F17: 16301626.17 | G17: T1:80%-20%-0% | AL17: 0.1 | AM17: 0.1 | AN17: 0.1 | AO17: 0.1 | AP17: 0.1 | AQ17: 0.1 | AR17: 0.1 | AS17: 0.1 | AT17: 0.1 | AU17: 0.1 | AV17: 0.1 | AW17: 0.1 | AX17: 0.1 | AY17: 0.1 | AZ17: 0.1 | CE17: 0.1718469929 | CF17: 0.1610069353 | CG17: 0.1610633879 | CH17: 0.1285530237 | CI17: 0.1467817622
B18: 14 | C18: Water Conservation | D18: T1WC50% | E18: 229695.0643 | F18: 79210381.83 | G18: T1:80%-20%-0% | AL18: 0.5 | AM18: 0.5 | AN18: 0.5 | AO18: 0.5 | AP18: 0.5 | AQ18: 0.5 | AR18: 0.5 | AS18: 0.5 | AT18: 0.5 | AU18: 0.5 | AV18: 0.5 | AW18: 0.5 | AX18: 0.5 | AY18: 0.5 | AZ18: 0.5 | CE18: 0.6622021354 | CF18: 0.6124914137 | CG18: 0.6796560203 | CH18: 0.5543352007 | CI18: 0.6041286041
B19: 15 | C19: Water Conservation | D19: T1WC100% | E19: 345495.5176 | F19: 157846212.8 | G19: T1:80%-20%-0% | AL19: 1 | AM19: 1 | AN19: 1 | AO19: 1 | AP19: 1 | AQ19: 1 | AR19: 1 | AS19: 1 | AT19: 1 | AU19: 1 | AV19: 1 | AW19: 1 | AX19: 1 | AY19: 1 | AZ19: 1 | CE19: 0.9596478149 | CF19: 0.9242932142 | CG19: 0.9732717641 | CH19: 0.8719815622 | CI19: 0.9163220154
B20: 16 | C20: Ravine Mgmt | D20: T1RA2% | E20: 149.441723 | F20: 36426.2287 | G20: T1:80%-20%-0% | BA20: 0.02 | BB20: 0.02 | BC20: 0.02 | BD20: 0.02 | BE20: 0.02 | BF20: 0.02 | BG20: 0.02 | BH20: 0.02 | BI20: 0.02 | BJ20: 0.02 | BK20: 0.02 | BL20: 0.02 | BM20: 0.02 | BN20: 0.02 | BO20: 0.02
B21: 17 | C21: Ravine Mgmt | D21: T1RA5% | E21: 534.7640843 | F21: 84477.84955 | G21: T1:80%-20%-0% | BA21: 0.05 | BB21: 0.05 | BC21: 0.05 | BD21: 0.05 | BE21: 0.05 | BF21: 0.05 | BG21: 0.05 | BH21: 0.05 | BI21: 0.05 | BJ21: 0.05 | BK21: 0.05 | BL21: 0.05 | BM21: 0.05 | BN21: 0.05 | BO21: 0.05
B22: 18 | C22: Ravine Mgmt | D22: T1RA10% | E22: 733.8950393 | F22: 119354.026 | G22: T1:80%-20%-0% | BA22: 0.1 | BB22: 0.1 | BC22: 0.1 | BD22: 0.1 | BE22: 0.1 | BF22: 0.1 | BG22: 0.1 | BH22: 0.1 | BI22: 0.1 | BJ22: 0.1 | BK22: 0.1 | BL22: 0.1 | BM22: 0.1 | BN22: 0.1 | BO22: 0.1
B23: 19 | C23: Ravine Mgmt | D23: T1RA50% | E23: 3469.139397 | F23: 586694.79 | G23: T1:80%-20%-0% | BA23: 0.5 | BB23: 0.5 | BC23: 0.5 | BD23: 0.5 | BE23: 0.5 | BF23: 0.5 | BG23: 0.5 | BH23: 0.5 | BI23: 0.5 | BJ23: 0.5 | BK23: 0.5 | BL23: 0.5 | BM23: 0.5 | BN23: 0.5 | BO23: 0.5
B24: 20 | C24: Ravine Mgmt | D24: T1RA100% | E24: 5661.59487 | F24: 1102087.175 | G24: T1:80%-20%-0% | BA24: 1 | BB24: 1 | BC24: 1 | BD24: 1 | BE24: 1 | BF24: 1 | BG24: 1 | BH24: 1 | BI24: 1 | BJ24: 1 | BK24: 1 | BL24: 1 | BM24: 1 | BN24: 1 | BO24: 1
B25: 21 | C25: Near Channel Mgmt | D25: T1NC2% | E25: 32587.16745 | F25: 2087483.415 | G25: T1:80%-20%-0% | BP25: 0.02 | BQ25: 0.02 | BR25: 0.02 | BS25: 0.02 | BT25: 0.02 | BU25: 0.02 | BV25: 0.02 | BW25: 0.02 | BX25: 0.02 | BY25: 0.02 | BZ25: 0.02 | CA25: 0.02 | CB25: 0.02 | CC25: 0.02 | CD25: 0.02
B26: 22 | C26: Near Channel Mgmt | D26: T1NC5% | E26: 50360.63728 | F26: 3950040.055 | G26: T1:80%-20%-0% | BP26: 0.05 | BQ26: 0.05 | BR26: 0.05 | BS26: 0.05 | BT26: 0.05 | BU26: 0.05 | BV26: 0.05 | BW26: 0.05 | BX26: 0.05 | BY26: 0.05 | BZ26: 0.05 | CA26: 0.05 | CB26: 0.05 | CC26: 0.05 | CD26: 0.05
B27: 23 | C27: Near Channel Mgmt | D27: T1NC10% | E27: 82974.74653 | F27: 7215988.459 | G27: T1:80%-20%-0% | BP27: 0.1 | BQ27: 0.1 | BR27: 0.1 | BS27: 0.1 | BT27: 0.1 | BU27: 0.1 | BV27: 0.1 | BW27: 0.1 | BX27: 0.1 | BY27: 0.1 | BZ27: 0.1 | CA27: 0.1 | CB27: 0.1 | CC27: 0.1 | CD27: 0.1
B28: 24 | C28: Near Channel Mgmt | D28: T1NC50% | E28: 172690.7528 | F28: 33496048.69 | G28: T1:80%-20%-0% | BP28: 0.5 | BQ28: 0.5 | BR28: 0.5 | BS28: 0.5 | BT28: 0.5 | BU28: 0.5 | BV28: 0.5 | BW28: 0.5 | BX28: 0.5 | BY28: 0.5 | BZ28: 0.5 | CA28: 0.5 | CB28: 0.5 | CC28: 0.5 | CD28: 0.5
B29: 25 | C29: Near Channel Mgmt | D29: T1NC100% | E29: 195665.3597 | F29: 66537297.19 | G29: T1:80%-20%-0% | BP29: 1 | BQ29: 1 | BR29: 1 | BS29: 1 | BT29: 1 | BU29: 1 | BV29: 1 | BW29: 1 | BX29: 1 | BY29: 1 | BZ29: 1 | CA29: 1 | CB29: 1 | CC29: 1 | CD29: 1
B31: Note: The user may create new reference scenarios by chanigning the values in the green cells in the table above. After specifying new scenarios and/or MO cost and effectiveness on the CONTROL tab, press "Run reference scenarios" button to evalaute the reference scenarios.
D37: TMDL goal | E37: SL reduction
E38: Mg/yr
D39: 0.4 | E39: =D39*'Output Detail'!B27 -> 174840.4 | F39: =MAX(F5:F29) -> 157846212.8
D40: 0.6 | E40: =D40*'Output Detail'!B27 -> 262260.6
B55: T1:80%-20%-0%
B56: T2: 40%-20%-40%
B57: T3: 0%-20%-80%

Sheet Your Scenarios
D3: Your Scenarios | E3: SL reduction | F3: MO cost | G3: TLMO | J3: AFMO | K3: BFMO | L3: WCMO | M3: ICMO | N3: RAMO | O3: NCMO | P3: SL reduc 90% | Q3: SL reduc 10% | R3: +error | S3: -error
C4: i | D4: Scenario | E4: Mg/yr | F4: $/yr | G4: Corn-Soy Rotation (ac) | H4: Continuous Corn (ac) | I4: Corn-Soy Rotation with Winter Rye Cover Crop (ac) | J4: ac | K4: ac | L4: ac | M4: ft | N4: tips | O4: ft | P4: Mg/yr | Q4: Mg/yr
R5: =IF(P5=0,"",ABS($E5-P5)) ->  | S5: =IF(Q5=0,"",ABS($E5-Q5)) -> 
R6: =IF(P6=0,"",ABS($E6-P6)) -> 

Sheet SB I|O Detail (hidden)
A1: i | B1: SBi | C1: SBarea(ac) | D1: Zone | E1: Headwater? | F1: River | G1: i+1 | H1: #up SBs | I1: ReachLength(m) | J1: So, Slope | K1: DA [km2] | M1: B, width(m) | N1: h, depth(m) | O1: Pwet_m | P1: XSarea_m2 | Q1: XS+ID referenced | R1: n | T1: Ck | U1: K[sec] | V1: X | W1: C1 | X1: C2 | Y1: C3 | Z1: C1+C2+C3 | AA1: K[hr] | AB1: =MAX(AA2:AA111) -> 21.90097233
A2: 1 | B2: SB1 | C2: 13812.18108 | D2: 2 | E2: Y | F2: LES | G2: 3 | H2: =COUNTIF(G$2:G$112,A2) -> 0 | I2: 22263.16421 | J2: 0.001266140461 | K2: 55.8958015 | M2: 23.2983392 | N2: 1.702657613 | O2: 27.07077751 | P2: 19.76015214 | Q2: M85.68 | R2: 0.03 | T2: 1.602611082 | U2: 13891.80722 | V2: 0.490973533 | W2: 0.7236632453 | X2: 0.9950113108 | Y2: -0.7186745561 | Z2: 1 | AA2: =U2/3600 -> 3.858835339
A3: 2 | B3: SB2 | C3: 12471.63645 | D3: 3 | E3: =IF(H3=0,"Y","N") -> Y | F3: LES | G3: 5 | H3: =COUNTIF(G$2:G$112,A3) -> 0 | I3: 15662.27189 | J3: 0.0002402784236 | K3: 50.471199 | M3: 23.23270151 | N3: 1.698989062 | O3: 27.01273828 | P3: 19.4140625 | Q3: L1.94 | R3: 0.03 | T3: 0.6909555192 | U3: 22667.5545 | V3: 0.4333855521 | W3: 0.5955383269 | X3: 0.9461140179 | Y3: -0.5416523449 | Z3: 1 | AA3: 6.296542918
A4: 3 | B4: SB3 | C4: 15811.26053 | D4: 2 | E4: N | F4: LES | G4: 9 | H4: 1 | I4: 13969.95053 | J4: 0.0003947682554 | K4: 119.8820038 | M4: 24.07257225 | N4: 1.745930202 | O4: 27.75538253 | P4: 23.84247184 | Q4: L4.49 | R4: 0.03 | T4: 0.9974733783 | U4: 14005.33672 | V4: 0.4461218167 | W4: 0.7251551723 | X4: 0.97038372 | Y4: -0.6955388923 | Z4: 1 | AA4: 3.890371311
A5: 4 | B5: SB4 | C5: 13527.51612 | D5: 3 | E5: N | F5: BE | G5: 0 | H5: 4 | I5: 27709.40575 | J5: 0.001344279676 | K5: 9352.25 | M5: 97.8777 | N5: 12.25291229 | O5: 269.5395686 | P5: 746.30955 | Q5: L27.26 | R5: 0.03 | T5: 4.016396913 | U5: 6899.070573 | V5: 0.4385899214 | W5: 0.8534395487 | X5: 0.9819994223 | Y5: -0.835438971 | Z5: 1 | AA5: 1.916408493
A6: 5 | B6: SB5 | C6: 15475.69194 | D6: 3 | E6: N | F6: LES | G6: 6 | H6: 1 | I6: 8061.659088 | J6: 0.002534038934 | K6: 113.098999 | M6: 23.99049789 | N6: 1.741342991 | O6: 27.6828094 | P6: 23.40971614 | Q6: L50.83 | R6: 0.03 | T6: 2.500871975 | U6: 3223.539297 | V6: 0.4856701901 | W6: 0.9281389718 | X6: 0.9979404903 | Y6: -0.9260794621 | Z6: 1 | AA6: 0.8954275824
A7: 6 | B7: SB6 | C7: 27463.2497 | D7: 3 | E7: N | F7: LES | G7: 4 | H7: =COUNTIF(G$2:G$112,A7) -> 3 | I7: 50189.84848 | J7: 0.001245767001 | K7: 2924.360107 | M7: 58.0067573 | N7: 3.642542653 | O7: 57.76122292 | P7: 202.7681749 | Q7: L11.53 | R7: 0.03 | T7: 4.529200165 | U7: 11081.39333 | V7: 0.4832278109 | W7: 0.7735096386 | X7: 0.9924025216 | Y7: -0.7659121602 | Z7: 1 | AA7: 3.078164813
A8: 7 | B8: SB7 | C8: 23906.66743 | D8: 3 | E8: N | F8: LES | G8: 6 | H8: 2 | I8: 32856.76465 | J8: 0.000571025638 | K8: 968.4110107 | M8: 34.33977323 | N8: 2.319773398 | O8: 36.83401499 | P8: 77.97862248 | Q8: L15.15 | R8: 0.03 | T8: 2.188801097 | U8: 15011.30674 | V8: 0.4636906072 | W8: 0.7071004819 | X8: 0.9787299927 | Y8: -0.6858304746 | Z8: 1 | AA8: 4.169807427
A9: 8 | B9: SB8 | C9: 11640.86945 | D9: 0 | E9: Y | F9: WAT | G9: 31 | H9: 0 | I9: 11053.53164 | J9: 0.0003053102039 | K9: 47.1088982 | M9: 0.6877899137 | N9: 1.188913422 | O9: 11.5033533 | P9: 3.759290076 | Q9: M2.2 | R9: 0.03 | T9: 0.4605594959 | U9: 24000.22525 | V9: 0.01412012383 | W9: 0.6410448015 | X9: 0.6511817852 | Y9: -0.2922265867 | Z9: 1 | AA9: 6.666729235
A10: 9 | B10: SB9 | C10: 24903.2419 | D10: 2 | E10: N | F10: LES | G10: 7 | H10: 1 | I10: 31079.79646 | J10: 0.0005995565005 | K10: 220.6580048 | M10: 25.29196186 | N10: 1.814082995 | O10: 28.83361116 | P10: 30.27198071 | Q10: M85.68 | R10: 0.03 | T10: 1.405196588 | U10: 22117.75685 | V10: 0.4807304624 | W10: 0.5955431004 | X10: 0.9844126052 | Y10: -0.5799557055 | Z10: 1 | AA10: 6.143821347
A11: 10 | B11: SB10 | C11: 22510.52418 | D11: 3 | E11: N | F11: COB | G11: 4 | H11: 2 | I11: 39474.90573 | J11: 0.00117727473 | K11: 848.9799805 | M11: 30.22698569 | N11: 2.108094392 | O11: 32.14410992 | P11: 66.57453267 | Q11: L58.81 | R11: 0.03 | T11: 3.097211673 | U11: 12745.30445 | V11: 0.4857820947 | W11: 0.7438328706 | X11: 0.99271568 | Y11: -0.7365485507 | Z11: 1 | AA11: 3.540362348
A12: 11 | B12: SB11 | C12: 15156.43228 | D12: 1 | E12: N | F12: WAT | G12: 12 | H12: 1 | I12: 28324.92032 | J12: 0.001192922297 | K12: 141.076004 | M12: 2.059709658 | N12: 1.30064219 | O12: 14.10910813 | P12: 11.25786512 | Q12: L13.66 | R12: 0.03 | T12: 1.650711685 | U12: 17159.21719 | V12: 0.4514722185 | W12: 0.6738554522 | X12: 0.9683458573 | Y12: -0.6422013095 | Z12: 1 | AA12: 4.766449218
A13: 12 | B13: SB12 | C13: 15107.9997 | D13: 2 | E13: N | F13: WAT | G13: 22 | H13: 1 | I13: 27697.65474 | J13: 0.0004399101336 | K13: 202.2160034 | M13: 2.95235365 | N13: 1.373338872 | O13: 15.80455088 | P13: 16.13683707 | Q13: M85.68 | R13: 0.03 | T13: 1.181499788 | U13: 23442.79281 | V13: 0.3654250192 | W13: 0.5963443053 | X13: 0.8913560853 | Y13: -0.4877003905 | Z13: 1 | AA13: 6.511886893
A14: 13 | B14: SB13 | C14: 24814.2841 | D14: 3 | E14: N | F14: MAP | G14: 6 | H14: 3 | I14: 64649.42926 | J14: 0.0009275506789 | K14: 882.7340088 | M14: 33.08426605 | N14: 2.182488391 | O14: 34.67565543 | P14: 70.4421739 | Q14: M14.92 | R14: 0.03 | T14: 2.713949109 | U14: 23821.1649 | V14: 0.4893480245 | W14: 0.5697380048 | X14: 0.9908337196 | Y14: -0.5605717244 | Z14: 1 | AA14: 6.61699025
A15: 14 | B15: SB14 | C15: 34520.5685 | D15: 3 | E15: N | F15: LES | G15: 7 | H15: 3 | I15: 70793.81779 | J15: 0.0006540246655 | K15: 651.0050049 | M15: 30.49916056 | N15: 2.105118065 | O15: 33.43800561 | P15: 57.72811931 | Q15: M38.94 | R15: 0.03 | T15: 2.044666997 | U15: 34623.64184 | V15: 0.4877360233 | W15: 0.4318073175 | X15: 0.9860633964 | Y15: -0.4178707138 | Z15: 1 | AA15: 9.617678289
A16: 15 | B16: SB15 | C16: 16328.20419 | D16: 2 | E16: N | F16: WAT | G16: 22 | H16: 2 | I16: 36159.04698 | J16: 0.001017639514 | K16: 309.7210083 | M16: 4.521926721 | N16: 1.501164473 | O16: 18.78571842 | P16: 24.71573646 | Q16: M85.68 | R16: 0.03 | T16: 2.127918421 | U16: 16992.68479 | V16: 0.4554384434 | W16: 0.6760432684 | X16: 0.9711279676 | Y16: -0.647171236 | Z16: 1 | AA16: 4.720190219
A17: 16 | B17: SB16 | C17: 27554.67855 | D17: 3 | E17: N | F17: BE | G17: 4 | H17: 2 | I17: 70952.0682 | J17: 0.00059901528 | K17: 4081.399902 | M17: 45.16919902 | N17: 5.985766112 | O17: 123.37626 | P17: 325.6957122 | Q17: M77.74 | R17: 0.03 | T17: 2.597168172 | U17: 27319.0119 | V17: 0.4491034967 | W17: 0.5310036699 | X17: 0.9522594535 | Y17: -0.4832631234 | Z17: 1 | AA17: 7.588614417
A18: 17 | B18: SB17 | C18: 19372.04358 | D18: 3 | E18: N | F18: WAT | G18: 4 | H18: 3 | I18: 42573.56461 | J18: 0.001017028369 | K18: 2291.73999 | M18: 33.45940386 | N18: 3.857824683 | O18: 73.7480958 | P18: 182.8808512 | Q18: M77.74/2 | R18: 0.03 | T18: 3.245928712 | U18: 13115.98879 | V18: 0.4621297468 | W18: 0.7390097098 | X18: 0.9802324633 | Y18: -0.7192421731 | Z18: 1 | AA18: 3.64333022
A19: 18 | B19: SB18 | C19: 7503.09622 | D19: 2 | E19: Y | F19: WAT | G19: 15 | H19: 0 | I19: 10474.54505 | J19: 0.001208807919 | K19: 30.3640995 | M19: 0.4433158527 | N19: 1.169003522 | O19: 11.03901166 | P19: 2.42305514 | Q19: L67.14 | R19: 0.03 | T19: 0.7028482155 | U19: 14902.99728 | V19: 0.3704972994 | W19: 0.7165732474 | X19: 0.9265909402 | Y19: -0.6431641876 | Z19: 1 | AA19: 4.139721468
A20: 19 | B20: SB19 | C20: 33109.59895 | D20: 2 | E20: Y | F20: WAT | G20: 22 | H20: 0 | I20: 52417.17171 | J20: 0.0002363766795 | K20: 133.9929962 | M20: 1.956297745 | N20: 1.292220352 | O20: 13.91269278 | P20: 10.6926411 | Q20: M29.55 | R20: 0.03 | T20: 0.7166586357 | U20: 73141.05921 | V20: 0.3676594063 | W20: 0.1823252153 | X20: 0.783576867 | Y20: 0.03409791767 | Z20: 1 | AA20: 20.31696089
A21: 20 | B21: SB20 | C21: 7844.10112 | D21: 2 | E21: Y | F21: WAT | G21: 31 | H21: 0 | I21: 5888.461874 | J21: 0.001212102779 | K21: 31.7437992 | M21: 0.4634594683 | N21: 1.170644012 | O21: 11.07727142 | P21: 2.533155176 | Q21: M85.68/2 | R21: 0.03 | T21: 0.7232968104 | U21: 8141.141768 | V21: 0.2702635129 | W21: 0.8343305938 | X21: 0.9238793852 | Y21: -0.758209979 | Z21: 1 | AA21: 2.261428269
A22: 21 | B22: SB21 | C22: 19703.9056 | D22: 1 | E22: Y | F22: WAT | G22: 11 | H22: 0 | I22: 32863.78373 | J22: 0.001690923068 | K22: 79.7391968 | M22: 1.164192273 | N22: 1.2277115 | O22: 12.4082078 | P22: 6.363187905 | Q22: M42.73 | R22: 0.03 | T22: 1.463636438 | U22: 22453.5157 | V22: 0.4704926725 | W22: 0.5924160363 | X22: 0.975946573 | Y22: -0.5683626092 | Z22: 1 | AA22: 6.237087694
A23: 22 | B23: SB22 | C23: 13605.6013 | D23: 2 | E23: N | F23: WAT | G23: 31 | H23: 5 | I23: 29760.47188 | J23: 0.0005088489544 | K23: 1017.719971 | M23: 14.85871157 | N23: 2.3429894 | O23: 38.41888365 | P23: 81.21405366 | Q23: M46.19 | R23: 0.03 | T23: 2.06417368 | U23: 14417.62008 | V23: 0.3917214103 | W23: 0.7225776485 | X23: 0.939922198 | Y23: -0.6624998466 | Z23: 1 | AA23: 4.004894466
A24: 23 | B24: SB23 | C24: 20647.8467 | D24: 2 | E24: N | F24: WAT | G24: 31 | H24: 2 | I24: 33634.2041 | J24: 0.0005615140452 | K24: 551.3129883 | M24: 8.049169629 | N24: 1.788422169 | O24: 25.48518482 | P24: 43.99477647 | Q24: M85.68 | R24: 0.03 | T24: 1.894450922 | U24: 17754.06463 | V24: 0.4131780549 | W24: 0.6688815802 | X24: 0.9425033095 | Y24: -0.6113848896 | Z24: 1 | AA24: 4.931684619
A25: 24 | B25: SB24 | C25: 14230.28274 | D25: 2 | E25: Y | F25: LES | G25: 14 | H25: 0 | I25: 7291.971499 | J25: 0.002703076116 | K25: 57.5877991 | M25: 23.31881237 | N25: 1.703801877 | O25: 27.08888064 | P25: 19.86810158 | Q25: M77.74/2 | R25: 0.03 | T25: 2.349092802 | U25: 3104.164933 | V25: 0.4870321505 | W25: 0.93069875 | X25: 0.9982026236 | Y25: -0.9289013736 | Z25: 1 | AA25: 0.8622680369
A26: 25 | B26: SB25 | C26: 9691.210995 | D26: 3 | E26: Y | F26: WAT | G26: 17 | H26: 0 | I26: 15232.34465 | J26: 0.001820398871 | K26: 39.2192993 | M26: 0.5726017698 | N26: 1.179532531 | O26: 11.28457078 | P26: 3.129700084 | Q26: M70.11 | R26: 0.03 | T26: 1.008066598 | U26: 15110.45469 | V26: 0.4408659022 | W26: 0.7074382496 | X26: 0.9653992497 | Y26: -0.6728374993 | Z26: 1 | AA26: 4.197348524
A27: 26 | B27: SB26 | C27: 24259.53337 | D27: 2 | E27: N | F27: WAT | G27: 22 | H27: 1 | I27: 52761.41683 | J27: 0.0007266036871 | K27: 168.779007 | M27: 2.464173502 | N27: 1.333581615 | O27: 14.87732625 | P27: 13.46856476 | Q27: M77.74/2 | R27: 0.03 | T27: 1.401438082 | U27: 37648.05416 | V27: 0.4572282279 | W27: 0.4083685445 | X27: 0.9493897485 | Y27: -0.357758293 | Z27: 1 | AA27: 10.45779282
A28: 27 | B28: SB27 | C28: 14609.83602 | D28: 2 | E28: N | F28: WAT | G28: 22 | H28: 1 | I28: 20860.44306 | J28: 0.0006402235543 | K28: 147.951004 | M28: 2.160084658 | N28: 1.308816703 | O28: 14.29975532 | P28: 11.80649012 | Q28: M77.74/2 | R28: 0.03 | T28: 1.237147419 | U28: 16861.72783 | V28: 0.3772232554 | W28: 0.6860077289 | X28: 0.9228981023 | Y28: -0.6089058312 | Z28: 1 | AA28: 4.683813285
A29: 28 | B29: SB28 | C29: 14045.6953 | D29: 1 | E29: N | F29: WAT | G29: 15 | H29: 2 | I29: 33560.19279 | J29: 0.001029751385 | K29: 213.2799988 | M29: 3.113887982 | N29: 1.386494184 | O29: 16.11136101 | P29: 17.0197439 | Q29: M85.68 | R29: 0.03 | T29: 1.849158828 | U29: 18148.89683 | V29: 0.4525523772 | W29: 0.6584416675 | X29: 0.9675877381 | Y29: -0.6260294057 | Z29: 1 | AA29: 5.04136023
A30: 29 | B30: SB29 | C30: 15302.71844 | D30: 1 | E30: Y | F30: LES | G30: 14 | H30: 0 | I30: 13057.37825 | J30: 0.001648352571 | K30: 61.9277992 | M30: 23.37132637 | N30: 1.706736932 | O30: 27.13531542 | P30: 20.14499359 | Q30: M70.11 | R30: 0.03 | T30: 1.849300084 | U30: 7060.713597 | V30: 0.4879856872 | W30: 0.8491789922 | X30: 0.9963759785 | Y30: -0.8455549707 | Z30: 1 | AA30: 1.961309333
A31: 30 | B31: SB30 | C31: 32022.33695 | D31: 1 | E31: N | F31: LES | G31: 14 | H31: 2 | I31: 45252.14275 | J31: 0.0006937021784 | K31: 391.7860107 | M31: 27.36261073 | N31: 1.929813443 | O31: 30.66455419 | P31: 41.18994748 | Q31: M70.11/2 | R31: 0.03 | T31: 1.781354736 | U31: 25403.21803 | V31: 0.4856139106 | W31: 0.5485241785 | X31: 0.987010057 | Y31: -0.5355342354 | Z31: 1 | AA31: 7.056449454
A32: 31 | B32: SB31 | C32: 33532.1485 | D32: 3 | E32: N | F32: WAT | G32: 17 | H32: 4 | I32: 53665.50412 | J32: 0.0003381650335 | K32: 1783.589966 | M32: 26.0404135 | N32: 3.253624141 | O32: 59.65684155 | P32: 142.3304793 | R32: 0.03 | T32: 1.82410688 | U32: 29420.15334 | V32: 0.4096460013 | W32: 0.514264874 | X32: 0.9122237781 | Y32: -0.4264886521 | Z32: 1 | AA32: 8.172264817
A33: 32 | B33: SB32 | C33: 17446.35431 | D33: 1 | E33: Y | F33: WAT | G33: 26 | H33: 0 | I33: 24532.29758 | J33: 0.001536126931 | K33: 70.6034012 | M33: 1.030809658 | N33: 1.216848856 | O33: 12.15486762 | P33: 5.634151416 | R33: 0.03 | T33: 1.304147062 | U33: 18810.99019 | V33: 0.4564883089 | W33: 0.6478924712 | X33: 0.9693584119 | Y33: -0.6172508831 | Z33: 1 | AA33: 5.225275052
A34: 33 | B34: SB33 | C34: 26420.4666 | D34: 2 | E34: Y | F34: COB | G34: 34 | H34: 0 | I34: 37049.23222 | J34: 0.0009469376528 | K34: 106.9209976 | M34: 18.57665966 | N34: 1.49990285 | O34: 21.01927296 | P34: 15.89190414 | R34: 0.03 | T34: 1.418819076 | U34: 26112.72492 | V34: 0.4926847534 | W34: 0.5373970713 | X34: 0.993231891 | Y34: -0.5306289623 | Z34: 1 | AA34: 7.253534699
A35: 34 | B35: SB34 | C35: 15790.99792 | D35: 3 | E35: =IF(H35=0,"Y","N") -> N | F35: COB | G35: 10 | H35: 2 | I35: 29487.29829 | J35: 0.0004107282695 | K35: 332.6759949 | M35: 22.12101312 | N35: 1.684931645 | O35: 24.40375801 | P35: 31.31097045 | R35: 0.03 | T35: 1.329427541 | U35: 22180.44789 | V35: 0.4649390894 | W35: 0.5972163155 | X35: 0.9717560745 | Y35: -0.5689723901 | Z35: 1 | AA35: 6.161235525
A36: 35 | B36: SB35 | C36: 20707.15189 | D36: 2 | E36: N | F36: COB | G36: 10 | H36: 1 | I36: 30083.82823 | J36: 0.0004882536188 | K36: 425.2070007 | M36: 23.57374991 | N36: 1.760770058 | O36: 25.79096897 | P36: 37.63083815 | R36: 0.03 | T36: 1.57919 | U36: 19050.16384 | V36: 0.4673969745 | W36: 0.6428954114 | X36: 0.97671462 | Y36: -0.6196100315 | Z36: 1 | AA36: 5.291712177
A37: 36 | B37: SB36 | C37: 13191.70042 | D37: 3 | E37: N | F37: WAT | G37: 17 | H37: 4 | I37: 33028.94269 | J37: 0.000810050968 | K37: 390.5390015 | M37: 5.701869422 | N37: 1.597258684 | O37: 21.02684178 | P37: 31.16501232 | R37: 0.03 | T37: 2.055476448 | U37: 16068.75268 | V37: 0.4387135771 | W37: 0.6922825114 | X37: 0.9622821917 | Y37: -0.6545647031 | Z37: 1 | AA37: 4.463542412
A38: 37 | B38: SB37 | C38: 30490.28595 | D38: 2 | E38: N | F38: COB | G38: 34 | H38: 1 | I38: 58524.91943 | J38: 0.0008979287542 | K38: 161.8509979 | M38: 19.43906067 | N38: 1.544923478 | O38: 21.84277528 | P38: 19.64362316 | R38: 0.03 | T38: 1.551044597 | U38: 37732.58328 | V38: 0.4942312081 | W38: 0.3941846115 | X38: 0.9930103542 | Y38: -0.3871949657 | Z38: 1 | AA38: 10.48127313
A39: 38 | B39: SB38 | C39: 25501.236 | D39: 2 | E39: Y | F39: WAT | G39: 36 | H39: 0 | I39: 47116.64265 | J39: 0.0005951533137 | K39: 103.2040024 | M39: 1.506778435 | N39: 1.255611623 | O39: 13.05889859 | P39: 8.235679392 | R39: 0.03 | T39: 0.9967138912 | U39: 47271.98353 | V39: 0.4415252872 | W39: 0.3208068585 | X39: 0.9205687522 | Y39: -0.2413756107 | Z39: 1 | AA39: 13.13110654
A40: 39 | B40: SB39 | C40: 21949.59584 | D40: 1 | E40: Y | F40: WAT | G40: 27 | H40: 0 | I40: 38462.72416 | J40: 0.001021268302 | K40: 88.8268967 | M40: 1.296872692 | N40: 1.238516957 | O40: 12.66021426 | P40: 7.088386357 | R40: 0.03 | T40: 1.206058308 | U40: 31891.26421 | V40: 0.4582562561 | W40: 0.4726702597 | X40: 0.9559745647 | Y40: -0.4286448244 | Z40: 1 | AA40: 8.858684504
A41: 40 | B41: SB40 | C41: 9505.14093 | D41: 2 | E41: Y | F41: COB | G41: 37 | H41: 0 | I41: 14532.85969 | J41: 0.0005468648409 | K41: 38.4654999 | M41: 17.50190835 | N41: 1.443796724 | O41: 19.9929984 | P41: 11.21639364 | R41: 0.03 | T41: 0.8837261448 | U41: 16444.98103 | V41: 0.4758087667 | W41: 0.6826537804 | X41: 0.9846460072 | Y41: -0.6672997875 | Z41: 1 | AA41: 4.568050286
A42: 41 | B42: SB41 | C42: 30984.49595 | D42: 1 | E42: Y | F42: WAT | G42: 28 | H42: 0 | I42: 36199.3593 | J42: 0.001296941628 | K42: 125.3949966 | M42: 1.83076695 | N42: 1.281997159 | O42: 13.67426595 | P42: 10.00652073 | R42: 0.03 | T42: 1.624702173 | U42: 22280.61235 | V42: 0.4650739094 | W42: 0.5957687512 | X42: 0.9717635656 | Y42: -0.5675323168 | Z42: 1 | AA42: 6.189058986
A43: 42 | B43: SB42 | C43: 7671.374725 | D43: 1 | E43: Y | F43: WAT | G43: 28 | H43: 0 | I43: 5317.091666 | J43: 0.001284884375 | K43: 31.0445995 | M43: 0.4532511527 | N43: 1.16981265 | O43: 11.05788227 | P43: 2.47735904 | R43: 0.03 | T43: 0.7345773157 | U43: 7238.300929 | V43: 0.2599879231 | W43: 0.8509301258 | X43: 0.9284428598 | Y43: -0.7793729855 | Z43: 1 | AA43: 2.010639147
A44: 43 | B44: SB43 | C44: 31725.81095 | D44: 1 | E44: Y | F44: LES | G44: 30 | H44: 0 | I44: 52785.18909 | J44: 0.0007100230129 | K44: 128.3869934 | M44: 24.17548262 | N44: 1.751681956 | O44: 27.84637962 | P44: 24.38509018 | R44: 0.03 | T44: 1.354983869 | U44: 38956.32287 | V44: 0.4919260518 | W44: 0.3815739389 | X44: 0.99001372 | Y44: -0.3715876589 | Z44: 1 | AA44: 10.8212008
A45: 44 | B45: SB44 | C45: 8917.278135 | D45: 2 | E45: Y | F45: WAT | G45: 23 | H45: 0 | I45: 18831.0549 | J45: 0.00128540356 | K45: 36.0867004 | M45: 0.5268658258 | N45: 1.175807809 | O45: 11.19770225 | P45: 2.879718692 | R45: 0.03 | T45: 0.8054922092 | U45: 23378.32034 | V45: 0.432258136 | W45: 0.5860254997 | X45: 0.9439131914 | Y45: -0.5299386912 | Z45: 1 | AA45: 6.493977872
A46: 45 | B46: SB45 | C46: 33065.12005 | D46: 1 | E46: Y | F46: LES | G46: 30 | H46: 0 | I46: 61516.4646 | J46: 0.0006641923469 | K46: 133.8099976 | M46: 24.24110097 | N46: 1.755349425 | O46: 27.90440175 | P46: 24.73107785 | R46: 0.03 | T46: 1.321056262 | U46: 46566.12013 | V46: 0.4925092255 | W46: 0.3032348834 | X46: 0.9895613793 | Y46: -0.2927962627 | Z46: 1 | AA46: 12.93503337
A47: 46 | B47: SB46 | C47: 14680.26094 | D47: 3 | E47: N | F47: BE | G47: 16 | H47: 3 | I47: 26115.4102 | J47: 0.0008177133669 | K47: 216.7290039 | M47: 6.522490039 | N47: 1.39059512 | O47: 16.20700364 | P47: 17.29497451 | R47: 0.03 | T47: 1.658973726 | U47: 15741.90706 | V47: 0.4627496972 | W47: 0.6952629435 | X47: 0.9772969047 | Y47: -0.6725598483 | Z47: 1 | AA47: 4.37275196
A48: 47 | B48: SB47 | C48: 29284.41355 | D48: 2 | E48: N | F48: WAT | G48: 23 | H48: 3 | I48: 59877.5931 | J48: 0.0008302649026 | K48: 431.6669922 | M48: 6.302338086 | N48: 1.646160687 | O48: 22.16734153 | P48: 34.44702598 | R48: 0.03 | T48: 2.147638833 | U48: 27880.66232 | V48: 0.4670169908 | W48: 0.5197950211 | X48: 0.9683227895 | Y48: -0.4881178106 | Z48: 1 | AA48: 7.744628424
A49: 48 | B49: SB48 | C49: 10539.76956 | D49: 2 | E49: Y | F49: WAT | G49: 36 | H49: 0 | I49: 11116.44503 | J49: 0.001364366122 | K49: 42.6525993 | M49: 0.6227279498 | N49: 1.183614794 | O49: 11.3797779 | P49: 3.403677424 | R49: 0.03 | T49: 0.9177745921 | U49: 12112.39135 | V49: 0.3918878664 | W49: 0.7604622653 | X49: 0.9482061288 | Y49: -0.7086683941 | Z49: 1 | AA49: 3.364553153
A50: 49 | B50: SB49 | C50: 54773.2943 | D50: 3 | E50: N | F50: BE | G50: 16 | H50: 9 | I50: 136393.4854 | J50: 0.0002683265398 | K50: 3753.169922 | M50: 41.88689922 | N50: 5.595494101 | O50: 114.2742785 | P50: 299.5029598 | R50: 0.03 | T50: 1.729926814 | U50: 78843.50038 | V50: 0.4413879511 | W50: 0.0962763284 | X50: 0.8940618079 | Y50: 0.009661863742 | Z50: 1 | AA50: 21.90097233
A51: 50 | B51: SB50 | C51: 28266.34095 | D51: 2 | E51: N | F51: MAP | G51: 13 | H51: 1 | I51: 46299.40893 | J51: 0.0003454825098 | K51: 510.7810059 | M51: 22.40921487 | N51: 1.740228832 | O51: 24.36121268 | P51: 40.76032427 | R51: 0.03 | T51: 1.455346299 | U51: 31813.32784 | V51: 0.4658861503 | W51: 0.4714686325 | X51: 0.9639395207 | Y51: -0.4354081532 | Z51: 1 | AA51: 8.83703551
A52: 51 | B52: SB51 | C52: 10050.00745 | D52: 2 | E52: Y | F52: BE | G52: 46 | H52: 0 | I52: 19883.2449 | J52: 0.001263924482 | K52: 40.6713982 | M52: 4.761913982 | N52: 1.181259106 | O52: 11.32483821 | P52: 3.245577576 | R52: 0.03 | T52: 0.8585416787 | U52: 23159.32399 | V52: 0.4918637682 | W52: 0.5786769505 | X52: 0.993144036 | Y52: -0.5718209865 | Z52: 1 | AA52: 6.433145553
A53: 52 | B53: SB52 | C53: 17142.16806 | D53: 2 | E53: Y | F53: MAP | G53: 13 | H53: 0 | I53: 19412.08086 | J53: 0.0009885393606 | K53: 69.3723984 | M53: 9.740787834 | N53: 1.215385169 | O53: 12.12073129 | P53: 5.535917392 | R53: 0.03 | T53: 1.035932988 | U53: 18738.74187 | V53: 0.4911151374 | W53: 0.6446679522 | X53: 0.9936858472 | Y53: -0.6383537994 | Z53: 1 | AA53: 5.205206074
A54: 53 | B54: SB53 | C54: 21357.77936 | D54: 2 | E54: N | F54: MAP | G54: 13 | H54: 2 | I54: 42735.51461 | J54: 0.0005828597883 | K54: 202.1629944 | M54: 13.55187794 | N54: 1.373275844 | O54: 15.80308092 | P54: 16.13260695 | R54: 0.03 | T54: 1.359830365 | U54: 31427.09246 | V54: 0.4856625045 | W54: 0.4706047004 | X54: 0.9848195946 | Y54: -0.455424295 | Z54: 1 | AA54: 8.729747905
A55: 54 | B55: SB54 | C55: 29524.1054 | D55: 2 | E55: N | F55: COB | G55: 35 | H55: 1 | I55: 54353.45243 | J55: 0.0005047056585 | K55: 341.4079895 | M55: 22.25810544 | N55: 1.692088388 | O55: 24.53466677 | P55: 31.90736568 | R55: 0.03 | T55: 1.487032427 | U55: 36551.62553 | V55: 0.4843231537 | W55: 0.4109215708 | X55: 0.981530216 | Y55: -0.3924517868 | Z55: 1 | AA55: 10.15322931
A56: 55 | B56: SB55 | C56: 15002.73297 | D56: 2 | E56: Y | F56: BE | G56: 46 | H56: 0 | I56: 25988.08447 | J56: 0.0006230694694 | K56: 60.7139015 | M56: 4.962339015 | N56: 1.205090043 | O56: 11.88062685 | P56: 4.84496934 | R56: 0.03 | T56: 0.7626000842 | U56: 34078.26069 | V56: 0.4819109768 | W56: 0.4400141331 | X56: 0.9797408053 | Y56: -0.4197549384 | Z56: 1 | AA56: 9.466183524
A57: 56 | B57: SB56 | C57: 13821.81818 | D57: 2 | E57: Y | F57: BE | G57: 46 | H57: 0 | I57: 18434.22909 | J57: 0.001123116996 | K57: 55.9346008 | M57: 4.914546008 | N57: 1.199407359 | O57: 11.74809445 | P57: 4.463581144 | R57: 0.03 | T57: 0.9766763344 | U57: 18874.45046 | V57: 0.4868395329 | W57: 0.6431080923 | X57: 0.9906062716 | Y57: -0.6337143638 | Z57: 1 | AA57: 5.242902906
A58: 57 | B58: SB57 | C58: 19000.89187 | D58: 1 | E58: Y | F58: WAT | G58: 47 | H58: 0 | I58: 31432.82802 | J58: 0.001266158742 | K58: 76.8937988 | M58: 1.122649462 | N58: 1.224328265 | O58: 12.32930349 | P58: 6.136125144 | R58: 0.03 | T58: 1.241486546 | U58: 25318.7021 | V58: 0.4587997666 | W58: 0.5550510493 | X58: 0.9633359988 | Y58: -0.5183870481 | Z58: 1 | AA58: 7.032972806
A59: 58 | B59: SB58 | C59: 10985.54698 | D59: 2 | E59: N | F59: WAT | G59: 36 | H59: 2 | I59: 23725.96962 | J59: 0.0008170427724 | K59: 141.4519958 | M59: 2.065199139 | N59: 1.301089252 | O59: 14.11953457 | P59: 11.28786926 | R59: 0.03 | T59: 1.367868298 | U59: 17345.21493 | V59: 0.4154132132 | W59: 0.6748165477 | X59: 0.9449875533 | Y59: -0.619804101 | Z59: 1 | AA59: 4.818115258
A60: 59 | B60: SB59 | C60: 12317.19583 | D60: 2 | E60: Y | F60: WAT | G60: 36 | H60: 0 | I60: 17138.21573 | J60: 0.0009514534218 | K60: 49.8460007 | M60: 0.7277516102 | N60: 1.192167892 | O60: 11.57925452 | P60: 3.977710856 | R60: 0.03 | T60: 0.8405360304 | U60: 20389.62651 | V60: 0.3994416468 | W60: 0.6322559747 | X60: 0.9260405328 | Y60: -0.5582965076 | Z60: 1 | AA60: 5.663785142
A61: 60 | B61: SB60 | C61: 23160.41034 | D61: 1 | E61: N | F61: COB | G61: 54 | H61: 1 | I61: 46467.58878 | J61: 0.0008596670508 | K61: 221.9320068 | M61: 20.38233251 | N61: 1.594165873 | O61: 22.74350076 | P61: 23.74715606 | R61: 0.03 | T61: 1.676468885 | U61: 27717.53725 | V61: 0.4912501913 | W61: 0.5162842514 | X61: 0.9915351594 | Y61: -0.5078194108 | Z61: 1 | AA61: 7.699315902
A62: 61 | B62: SB61 | C62: 32355.9287 | D62: 1 | E62: Y | F62: WAT | G62: 47 | H62: 0 | I62: 42012.04123 | J62: 0.001311422116 | K62: 130.9450073 | M62: 1.911797107 | N62: 1.288596233 | O62: 13.82817052 | P62: 10.44941158 | R62: 0.03 | T62: 1.669104338 | U62: 25170.41042 | V62: 0.4702384871 | W62: 0.5547764122 | X62: 0.9734989449 | Y62: -0.5282753572 | Z62: 1 | AA62: 6.991780673
A63: 62 | B63: SB62 | C63: 16434.95355 | D63: 2 | E63: N | F63: MAP | G63: 50 | H63: 4 | I63: 35736.08251 | J63: 0.0004013014855 | K63: 396.3880005 | M63: 19.12613561 | N63: 1.60421326 | O63: 21.18903745 | P63: 31.63176244 | R63: 0.03 | T63: 1.453687267 | U63: 24583.06083 | V63: 0.4654028994 | W63: 0.5636816867 | X63: 0.9698093028 | Y63: -0.5334909895 | Z63: 1 | AA63: 6.828628007
A64: 63 | B64: SB63 | C64: 26025.0986 | D64: 1 | E64: Y | F64: WAT | G64: 47 | H64: 0 | I64: 45034.97736 | J64: 0.001384941054 | K64: 105.3199997 | M64: 1.537671996 | N64: 1.258127586 | O64: 13.11757625 | P64: 8.404535976 | R64: 0.03 | T64: 1.536561338 | U64: 29308.93563 | V64: 0.4737100323 | W64: 0.5000607891 | X64: 0.9737132286 | Y64: -0.4737740177 | Z64: 1 | AA64: 8.14137101
A65: 64 | B65: SB64 | C65: 20062.45495 | D65: 2 | E65: N | F65: MAP | G65: 62 | H65: 1 | I65: 39434.34613 | J65: 0.0004625786095 | K65: 172.5220032 | M65: 12.70118149 | N65: 1.338032112 | O65: 14.98112141 | P65: 13.76725586 | R65: 0.03 | T65: 1.129420435 | U65: 34915.55926 | V65: 0.4821735721 | W65: 0.4302309776 | X65: 0.9796861073 | Y65: -0.4099170849 | Z65: 1 | AA65: 9.698766462
A66: 65 | B66: SB65 | C66: 13127.20602 | D66: 2 | E66: Y | F66: WAT | G66: 58 | H66: 0 | I66: 17573.72001 | J66: 0.001581109747 | K66: 53.1236 | M66: 0.77560456 | N66: 1.196065023 | O66: 11.67014399 | P66: 4.23926328 | R66: 0.03 | T66: 1.124651464 | U66: 15625.92552 | V66: 0.4409872883 | W66: 0.6991258661 | X66: 0.964489203 | Y66: -0.6636150691 | Z66: 1 | AA66: =U66/3600 -> 4.340534867
A67: 66 | B67: SB66 | C67: 31678.861 | D67: 1 | E67: =IF(H67=0,"Y","N") -> Y | F67: COB | G67: 60 | H67: =COUNTIF(G$2:G$112,A67) -> 0 | I67: 36030.79838 | J67: 0.001142773706 | K67: 128.2050018 | M67: 18.91081853 | N67: 1.517347219 | O67: 21.33835956 | P67: 17.34560162 | R67: 0.03 | T67: 1.635786076 | U67: 22026.5956 | V67: 0.4933170814 | W67: 0.5948051305 | X67: 0.9945842313 | Y67: -0.5893893618 | Z67: 1 | AA67: 6.118498778
A68: 67 | B68: SB67 | C68: 10840.74345 | D68: 0 | E68: Y | F68: WAT | G68: 58 | H68: 0 | I68: 20253.74039 | J68: 0.001531398171 | K68: 43.8708 | M68: 0.64051368 | N68: 1.185063259 | O68: 11.41355922 | P68: 3.50088984 | R68: 0.03 | T68: 0.9888030322 | U68: 20483.08888 | V68: 0.4471338204 | W68: 0.6243317448 | X68: 0.9602797091 | Y68: -0.5846114539 | Z68: 1 | AA68: 5.689746911
A69: 68 | B69: SB68 | C69: 10863.47711 | D69: 1 | E69: Y | F69: MAP | G69: 62 | H69: 0 | I69: 23654.78716 | J69: 0.001289745995 | K69: 43.9626999 | M69: 9.011529487 | N69: 1.185172529 | O69: 11.41610765 | P69: 3.508223452 | R69: 0.03 | T69: 0.9085713755 | U69: 26035.14462 | V69: 0.4961718693 | W69: 0.5377055866 | X69: 0.9964605531 | Y69: -0.5341661397 | Z69: 1 | AA69: 7.231984617
A70: 69 | B70: SB69 | C70: 15140.12335 | D70: 1 | E70: Y | F70: MAP | G70: 62 | H70: 0 | I70: 19176.3354 | J70: 0.001280267658 | K70: 61.2695007 | M70: 9.50823467 | N70: 1.205750662 | O70: 11.89603389 | P70: 4.889306156 | R70: 0.03 | T70: 1.098857159 | U70: 17451.163 | V70: 0.4937164915 | W70: 0.664627965 | X70: 0.995785374 | Y70: -0.660413339 | Z70: 1 | AA70: 4.847545277
A71: 70 | B71: SB70 | C71: 12880.10102 | D71: 1 | E71: Y | F71: MAP | G71: 62 | H71: 0 | I71: 24234.37095 | J71: 0.00129743933 | K71: 52.1236992 | M71: 9.245750167 | N71: 1.194876121 | O71: 11.64241624 | P71: 4.159471196 | R71: 0.03 | T71: 1.007552512 | U71: 24052.71254 | V71: 0.4957076175 | W71: 0.5652830914 | X71: 0.9962680575 | Y71: -0.561551149 | Z71: 1 | AA71: 6.681309039
A72: 71 | B72: SB71 | C72: 14838.16104 | D72: 2 | E72: Y | F72: MAP | G72: 53 | H72: 0 | I72: 24463.15311 | J72: 0.0005640496112 | K72: 60.0477982 | M72: 9.473171808 | N72: 1.204298033 | O72: 11.86215547 | P72: 4.791814296 | R72: 0.03 | T72: 0.7210140458 | U72: 33928.8163 | V72: 0.4890024465 | W72: 0.4395409013 | X72: 0.9876726422 | Y72: -0.4272135435 | Z72: 1 | AA72: 9.424671193
A73: 72 | B73: SB72 | C73: 22568.59386 | D73: 1 | E73: Y | F73: MAP | G73: 64 | H73: 0 | I73: 35604.62277 | J73: 0.0006334069636 | K73: 91.3321991 | M73: 10.37103411 | N73: 1.241495811 | O73: 12.72968755 | P73: 7.288309488 | R73: 0.03 | T73: 0.9640693736 | U73: 36931.59823 | V73: 0.490651611 | W73: 0.4044352064 | X73: 0.9888648573 | Y73: -0.3933000637 | Z73: 1 | AA73: 10.25877729
A74: 73 | B74: SB73 | C74: 13759.54771 | D74: 2 | E74: Y | F74: MAP | G74: 53 | H74: 0 | I74: 24589.17224 | J74: 0.0008139693279 | K74: 55.6833992 | M74: 9.347913557 | N74: 1.199108675 | O74: 11.7411285 | P74: 4.443535256 | R74: 0.03 | T74: 0.8292981712 | U74: 29650.58057 | V74: 0.4928750266 | W74: 0.4908595954 | X74: 0.9927447763 | Y74: -0.4836043717 | Z74: 1 | AA74: 8.23627238
A75: 74 | B75: SB74 | C75: 25491.3518 | D75: 1 | E75: N | F75: BE | G75: 78 | H75: 2 | I75: 45528.79698 | J75: 0.0004398260294 | K75: 603.2360229 | M75: 10.38756023 | N75: 1.850159696 | O75: 26.92503653 | P75: 48.13823463 | R75: 0.03 | T75: 1.716289442 | U75: 26527.45852 | V75: 0.4305726232 | W75: 0.5450261774 | X75: 0.936824722 | Y75: -0.4818508994 | Z75: 1 | AA75: 7.368738478
A76: 75 | B76: SB75 | C76: 30848.5882 | D76: 1 | E76: Y | F76: BE | G76: 80 | H76: 0 | I76: 33363.97086 | J76: 0.00107944915 | K76: 124.8399963 | M76: 5.603599963 | N76: 1.281337252 | O76: 13.65887552 | P76: 9.962231705 | R76: 0.03 | T76: 1.478959848 | U76: 22559.0782 | V76: 0.4851908256 | W76: 0.5884402814 | X76: 0.9878102807 | Y76: -0.5762505621 | Z76: 1 | AA76: 6.266410611
A77: 76 | B77: SB76 | C77: 18047.56078 | D77: 1 | E77: Y | F77: BE | G77: 80 | H77: 0 | I77: 22836.90024 | J77: 0.001889331939 | K77: 73.0361023 | M77: 5.085561023 | N77: 1.219741386 | O77: 12.22232763 | P77: 5.828280964 | R77: 0.03 | T77: 1.473915774 | U77: 15494.0334 | V77: 0.4920314841 | W77: 0.6966146969 | X77: 0.9951649388 | Y77: -0.6917796357 | Z77: 1 | AA77: 4.303898167
A78: 77 | B78: SB77 | C78: 34006.5901 | D78: 1 | E78: Y | F78: BE | G78: 74 | H78: 0 | I78: 38090.05391 | J78: 0.0008912466251 | K78: 137.6159973 | M78: 5.731359973 | N78: 1.296528173 | O78: 14.01316041 | P78: 10.98175658 | R78: 0.03 | T78: 1.409776468 | U78: 27018.50596 | V78: 0.4830673124 | W78: 0.5273737534 | X78: 0.9839943348 | Y78: -0.5113680883 | Z78: 1 | AA78: 7.505140545
A79: 78 | B79: SB78 | C79: 20675.27535 | D79: 2 | E79: N | F79: BE | G79: 49 | H79: 2 | I79: 46659.32495 | J79: 0.0006873912565 | K79: 743.8900146 | M79: 11.79410015 | N79: 2.017400105 | O79: 30.82544205 | P79: 59.36242317 | R79: 0.03 | T79: 2.254573345 | U79: 20695.4123 | V79: 0.4529211756 | W79: 0.6204210407 | X79: 0.9642597377 | Y79: -0.5846807784 | Z79: 1 | AA79: 5.74872564
A80: 79 | B80: SB79 | C80: 14080.78421 | D80: 2 | E80: Y | F80: BE | G80: 78 | H80: 0 | I80: 19072.18561 | J80: 0.0005830077488 | K80: 56.9833984 | M80: 4.925033984 | N80: 1.2006544 | O80: 11.77717813 | P80: 4.547275192 | R80: 0.03 | T80: 0.7112757261 | U80: 26814.05384 | V80: 0.4750891545 | W80: 0.5318365847 | X80: 0.9766753069 | Y80: -0.5085118917 | Z80: 1 | AA80: 7.448348289
A81: 80 | B81: SB80 | C81: 40671.01195 | D81: 1 | E81: N | F81: BE | G81: 74 | H81: 2 | I81: 61674.44813 | J81: 0.0007560698055 | K81: 362.4639893 | M81: 7.979839893 | N81: 1.563876933 | O81: 20.24830766 | P81: 28.92462635 | R81: 0.03 | T81: 1.937586618 | U81: 31830.55021 | V81: 0.4766800472 | W81: 0.4682284222 | X81: 0.9751982238 | Y81: -0.443426646 | Z81: 1 | AA81: 8.841819502
A82: 81 | B82: SB81 | C82: 31320.55875 | D82: 2 | E82: N | F82: BE | G82: 49 | H82: 2 | I82: 54422.26975 | J82: 0.0007307236391 | K82: 440.5740051 | M82: 8.760940051 | N82: 1.656751304 | O82: 22.41433745 | P82: 35.15780561 | R82: 0.03 | T82: 2.027377597 | U82: 26843.67718 | V82: 0.4697265094 | W82: 0.5326209566 | X82: 0.9717016098 | Y82: -0.5043225664 | Z82: 1 | AA82: 7.456576995
A83: 82 | B83: SB82 | C83: 19662.63906 | D83: 2 | E83: N | F83: BE | G83: 49 | H83: 1 | I83: 38385.82934 | J83: 0.0007580940024 | K83: 197.3860016 | M83: 6.329060016 | N83: 1.367595904 | O83: 15.67061252 | P83: 15.75140293 | R83: 0.03 | T83: 1.534892172 | U83: 25008.81172 | V83: 0.4743429162 | W83: 0.556156861 | X83: 0.9772245588 | Y83: -0.5333814197 | Z83: 1 | AA83: 6.946892143
A84: 83 | B84: SB83 | C84: 12488.43959 | D84: 1 | E84: Y | F84: BE | G84: 84 | H84: 0 | I84: 16744.46506 | J84: 0.0006074057883 | K84: 50.5393982 | M84: 4.860593982 | N84: 1.192992355 | O84: 11.59848278 | P84: 4.033043976 | R84: 0.03 | T84: 0.6770511421 | U84: 24731.46269 | V84: 0.4755254529 | W84: 0.5597113689 | X84: 0.9784482703 | Y84: -0.5381596392 | Z84: 1 | AA84: 6.869850748
A85: 84 | B85: SB84 | C85: 33430.83545 | D85: 1 | E85: N | F85: BE | G85: 94 | H85: 1 | I85: 42438.95001 | J85: 0.0007538625012 | K85: 185.8249969 | M85: 6.213449969 | N85: 1.353849638 | O85: 15.35002008 | P85: 14.82883475 | R85: 0.03 | T85: 1.490638328 | U85: 28470.31986 | V85: 0.4776211017 | W85: 0.5097434983 | X85: 0.9780571992 | Y85: -0.4878006975 | Z85: 1 | AA85: 7.908422184
A86: 85 | B86: SB85 | C86: 27883.3282 | D86: 1 | E86: Y | F86: BE | G86: 81 | H86: 0 | I86: 32523.697 | J86: 0.0007729706128 | K86: 112.8379974 | M86: 5.483579974 | N86: 1.267066636 | O86: 13.32605409 | P86: 9.004472193 | R86: 0.03 | T86: 1.189360322 | U86: 27345.53725 | V86: 0.4804046762 | W86: 0.523668389 | X86: 0.9813322557 | Y86: -0.5050006447 | Z86: 1 | AA86: 7.59598257
A87: 86 | B87: SB86 | C87: 17784.39395 | D87: 1 | E87: Y | F87: BE | G87: 87 | H87: 0 | I87: 19472.82011 | J87: 0.0006730447325 | K87: 71.9709015 | M87: 5.074909015 | N87: 1.218474841 | O87: 12.19278908 | P87: 5.74327794 | R87: 0.03 | T87: 0.8725439432 | U87: 22317.29446 | V87: 0.4740952117 | W87: 0.5937640011 | X87: 0.9789530849 | Y87: -0.572717086 | Z87: 1 | AA87: 6.19924846
A88: 87 | B88: SB87 | C88: 27584.33115 | D88: 1 | E88: N | F88: BE | G88: 49 | H88: 2 | I88: 51817.04835 | J88: 0.0004586213371 | K88: 779.0759888 | M88: 12.14595989 | N88: 2.059236932 | O88: 31.80116671 | P88: 62.17026391 | R88: 0.03 | T88: 1.860148978 | U88: 27856.39697 | V88: 0.4353832373 | W88: 0.5272823144 | X88: 0.938909027 | Y88: -0.4661913414 | Z88: 1 | AA88: 7.737888047
A89: 88 | B89: SB88 | C89: 16092.71313 | D89: 1 | E89: N | F89: BE | G89: 81 | H89: 2 | I89: 31451.35125 | J89: 0.0007668917247 | K89: 200.9839935 | M89: 6.365039935 | N89: 1.371873988 | O89: 15.77038663 | P89: 16.03852268 | R89: 0.03 | T89: 1.555879177 | U89: 20214.52032 | V89: 0.4686591245 | W89: 0.6252461963 | X89: 0.9765097754 | Y89: -0.6017559717 | Z89: 1 | AA89: 5.615144534
A90: 89 | B90: SB89 | C90: 30942.4881 | D90: 1 | E90: N | F90: BE | G90: 49 | H90: 1 | I90: 37774.99163 | J90: 0.0006437768468 | K90: 201.6889954 | M90: 6.372089954 | N90: 1.372712249 | O90: 15.78993669 | P90: 16.09478183 | R90: 0.03 | T90: 1.427682519 | U90: 26458.95787 | V90: 0.4688409132 | W90: 0.5378664069 | X90: 0.9712006785 | Y90: -0.5090670855 | Z90: 1 | AA90: 7.34971052
A91: 90 | B91: SB90 | C91: 31352.6824 | D91: 1 | E91: N | F91: BE | G91: 87 | H91: 2 | I91: 63299.7197 | J91: 0.0004095457788 | K91: 595.4790039 | M91: 10.30999004 | N91: 1.840936445 | O91: 26.70993052 | P91: 47.51922451 | R91: 0.03 | T91: 1.650731528 | U91: 38346.46557 | V91: 0.446663058 | W91: 0.4047291376 | X91: 0.936500145 | Y91: -0.3412292826 | Z91: 1 | AA91: 10.65179599
A92: 91 | B92: SB91 | C92: 18896.11935 | D92: 1 | E92: Y | F92: BE | G92: 89 | H92: 0 | I92: 25136.63461 | J92: 0.0009486288586 | K92: 76.4701996 | M92: 5.119901996 | N92: 1.223824597 | O92: 12.31755687 | P92: 6.102321928 | R92: 0.03 | T92: 1.071328571 | U92: 23463.04887 | V92: 0.4850048347 | W92: 0.5755856689 | X92: 0.9872716739 | Y92: -0.5628573428 | Z92: 1 | AA92: 6.517513574
A93: 92 | B93: SB92 | C93: 17363.32703 | D93: 1 | E93: N | F93: BE | G93: 82 | H93: 1 | I93: 28769.10013 | J93: 0.0005060199983 | K93: 117.814003 | M93: 5.53334003 | N93: 1.272983206 | O93: 13.46404121 | P93: 9.401557439 | R93: 0.03 | T93: 0.9836205261 | U93: 29248.16977 | V93: 0.4649861602 | W93: 0.5029893542 | X93: 0.9651954977 | Y93: -0.4681848519 | Z93: 1 | AA93: 8.124491602
A94: 93 | B94: SB93 | C94: 10968.24964 | D94: 1 | E94: Y | F94: BE | G94: 88 | H94: 0 | I94: 13991.49244 | J94: 0.001491099044 | K94: 44.3869019 | M94: 4.799069019 | N94: 1.185676914 | O94: 11.42787098 | P94: 3.542074772 | R94: 0.03 | T94: 0.9825221233 | U94: 14240.38412 | V94: 0.4893866753 | W94: 0.7178520131 | X94: 0.9940109436 | Y94: -0.7118629568 | Z94: 1 | AA94: 3.955662256
A95: 94 | B95: SB94 | C95: 38985.75585 | D95: 1 | E95: N | F95: BE | G95: 90 | H95: 1 | I95: 56464.79503 | J95: 0.0005958799635 | K95: 343.5910034 | M95: 7.791110034 | N95: 1.541436575 | O95: 19.72495032 | P95: 27.41856207 | R95: 0.03 | T95: 1.68911567 | U95: 33428.61359 | V95: 0.4686216536 | W95: 0.4516595113 | X95: 0.9655879644 | Y95: -0.4172474757 | Z95: 1 | AA95: 9.285725996
A96: 95 | B96: SB95 | C96: 13673.80228 | D96: 1 | E96: N | F96: BE | G96: 49 | H96: 2 | I96: 33186.02432 | J96: 0.0006468073666 | K96: 253.1340027 | M96: 6.886540027 | N96: 1.433881392 | O96: 17.21653246 | P96: 20.20009342 | R96: 0.03 | T96: 1.571761941 | U96: 21113.89992 | V96: 0.4590038218 | W96: 0.6134581027 | X96: 0.968306519 | Y96: -0.5817646217 | Z96: 1 | AA96: 5.864972201
A97: 96 | B97: SB96 | C97: 30890.59605 | D97: 1 | E97: Y | F97: BE | G97: 90 | H97: 0 | I97: 49706.90104 | J97: 0.0006816213904 | K97: 125.0100021 | M97: 5.605300021 | N97: 1.281539393 | O97: 13.66358986 | P97: 9.975798168 | R97: 0.03 | T97: 1.176037015 | U97: 42266.44263 | V97: 0.4842416716 | W97: 0.3497397315 | X97: 0.9795059703 | Y97: -0.3292457018 | Z97: 1 | AA97: 11.74067851
A98: 97 | B98: SB97 | C98: 49052.81355 | D98: 1 | E98: N | F98: BE | G98: 49 | H98: 4 | I98: =81607.0861717999*2/3 -> 54404.72411 | J98: 0.0003464801812 | K98: =541.697998-K101 -> 403.4109954 | M98: 9.77217998 | N98: 1.776989754 | O98: 25.21855633 | P98: 43.22750024 | R98: 0.03 | T98: 1.481130394 | U98: 36731.89364 | V98: 0.4295996352 | W98: 0.4274230081 | X98: 0.9193807418 | Y98: -0.3468037499 | Z98: 1 | AA98: 10.20330379
A99: 98 | B99: SB98 | C99: 32929.2123 | D99: 1 | E99: =IF(H99=0,"Y","N") -> N | F99: BE | G99: 49 | H99: 2 | I99: 66164.86448 | J99: 0.0003652191112 | K99: 374.0639954 | M99: 8.095839954 | N99: 1.577669572 | O99: 20.56998162 | P99: 29.85030683 | R99: 0.03 | T99: 1.360862269 | U99: 48619.80965 | V99: 0.4542251197 | W99: 0.3027965669 | X99: 0.9361711925 | Y99: -0.2389677594 | Z99: 1 | AA99: 13.50550268
A100: 99 | B100: SB99 | C100: 17916.59513 | D100: 1 | E100: N | F100: BE | G100: 95 | H100: 1 | I100: 31742.1231 | J100: 0.0007359801335 | K100: 131.1600037 | M100: 5.666800037 | N100: 1.288851868 | O100: 13.83413248 | P100: 10.4665683 | R100: 0.03 | T100: 1.251398014 | U100: 25365.32961 | V100: 0.4762815876 | W100: 0.5509312493 | X100: 0.9786976044 | Y100: -0.5296288537 | Z100: 1 | AA100: 7.045924892
A101: 100 | B101: SB100 | C101: 15612.0939 | D101: 1 | E101: N | F101: BE | G101: 49 | H101: 1 | I101: 34910.44464 | J101: 0.0005849020031 | K101: 138.2870026 | M101: 5.738070026 | N101: 1.297326012 | O101: 14.03176773 | P101: 11.03530281 | R101: 0.03 | T101: 1.144766629 | U101: 30495.68684 | V101: 0.4717446184 | W101: 0.4858213044 | X101: 0.9709433695 | Y101: -0.4567646739 | Z101: 1 | AA101: 8.471024123
A102: 101 | B102: SB101 | C102: 14493.69667 | D102: 1 | E102: Y | F102: BE | G102: 99 | H102: 0 | I102: 31869.71889 | J102: 0.0008518596945 | K102: 58.6544991 | M102: 4.941744991 | N102: 1.202641373 | O102: 11.82351859 | P102: 4.680629028 | R102: 0.03 | T102: 0.8742115073 | U102: 36455.38708 | V102: 0.4895335635 | W102: 0.4101952996 | X102: 0.9876536931 | Y102: -0.3978489927 | Z102: 1 | AA102: 10.12649641
A103: 102 | B103: SB102 | C103: 11749.10143 | D103: 1 | E103: Y | F103: BE | G103: 92 | H103: 0 | I103: 14653.68398 | J103: 0.001558729193 | K103: 47.5467987 | M103: 4.830667987 | N103: 1.189434095 | O103: 11.5154965 | P103: 3.794234536 | R103: 0.03 | T103: 1.046342421 | U103: 14004.6735 | V103: 0.4896837764 | W103: 0.7218359431 | X103: 0.9942607948 | Y103: -0.7160967379 | Z103: 1 | AA103: 3.890187084
A104: 103 | B104: SB103 | C104: 22603.18856 | D104: 1 | E104: Y | F104: BE | G104: 88 | H104: 0 | I104: 25380.91986 | J104: 0.0008180603033 | K104: 91.4720993 | M104: 5.269920993 | N104: 1.241662156 | O104: 12.73356705 | P104: 7.299473524 | R104: 0.03 | T104: 1.096514704 | U104: 23146.90334 | V104: 0.4799868242 | W104: 0.580950608 | X104: 0.9832269817 | Y104: -0.5641775896 | Z104: 1 | AA104: 6.429695372
A105: 104 | B105: SB104 | C105: 16466.58299 | D105: 1 | E105: Y | F105: BE | G105: 95 | H105: 0 | I105: 22751.60041 | J105: 0.0005616167112 | K105: 66.6380997 | M105: 5.021580997 | N105: 1.212134033 | O105: 12.04490782 | P105: 5.317720356 | R105: 0.03 | T105: 0.7633590327 | U105: 29804.58662 | V105: 0.4751369557 | W105: 0.4934924891 | X105: 0.9748133626 | Y105: -0.4683058517 | Z105: 1 | AA105: 8.27905184
A106: 105 | B106: SB105 | C106: 18559.56234 | D106: 1 | E106: Y | F106: BE | G106: 100 | H106: 0 | I106: 29046.4083 | J106: 0.0003264608107 | K106: 75.1078033 | M106: 5.106278033 | N106: 1.22220468 | O106: 12.27977694 | P106: 5.993602703 | R106: 0.03 | T106: 0.6222639928 | U106: 46678.59403 | V106: 0.4628651858 | W106: 0.3162919374 | X106: 0.9492212562 | Y106: -0.2655131937 | Z106: 1 | AA106: 12.96627612
A107: 106 | B107: SB106 | C107: 712.008347 | D107: 1 | E107: Y | F107: BE | G107: 97 | H107: 0 | I107: 2108.120402 | J107: 0.00267459439 | K107: 2.8813601 | M107: 4.384013601 | N107: 1.136325995 | O107: 10.27690156 | P107: 0.229932536 | R107: 0.03 | T107: 0.2281297624 | U107: 9240.882817 | V107: 0.4972094073 | W107: 0.8068628809 | X107: 0.9989220659 | Y107: -0.8057849469 | Z107: 1 | AA107: 2.566911894
A108: 107 | B108: SB107 | C108: 48452.3484 | D108: 1 | E108: Y | F108: BE | G108: 98 | H108: 0 | I108: 64524.98937 | J108: 0.0005259703773 | K108: 196.0829926 | M108: 6.316029926 | N108: 1.3660466 | O108: 15.63447943 | P108: 15.64742281 | R108: 0.03 | T108: 1.274816666 | U108: 50615.11281 | V108: 0.4781006781 | W108: 0.2729384357 | X108: 0.9681556896 | Y108: -0.2410941253 | Z108: 1 | AA108: 14.05975356
A109: 108 | B109: SB108 | C109: 11049.54718 | D109: 1 | E109: Y | F109: BE | G109: 98 | H109: 0 | I109: 12569.73118 | J109: 0.0005443752857 | K109: 44.7156982 | M109: 4.802356982 | N109: 1.186067859 | O109: 11.43698867 | P109: 3.568312716 | R109: 0.03 | T109: 0.5962716662 | U109: 21080.54413 | V109: 0.4674234317 | W109: 0.6126822599 | X109: 0.9747650344 | Y109: -0.5874472943 | Z109: 1 | AA109: 5.855706704
A110: 109 | B110: SB109 | C110: 15023.984 | D110: 1 | E110: Y | F110: BE | G110: 97 | H110: 0 | I110: 17360.95881 | J110: 0.0007330757556 | K110: 60.7999992 | M110: 4.963199992 | N110: 1.205192415 | O110: 11.88301438 | P110: 4.851839936 | R110: 0.03 | T110: 0.8278566685 | U110: 20970.97176 | V110: 0.4769567686 | W110: 0.6128583085 | X110: 0.9821580088 | Y110: -0.5950163174 | Z110: 1 | AA110: 5.825269933
A111: 110 | B111: SB110 | C111: 15971.87878 | D111: 1 | E111: Y | F111: BE | G111: 97 | H111: 0 | I111: 18032.86185 | J111: 0.000413094719 | K111: 64.6361008 | M111: 5.001561008 | N111: 1.209753617 | O111: 11.98939139 | P111: 5.157960844 | R111: 0.03 | T111: 0.6434867148 | U111: 28023.6739 | V111: 0.458468327 | W111: 0.5199428781 | X111: 0.9601248491 | Y111: -0.4800677272 | Z111: 1 | AA111: 7.78435386
A112: 111 | B112: SB111 | C112: 18923.05379 | D112: 1 | E112: Y | F112: BE | G112: 97 | H112: 0 | I112: 20301.80423 | J112: 0.0004649624187 | K112: 76.5793991 | M112: 5.120993991 | N112: 1.223954437 | O112: 12.32058503 | P112: 6.111036048 | R112: 0.03 | T112: 0.750629159 | U112: 27046.38367 | V112: 0.4620746719 | W112: 0.5316557134 | X112: 0.9644757785 | Y112: -0.496131492 | Z112: 1 | AA112: 7.512884354
A114: 1 | B114: 2 | C114: 3 | D114: 4 | E114: 5 | F114: 6 | G114: 7 | H114: 8 | I114: 9 | J114: 10 | K114: 11 | L114: 12 | M114: 13 | N114: 14 | O114: 15 | P114: 16 | Q114: 17 | R114: 18 | S114: 19 | T114: 20 | U114: 21 | V114: 22 | W114: 23 | X114: 24 | Y114: 25 | Z114: 26 | AA114: 27
E115: =COUNTIF(E2:E112,"Y") -> 59

Sheet Output Detail
A6: Sediment loading from Near-Channel Sources in the incised zone calculated from simulated daily flow from 2000-2009
A7: Sediment Loading [Mg/yr] | B7: Sediment Budget (2000-2010) | C7: SL witn no MOs | D7: SL with MOs | E7: % reduction | F7: Mg/yr reduction
A8: Maple | B8: 26843 | C8: 26048.83278 | D8: 26048.83278 | E8: 0 | F8: =C8-D8 -> 0
A9: Cobb | B9: 18435 | C9: 31988.4779 | D9: 31988.4779 | E9: 0 | F9: =C9-D9 -> 0
A10: Le Sueur | B10: 28012 | C10: 33461.76695 | D10: 33461.76695 | E10: 0 | F10: 0
A11: Blue Earth | B11: 94780 | C11: 50113.49245 | D11: 50113.49245 | E11: 0 | F11: =C11-D11 -> 0
A12: Watonwan | B12: 25955 | C12: 16818.81573 | D12: 16818.81573 | E12: 0 | F12: 0
A13: Total: | B13: =SUM(B8:B12) -> 194025 | C13: =SUM(C8:C12) -> 158431.3858 | D13: 158431.3858 | F13: 0
A15: =CONCATENATE("Statistical summary of ",CONTROL!R2," MC simulation outputs") -> Statistical summary of 1 MC simulation outputs
A16: Annual Sediment loading outputs without MOs
A17: Sediment Loading [Mg/yr] | B17: Observed (2006-2010) | C17: Average simulated | D17: Standard Deviation | E17: Min | F17: Max | G17: =CONCATENATE('I|O Detail'!$S$3,"th percentile") -> 10th percentile | H17: =CONCATENATE(100-'I|O Detail'!$S$3,"th percentile") -> 90th percentile | J17: lower bound | K17: upper bound
A18: Upper Maple at Sterling Center, CR18 | B18: 10085 | C18: 10076.65807 | J18: =IF(CONTROL!$R$2=1,0,$C18-$G18) -> 0 | K18: =IF(CONTROL!$R$2=1,0,$H18-$C18) -> 0
A19: Main Cobb at confluence with Little Cobb | B19: 5155 | C19: 5153.089385 | J19: =IF(CONTROL!$R$2=1,0,$C19-$G19) -> 0 | K19: =IF(CONTROL!$R$2=1,0,$H19-$C19) -> 0
A20: Little Cobb outlet nr Beauford | B20: 4771 | C20: 4703.913136 | J20: =IF(CONTROL!$R$2=1,0,$C20-$G20) -> 0 | K20: =IF(CONTROL!$R$2=1,0,$H20-$C20) -> 0
A21: Upper Le Sueur at St. Clair gage | B21: 28769 | C21: 28411.39263 | J21: =IF(CONTROL!$R$2=1,0,$C21-$G21) -> 0 | K21: =IF(CONTROL!$R$2=1,0,$H21-$C21) -> 0
A22: Le Sueur outlet nr Rapidan, MN66 | B22: 186553 | C22: 190481.3959 | J22: =IF(CONTROL!$R$2=1,0,$C22-$G22) -> 0 | K22: =IF(CONTROL!$R$2=1,0,$H22-$C22) -> 0
A23: Above Winnebago and Elm Creek | B23: =74019+20415 -> 94434 | C23: 94251.45261 | J23: =IF(CONTROL!$R$2=1,0,$C23-$G23) -> 0 | K23: =IF(CONTROL!$R$2=1,0,$H23-$C23) -> 0
A24: Upper Watonwan | B24: 37400 | C24: 37201.30873 | J24: =IF(CONTROL!$R$2=1,0,$C24-$G24) -> 0 | K24: =IF(CONTROL!$R$2=1,0,$H24-$C24) -> 0
A25: Winnebago to Knick | B25: =74019+20415+45802 -> 140236 | C25: 141798.4802 | J25: =IF(CONTROL!$R$2=1,0,$C25-$G25) -> 0 | K25: =IF(CONTROL!$R$2=1,0,$H25-$C25) -> 0
A26: Knick to BE @ Rapidan | B26: 250548 | C26: 248589.2281 | J26: =IF(CONTROL!$R$2=1,0,$C26-$G26) -> 0 | K26: =IF(CONTROL!$R$2=1,0,$H26-$C26) -> 0
A27: SUM of BE and LES | B27: =B26+B22 -> 437101 | C27: =C26+C22 -> 439070.624 | E27: =E26+E22 -> 0 | F27: 0 | G27: 0 | H27: 0 | J27: =J26+J22 -> 0 | K27: =K26+K22 -> 0
A28: Annual Sediment loading with MOs
A29: Sediment Loading [Mg/yr] | B29: short name | C29: Average simulated | D29: Standard Deviation | E29: Min | F29: Max | G29: =CONCATENATE('I|O Detail'!$S$3,"th percentile") -> 10th percentile | H29: =CONCATENATE(100-'I|O Detail'!$S$3,"th percentile") -> 90th percentile | J29: lower bound | K29: upper bound
A30: Upper Maple at Sterling Center, CR18 | B30: U Maple | C30: 10076.65807 | J30: =IF(CONTROL!$R$2=1,0,$C30-$G30) -> 0 | K30: =IF(CONTROL!$R$2=1,0,$H30-$C30) -> 0
A31: Main Cobb at confluence with Little Cobb | B31: U Cobb | C31: 5153.089385 | J31: =IF(CONTROL!$R$2=1,0,$C31-$G31) -> 0 | K31: =IF(CONTROL!$R$2=1,0,$H31-$C31) -> 0
A32: Little Cobb outlet nr Beauford | B32: L Cobb | C32: 4703.913136 | J32: =IF(CONTROL!$R$2=1,0,$C32-$G32) -> 0 | K32: =IF(CONTROL!$R$2=1,0,$H32-$C32) -> 0
A33: Upper Le Sueur at St. Clair gage | B33: U Le Sueur | C33: 28411.39263 | J33: =IF(CONTROL!$R$2=1,0,$C33-$G33) -> 0 | K33: =IF(CONTROL!$R$2=1,0,$H33-$C33) -> 0
A34: Le Sueur outlet nr Rapidan, MN66 | B34: Outlet | C34: 190481.3959 | J34: =IF(CONTROL!$R$2=1,0,$C34-$G34) -> 0 | K34: =IF(CONTROL!$R$2=1,0,$H34-$C34) -> 0
A35: Above Winnebago | B35: AW | C35: 94251.45261 | J35: =IF(CONTROL!$R$2=1,0,$C35-$G35) -> 0 | K35: =IF(CONTROL!$R$2=1,0,$H35-$C35) -> 0
A36: Upper Watonwan | B36: UW | C36: 37201.30873 | J36: =IF(CONTROL!$R$2=1,0,$C36-$G36) -> 0 | K36: =IF(CONTROL!$R$2=1,0,$H36-$C36) -> 0
A37: Winnebago to Knick | B37: WK | C37: 141798.4802 | J37: =IF(CONTROL!$R$2=1,0,$C37-$G37) -> 0 | K37: =IF(CONTROL!$R$2=1,0,$H37-$C37) -> 0
A38: Knick to Outlet | B38: KO | C38: 248589.2281 | J38: =IF(CONTROL!$R$2=1,0,$C38-$G38) -> 0 | K38: =IF(CONTROL!$R$2=1,0,$H38-$C38) -> 0
A39: SUM of BE and LES | C39: =C38+C34 -> 439070.624 | E39: =E38+E34 -> 0 | F39: 0 | G39: 0 | H39: 0 | J39: =J38+J34 -> 0 | K39: =K38+K34 -> 0
B40: Average reduction in loading= | C40: =C27-C39 -> 0 | G40: =G27-G39 -> 0
B41: % reduction in loading= | C41: =C40/C27 -> 0

Sheet SWAT_WY (hidden)
B1: WY [m3/day]
A2: Subbasin | B2: 1 | C2: 2 | D2: 3 | E2: 4 | F2: 5 | G2: 6 | H2: 7 | I2: 8 | J2: 9 | K2: 10 | L2: 11 | M2: 12 | N2: 13 | O2: 14 | P2: 15 | Q2: 16 | R2: 17 | S2: 18 | T2: 19 | U2: 20 | V2: 21 | W2: 22 | X2: 23 | Y2: 24 | Z2: 25 | AA2: 26 | AB2: 27 | AC2: 28 | AD2: 29 | AE2: 30 | AF2: 31 | AG2: 32 | AH2: 33 | AI2: 34 | AJ2: 35 | AK2: 36 | AL2: 37 | AM2: 38 | AN2: 39 | AO2: 40 | AP2: 41 | AQ2: 42 | AR2: 43 | AS2: 44 | AT2: 45 | AU2: 46 | AV2: 47 | AW2: 48 | AX2: 49 | AY2: 50 | AZ2: 51 | BA2: 52 | BB2: 53 | BC2: 54 | BD2: 55 | BE2: 56 | BF2: 57 | BG2: 58 | BH2: 59 | BI2: 60 | BJ2: 61 | BK2: 62 | BL2: 63 | BM2: 64 | BN2: 65 | BO2: 66 | BP2: 67 | BQ2: 68 | BR2: 69 | BS2: 70 | BT2: 71 | BU2: 72 | BV2: 73 | BW2: 74 | BX2: 75 | BY2: 76 | BZ2: 77 | CA2: 78 | CB2: 79 | CC2: 80 | CD2: 81 | CE2: 82 | CF2: 83 | CG2: 84 | CH2: 85 | CI2: 86 | CJ2: 87 | CK2: 88 | CL2: 89 | CM2: 90 | CN2: 91 | CO2: 92 | CP2: 93 | CQ2: 94 | CR2: 95 | CS2: 96 | CT2: 97 | CU2: 98 | CV2: 99 | CW2: 100 | CX2: 101 | CY2: 102 | CZ2: 103 | DA2: 104 | DB2: 105 | DC2: 106 | DD2: 107 | DE2: 108 | DF2: 109 | DG2: 110 | DH2: 111
A3: 20020101 | B3: 2.212120361e-07 | C3: 0 | D3: 0 | E3: 1.162682834e-07 | F3: 1.373738251e-07 | G3: 3.650316083e-07 | H3: 2.391612168e-07 | I3: 1.131743151e-07 | J3: 2.760323615e-07 | K3: 2.685415155e-07 | L3: 1.416583473e-07 | M3: 9.366406659e-08 | N3: 2.28428313e-07 | O3: 3.712833999e-07 | P3: 1.84052523e-07 | Q3: 1.345924811e-07 | R3: 1.774198303e-07 | S3: 9.232810416e-08 | T3: 8.941571954e-08 | U3: 9.062967059e-08 | V3: 2.387614099e-07 | W3: 9.840803769e-08 | X3: 2.114089511e-07 | Y3: 2.279082356e-07 | Z3: 1.106054262e-07 | AA3: 2.153457763e-07 | AB3: 1.118471846e-07 | AC3: 1.510674283e-07 | AD3: 2.652082712e-07 | AE3: 3.173420253e-07 | AF3: 3.433286021e-07 | AG3: 2.187802229e-07 | AH3: 1.712425477e-07 | AI3: 1.245979706e-07 | AJ3: 1.546356429e-07 | AK3: 1.03468788e-07 | AL3: 2.033489586e-07 | AM3: 2.143909122e-07 | AN3: 1.731920371e-07 | AO3: 1.205353506e-07 | AP3: 3.361619282e-07 | AQ3: 9.872243777e-08 | AR3: 4.09767525e-07 | AS3: 5.528385952e-08 | AT3: 2.74875151e-07 | AU3: 1.406552845e-07 | AV3: 1.911804336e-07 | AW3: 1.123696644e-07 | AX3: 1.468916405e-07 | AY3: 1.0740147e-07 | AZ3: 8.685129886e-08 | BA3: 1.674638974e-07 | BB3: 1.253886479e-07 | BC3: 2.218650227e-07 | BD3: 1.416310737e-07 | BE3: 1.421678518e-07 | BF3: 2.123943963e-07 | BG3: 9.906380964e-08 | BH3: 1.087581487e-07 | BI3: 4.383726053e-08 | BJ3: 2.309880797e-07 | BK3: 2.277102645e-08 | BL3: 1.662353579e-07 | BM3: 1.790316385e-07 | BN3: 1.239254399e-07 | BO3: 3.570860718e-07 | BP3: 1.038678986e-07 | BQ3: 9.847325046e-08 | BR3: 1.400837472e-07 | BS3: 1.028395817e-07 | BT3: 1.324115264e-07 | BU3: 2.93613744e-07 | BV3: 2.08090446e-07 | BW3: 1.640232997e-07 | BX3: 3.39034006e-07 | BY3: 1.907186404e-07 | BZ3: 2.028424831e-07 | CA3: 1.058448936e-07 | CB3: 1.289595667e-07 | CC3: 3.247326903e-07 | CD3: 1.172411132e-07 | CE3: 1.163602011e-07 | CF3: 1.325588499e-07 | CG3: 4.506311793e-07 | CH3: 1.951295261e-07 | CI3: 2.230192969e-07 | CJ3: 2.435636187e-07 | CK3: 0 | CL3: 2.092713787e-07 | CM3: 3.003979616e-07 | CN3: 1.313489028e-07 | CO3: 1.37004344e-07 | CP3: 1.622706556e-07 | CQ3: 3.240942574e-07 | CR3: 1.059657096e-07 | CS3: 4.686201098e-07 | CT3: 4.423410678e-07 | CU3: 3.278757626e-07 | CV3: 1.253816148e-07 | CW3: 1.173203225e-07 | CX3: 1.368255921e-07 | CY3: 1.4843935e-07 | CZ3: 7.463063619e-08 | DA3: 2.266017286e-07 | DB3: 2.405852089e-07 | DC3: 1.157053111e-08 | DD3: 5.643631164e-07 | DE3: 1.72814757e-07 | DF3: 1.862864e-07 | DG3: 2.160432013e-07 | DH3: 2.150793428e-07 | DI3: 1
A4: 20020102 | B4: 2.212120361e-07 | C4: 0 | D4: 0 | E4: 1.162682834e-07 | F4: 1.373738251e-07 | G4: 3.650316083e-07 | H4: 2.391612168e-07 | I4: 1.131743151e-07 | J4: 2.760323615e-07 | K4: 2.685415155e-07 | L4: 1.416583473e-07 | M4: 9.366406659e-08 | N4: 2.28428313e-07 | O4: 3.712833999e-07 | P4: 1.84052523e-07 | Q4: 1.345924811e-07 | R4: 1.774198303e-07 | S4: 9.232810416e-08 | T4: 8.941571954e-08 | U4: 9.062967059e-08 | V4: 2.387614099e-07 | W4: 9.840803769e-08 | X4: 2.114089511e-07 | Y4: 2.279082356e-07 | Z4: 1.106054262e-07 | AA4: 2.153457763e-07 | AB4: 1.118471846e-07 | AC4: 1.510674283e-07 | AD4: 2.652082712e-07 | AE4: 3.173420253e-07 | AF4: 3.433286021e-07 | AG4: 2.187802229e-07 | AH4: 1.712425477e-07 | AI4: 1.245979706e-07 | AJ4: 1.546356429e-07 | AK4: 1.03468788e-07 | AL4: 2.033489586e-07 | AM4: 2.143909122e-07 | AN4: 1.731920371e-07 | AO4: 1.205353506e-07 | AP4: 3.361619282e-07 | AQ4: 9.872243777e-08 | AR4: 4.09767525e-07 | AS4: 5.528385952e-08 | AT4: 2.74875151e-07 | AU4: 1.406552845e-07 | AV4: 1.911804336e-07 | AW4: 1.123696644e-07 | AX4: 1.468916405e-07 | AY4: 1.0740147e-07 | AZ4: 8.685129886e-08 | BA4: 1.674638974e-07 | BB4: 1.253886479e-07 | BC4: 2.218650227e-07 | BD4: 1.416310737e-07 | BE4: 1.421678518e-07 | BF4: 2.123943963e-07 | BG4: 9.906380964e-08 | BH4: 1.087581487e-07 | BI4: 4.383726053e-08 | BJ4: 2.309880797e-07 | BK4: 2.277102645e-08 | BL4: 1.662353579e-07 | BM4: 1.790316385e-07 | BN4: 1.239254399e-07 | BO4: 3.570860718e-07 | BP4: 1.038678986e-07 | BQ4: 9.847325046e-08 | BR4: 1.400837472e-07 | BS4: 1.028395817e-07 | BT4: 1.324115264e-07 | BU4: 2.93613744e-07 | BV4: 2.08090446e-07 | BW4: 1.640232997e-07 | BX4: 3.39034006e-07 | BY4: 1.907186404e-07 | BZ4: 2.028424831e-07 | CA4: 1.058448936e-07 | CB4: 1.289595667e-07 | CC4: 3.247326903e-07 | CD4: 1.172411132e-07 | CE4: 1.163602011e-07 | CF4: 1.325588499e-07 | CG4: 4.506311793e-07 | CH4: 1.951295261e-07 | CI4: 2.230192969e-07 | CJ4: 2.435636187e-07 | CK4: 0 | CL4: 2.092713787e-07 | CM4: 3.003979616e-07 | CN4: 1.313489028e-07 | CO4: 1.37004344e-07 | CP4: 1.622706556e-07 | CQ4: 3.240942574e-07 | CR4: 1.059657096e-07 | CS4: 4.686201098e-07 | CT4: 4.423410678e-07 | CU4: 3.278757626e-07 | CV4: 1.253816148e-07 | CW4: 1.173203225e-07 | CX4: 1.368255921e-07 | CY4: 1.4843935e-07 | CZ4: 7.463063619e-08 | DA4: 2.266017286e-07 | DB4: 2.405852089e-07 | DC4: 1.157053111e-08 | DD4: 5.643631164e-07 | DE4: 1.72814757e-07 | DF4: 1.862864e-07 | DG4: 2.160432013e-07 | DH4: 2.150793428e-07 | DI4: 2
A5: 20020103 | B5: 2.212120361e-07 | C5: 0 | D5: 0 | E5: 1.162682834e-07 | F5: 1.373738251e-07 | G5: 3.650316083e-07 | H5: 2.391612168e-07 | I5: 1.131743151e-07 | J5: 2.760323615e-07 | K5: 2.685415155e-07 | L5: 1.416583473e-07 | M5: 9.366406659e-08 | N5: 2.28428313e-07 | O5: 3.712833999e-07 | P5: 1.84052523e-07 | Q5: 1.345924811e-07 | R5: 1.774198303e-07 | S5: 9.232810416e-08 | T5: 8.941571954e-08 | U5: 9.062967059e-08 | V5: 2.387614099e-07 | W5: 9.840803769e-08 | X5: 2.114089511e-07 | Y5: 2.279082356e-07 | Z5: 1.106054262e-07 | AA5: 2.153457763e-07 | AB5: 1.118471846e-07 | AC5: 1.510674283e-07 | AD5: 2.652082712e-07 | AE5: 3.173420253e-07 | AF5: 3.433286021e-07 | AG5: 2.187802229e-07 | AH5: 1.712425477e-07 | AI5: 1.245979706e-07 | AJ5: 1.546356429e-07 | AK5: 1.03468788e-07 | AL5: 2.033489586e-07 | AM5: 2.143909122e-07 | AN5: 1.731920371e-07 | AO5: 1.205353506e-07 | AP5: 3.361619282e-07 | AQ5: 9.872243777e-08 | AR5: 4.09767525e-07 | AS5: 5.528385952e-08 | AT5: 2.74875151e-07 | AU5: 1.406552845e-07 | AV5: 1.911804336e-07 | AW5: 1.123696644e-07 | AX5: 1.468916405e-07 | AY5: 1.0740147e-07 | AZ5: 8.685129886e-08 | BA5: 1.674638974e-07 | BB5: 1.253886479e-07 | BC5: 2.218650227e-07 | BD5: 1.416310737e-07 | BE5: 1.421678518e-07 | BF5: 2.123943963e-07 | BG5: 9.906380964e-08 | BH5: 1.087581487e-07 | BI5: 4.383726053e-08 | BJ5: 2.309880797e-07 | BK5: 2.277102645e-08 | BL5: 1.662353579e-07 | BM5: 1.790316385e-07 | BN5: 1.239254399e-07 | BO5: 3.570860718e-07 | BP5: 1.038678986e-07 | BQ5: 9.847325046e-08 | BR5: 1.400837472e-07 | BS5: 1.028395817e-07 | BT5: 1.324115264e-07 | BU5: 2.93613744e-07 | BV5: 2.08090446e-07 | BW5: 1.640232997e-07 | BX5: 3.39034006e-07 | BY5: 1.907186404e-07 | BZ5: 2.028424831e-07 | CA5: 1.058448936e-07 | CB5: 1.289595667e-07 | CC5: 3.247326903e-07 | CD5: 1.172411132e-07 | CE5: 1.163602011e-07 | CF5: 1.325588499e-07 | CG5: 4.506311793e-07 | CH5: 1.951295261e-07 | CI5: 2.230192969e-07 | CJ5: 2.435636187e-07 | CK5: 0 | CL5: 2.092713787e-07 | CM5: 3.003979616e-07 | CN5: 1.313489028e-07 | CO5: 1.37004344e-07 | CP5: 1.622706556e-07 | CQ5: 3.240942574e-07 | CR5: 1.059657096e-07 | CS5: 4.686201098e-07 | CT5: 4.423410678e-07 | CU5: 3.278757626e-07 | CV5: 1.253816148e-07 | CW5: 1.173203225e-07 | CX5: 1.368255921e-07 | CY5: 1.4843935e-07 | CZ5: 7.463063619e-08 | DA5: 2.266017286e-07 | DB5: 2.405852089e-07 | DC5: 1.157053111e-08 | DD5: 5.643631164e-07 | DE5: 1.72814757e-07 | DF5: 1.862864e-07 | DG5: 2.160432013e-07 | DH5: 2.150793428e-07 | DI5: 3
A6: 20020104 | B6: 2.212120361e-07 | C6: 0 | D6: 0 | E6: 1.162682834e-07 | F6: 1.373738251e-07 | G6: 3.650316083e-07 | H6: 2.391612168e-07 | I6: 1.131743151e-07 | J6: 2.760323615e-07 | K6: 2.685415155e-07 | L6: 1.416583473e-07 | M6: 9.366406659e-08 | N6: 2.28428313e-07 | O6: 3.712833999e-07 | P6: 1.84052523e-07 | Q6: 1.345924811e-07 | R6: 1.774198303e-07 | S6: 9.232810416e-08 | T6: 8.941571954e-08 | U6: 9.062967059e-08 | V6: 2.387614099e-07 | W6: 9.840803769e-08 | X6: 2.114089511e-07 | Y6: 2.279082356e-07 | Z6: 1.106054262e-07 | AA6: 2.153457763e-07 | AB6: 1.118471846e-07 | AC6: 1.510674283e-07 | AD6: 2.652082712e-07 | AE6: 3.173420253e-07 | AF6: 3.433286021e-07 | AG6: 2.187802229e-07 | AH6: 1.712425477e-07 | AI6: 1.245979706e-07 | AJ6: 1.546356429e-07 | AK6: 1.03468788e-07 | AL6: 2.033489586e-07 | AM6: 2.143909122e-07 | AN6: 1.731920371e-07 | AO6: 1.205353506e-07 | AP6: 3.361619282e-07 | AQ6: 9.872243777e-08 | AR6: 4.09767525e-07 | AS6: 5.528385952e-08 | AT6: 2.74875151e-07 | AU6: 1.406552845e-07 | AV6: 1.911804336e-07 | AW6: 1.123696644e-07 | AX6: 1.468916405e-07 | AY6: 1.0740147e-07 | AZ6: 8.685129886e-08 | BA6: 1.674638974e-07 | BB6: 1.253886479e-07 | BC6: 2.218650227e-07 | BD6: 1.416310737e-07 | BE6: 1.421678518e-07 | BF6: 2.123943963e-07 | BG6: 9.906380964e-08 | BH6: 1.087581487e-07 | BI6: 4.383726053e-08 | BJ6: 2.309880797e-07 | BK6: 2.277102645e-08 | BL6: 1.662353579e-07 | BM6: 1.790316385e-07 | BN6: 1.239254399e-07 | BO6: 3.570860718e-07 | BP6: 1.038678986e-07 | BQ6: 9.847325046e-08 | BR6: 1.400837472e-07 | BS6: 1.028395817e-07 | BT6: 1.324115264e-07 | BU6: 2.93613744e-07 | BV6: 2.08090446e-07 | BW6: 1.640232997e-07 | BX6: 3.39034006e-07 | BY6: 1.907186404e-07 | BZ6: 2.028424831e-07 | CA6: 1.058448936e-07 | CB6: 1.289595667e-07 | CC6: 3.247326903e-07 | CD6: 1.172411132e-07 | CE6: 1.163602011e-07 | CF6: 1.325588499e-07 | CG6: 4.506311793e-07 | CH6: 1.951295261e-07 | CI6: 2.230192969e-07 | CJ6: 2.435636187e-07 | CK6: 0 | CL6: 2.092713787e-07 | CM6: 3.003979616e-07 | CN6: 1.313489028e-07 | CO6: 1.37004344e-07 | CP6: 1.622706556e-07 | CQ6: 3.240942574e-07 | CR6: 1.059657096e-07 | CS6: 4.686201098e-07 | CT6: 4.423410678e-07 | CU6: 3.278757626e-07 | CV6: 1.253816148e-07 | CW6: 1.173203225e-07 | CX6: 1.368255921e-07 | CY6: 1.4843935e-07 | CZ6: 7.463063619e-08 | DA6: 2.266017286e-07 | DB6: 2.405852089e-07 | DC6: 1.157053111e-08 | DD6: 5.643631164e-07 | DE6: 1.72814757e-07 | DF6: 1.862864e-07 | DG6: 2.160432013e-07 | DH6: 2.150793428e-07 | DI6: 4
A7: 20020105 | B7: 2.212120361e-07 | C7: 0 | D7: 0 | E7: 1.162682834e-07 | F7: 1.373738251e-07 | G7: 3.650316083e-07 | H7: 2.391612168e-07 | I7: 1.131743151e-07 | J7: 2.760323615e-07 | K7: 2.685415155e-07 | L7: 1.416583473e-07 | M7: 9.366406659e-08 | N7: 2.28428313e-07 | O7: 3.712833999e-07 | P7: 1.84052523e-07 | Q7: 1.345924811e-07 | R7: 1.774198303e-07 | S7: 9.232810416e-08 | T7: 8.941571954e-08 | U7: 9.062967059e-08 | V7: 2.387614099e-07 | W7: 9.840803769e-08 | X7: 2.114089511e-07 | Y7: 2.279082356e-07 | Z7: 1.106054262e-07 | AA7: 2.153457763e-07 | AB7: 1.118471846e-07 | AC7: 1.510674283e-07 | AD7: 2.652082712e-07 | AE7: 3.173420253e-07 | AF7: 3.433286021e-07 | AG7: 2.187802229e-07 | AH7: 1.712425477e-07 | AI7: 1.245979706e-07 | AJ7: 1.546356429e-07 | AK7: 1.03468788e-07 | AL7: 2.033489586e-07 | AM7: 2.143909122e-07 | AN7: 1.731920371e-07 | AO7: 1.205353506e-07 | AP7: 3.361619282e-07 | AQ7: 9.872243777e-08 | AR7: 4.09767525e-07 | AS7: 5.528385952e-08 | AT7: 2.74875151e-07 | AU7: 1.406552845e-07 | AV7: 1.911804336e-07 | AW7: 1.123696644e-07 | AX7: 1.468916405e-07 | AY7: 1.0740147e-07 | AZ7: 8.685129886e-08 | BA7: 1.674638974e-07 | BB7: 1.253886479e-07 | BC7: 2.218650227e-07 | BD7: 1.416310737e-07 | BE7: 1.421678518e-07 | BF7: 2.123943963e-07 | BG7: 9.906380964e-08 | BH7: 1.087581487e-07 | BI7: 4.383726053e-08 | BJ7: 2.309880797e-07 | BK7: 2.277102645e-08 | BL7: 1.662353579e-07 | BM7: 1.790316385e-07 | BN7: 1.239254399e-07 | BO7: 3.570860718e-07 | BP7: 1.038678986e-07 | BQ7: 9.847325046e-08 | BR7: 1.400837472e-07 | BS7: 1.028395817e-07 | BT7: 1.324115264e-07 | BU7: 2.93613744e-07 | BV7: 2.08090446e-07 | BW7: 1.640232997e-07 | BX7: 3.39034006e-07 | BY7: 1.907186404e-07 | BZ7: 2.028424831e-07 | CA7: 1.058448936e-07 | CB7: 1.289595667e-07 | CC7: 3.247326903e-07 | CD7: 1.172411132e-07 | CE7: 1.163602011e-07 | CF7: 1.325588499e-07 | CG7: 4.506311793e-07 | CH7: 1.951295261e-07 | CI7: 2.230192969e-07 | CJ7: 2.435636187e-07 | CK7: 0 | CL7: 2.092713787e-07 | CM7: 3.003979616e-07 | CN7: 1.313489028e-07 | CO7: 1.37004344e-07 | CP7: 1.622706556e-07 | CQ7: 3.240942574e-07 | CR7: 1.059657096e-07 | CS7: 4.686201098e-07 | CT7: 4.423410678e-07 | CU7: 3.278757626e-07 | CV7: 1.253816148e-07 | CW7: 1.173203225e-07 | CX7: 1.368255921e-07 | CY7: 1.4843935e-07 | CZ7: 7.463063619e-08 | DA7: 2.266017286e-07 | DB7: 2.405852089e-07 | DC7: 1.157053111e-08 | DD7: 5.643631164e-07 | DE7: 1.72814757e-07 | DF7: 1.862864e-07 | DG7: 2.160432013e-07 | DH7: 2.150793428e-07 | DI7: 5
A8: 20020106 | B8: 2.212120361e-07 | C8: 0 | D8: 0 | E8: 1.162682834e-07 | F8: 1.373738251e-07 | G8: 3.650316083e-07 | H8: 2.391612168e-07 | I8: 1.131743151e-07 | J8: 2.760323615e-07 | K8: 2.685415155e-07 | L8: 1.416583473e-07 | M8: 9.366406659e-08 | N8: 2.28428313e-07 | O8: 3.712833999e-07 | P8: 1.84052523e-07 | Q8: 1.345924811e-07 | R8: 1.774198303e-07 | S8: 9.232810416e-08 | T8: 8.941571954e-08 | U8: 9.062967059e-08 | V8: 2.387614099e-07 | W8: 9.840803769e-08 | X8: 2.114089511e-07 | Y8: 2.279082356e-07 | Z8: 1.106054262e-07 | AA8: 2.153457763e-07 | AB8: 1.118471846e-07 | AC8: 1.510674283e-07 | AD8: 2.652082712e-07 | AE8: 3.173420253e-07 | AF8: 3.433286021e-07 | AG8: 2.187802229e-07 | AH8: 1.712425477e-07 | AI8: 1.245979706e-07 | AJ8: 1.546356429e-07 | AK8: 1.03468788e-07 | AL8: 2.033489586e-07 | AM8: 2.143909122e-07 | AN8: 1.731920371e-07 | AO8: 1.205353506e-07 | AP8: 3.361619282e-07 | AQ8: 9.872243777e-08 | AR8: 4.09767525e-07 | AS8: 5.528385952e-08 | AT8: 2.74875151e-07 | AU8: 1.406552845e-07 | AV8: 1.911804336e-07 | AW8: 1.123696644e-07 | AX8: 1.468916405e-07 | AY8: 1.0740147e-07 | AZ8: 8.685129886e-08 | BA8: 1.674638974e-07 | BB8: 1.253886479e-07 | BC8: 2.218650227e-07 | BD8: 1.416310737e-07 | BE8: 1.421678518e-07 | BF8: 2.123943963e-07 | BG8: 9.906380964e-08 | BH8: 1.087581487e-07 | BI8: 4.383726053e-08 | BJ8: 2.309880797e-07 | BK8: 2.277102645e-08 | BL8: 1.662353579e-07 | BM8: 1.790316385e-07 | BN8: 1.239254399e-07 | BO8: 3.570860718e-07 | BP8: 1.038678986e-07 | BQ8: 9.847325046e-08 | BR8: 1.400837472e-07 | BS8: 1.028395817e-07 | BT8: 1.324115264e-07 | BU8: 2.93613744e-07 | BV8: 2.08090446e-07 | BW8: 1.640232997e-07 | BX8: 3.39034006e-07 | BY8: 1.907186404e-07 | BZ8: 2.028424831e-07 | CA8: 1.058448936e-07 | CB8: 1.289595667e-07 | CC8: 3.247326903e-07 | CD8: 1.172411132e-07 | CE8: 1.163602011e-07 | CF8: 1.325588499e-07 | CG8: 4.506311793e-07 | CH8: 1.951295261e-07 | CI8: 2.230192969e-07 | CJ8: 2.435636187e-07 | CK8: 0 | CL8: 2.092713787e-07 | CM8: 3.003979616e-07 | CN8: 1.313489028e-07 | CO8: 1.37004344e-07 | CP8: 1.622706556e-07 | CQ8: 3.240942574e-07 | CR8: 1.059657096e-07 | CS8: 4.686201098e-07 | CT8: 4.423410678e-07 | CU8: 3.278757626e-07 | CV8: 1.253816148e-07 | CW8: 1.173203225e-07 | CX8: 1.368255921e-07 | CY8: 1.4843935e-07 | CZ8: 7.463063619e-08 | DA8: 2.266017286e-07 | DB8: 2.405852089e-07 | DC8: 1.157053111e-08 | DD8: 5.643631164e-07 | DE8: 1.72814757e-07 | DF8: 1.862864e-07 | DG8: 2.160432013e-07 | DH8: 2.150793428e-07 | DI8: 6
A9: 20020107 | B9: 2.212120361e-07 | C9: 0 | D9: 0 | E9: 1.162682834e-07 | F9: 1.373738251e-07 | G9: 3.650316083e-07 | H9: 2.391612168e-07 | I9: 1.131743151e-07 | J9: 2.760323615e-07 | K9: 2.685415155e-07 | L9: 1.416583473e-07 | M9: 9.366406659e-08 | N9: 2.28428313e-07 | O9: 3.712833999e-07 | P9: 1.84052523e-07 | Q9: 1.345924811e-07 | R9: 1.774198303e-07 | S9: 9.232810416e-08 | T9: 8.941571954e-08 | U9: 9.062967059e-08 | V9: 2.387614099e-07 | W9: 9.840803769e-08 | X9: 2.114089511e-07 | Y9: 2.279082356e-07 | Z9: 1.106054262e-07 | AA9: 2.153457763e-07 | AB9: 1.118471846e-07 | AC9: 1.510674283e-07 | AD9: 2.652082712e-07 | AE9: 3.173420253e-07 | AF9: 3.433286021e-07 | AG9: 2.187802229e-07 | AH9: 1.712425477e-07 | AI9: 1.245979706e-07 | AJ9: 1.546356429e-07 | AK9: 1.03468788e-07 | AL9: 2.033489586e-07 | AM9: 2.143909122e-07 | AN9: 1.731920371e-07 | AO9: 1.205353506e-07 | AP9: 3.361619282e-07 | AQ9: 9.872243777e-08 | AR9: 4.09767525e-07 | AS9: 5.528385952e-08 | AT9: 2.74875151e-07 | AU9: 1.406552845e-07 | AV9: 1.911804336e-07 | AW9: 1.123696644e-07 | AX9: 1.468916405e-07 | AY9: 1.0740147e-07 | AZ9: 8.685129886e-08 | BA9: 1.674638974e-07 | BB9: 1.253886479e-07 | BC9: 2.218650227e-07 | BD9: 1.416310737e-07 | BE9: 1.421678518e-07 | BF9: 2.123943963e-07 | BG9: 9.906380964e-08 | BH9: 1.087581487e-07 | BI9: 4.383726053e-08 | BJ9: 2.309880797e-07 | BK9: 2.277102645e-08 | BL9: 1.662353579e-07 | BM9: 1.790316385e-07 | BN9: 1.239254399e-07 | BO9: 3.570860718e-07 | BP9: 1.038678986e-07 | BQ9: 9.847325046e-08 | BR9: 1.400837472e-07 | BS9: 1.028395817e-07 | BT9: 1.324115264e-07 | BU9: 2.93613744e-07 | BV9: 2.08090446e-07 | BW9: 1.640232997e-07 | BX9: 3.39034006e-07 | BY9: 1.907186404e-07 | BZ9: 2.028424831e-07 | CA9: 1.058448936e-07 | CB9: 1.289595667e-07 | CC9: 3.247326903e-07 | CD9: 1.172411132e-07 | CE9: 1.163602011e-07 | CF9: 1.325588499e-07 | CG9: 4.506311793e-07 | CH9: 1.951295261e-07 | CI9: 2.230192969e-07 | CJ9: 2.435636187e-07 | CK9: 0 | CL9: 2.092713787e-07 | CM9: 3.003979616e-07 | CN9: 1.313489028e-07 | CO9: 1.37004344e-07 | CP9: 1.622706556e-07 | CQ9: 3.240942574e-07 | CR9: 1.059657096e-07 | CS9: 4.686201098e-07 | CT9: 4.423410678e-07 | CU9: 3.278757626e-07 | CV9: 1.253816148e-07 | CW9: 1.173203225e-07 | CX9: 1.368255921e-07 | CY9: 1.4843935e-07 | CZ9: 7.463063619e-08 | DA9: 2.266017286e-07 | DB9: 2.405852089e-07 | DC9: 1.157053111e-08 | DD9: 5.643631164e-07 | DE9: 1.72814757e-07 | DF9: 1.862864e-07 | DG9: 2.160432013e-07 | DH9: 2.150793428e-07 | DI9: 7
A10: 20020108 | B10: 2.212120361e-07 | C10: 0 | D10: 0 | E10: 1.162682834e-07 | F10: 1.373738251e-07 | G10: 3.650316083e-07 | H10: 2.391612168e-07 | I10: 1.131743151e-07 | J10: 2.760323615e-07 | K10: 2.685415155e-07 | L10: 1.416583473e-07 | M10: 9.366406659e-08 | N10: 2.28428313e-07 | O10: 3.712833999e-07 | P10: 1.84052523e-07 | Q10: 1.345924811e-07 | R10: 1.774198303e-07 | S10: 9.232810416e-08 | T10: 8.941571954e-08 | U10: 9.062967059e-08 | V10: 2.387614099e-07 | W10: 9.840803769e-08 | X10: 2.114089511e-07 | Y10: 2.279082356e-07 | Z10: 1.106054262e-07 | AA10: 2.153457763e-07 | AB10: 1.118471846e-07 | AC10: 1.510674283e-07 | AD10: 2.652082712e-07 | AE10: 3.173420253e-07 | AF10: 3.433286021e-07 | AG10: 2.187802229e-07 | AH10: 1.712425477e-07 | AI10: 1.245979706e-07 | AJ10: 1.546356429e-07 | AK10: 1.03468788e-07 | AL10: 2.033489586e-07 | AM10: 2.143909122e-07 | AN10: 1.731920371e-07 | AO10: 1.205353506e-07 | AP10: 3.361619282e-07 | AQ10: 9.872243777e-08 | AR10: 4.09767525e-07 | AS10: 5.528385952e-08 | AT10: 2.74875151e-07 | AU10: 1.406552845e-07 | AV10: 1.911804336e-07 | AW10: 1.123696644e-07 | AX10: 1.468916405e-07 | AY10: 1.0740147e-07 | AZ10: 8.685129886e-08 | BA10: 1.674638974e-07 | BB10: 1.253886479e-07 | BC10: 2.218650227e-07 | BD10: 1.416310737e-07 | BE10: 1.421678518e-07 | BF10: 2.123943963e-07 | BG10: 9.906380964e-08 | BH10: 1.087581487e-07 | BI10: 4.383726053e-08 | BJ10: 2.309880797e-07 | BK10: 2.277102645e-08 | BL10: 1.662353579e-07 | BM10: 1.790316385e-07 | BN10: 1.239254399e-07 | BO10: 3.570860718e-07 | BP10: 1.038678986e-07 | BQ10: 9.847325046e-08 | BR10: 1.400837472e-07 | BS10: 1.028395817e-07 | BT10: 1.324115264e-07 | BU10: 2.93613744e-07 | BV10: 2.08090446e-07 | BW10: 1.640232997e-07 | BX10: 3.39034006e-07 | BY10: 1.907186404e-07 | BZ10: 2.028424831e-07 | CA10: 1.058448936e-07 | CB10: 1.289595667e-07 | CC10: 3.247326903e-07 | CD10: 1.172411132e-07 | CE10: 1.163602011e-07 | CF10: 1.325588499e-07 | CG10: 4.506311793e-07 | CH10: 1.951295261e-07 | CI10: 2.230192969e-07 | CJ10: 2.435636187e-07 | CK10: 0 | CL10: 2.092713787e-07 | CM10: 3.003979616e-07 | CN10: 1.313489028e-07 | CO10: 1.37004344e-07 | CP10: 1.622706556e-07 | CQ10: 3.240942574e-07 | CR10: 1.059657096e-07 | CS10: 4.686201098e-07 | CT10: 4.423410678e-07 | CU10: 3.278757626e-07 | CV10: 1.253816148e-07 | CW10: 1.173203225e-07 | CX10: 1.368255921e-07 | CY10: 1.4843935e-07 | CZ10: 7.463063619e-08 | DA10: 2.266017286e-07 | DB10: 2.405852089e-07 | DC10: 1.157053111e-08 | DD10: 5.643631164e-07 | DE10: 1.72814757e-07 | DF10: 1.862864e-07 | DG10: 2.160432013e-07 | DH10: 2.150793428e-07 | DI10: 8
A11: 20020109 | B11: 2.212120361e-07 | C11: 0 | D11: 0 | E11: 1.162682834e-07 | F11: 1.373738251e-07 | G11: 3.650316083e-07 | H11: 2.391612168e-07 | I11: 1.131743151e-07 | J11: 2.760323615e-07 | K11: 2.685415155e-07 | L11: 1.416583473e-07 | M11: 9.366406659e-08 | N11: 2.28428313e-07 | O11: 3.712833999e-07 | P11: 1.84052523e-07 | Q11: 1.345924811e-07 | R11: 1.774198303e-07 | S11: 9.232810416e-08 | T11: 8.941571954e-08 | U11: 9.062967059e-08 | V11: 2.387614099e-07 | W11: 9.840803769e-08 | X11: 2.114089511e-07 | Y11: 2.279082356e-07 | Z11: 1.106054262e-07 | AA11: 2.153457763e-07 | AB11: 1.118471846e-07 | AC11: 1.510674283e-07 | AD11: 2.652082712e-07 | AE11: 3.173420253e-07 | AF11: 3.433286021e-07 | AG11: 2.187802229e-07 | AH11: 1.712425477e-07 | AI11: 1.245979706e-07 | AJ11: 1.546356429e-07 | AK11: 1.03468788e-07 | AL11: 2.033489586e-07 | AM11: 2.143909122e-07 | AN11: 1.731920371e-07 | AO11: 1.205353506e-07 | AP11: 3.361619282e-07 | AQ11: 9.872243777e-08 | AR11: 4.09767525e-07 | AS11: 5.528385952e-08 | AT11: 2.74875151e-07 | AU11: 1.406552845e-07 | AV11: 1.911804336e-07 | AW11: 1.123696644e-07 | AX11: 1.468916405e-07 | AY11: 1.0740147e-07 | AZ11: 8.685129886e-08 | BA11: 1.674638974e-07 | BB11: 1.253886479e-07 | BC11: 2.218650227e-07 | BD11: 1.416310737e-07 | BE11: 1.421678518e-07 | BF11: 2.123943963e-07 | BG11: 9.906380964e-08 | BH11: 1.087581487e-07 | BI11: 4.383726053e-08 | BJ11: 2.309880797e-07 | BK11: 2.277102645e-08 | BL11: 1.662353579e-07 | BM11: 1.790316385e-07 | BN11: 1.239254399e-07 | BO11: 3.570860718e-07 | BP11: 1.038678986e-07 | BQ11: 9.847325046e-08 | BR11: 1.400837472e-07 | BS11: 1.028395817e-07 | BT11: 1.324115264e-07 | BU11: 2.93613744e-07 | BV11: 2.08090446e-07 | BW11: 1.640232997e-07 | BX11: 3.39034006e-07 | BY11: 1.907186404e-07 | BZ11: 2.028424831e-07 | CA11: 1.058448936e-07 | CB11: 1.289595667e-07 | CC11: 3.247326903e-07 | CD11: 1.172411132e-07 | CE11: 1.163602011e-07 | CF11: 1.325588499e-07 | CG11: 4.506311793e-07 | CH11: 1.951295261e-07 | CI11: 2.230192969e-07 | CJ11: 2.435636187e-07 | CK11: 0 | CL11: 2.092713787e-07 | CM11: 3.003979616e-07 | CN11: 1.313489028e-07 | CO11: 1.37004344e-07 | CP11: 1.622706556e-07 | CQ11: 3.240942574e-07 | CR11: 1.059657096e-07 | CS11: 4.686201098e-07 | CT11: 4.423410678e-07 | CU11: 3.278757626e-07 | CV11: 1.253816148e-07 | CW11: 1.173203225e-07 | CX11: 1.368255921e-07 | CY11: 1.4843935e-07 | CZ11: 7.463063619e-08 | DA11: 2.266017286e-07 | DB11: 2.405852089e-07 | DC11: 1.157053111e-08 | DD11: 5.643631164e-07 | DE11: 1.72814757e-07 | DF11: 1.862864e-07 | DG11: 2.160432013e-07 | DH11: 2.150793428e-07 | DI11: 9
A12: 20020110 | B12: 2.212120361e-07 | C12: 0 | D12: 0 | E12: 1.162682834e-07 | F12: 1.373738251e-07 | G12: 3.650316083e-07 | H12: 2.391612168e-07 | I12: 1.131743151e-07 | J12: 2.760323615e-07 | K12: 2.685415155e-07 | L12: 1.416583473e-07 | M12: 9.366406659e-08 | N12: 2.28428313e-07 | O12: 3.712833999e-07 | P12: 1.84052523e-07 | Q12: 1.345924811e-07 | R12: 1.774198303e-07 | S12: 9.232810416e-08 | T12: 8.941571954e-08 | U12: 9.062967059e-08 | V12: 2.387614099e-07 | W12: 9.840803769e-08 | X12: 2.114089511e-07 | Y12: 2.279082356e-07 | Z12: 1.106054262e-07 | AA12: 2.153457763e-07 | AB12: 1.118471846e-07 | AC12: 1.510674283e-07 | AD12: 2.652082712e-07 | AE12: 3.173420253e-07 | AF12: 3.433286021e-07 | AG12: 2.187802229e-07 | AH12: 1.712425477e-07 | AI12: 1.245979706e-07 | AJ12: 1.546356429e-07 | AK12: 1.03468788e-07 | AL12: 2.033489586e-07 | AM12: 2.143909122e-07 | AN12: 1.731920371e-07 | AO12: 1.205353506e-07 | AP12: 3.361619282e-07 | AQ12: 9.872243777e-08 | AR12: 4.09767525e-07 | AS12: 5.528385952e-08 | AT12: 2.74875151e-07 | AU12: 1.406552845e-07 | AV12: 1.911804336e-07 | AW12: 1.123696644e-07 | AX12: 1.468916405e-07 | AY12: 1.0740147e-07 | AZ12: 8.685129886e-08 | BA12: 1.674638974e-07 | BB12: 1.253886479e-07 | BC12: 2.218650227e-07 | BD12: 1.416310737e-07 | BE12: 1.421678518e-07 | BF12: 2.123943963e-07 | BG12: 9.906380964e-08 | BH12: 1.087581487e-07 | BI12: 4.383726053e-08 | BJ12: 2.309880797e-07 | BK12: 2.277102645e-08 | BL12: 1.662353579e-07 | BM12: 1.790316385e-07 | BN12: 1.239254399e-07 | BO12: 3.570860718e-07 | BP12: 1.038678986e-07 | BQ12: 9.847325046e-08 | BR12: 1.400837472e-07 | BS12: 1.028395817e-07 | BT12: 1.324115264e-07 | BU12: 2.93613744e-07 | BV12: 2.08090446e-07 | BW12: 1.640232997e-07 | BX12: 3.39034006e-07 | BY12: 1.907186404e-07 | BZ12: 2.028424831e-07 | CA12: 1.058448936e-07 | CB12: 1.289595667e-07 | CC12: 3.247326903e-07 | CD12: 1.172411132e-07 | CE12: 1.163602011e-07 | CF12: 1.325588499e-07 | CG12: 4.506311793e-07 | CH12: 1.951295261e-07 | CI12: 2.230192969e-07 | CJ12: 2.435636187e-07 | CK12: 0 | CL12: 2.092713787e-07 | CM12: 3.003979616e-07 | CN12: 1.313489028e-07 | CO12: 1.37004344e-07 | CP12: 1.622706556e-07 | CQ12: 3.240942574e-07 | CR12: 1.059657096e-07 | CS12: 4.686201098e-07 | CT12: 4.423410678e-07 | CU12: 3.278757626e-07 | CV12: 1.253816148e-07 | CW12: 1.173203225e-07 | CX12: 1.368255921e-07 | CY12: 1.4843935e-07 | CZ12: 7.463063619e-08 | DA12: 2.266017286e-07 | DB12: 2.405852089e-07 | DC12: 1.157053111e-08 | DD12: 5.643631164e-07 | DE12: 1.72814757e-07 | DF12: 1.862864e-07 | DG12: 2.160432013e-07 | DH12: 2.150793428e-07 | DI12: 10
A13: 20020111 | B13: 2.212120361e-07 | C13: 0 | D13: 0 | E13: 1.162682834e-07 | F13: 1.373738251e-07 | G13: 3.650316083e-07 | H13: 2.391612168e-07 | I13: 1.131743151e-07 | J13: 2.760323615e-07 | K13: 2.685415155e-07 | L13: 1.416583473e-07 | M13: 9.366406659e-08 | N13: 2.28428313e-07 | O13: 3.712833999e-07 | P13: 1.84052523e-07 | Q13: 1.345924811e-07 | R13: 1.774198303e-07 | S13: 9.232810416e-08 | T13: 8.941571954e-08 | U13: 9.062967059e-08 | V13: 2.387614099e-07 | W13: 9.840803769e-08 | X13: 2.114089511e-07 | Y13: 2.279082356e-07 | Z13: 1.106054262e-07 | AA13: 2.153457763e-07 | AB13: 1.118471846e-07 | AC13: 1.510674283e-07 | AD13: 2.652082712e-07 | AE13: 3.173420253e-07 | AF13: 3.433286021e-07 | AG13: 2.187802229e-07 | AH13: 1.712425477e-07 | AI13: 1.245979706e-07 | AJ13: 1.546356429e-07 | AK13: 1.03468788e-07 | AL13: 2.033489586e-07 | AM13: 2.143909122e-07 | AN13: 1.731920371e-07 | AO13: 1.205353506e-07 | AP13: 3.361619282e-07 | AQ13: 9.872243777e-08 | AR13: 4.09767525e-07 | AS13: 5.528385952e-08 | AT13: 2.74875151e-07 | AU13: 1.406552845e-07 | AV13: 1.911804336e-07 | AW13: 1.123696644e-07 | AX13: 1.468916405e-07 | AY13: 1.0740147e-07 | AZ13: 8.685129886e-08 | BA13: 1.674638974e-07 | BB13: 1.253886479e-07 | BC13: 2.218650227e-07 | BD13: 1.416310737e-07 | BE13: 1.421678518e-07 | BF13: 2.123943963e-07 | BG13: 9.906380964e-08 | BH13: 1.087581487e-07 | BI13: 4.383726053e-08 | BJ13: 2.309880797e-07 | BK13: 2.277102645e-08 | BL13: 1.662353579e-07 | BM13: 1.790316385e-07 | BN13: 1.239254399e-07 | BO13: 3.570860718e-07 | BP13: 1.038678986e-07 | BQ13: 9.847325046e-08 | BR13: 1.400837472e-07 | BS13: 1.028395817e-07 | BT13: 1.324115264e-07 | BU13: 2.93613744e-07 | BV13: 2.08090446e-07 | BW13: 1.640232997e-07 | BX13: 3.39034006e-07 | BY13: 1.907186404e-07 | BZ13: 2.028424831e-07 | CA13: 1.058448936e-07 | CB13: 1.289595667e-07 | CC13: 3.247326903e-07 | CD13: 1.172411132e-07 | CE13: 1.163602011e-07 | CF13: 1.325588499e-07 | CG13: 4.506311793e-07 | CH13: 1.951295261e-07 | CI13: 2.230192969e-07 | CJ13: 2.435636187e-07 | CK13: 0 | CL13: 2.092713787e-07 | CM13: 3.003979616e-07 | CN13: 1.313489028e-07 | CO13: 1.37004344e-07 | CP13: 1.622706556e-07 | CQ13: 3.240942574e-07 | CR13: 1.059657096e-07 | CS13: 4.686201098e-07 | CT13: 4.423410678e-07 | CU13: 3.278757626e-07 | CV13: 1.253816148e-07 | CW13: 1.173203225e-07 | CX13: 1.368255921e-07 | CY13: 1.4843935e-07 | CZ13: 7.463063619e-08 | DA13: 2.266017286e-07 | DB13: 2.405852089e-07 | DC13: 1.157053111e-08 | DD13: 5.643631164e-07 | DE13: 1.72814757e-07 | DF13: 1.862864e-07 | DG13: 2.160432013e-07 | DH13: 2.150793428e-07 | DI13: 11
A14: 20020112 | B14: 2.212120361e-07 | C14: 0 | D14: 0 | E14: 1.162682834e-07 | F14: 1.373738251e-07 | G14: 3.650316083e-07 | H14: 2.391612168e-07 | I14: 1.131743151e-07 | J14: 2.760323615e-07 | K14: 2.685415155e-07 | L14: 1.416583473e-07 | M14: 9.366406659e-08 | N14: 2.28428313e-07 | O14: 3.712833999e-07 | P14: 1.84052523e-07 | Q14: 1.345924811e-07 | R14: 1.774198303e-07 | S14: 9.232810416e-08 | T14: 8.941571954e-08 | U14: 9.062967059e-08 | V14: 2.387614099e-07 | W14: 9.840803769e-08 | X14: 2.114089511e-07 | Y14: 2.279082356e-07 | Z14: 1.106054262e-07 | AA14: 2.153457763e-07 | AB14: 1.118471846e-07 | AC14: 1.510674283e-07 | AD14: 2.652082712e-07 | AE14: 3.173420253e-07 | AF14: 3.433286021e-07 | AG14: 2.187802229e-07 | AH14: 1.712425477e-07 | AI14: 1.245979706e-07 | AJ14: 1.546356429e-07 | AK14: 1.03468788e-07 | AL14: 2.033489586e-07 | AM14: 2.143909122e-07 | AN14: 1.731920371e-07 | AO14: 1.205353506e-07 | AP14: 3.361619282e-07 | AQ14: 9.872243777e-08 | AR14: 4.09767525e-07 | AS14: 5.528385952e-08 | AT14: 2.74875151e-07 | AU14: 1.406552845e-07 | AV14: 1.911804336e-07 | AW14: 1.123696644e-07 | AX14: 1.468916405e-07 | AY14: 1.0740147e-07 | AZ14: 8.685129886e-08 | BA14: 1.674638974e-07 | BB14: 1.253886479e-07 | BC14: 2.218650227e-07 | BD14: 1.416310737e-07 | BE14: 1.421678518e-07 | BF14: 2.123943963e-07 | BG14: 9.906380964e-08 | BH14: 1.087581487e-07 | BI14: 4.383726053e-08 | BJ14: 2.309880797e-07 | BK14: 2.277102645e-08 | BL14: 1.662353579e-07 | BM14: 1.790316385e-07 | BN14: 1.239254399e-07 | BO14: 3.570860718e-07 | BP14: 1.038678986e-07 | BQ14: 9.847325046e-08 | BR14: 1.400837472e-07 | BS14: 1.028395817e-07 | BT14: 1.324115264e-07 | BU14: 2.93613744e-07 | BV14: 2.08090446e-07 | BW14: 1.640232997e-07 | BX14: 3.39034006e-07 | BY14: 1.907186404e-07 | BZ14: 2.028424831e-07 | CA14: 1.058448936e-07 | CB14: 1.289595667e-07 | CC14: 3.247326903e-07 | CD14: 1.172411132e-07 | CE14: 1.163602011e-07 | CF14: 1.325588499e-07 | CG14: 4.506311793e-07 | CH14: 1.951295261e-07 | CI14: 2.230192969e-07 | CJ14: 2.435636187e-07 | CK14: 0 | CL14: 2.092713787e-07 | CM14: 3.003979616e-07 | CN14: 1.313489028e-07 | CO14: 1.37004344e-07 | CP14: 1.622706556e-07 | CQ14: 3.240942574e-07 | CR14: 1.059657096e-07 | CS14: 4.686201098e-07 | CT14: 4.423410678e-07 | CU14: 3.278757626e-07 | CV14: 1.253816148e-07 | CW14: 1.173203225e-07 | CX14: 1.368255921e-07 | CY14: 1.4843935e-07 | CZ14: 7.463063619e-08 | DA14: 2.266017286e-07 | DB14: 2.405852089e-07 | DC14: 1.157053111e-08 | DD14: 5.643631164e-07 | DE14: 1.72814757e-07 | DF14: 1.862864e-07 | DG14: 2.160432013e-07 | DH14: 2.150793428e-07 | DI14: 12
A15: 20020113 | B15: 2.212120361e-07 | C15: 0 | D15: 0 | E15: 1.162682834e-07 | F15: 1.373738251e-07 | G15: 3.650316083e-07 | H15: 2.391612168e-07 | I15: 1.131743151e-07 | J15: 2.760323615e-07 | K15: 2.685415155e-07 | L15: 1.416583473e-07 | M15: 9.366406659e-08 | N15: 2.28428313e-07 | O15: 3.712833999e-07 | P15: 1.84052523e-07 | Q15: 1.345924811e-07 | R15: 1.774198303e-07 | S15: 9.232810416e-08 | T15: 8.941571954e-08 | U15: 9.062967059e-08 | V15: 2.387614099e-07 | W15: 9.840803769e-08 | X15: 2.114089511e-07 | Y15: 2.279082356e-07 | Z15: 1.106054262e-07 | AA15: 2.153457763e-07 | AB15: 1.118471846e-07 | AC15: 1.510674283e-07 | AD15: 2.652082712e-07 | AE15: 3.173420253e-07 | AF15: 3.433286021e-07 | AG15: 2.187802229e-07 | AH15: 1.712425477e-07 | AI15: 1.245979706e-07 | AJ15: 1.546356429e-07 | AK15: 1.03468788e-07 | AL15: 2.033489586e-07 | AM15: 2.143909122e-07 | AN15: 1.731920371e-07 | AO15: 1.205353506e-07 | AP15: 3.361619282e-07 | AQ15: 9.872243777e-08 | AR15: 4.09767525e-07 | AS15: 5.528385952e-08 | AT15: 2.74875151e-07 | AU15: 1.406552845e-07 | AV15: 1.911804336e-07 | AW15: 1.123696644e-07 | AX15: 1.468916405e-07 | AY15: 1.0740147e-07 | AZ15: 8.685129886e-08 | BA15: 1.674638974e-07 | BB15: 1.253886479e-07 | BC15: 2.218650227e-07 | BD15: 1.416310737e-07 | BE15: 1.421678518e-07 | BF15: 2.123943963e-07 | BG15: 9.906380964e-08 | BH15: 1.087581487e-07 | BI15: 4.383726053e-08 | BJ15: 2.309880797e-07 | BK15: 2.277102645e-08 | BL15: 1.662353579e-07 | BM15: 1.790316385e-07 | BN15: 1.239254399e-07 | BO15: 3.570860718e-07 | BP15: 1.038678986e-07 | BQ15: 9.847325046e-08 | BR15: 1.400837472e-07 | BS15: 1.028395817e-07 | BT15: 1.324115264e-07 | BU15: 2.93613744e-07 | BV15: 2.08090446e-07 | BW15: 1.640232997e-07 | BX15: 3.39034006e-07 | BY15: 1.907186404e-07 | BZ15: 2.028424831e-07 | CA15: 1.058448936e-07 | CB15: 1.289595667e-07 | CC15: 3.247326903e-07 | CD15: 1.172411132e-07 | CE15: 1.163602011e-07 | CF15: 1.325588499e-07 | CG15: 4.506311793e-07 | CH15: 1.951295261e-07 | CI15: 2.230192969e-07 | CJ15: 2.435636187e-07 | CK15: 0 | CL15: 2.092713787e-07 | CM15: 3.003979616e-07 | CN15: 1.313489028e-07 | CO15: 1.37004344e-07 | CP15: 1.622706556e-07 | CQ15: 3.240942574e-07 | CR15: 1.059657096e-07 | CS15: 4.686201098e-07 | CT15: 4.423410678e-07 | CU15: 3.278757626e-07 | CV15: 1.253816148e-07 | CW15: 1.173203225e-07 | CX15: 1.368255921e-07 | CY15: 1.4843935e-07 | CZ15: 7.463063619e-08 | DA15: 2.266017286e-07 | DB15: 2.405852089e-07 | DC15: 1.157053111e-08 | DD15: 5.643631164e-07 | DE15: 1.72814757e-07 | DF15: 1.862864e-07 | DG15: 2.160432013e-07 | DH15: 2.150793428e-07 | DI15: 13
A16: 20020114 | B16: 2.212120361e-07 | C16: 0 | D16: 0 | E16: 1.162682834e-07 | F16: 1.373738251e-07 | G16: 3.650316083e-07 | H16: 2.391612168e-07 | I16: 1.131743151e-07 | J16: 2.760323615e-07 | K16: 2.685415155e-07 | L16: 1.416583473e-07 | M16: 9.366406659e-08 | N16: 2.28428313e-07 | O16: 3.712833999e-07 | P16: 1.84052523e-07 | Q16: 1.345924811e-07 | R16: 1.774198303e-07 | S16: 9.232810416e-08 | T16: 8.941571954e-08 | U16: 9.062967059e-08 | V16: 2.387614099e-07 | W16: 9.840803769e-08 | X16: 2.114089511e-07 | Y16: 2.279082356e-07 | Z16: 1.106054262e-07 | AA16: 2.153457763e-07 | AB16: 1.118471846e-07 | AC16: 1.510674283e-07 | AD16: 2.652082712e-07 | AE16: 3.173420253e-07 | AF16: 3.433286021e-07 | AG16: 2.187802229e-07 | AH16: 1.712425477e-07 | AI16: 1.245979706e-07 | AJ16: 1.546356429e-07 | AK16: 1.03468788e-07 | AL16: 2.033489586e-07 | AM16: 2.143909122e-07 | AN16: 1.731920371e-07 | AO16: 1.205353506e-07 | AP16: 3.361619282e-07 | AQ16: 9.872243777e-08 | AR16: 4.09767525e-07 | AS16: 5.528385952e-08 | AT16: 2.74875151e-07 | AU16: 1.406552845e-07 | AV16: 1.911804336e-07 | AW16: 1.123696644e-07 | AX16: 1.468916405e-07 | AY16: 1.0740147e-07 | AZ16: 8.685129886e-08 | BA16: 1.674638974e-07 | BB16: 1.253886479e-07 | BC16: 2.218650227e-07 | BD16: 1.416310737e-07 | BE16: 1.421678518e-07 | BF16: 2.123943963e-07 | BG16: 9.906380964e-08 | BH16: 1.087581487e-07 | BI16: 4.383726053e-08 | BJ16: 2.309880797e-07 | BK16: 2.277102645e-08 | BL16: 1.662353579e-07 | BM16: 1.790316385e-07 | BN16: 1.239254399e-07 | BO16: 3.570860718e-07 | BP16: 1.038678986e-07 | BQ16: 9.847325046e-08 | BR16: 1.400837472e-07 | BS16: 1.028395817e-07 | BT16: 1.324115264e-07 | BU16: 2.93613744e-07 | BV16: 2.08090446e-07 | BW16: 1.640232997e-07 | BX16: 3.39034006e-07 | BY16: 1.907186404e-07 | BZ16: 2.028424831e-07 | CA16: 1.058448936e-07 | CB16: 1.289595667e-07 | CC16: 3.247326903e-07 | CD16: 1.172411132e-07 | CE16: 1.163602011e-07 | CF16: 1.325588499e-07 | CG16: 4.506311793e-07 | CH16: 1.951295261e-07 | CI16: 2.230192969e-07 | CJ16: 2.435636187e-07 | CK16: 0 | CL16: 2.092713787e-07 | CM16: 3.003979616e-07 | CN16: 1.313489028e-07 | CO16: 1.37004344e-07 | CP16: 1.622706556e-07 | CQ16: 3.240942574e-07 | CR16: 1.059657096e-07 | CS16: 4.686201098e-07 | CT16: 4.423410678e-07 | CU16: 3.278757626e-07 | CV16: 1.253816148e-07 | CW16: 1.173203225e-07 | CX16: 1.368255921e-07 | CY16: 1.4843935e-07 | CZ16: 7.463063619e-08 | DA16: 2.266017286e-07 | DB16: 2.405852089e-07 | DC16: 1.157053111e-08 | DD16: 5.643631164e-07 | DE16: 1.72814757e-07 | DF16: 1.862864e-07 | DG16: 2.160432013e-07 | DH16: 2.150793428e-07 | DI16: 14
A17: 20020115 | B17: 2.212120361e-07 | C17: 0 | D17: 0 | E17: 1.162682834e-07 | F17: 1.373738251e-07 | G17: 3.650316083e-07 | H17: 2.391612168e-07 | I17: 1.131743151e-07 | J17: 2.760323615e-07 | K17: 2.685415155e-07 | L17: 1.416583473e-07 | M17: 9.366406659e-08 | N17: 2.28428313e-07 | O17: 3.712833999e-07 | P17: 1.84052523e-07 | Q17: 1.345924811e-07 | R17: 1.774198303e-07 | S17: 9.232810416e-08 | T17: 8.941571954e-08 | U17: 9.062967059e-08 | V17: 2.387614099e-07 | W17: 9.840803769e-08 | X17: 2.114089511e-07 | Y17: 2.279082356e-07 | Z17: 1.106054262e-07 | AA17: 2.153457763e-07 | AB17: 1.118471846e-07 | AC17: 1.510674283e-07 | AD17: 2.652082712e-07 | AE17: 3.173420253e-07 | AF17: 3.433286021e-07 | AG17: 2.187802229e-07 | AH17: 1.712425477e-07 | AI17: 1.245979706e-07 | AJ17: 1.546356429e-07 | AK17: 1.03468788e-07 | AL17: 2.033489586e-07 | AM17: 2.143909122e-07 | AN17: 1.731920371e-07 | AO17: 1.205353506e-07 | AP17: 3.361619282e-07 | AQ17: 9.872243777e-08 | AR17: 4.09767525e-07 | AS17: 5.528385952e-08 | AT17: 2.74875151e-07 | AU17: 1.406552845e-07 | AV17: 1.911804336e-07 | AW17: 1.123696644e-07 | AX17: 1.468916405e-07 | AY17: 1.0740147e-07 | AZ17: 8.685129886e-08 | BA17: 1.674638974e-07 | BB17: 1.253886479e-07 | BC17: 2.218650227e-07 | BD17: 1.416310737e-07 | BE17: 1.421678518e-07 | BF17: 2.123943963e-07 | BG17: 9.906380964e-08 | BH17: 1.087581487e-07 | BI17: 4.383726053e-08 | BJ17: 2.309880797e-07 | BK17: 2.277102645e-08 | BL17: 1.662353579e-07 | BM17: 1.790316385e-07 | BN17: 1.239254399e-07 | BO17: 3.570860718e-07 | BP17: 1.038678986e-07 | BQ17: 9.847325046e-08 | BR17: 1.400837472e-07 | BS17: 1.028395817e-07 | BT17: 1.324115264e-07 | BU17: 2.93613744e-07 | BV17: 2.08090446e-07 | BW17: 1.640232997e-07 | BX17: 3.39034006e-07 | BY17: 1.907186404e-07 | BZ17: 2.028424831e-07 | CA17: 1.058448936e-07 | CB17: 1.289595667e-07 | CC17: 3.247326903e-07 | CD17: 1.172411132e-07 | CE17: 1.163602011e-07 | CF17: 1.325588499e-07 | CG17: 4.506311793e-07 | CH17: 1.951295261e-07 | CI17: 2.230192969e-07 | CJ17: 2.435636187e-07 | CK17: 0 | CL17: 2.092713787e-07 | CM17: 3.003979616e-07 | CN17: 1.313489028e-07 | CO17: 1.37004344e-07 | CP17: 1.622706556e-07 | CQ17: 3.240942574e-07 | CR17: 1.059657096e-07 | CS17: 4.686201098e-07 | CT17: 4.423410678e-07 | CU17: 3.278757626e-07 | CV17: 1.253816148e-07 | CW17: 1.173203225e-07 | CX17: 1.368255921e-07 | CY17: 1.4843935e-07 | CZ17: 7.463063619e-08 | DA17: 2.266017286e-07 | DB17: 2.405852089e-07 | DC17: 1.157053111e-08 | DD17: 5.643631164e-07 | DE17: 1.72814757e-07 | DF17: 1.862864e-07 | DG17: 2.160432013e-07 | DH17: 2.150793428e-07 | DI17: 15
A18: 20020116 | B18: 2.212120361e-07 | C18: 0 | D18: 0 | E18: 1.162682834e-07 | F18: 1.373738251e-07 | G18: 3.650316083e-07 | H18: 2.391612168e-07 | I18: 1.131743151e-07 | J18: 2.760323615e-07 | K18: 2.685415155e-07 | L18: 1.416583473e-07 | M18: 9.366406659e-08 | N18: 2.28428313e-07 | O18: 3.712833999e-07 | P18: 1.84052523e-07 | Q18: 1.345924811e-07 | R18: 1.774198303e-07 | S18: 9.232810416e-08 | T18: 8.941571954e-08 | U18: 9.062967059e-08 | V18: 2.387614099e-07 | W18: 9.840803769e-08 | X18: 2.114089511e-07 | Y18: 2.279082356e-07 | Z18: 1.106054262e-07 | AA18: 2.153457763e-07 | AB18: 1.118471846e-07 | AC18: 1.510674283e-07 | AD18: 2.652082712e-07 | AE18: 3.173420253e-07 | AF18: 3.433286021e-07 | AG18: 2.187802229e-07 | AH18: 1.712425477e-07 | AI18: 1.245979706e-07 | AJ18: 1.546356429e-07 | AK18: 1.03468788e-07 | AL18: 2.033489586e-07 | AM18: 2.143909122e-07 | AN18: 1.731920371e-07 | AO18: 1.205353506e-07 | AP18: 3.361619282e-07 | AQ18: 9.872243777e-08 | AR18: 4.09767525e-07 | AS18: 5.528385952e-08 | AT18: 2.74875151e-07 | AU18: 1.406552845e-07 | AV18: 1.911804336e-07 | AW18: 1.123696644e-07 | AX18: 1.468916405e-07 | AY18: 1.0740147e-07 | AZ18: 8.685129886e-08 | BA18: 1.674638974e-07 | BB18: 1.253886479e-07 | BC18: 2.218650227e-07 | BD18: 1.416310737e-07 | BE18: 1.421678518e-07 | BF18: 2.123943963e-07 | BG18: 9.906380964e-08 | BH18: 1.087581487e-07 | BI18: 4.383726053e-08 | BJ18: 2.309880797e-07 | BK18: 2.277102645e-08 | BL18: 1.662353579e-07 | BM18: 1.790316385e-07 | BN18: 1.239254399e-07 | BO18: 3.570860718e-07 | BP18: 1.038678986e-07 | BQ18: 9.847325046e-08 | BR18: 1.400837472e-07 | BS18: 1.028395817e-07 | BT18: 1.324115264e-07 | BU18: 2.93613744e-07 | BV18: 2.08090446e-07 | BW18: 1.640232997e-07 | BX18: 3.39034006e-07 | BY18: 1.907186404e-07 | BZ18: 2.028424831e-07 | CA18: 1.058448936e-07 | CB18: 1.289595667e-07 | CC18: 3.247326903e-07 | CD18: 1.172411132e-07 | CE18: 1.163602011e-07 | CF18: 1.325588499e-07 | CG18: 4.506311793e-07 | CH18: 1.951295261e-07 | CI18: 2.230192969e-07 | CJ18: 2.435636187e-07 | CK18: 0 | CL18: 2.092713787e-07 | CM18: 3.003979616e-07 | CN18: 1.313489028e-07 | CO18: 1.37004344e-07 | CP18: 1.622706556e-07 | CQ18: 3.240942574e-07 | CR18: 1.059657096e-07 | CS18: 4.686201098e-07 | CT18: 4.423410678e-07 | CU18: 3.278757626e-07 | CV18: 1.253816148e-07 | CW18: 1.173203225e-07 | CX18: 1.368255921e-07 | CY18: 1.4843935e-07 | CZ18: 7.463063619e-08 | DA18: 2.266017286e-07 | DB18: 2.405852089e-07 | DC18: 1.157053111e-08 | DD18: 5.643631164e-07 | DE18: 1.72814757e-07 | DF18: 1.862864e-07 | DG18: 2.160432013e-07 | DH18: 2.150793428e-07 | DI18: 16
A19: 20020117 | B19: 2.212120361e-07 | C19: 0 | D19: 0 | E19: 1.162682834e-07 | F19: 1.373738251e-07 | G19: 3.650316083e-07 | H19: 2.391612168e-07 | I19: 1.131743151e-07 | J19: 2.760323615e-07 | K19: 2.685415155e-07 | L19: 1.416583473e-07 | M19: 9.366406659e-08 | N19: 2.28428313e-07 | O19: 3.712833999e-07 | P19: 1.84052523e-07 | Q19: 1.345924811e-07 | R19: 1.774198303e-07 | S19: 9.232810416e-08 | T19: 8.941571954e-08 | U19: 9.062967059e-08 | V19: 2.387614099e-07 | W19: 9.840803769e-08 | X19: 2.114089511e-07 | Y19: 2.279082356e-07 | Z19: 1.106054262e-07 | AA19: 2.153457763e-07 | AB19: 1.118471846e-07 | AC19: 1.510674283e-07 | AD19: 2.652082712e-07 | AE19: 3.173420253e-07 | AF19: 3.433286021e-07 | AG19: 2.187802229e-07 | AH19: 1.712425477e-07 | AI19: 1.245979706e-07 | AJ19: 1.546356429e-07 | AK19: 1.03468788e-07 | AL19: 2.033489586e-07 | AM19: 2.143909122e-07 | AN19: 1.731920371e-07 | AO19: 1.205353506e-07 | AP19: 3.361619282e-07 | AQ19: 9.872243777e-08 | AR19: 4.09767525e-07 | AS19: 5.528385952e-08 | AT19: 2.74875151e-07 | AU19: 1.406552845e-07 | AV19: 1.911804336e-07 | AW19: 1.123696644e-07 | AX19: 1.468916405e-07 | AY19: 1.0740147e-07 | AZ19: 8.685129886e-08 | BA19: 1.674638974e-07 | BB19: 1.253886479e-07 | BC19: 2.218650227e-07 | BD19: 1.416310737e-07 | BE19: 1.421678518e-07 | BF19: 2.123943963e-07 | BG19: 9.906380964e-08 | BH19: 1.087581487e-07 | BI19: 4.383726053e-08 | BJ19: 2.309880797e-07 | BK19: 2.277102645e-08 | BL19: 1.662353579e-07 | BM19: 1.790316385e-07 | BN19: 1.239254399e-07 | BO19: 3.570860718e-07 | BP19: 1.038678986e-07 | BQ19: 9.847325046e-08 | BR19: 1.400837472e-07 | BS19: 1.028395817e-07 | BT19: 1.324115264e-07 | BU19: 2.93613744e-07 | BV19: 2.08090446e-07 | BW19: 1.640232997e-07 | BX19: 3.39034006e-07 | BY19: 1.907186404e-07 | BZ19: 2.028424831e-07 | CA19: 1.058448936e-07 | CB19: 1.289595667e-07 | CC19: 3.247326903e-07 | CD19: 1.172411132e-07 | CE19: 1.163602011e-07 | CF19: 1.325588499e-07 | CG19: 4.506311793e-07 | CH19: 1.951295261e-07 | CI19: 2.230192969e-07 | CJ19: 2.435636187e-07 | CK19: 0 | CL19: 2.092713787e-07 | CM19: 3.003979616e-07 | CN19: 1.313489028e-07 | CO19: 1.37004344e-07 | CP19: 1.622706556e-07 | CQ19: 3.240942574e-07 | CR19: 1.059657096e-07 | CS19: 4.686201098e-07 | CT19: 4.423410678e-07 | CU19: 3.278757626e-07 | CV19: 1.253816148e-07 | CW19: 1.173203225e-07 | CX19: 1.368255921e-07 | CY19: 1.4843935e-07 | CZ19: 7.463063619e-08 | DA19: 2.266017286e-07 | DB19: 2.405852089e-07 | DC19: 1.157053111e-08 | DD19: 5.643631164e-07 | DE19: 1.72814757e-07 | DF19: 1.862864e-07 | DG19: 2.160432013e-07 | DH19: 2.150793428e-07 | DI19: 17
A20: 20020118 | B20: 2.212120361e-07 | C20: 0 | D20: 0 | E20: 1.162682834e-07 | F20: 1.373738251e-07 | G20: 3.650316083e-07 | H20: 2.391612168e-07 | I20: 1.131743151e-07 | J20: 2.760323615e-07 | K20: 2.685415155e-07 | L20: 1.416583473e-07 | M20: 9.366406659e-08 | N20: 2.28428313e-07 | O20: 3.712833999e-07 | P20: 1.84052523e-07 | Q20: 1.345924811e-07 | R20: 1.774198303e-07 | S20: 9.232810416e-08 | T20: 8.941571954e-08 | U20: 9.062967059e-08 | V20: 2.387614099e-07 | W20: 9.840803769e-08 | X20: 2.114089511e-07 | Y20: 2.279082356e-07 | Z20: 1.106054262e-07 | AA20: 2.153457763e-07 | AB20: 1.118471846e-07 | AC20: 1.510674283e-07 | AD20: 2.652082712e-07 | AE20: 3.173420253e-07 | AF20: 3.433286021e-07 | AG20: 2.187802229e-07 | AH20: 1.712425477e-07 | AI20: 1.245979706e-07 | AJ20: 1.546356429e-07 | AK20: 1.03468788e-07 | AL20: 2.033489586e-07 | AM20: 2.143909122e-07 | AN20: 1.731920371e-07 | AO20: 1.205353506e-07 | AP20: 3.361619282e-07 | AQ20: 9.872243777e-08 | AR20: 4.09767525e-07 | AS20: 5.528385952e-08 | AT20: 2.74875151e-07 | AU20: 1.406552845e-07 | AV20: 1.911804336e-07 | AW20: 1.123696644e-07 | AX20: 1.468916405e-07 | AY20: 1.0740147e-07 | AZ20: 8.685129886e-08 | BA20: 1.674638974e-07 | BB20: 1.253886479e-07 | BC20: 2.218650227e-07 | BD20: 1.416310737e-07 | BE20: 1.421678518e-07 | BF20: 2.123943963e-07 | BG20: 9.906380964e-08 | BH20: 1.087581487e-07 | BI20: 4.383726053e-08 | BJ20: 2.309880797e-07 | BK20: 2.277102645e-08 | BL20: 1.662353579e-07 | BM20: 1.790316385e-07 | BN20: 1.239254399e-07 | BO20: 3.570860718e-07 | BP20: 1.038678986e-07 | BQ20: 9.847325046e-08 | BR20: 1.400837472e-07 | BS20: 1.028395817e-07 | BT20: 1.324115264e-07 | BU20: 2.93613744e-07 | BV20: 2.08090446e-07 | BW20: 1.640232997e-07 | BX20: 3.39034006e-07 | BY20: 1.907186404e-07 | BZ20: 2.028424831e-07 | CA20: 1.058448936e-07 | CB20: 1.289595667e-07 | CC20: 3.247326903e-07 | CD20: 1.172411132e-07 | CE20: 1.163602011e-07 | CF20: 1.325588499e-07 | CG20: 4.506311793e-07 | CH20: 1.951295261e-07 | CI20: 2.230192969e-07 | CJ20: 2.435636187e-07 | CK20: 0 | CL20: 2.092713787e-07 | CM20: 3.003979616e-07 | CN20: 1.313489028e-07 | CO20: 1.37004344e-07 | CP20: 1.622706556e-07 | CQ20: 3.240942574e-07 | CR20: 1.059657096e-07 | CS20: 4.686201098e-07 | CT20: 4.423410678e-07 | CU20: 3.278757626e-07 | CV20: 1.253816148e-07 | CW20: 1.173203225e-07 | CX20: 1.368255921e-07 | CY20: 1.4843935e-07 | CZ20: 7.463063619e-08 | DA20: 2.266017286e-07 | DB20: 2.405852089e-07 | DC20: 1.157053111e-08 | DD20: 5.643631164e-07 | DE20: 1.72814757e-07 | DF20: 1.862864e-07 | DG20: 2.160432013e-07 | DH20: 2.150793428e-07 | DI20: 18
A21: 20020119 | B21: 2.212120361e-07 | C21: 0 | D21: 0 | E21: 1.162682834e-07 | F21: 1.373738251e-07 | G21: 3.650316083e-07 | H21: 2.391612168e-07 | I21: 1.131743151e-07 | J21: 2.760323615e-07 | K21: 2.685415155e-07 | L21: 1.416583473e-07 | M21: 9.366406659e-08 | N21: 2.28428313e-07 | O21: 3.712833999e-07 | P21: 1.84052523e-07 | Q21: 1.345924811e-07 | R21: 1.774198303e-07 | S21: 9.232810416e-08 | T21: 8.941571954e-08 | U21: 9.062967059e-08 | V21: 2.387614099e-07 | W21: 9.840803769e-08 | X21: 2.114089511e-07 | Y21: 2.279082356e-07 | Z21: 1.106054262e-07 | AA21: 2.153457763e-07 | AB21: 1.118471846e-07 | AC21: 1.510674283e-07 | AD21: 2.652082712e-07 | AE21: 3.173420253e-07 | AF21: 3.433286021e-07 | AG21: 2.187802229e-07 | AH21: 1.712425477e-07 | AI21: 1.245979706e-07 | AJ21: 1.546356429e-07 | AK21: 1.03468788e-07 | AL21: 2.033489586e-07 | AM21: 2.143909122e-07 | AN21: 1.731920371e-07 | AO21: 1.205353506e-07 | AP21: 3.361619282e-07 | AQ21: 9.872243777e-08 | AR21: 4.09767525e-07 | AS21: 5.528385952e-08 | AT21: 2.74875151e-07 | AU21: 1.406552845e-07 | AV21: 1.911804336e-07 | AW21: 1.123696644e-07 | AX21: 1.468916405e-07 | AY21: 1.0740147e-07 | AZ21: 8.685129886e-08 | BA21: 1.674638974e-07 | BB21: 1.253886479e-07 | BC21: 2.218650227e-07 | BD21: 1.416310737e-07 | BE21: 1.421678518e-07 | BF21: 2.123943963e-07 | BG21: 9.906380964e-08 | BH21: 1.087581487e-07 | BI21: 4.383726053e-08 | BJ21: 2.309880797e-07 | BK21: 2.277102645e-08 | BL21: 1.662353579e-07 | BM21: 1.790316385e-07 | BN21: 1.239254399e-07 | BO21: 3.570860718e-07 | BP21: 1.038678986e-07 | BQ21: 9.847325046e-08 | BR21: 1.400837472e-07 | BS21: 1.028395817e-07 | BT21: 1.324115264e-07 | BU21: 2.93613744e-07 | BV21: 2.08090446e-07 | BW21: 1.640232997e-07 | BX21: 3.39034006e-07 | BY21: 1.907186404e-07 | BZ21: 2.028424831e-07 | CA21: 1.058448936e-07 | CB21: 1.289595667e-07 | CC21: 3.247326903e-07 | CD21: 1.172411132e-07 | CE21: 1.163602011e-07 | CF21: 1.325588499e-07 | CG21: 4.506311793e-07 | CH21: 1.951295261e-07 | CI21: 2.230192969e-07 | CJ21: 2.435636187e-07 | CK21: 0 | CL21: 2.092713787e-07 | CM21: 3.003979616e-07 | CN21: 1.313489028e-07 | CO21: 1.37004344e-07 | CP21: 1.622706556e-07 | CQ21: 3.240942574e-07 | CR21: 1.059657096e-07 | CS21: 4.686201098e-07 | CT21: 4.423410678e-07 | CU21: 3.278757626e-07 | CV21: 1.253816148e-07 | CW21: 1.173203225e-07 | CX21: 1.368255921e-07 | CY21: 1.4843935e-07 | CZ21: 7.463063619e-08 | DA21: 2.266017286e-07 | DB21: 2.405852089e-07 | DC21: 1.157053111e-08 | DD21: 5.643631164e-07 | DE21: 1.72814757e-07 | DF21: 1.862864e-07 | DG21: 2.160432013e-07 | DH21: 2.150793428e-07 | DI21: 19
A22: 20020120 | B22: 2.212120361e-07 | C22: 0 | D22: 0 | E22: 1.162682834e-07 | F22: 1.373738251e-07 | G22: 3.650316083e-07 | H22: 2.391612168e-07 | I22: 1.131743151e-07 | J22: 2.760323615e-07 | K22: 2.685415155e-07 | L22: 1.416583473e-07 | M22: 9.366406659e-08 | N22: 2.28428313e-07 | O22: 3.712833999e-07 | P22: 1.84052523e-07 | Q22: 1.345924811e-07 | R22: 1.774198303e-07 | S22: 9.232810416e-08 | T22: 8.941571954e-08 | U22: 9.062967059e-08 | V22: 2.387614099e-07 | W22: 9.840803769e-08 | X22: 2.114089511e-07 | Y22: 2.279082356e-07 | Z22: 1.106054262e-07 | AA22: 2.153457763e-07 | AB22: 1.118471846e-07 | AC22: 1.510674283e-07 | AD22: 2.652082712e-07 | AE22: 3.173420253e-07 | AF22: 3.433286021e-07 | AG22: 2.187802229e-07 | AH22: 1.712425477e-07 | AI22: 1.245979706e-07 | AJ22: 1.546356429e-07 | AK22: 1.03468788e-07 | AL22: 2.033489586e-07 | AM22: 2.143909122e-07 | AN22: 1.731920371e-07 | AO22: 1.205353506e-07 | AP22: 3.361619282e-07 | AQ22: 9.872243777e-08 | AR22: 4.09767525e-07 | AS22: 5.528385952e-08 | AT22: 2.74875151e-07 | AU22: 1.406552845e-07 | AV22: 1.911804336e-07 | AW22: 1.123696644e-07 | AX22: 1.468916405e-07 | AY22: 1.0740147e-07 | AZ22: 8.685129886e-08 | BA22: 1.674638974e-07 | BB22: 1.253886479e-07 | BC22: 2.218650227e-07 | BD22: 1.416310737e-07 | BE22: 1.421678518e-07 | BF22: 2.123943963e-07 | BG22: 9.906380964e-08 | BH22: 1.087581487e-07 | BI22: 4.383726053e-08 | BJ22: 2.309880797e-07 | BK22: 2.277102645e-08 | BL22: 1.662353579e-07 | BM22: 1.790316385e-07 | BN22: 1.239254399e-07 | BO22: 3.570860718e-07 | BP22: 1.038678986e-07 | BQ22: 9.847325046e-08 | BR22: 1.400837472e-07 | BS22: 1.028395817e-07 | BT22: 1.324115264e-07 | BU22: 2.93613744e-07 | BV22: 2.08090446e-07 | BW22: 1.640232997e-07 | BX22: 3.39034006e-07 | BY22: 1.907186404e-07 | BZ22: 2.028424831e-07 | CA22: 1.058448936e-07 | CB22: 1.289595667e-07 | CC22: 3.247326903e-07 | CD22: 1.172411132e-07 | CE22: 1.163602011e-07 | CF22: 1.325588499e-07 | CG22: 4.506311793e-07 | CH22: 1.951295261e-07 | CI22: 2.230192969e-07 | CJ22: 2.435636187e-07 | CK22: 0 | CL22: 2.092713787e-07 | CM22: 3.003979616e-07 | CN22: 1.313489028e-07 | CO22: 1.37004344e-07 | CP22: 1.622706556e-07 | CQ22: 3.240942574e-07 | CR22: 1.059657096e-07 | CS22: 4.686201098e-07 | CT22: 4.423410678e-07 | CU22: 3.278757626e-07 | CV22: 1.253816148e-07 | CW22: 1.173203225e-07 | CX22: 1.368255921e-07 | CY22: 1.4843935e-07 | CZ22: 7.463063619e-08 | DA22: 2.266017286e-07 | DB22: 2.405852089e-07 | DC22: 1.157053111e-08 | DD22: 5.643631164e-07 | DE22: 1.72814757e-07 | DF22: 1.862864e-07 | DG22: 2.160432013e-07 | DH22: 2.150793428e-07 | DI22: 20
A23: 20020121 | B23: 2.212120361e-07 | C23: 0 | D23: 0 | E23: 1.162682834e-07 | F23: 1.373738251e-07 | G23: 3.650316083e-07 | H23: 2.391612168e-07 | I23: 1.131743151e-07 | J23: 2.760323615e-07 | K23: 2.685415155e-07 | L23: 1.416583473e-07 | M23: 9.366406659e-08 | N23: 2.28428313e-07 | O23: 3.712833999e-07 | P23: 1.84052523e-07 | Q23: 1.345924811e-07 | R23: 1.774198303e-07 | S23: 9.232810416e-08 | T23: 8.941571954e-08 | U23: 9.062967059e-08 | V23: 2.387614099e-07 | W23: 9.840803769e-08 | X23: 2.114089511e-07 | Y23: 2.279082356e-07 | Z23: 1.106054262e-07 | AA23: 2.153457763e-07 | AB23: 1.118471846e-07 | AC23: 1.510674283e-07 | AD23: 2.652082712e-07 | AE23: 3.173420253e-07 | AF23: 3.433286021e-07 | AG23: 2.187802229e-07 | AH23: 1.712425477e-07 | AI23: 1.245979706e-07 | AJ23: 1.546356429e-07 | AK23: 1.03468788e-07 | AL23: 2.033489586e-07 | AM23: 2.143909122e-07 | AN23: 1.731920371e-07 | AO23: 1.205353506e-07 | AP23: 3.361619282e-07 | AQ23: 9.872243777e-08 | AR23: 4.09767525e-07 | AS23: 5.528385952e-08 | AT23: 2.74875151e-07 | AU23: 1.406552845e-07 | AV23: 1.911804336e-07 | AW23: 1.123696644e-07 | AX23: 1.468916405e-07 | AY23: 1.0740147e-07 | AZ23: 8.685129886e-08 | BA23: 1.674638974e-07 | BB23: 1.253886479e-07 | BC23: 2.218650227e-07 | BD23: 1.416310737e-07 | BE23: 1.421678518e-07 | BF23: 2.123943963e-07 | BG23: 9.906380964e-08 | BH23: 1.087581487e-07 | BI23: 4.383726053e-08 | BJ23: 2.309880797e-07 | BK23: 2.277102645e-08 | BL23: 1.662353579e-07 | BM23: 1.790316385e-07 | BN23: 1.239254399e-07 | BO23: 3.570860718e-07 | BP23: 1.038678986e-07 | BQ23: 9.847325046e-08 | BR23: 1.400837472e-07 | BS23: 1.028395817e-07 | BT23: 1.324115264e-07 | BU23: 2.93613744e-07 | BV23: 2.08090446e-07 | BW23: 1.640232997e-07 | BX23: 3.39034006e-07 | BY23: 1.907186404e-07 | BZ23: 2.028424831e-07 | CA23: 1.058448936e-07 | CB23: 1.289595667e-07 | CC23: 3.247326903e-07 | CD23: 1.172411132e-07 | CE23: 1.163602011e-07 | CF23: 1.325588499e-07 | CG23: 4.506311793e-07 | CH23: 1.951295261e-07 | CI23: 2.230192969e-07 | CJ23: 2.435636187e-07 | CK23: 0 | CL23: 2.092713787e-07 | CM23: 3.003979616e-07 | CN23: 1.313489028e-07 | CO23: 1.37004344e-07 | CP23: 1.622706556e-07 | CQ23: 3.240942574e-07 | CR23: 1.059657096e-07 | CS23: 4.686201098e-07 | CT23: 4.423410678e-07 | CU23: 3.278757626e-07 | CV23: 1.253816148e-07 | CW23: 1.173203225e-07 | CX23: 1.368255921e-07 | CY23: 1.4843935e-07 | CZ23: 7.463063619e-08 | DA23: 2.266017286e-07 | DB23: 2.405852089e-07 | DC23: 1.157053111e-08 | DD23: 5.643631164e-07 | DE23: 1.72814757e-07 | DF23: 1.862864e-07 | DG23: 2.160432013e-07 | DH23: 2.150793428e-07 | DI23: 21
A24: 20020122 | B24: 2.212120361e-07 | C24: 0 | D24: 0 | E24: 1.162682834e-07 | F24: 1.373738251e-07 | G24: 0.0002347553099 | H24: 0.0005030245311 | I24: 1.131743151e-07 | J24: 0.000552064723 | K24: 0.0002918010169 | L24: 1.416583473e-07 | M24: 9.366406659e-08 | N24: 3.379806671e-05 | O24: 0.0007928278715 | P24: 1.84052523e-07 | Q24: 1.345924811e-07 | R24: 8.870991515e-06 | S24: 9.232810416e-08 | T24: 8.941571954e-08 | U24: 9.062967059e-08 | V24: 2.387614099e-07 | W24: 9.840803769e-08 | X24: 2.511693501e-05 | Y24: 0.0002111994206 | Z24: 1.106054262e-07 | AA24: 2.153457763e-07 | AB24: 1.118471846e-07 | AC24: 1.510674283e-07 | AD24: 0.0004693252062 | AE24: 0.0007941070585 | AF24: 3.433286021e-07 | AG24: 2.187802229e-07 | AH24: 1.712425477e-07 | AI24: 0.0001431393353 | AJ24: 1.546356429e-07 | AK24: 1.03468788e-07 | AL24: 2.033489586e-07 | AM24: 2.143909122e-07 | AN24: 1.731920371e-07 | AO24: 1.205353506e-07 | AP24: 3.361619282e-07 | AQ24: 9.872243777e-08 | AR24: 4.09767525e-07 | AS24: 5.528385952e-08 | AT24: 2.74875151e-07 | AU24: 1.406552845e-07 | AV24: 1.911804336e-07 | AW24: 1.123696644e-07 | AX24: 1.468916405e-07 | AY24: 1.0740147e-07 | AZ24: 8.685129886e-08 | BA24: 1.674638974e-07 | BB24: 1.253886479e-07 | BC24: 2.218650227e-07 | BD24: 1.416310737e-07 | BE24: 1.421678518e-07 | BF24: 2.123943963e-07 | BG24: 9.906380964e-08 | BH24: 1.087581487e-07 | BI24: 4.383726053e-08 | BJ24: 2.309880797e-07 | BK24: 2.277102645e-08 | BL24: 1.662353579e-07 | BM24: 1.790316385e-07 | BN24: 1.239254399e-07 | BO24: 3.570860718e-07 | BP24: 1.038678986e-07 | BQ24: 9.847325046e-08 | BR24: 1.400837472e-07 | BS24: 1.028395817e-07 | BT24: 1.324115264e-07 | BU24: 2.93613744e-07 | BV24: 2.08090446e-07 | BW24: 1.640232997e-07 | BX24: 3.39034006e-07 | BY24: 1.907186404e-07 | BZ24: 2.028424831e-07 | CA24: 1.058448936e-07 | CB24: 1.289595667e-07 | CC24: 3.247326903e-07 | CD24: 1.172411132e-07 | CE24: 1.163602011e-07 | CF24: 1.325588499e-07 | CG24: 4.506311793e-07 | CH24: 1.951295261e-07 | CI24: 2.230192969e-07 | CJ24: 2.435636187e-07 | CK24: 0 | CL24: 2.092713787e-07 | CM24: 3.003979616e-07 | CN24: 1.313489028e-07 | CO24: 1.37004344e-07 | CP24: 1.622706556e-07 | CQ24: 3.240942574e-07 | CR24: 1.059657096e-07 | CS24: 4.686201098e-07 | CT24: 4.423410678e-07 | CU24: 3.278757626e-07 | CV24: 1.253816148e-07 | CW24: 1.173203225e-07 | CX24: 1.368255921e-07 | CY24: 1.4843935e-07 | CZ24: 7.463063619e-08 | DA24: 2.266017286e-07 | DB24: 2.405852089e-07 | DC24: 1.157053111e-08 | DD24: 5.643631164e-07 | DE24: 1.72814757e-07 | DF24: 1.862864e-07 | DG24: 2.160432013e-07 | DH24: 2.150793428e-07 | DI24: 22
A25: 20020123 | B25: 2.212120361e-07 | C25: 0 | D25: 0 | E25: 1.162682834e-07 | F25: 1.373738251e-07 | G25: 0.0001026732015 | H25: 0.0002885654118 | I25: 1.131743151e-07 | J25: 0.0002444523879 | K25: 0.0001670455097 | L25: 1.416583473e-07 | M25: 9.366406659e-08 | N25: 1.98126598e-05 | O25: 0.0004166804969 | P25: 1.84052523e-07 | Q25: 1.345924811e-07 | R25: 5.522760871e-06 | S25: 9.232810416e-08 | T25: 8.941571954e-08 | U25: 9.062967059e-08 | V25: 2.387614099e-07 | W25: 9.840803769e-08 | X25: 1.435253429e-05 | Y25: 0.0001049313577 | Z25: 1.106054262e-07 | AA25: 2.153457763e-07 | AB25: 1.118471846e-07 | AC25: 1.510674283e-07 | AD25: 0.0001782429573 | AE25: 0.0004135974263 | AF25: 3.433286021e-07 | AG25: 2.187802229e-07 | AH25: 1.712425477e-07 | AI25: 8.232365916e-05 | AJ25: 1.546356429e-07 | AK25: 1.03468788e-07 | AL25: 2.033489586e-07 | AM25: 2.143909122e-07 | AN25: 1.731920371e-07 | AO25: 1.205353506e-07 | AP25: 3.361619282e-07 | AQ25: 9.872243777e-08 | AR25: 4.09767525e-07 | AS25: 5.528385952e-08 | AT25: 2.74875151e-07 | AU25: 1.406552845e-07 | AV25: 1.911804336e-07 | AW25: 1.123696644e-07 | AX25: 1.468916405e-07 | AY25: 1.0740147e-07 | AZ25: 8.685129886e-08 | BA25: 1.674638974e-07 | BB25: 1.253886479e-07 | BC25: 2.218650227e-07 | BD25: 1.416310737e-07 | BE25: 1.421678518e-07 | BF25: 2.123943963e-07 | BG25: 9.906380964e-08 | BH25: 1.087581487e-07 | BI25: 4.383726053e-08 | BJ25: 2.309880797e-07 | BK25: 2.277102645e-08 | BL25: 1.662353579e-07 | BM25: 1.790316385e-07 | BN25: 1.239254399e-07 | BO25: 3.570860718e-07 | BP25: 1.038678986e-07 | BQ25: 9.847325046e-08 | BR25: 1.400837472e-07 | BS25: 1.028395817e-07 | BT25: 1.324115264e-07 | BU25: 2.93613744e-07 | BV25: 2.08090446e-07 | BW25: 1.640232997e-07 | BX25: 3.39034006e-07 | BY25: 1.907186404e-07 | BZ25: 2.028424831e-07 | CA25: 1.058448936e-07 | CB25: 1.289595667e-07 | CC25: 3.247326903e-07 | CD25: 1.172411132e-07 | CE25: 1.163602011e-07 | CF25: 1.325588499e-07 | CG25: 4.506311793e-07 | CH25: 1.951295261e-07 | CI25: 2.230192969e-07 | CJ25: 2.435636187e-07 | CK25: 0 | CL25: 2.092713787e-07 | CM25: 3.003979616e-07 | CN25: 1.313489028e-07 | CO25: 1.37004344e-07 | CP25: 1.622706556e-07 | CQ25: 3.240942574e-07 | CR25: 1.059657096e-07 | CS25: 4.686201098e-07 | CT25: 4.423410678e-07 | CU25: 3.278757626e-07 | CV25: 1.253816148e-07 | CW25: 1.173203225e-07 | CX25: 1.368255921e-07 | CY25: 1.4843935e-07 | CZ25: 7.463063619e-08 | DA25: 2.266017286e-07 | DB25: 2.405852089e-07 | DC25: 1.157053111e-08 | DD25: 5.643631164e-07 | DE25: 1.72814757e-07 | DF25: 1.862864e-07 | DG25: 2.160432013e-07 | DH25: 2.150793428e-07 | DI25: 23
A26: 20020124 | B26: 2.212120361e-07 | C26: 0 | D26: 0 | E26: 1.162682834e-07 | F26: 1.373738251e-07 | G26: 5.53351802e-05 | H26: 0.00017179186 | I26: 1.131743151e-07 | J26: 0.0001155593107 | K26: 0.0001001215808 | L26: 1.416583473e-07 | M26: 9.366406659e-08 | N26: 1.223723105e-05 | O26: 0.0002286068096 | P26: 1.84052523e-07 | Q26: 1.345924811e-07 | R26: 3.59388887e-06 | S26: 9.232810416e-08 | T26: 8.941571954e-08 | U26: 9.062967059e-08 | V26: 2.387614099e-07 | W26: 9.840803769e-08 | X26: 8.485451017e-06 | Y26: 5.427023087e-05 | Z26: 1.106054262e-07 | AA26: 2.153457763e-07 | AB26: 1.118471846e-07 | AC26: 1.510674283e-07 | AD26: 7.546576823e-05 | AE26: 0.0002210866242 | AF26: 3.433286021e-07 | AG26: 2.187802229e-07 | AH26: 1.712425477e-07 | AI26: 4.924586458e-05 | AJ26: 1.546356429e-07 | AK26: 1.03468788e-07 | AL26: 2.033489586e-07 | AM26: 2.143909122e-07 | AN26: 1.731920371e-07 | AO26: 1.205353506e-07 | AP26: 3.361619282e-07 | AQ26: 9.872243777e-08 | AR26: 4.09767525e-07 | AS26: 5.528385952e-08 | AT26: 2.74875151e-07 | AU26: 1.406552845e-07 | AV26: 1.911804336e-07 | AW26: 1.123696644e-07 | AX26: 1.468916405e-07 | AY26: 1.0740147e-07 | AZ26: 8.685129886e-08 | BA26: 1.674638974e-07 | BB26: 1.253886479e-07 | BC26: 2.218650227e-07 | BD26: 1.416310737e-07 | BE26: 1.421678518e-07 | BF26: 2.123943963e-07 | BG26: 9.906380964e-08 | BH26: 1.087581487e-07 | BI26: 4.383726053e-08 | BJ26: 2.309880797e-07 | BK26: 2.277102645e-08 | BL26: 1.662353579e-07 | BM26: 1.790316385e-07 | BN26: 1.239254399e-07 | BO26: 3.570860718e-07 | BP26: 1.038678986e-07 | BQ26: 9.847325046e-08 | BR26: 1.400837472e-07 | BS26: 1.028395817e-07 | BT26: 1.324115264e-07 | BU26: 2.93613744e-07 | BV26: 2.08090446e-07 | BW26: 1.640232997e-07 | BX26: 3.39034006e-07 | BY26: 1.907186404e-07 | BZ26: 2.028424831e-07 | CA26: 1.058448936e-07 | CB26: 1.289595667e-07 | CC26: 3.247326903e-07 | CD26: 1.172411132e-07 | CE26: 1.163602011e-07 | CF26: 1.325588499e-07 | CG26: 4.506311793e-07 | CH26: 1.951295261e-07 | CI26: 2.230192969e-07 | CJ26: 2.435636187e-07 | CK26: 0 | CL26: 2.092713787e-07 | CM26: 3.003979616e-07 | CN26: 1.313489028e-07 | CO26: 1.37004344e-07 | CP26: 1.622706556e-07 | CQ26: 3.240942574e-07 | CR26: 1.059657096e-07 | CS26: 4.686201098e-07 | CT26: 4.423410678e-07 | CU26: 3.278757626e-07 | CV26: 1.253816148e-07 | CW26: 1.173203225e-07 | CX26: 1.368255921e-07 | CY26: 1.4843935e-07 | CZ26: 7.463063619e-08 | DA26: 2.266017286e-07 | DB26: 2.405852089e-07 | DC26: 1.157053111e-08 | DD26: 5.643631164e-07 | DE26: 1.72814757e-07 | DF26: 1.862864e-07 | DG26: 2.160432013e-07 | DH26: 2.150793428e-07 | DI26: 24
A27: 20020125 | B27: 2.212120361e-07 | C27: 0 | D27: 0 | E27: 1.162682834e-07 | F27: 1.373738251e-07 | G27: 3.289154068e-05 | H27: 0.0001048716322 | I27: 1.131743151e-07 | J27: 5.766269247e-05 | K27: 6.121477854e-05 | L27: 1.416583473e-07 | M27: 9.366406659e-08 | N27: 7.843482378e-06 | O27: 0.0001303545212 | P27: 1.84052523e-07 | Q27: 1.345924811e-07 | R27: 2.411090002e-06 | S27: 9.232810416e-08 | T27: 8.941571954e-08 | U27: 9.062967059e-08 | V27: 2.387614099e-07 | W27: 9.840803769e-08 | X27: 5.120363585e-06 | Y27: 2.900650271e-05 | Z27: 1.106054262e-07 | AA27: 2.153457763e-07 | AB27: 1.118471846e-07 | AC27: 1.510674283e-07 | AD27: 3.492986986e-05 | AE27: 0.0001213720447 | AF27: 3.433286021e-07 | AG27: 2.187802229e-07 | AH27: 1.712425477e-07 | AI27: 3.018534169e-05 | AJ27: 1.546356429e-07 | AK27: 1.03468788e-07 | AL27: 2.033489586e-07 | AM27: 2.143909122e-07 | AN27: 1.731920371e-07 | AO27: 1.205353506e-07 | AP27: 3.361619282e-07 | AQ27: 9.872243777e-08 | AR27: 4.09767525e-07 | AS27: 5.528385952e-08 | AT27: 2.74875151e-07 | AU27: 1.406552845e-07 | AV27: 1.911804336e-07 | AW27: 1.123696644e-07 | AX27: 1.468916405e-07 | AY27: 1.0740147e-07 | AZ27: 8.685129886e-08 | BA27: 1.674638974e-07 | BB27: 1.253886479e-07 | BC27: 2.218650227e-07 | BD27: 1.416310737e-07 | BE27: 1.421678518e-07 | BF27: 2.123943963e-07 | BG27: 9.906380964e-08 | BH27: 1.087581487e-07 | BI27: 4.383726053e-08 | BJ27: 2.309880797e-07 | BK27: 2.277102645e-08 | BL27: 1.662353579e-07 | BM27: 1.790316385e-07 | BN27: 1.239254399e-07 | BO27: 3.570860718e-07 | BP27: 1.038678986e-07 | BQ27: 9.847325046e-08 | BR27: 1.400837472e-07 | BS27: 1.028395817e-07 | BT27: 1.324115264e-07 | BU27: 2.93613744e-07 | BV27: 2.08090446e-07 | BW27: 1.640232997e-07 | BX27: 3.39034006e-07 | BY27: 1.907186404e-07 | BZ27: 2.028424831e-07 | CA27: 1.058448936e-07 | CB27: 1.289595667e-07 | CC27: 3.247326903e-07 | CD27: 1.172411132e-07 | CE27: 1.163602011e-07 | CF27: 1.325588499e-07 | CG27: 4.506311793e-07 | CH27: 1.951295261e-07 | CI27: 2.230192969e-07 | CJ27: 2.435636187e-07 | CK27: 0 | CL27: 2.092713787e-07 | CM27: 3.003979616e-07 | CN27: 1.313489028e-07 | CO27: 1.37004344e-07 | CP27: 1.622706556e-07 | CQ27: 3.240942574e-07 | CR27: 1.059657096e-07 | CS27: 4.686201098e-07 | CT27: 4.423410678e-07 | CU27: 3.278757626e-07 | CV27: 1.253816148e-07 | CW27: 1.173203225e-07 | CX27: 1.368255921e-07 | CY27: 1.4843935e-07 | CZ27: 7.463063619e-08 | DA27: 2.266017286e-07 | DB27: 2.405852089e-07 | DC27: 1.157053111e-08 | DD27: 5.643631164e-07 | DE27: 1.72814757e-07 | DF27: 1.862864e-07 | DG27: 2.160432013e-07 | DH27: 2.150793428e-07 | DI27: 25
A28: 20020126 | B28: 2.212120361e-07 | C28: 0 | D28: 0 | E28: 1.162682834e-07 | F28: 1.373738251e-07 | G28: 2.037985658e-05 | H28: 0.0001650549243 | I28: 1.131743151e-07 | J28: 4.280840861e-05 | K28: 3.774382719e-05 | L28: 1.416583473e-07 | M28: 9.366406659e-08 | N28: 5.093019018e-06 | O28: 7.587800488e-05 | P28: 1.84052523e-07 | Q28: 1.345924811e-07 | R28: 1.655918416e-06 | S28: 9.232810416e-08 | T28: 8.941571954e-08 | U28: 9.062967059e-08 | V28: 2.387614099e-07 | W28: 9.840803769e-08 | X28: 3.151738949e-06 | Y28: 1.583995655e-05 | Z28: 1.106054262e-07 | AA28: 2.153457763e-07 | AB28: 1.118471846e-07 | AC28: 1.510674283e-07 | AD28: 1.710557413e-05 | AE28: 6.798037698e-05 | AF28: 3.433286021e-07 | AG28: 2.187802229e-07 | AH28: 1.712425477e-07 | AI28: 1.876386105e-05 | AJ28: 1.546356429e-07 | AK28: 1.03468788e-07 | AL28: 2.033489586e-07 | AM28: 2.143909122e-07 | AN28: 1.731920371e-07 | AO28: 1.205353506e-07 | AP28: 3.361619282e-07 | AQ28: 9.872243777e-08 | AR28: 4.09767525e-07 | AS28: 5.528385952e-08 | AT28: 2.74875151e-07 | AU28: 1.406552845e-07 | AV28: 1.911804336e-07 | AW28: 1.123696644e-07 | AX28: 1.468916405e-07 | AY28: 1.0740147e-07 | AZ28: 8.685129886e-08 | BA28: 1.674638974e-07 | BB28: 1.253886479e-07 | BC28: 2.218650227e-07 | BD28: 1.416310737e-07 | BE28: 1.421678518e-07 | BF28: 2.123943963e-07 | BG28: 9.906380964e-08 | BH28: 1.087581487e-07 | BI28: 4.383726053e-08 | BJ28: 2.309880797e-07 | BK28: 2.277102645e-08 | BL28: 1.662353579e-07 | BM28: 1.790316385e-07 | BN28: 1.239254399e-07 | BO28: 3.570860718e-07 | BP28: 1.038678986e-07 | BQ28: 9.847325046e-08 | BR28: 1.400837472e-07 | BS28: 1.028395817e-07 | BT28: 1.324115264e-07 | BU28: 2.93613744e-07 | BV28: 2.08090446e-07 | BW28: 1.640232997e-07 | BX28: 3.39034006e-07 | BY28: 1.907186404e-07 | BZ28: 2.028424831e-07 | CA28: 1.058448936e-07 | CB28: 1.289595667e-07 | CC28: 3.247326903e-07 | CD28: 1.172411132e-07 | CE28: 1.163602011e-07 | CF28: 1.325588499e-07 | CG28: 4.506311793e-07 | CH28: 1.951295261e-07 | CI28: 2.230192969e-07 | CJ28: 2.435636187e-07 | CK28: 0 | CL28: 2.092713787e-07 | CM28: 3.003979616e-07 | CN28: 1.313489028e-07 | CO28: 1.37004344e-07 | CP28: 1.622706556e-07 | CQ28: 3.240942574e-07 | CR28: 1.059657096e-07 | CS28: 4.686201098e-07 | CT28: 4.423410678e-07 | CU28: 3.278757626e-07 | CV28: 1.253816148e-07 | CW28: 1.173203225e-07 | CX28: 1.368255921e-07 | CY28: 1.4843935e-07 | CZ28: 7.463063619e-08 | DA28: 2.266017286e-07 | DB28: 2.405852089e-07 | DC28: 1.157053111e-08 | DD28: 5.643631164e-07 | DE28: 1.72814757e-07 | DF28: 1.862864e-07 | DG28: 2.160432013e-07 | DH28: 2.150793428e-07 | DI28: 26
A29: 20020127 | B29: 2.212120361e-07 | C29: 0 | D29: 0 | E29: 1.162682834e-07 | F29: 1.373738251e-07 | G29: 1.28986434e-05 | H29: 9.813469647e-05 | I29: 1.131743151e-07 | J29: 2.163813003e-05 | K29: 2.347095136e-05 | L29: 1.416583473e-07 | M29: 9.366406659e-08 | N29: 3.35649766e-06 | O29: 4.491069947e-05 | P29: 1.84052523e-07 | Q29: 1.345924811e-07 | R29: 1.15550351e-06 | S29: 9.232810416e-08 | T29: 8.941571954e-08 | U29: 9.062967059e-08 | V29: 2.387614099e-07 | W29: 9.840803769e-08 | X29: 1.978322294e-06 | Y29: 8.75541902e-06 | Z29: 1.106054262e-07 | AA29: 2.153457763e-07 | AB29: 1.118471846e-07 | AC29: 1.510674283e-07 | AD29: 8.768403546e-06 | AE29: 3.89533576e-05 | AF29: 3.433286021e-07 | AG29: 2.187802229e-07 | AH29: 1.712425477e-07 | AI29: 1.179230793e-05 | AJ29: 1.546356429e-07 | AK29: 1.03468788e-07 | AL29: 2.033489586e-07 | AM29: 2.143909122e-07 | AN29: 1.731920371e-07 | AO29: 1.205353506e-07 | AP29: 3.361619282e-07 | AQ29: 9.872243777e-08 | AR29: 4.09767525e-07 | AS29: 5.528385952e-08 | AT29: 2.74875151e-07 | AU29: 1.406552845e-07 | AV29: 1.911804336e-07 | AW29: 1.123696644e-07 | AX29: 1.468916405e-07 | AY29: 1.0740147e-07 | AZ29: 8.685129886e-08 | BA29: 1.674638974e-07 | BB29: 1.253886479e-07 | BC29: 2.218650227e-07 | BD29: 1.416310737e-07 | BE29: 1.421678518e-07 | BF29: 2.123943963e-07 | BG29: 9.906380964e-08 | BH29: 1.087581487e-07 | BI29: 4.383726053e-08 | BJ29: 2.309880797e-07 | BK29: 2.277102645e-08 | BL29: 1.662353579e-07 | BM29: 1.790316385e-07 | BN29: 1.239254399e-07 | BO29: 3.570860718e-07 | BP29: 1.038678986e-07 | BQ29: 9.847325046e-08 | BR29: 1.400837472e-07 | BS29: 1.028395817e-07 | BT29: 1.324115264e-07 | BU29: 2.93613744e-07 | BV29: 2.08090446e-07 | BW29: 1.640232997e-07 | BX29: 3.39034006e-07 | BY29: 1.907186404e-07 | BZ29: 2.028424831e-07 | CA29: 1.058448936e-07 | CB29: 1.289595667e-07 | CC29: 3.247326903e-07 | CD29: 1.172411132e-07 | CE29: 1.163602011e-07 | CF29: 1.325588499e-07 | CG29: 4.506311793e-07 | CH29: 1.951295261e-07 | CI29: 2.230192969e-07 | CJ29: 2.435636187e-07 | CK29: 0 | CL29: 2.092713787e-07 | CM29: 3.003979616e-07 | CN29: 1.313489028e-07 | CO29: 1.37004344e-07 | CP29: 1.622706556e-07 | CQ29: 3.240942574e-07 | CR29: 1.059657096e-07 | CS29: 4.686201098e-07 | CT29: 4.423410678e-07 | CU29: 3.278757626e-07 | CV29: 1.253816148e-07 | CW29: 1.173203225e-07 | CX29: 1.368255921e-07 | CY29: 1.4843935e-07 | CZ29: 7.463063619e-08 | DA29: 2.266017286e-07 | DB29: 2.405852089e-07 | DC29: 1.157053111e-08 | DD29: 5.643631164e-07 | DE29: 1.72814757e-07 | DF29: 1.862864e-07 | DG29: 2.160432013e-07 | DH29: 2.150793428e-07 | DI29: 27
A30: 20020128 | B30: 2.212120361e-07 | C30: 0 | D30: 0 | E30: 1.162682834e-07 | F30: 1.373738251e-07 | G30: 8.345422281e-06 | H30: 5.995872759e-05 | I30: 1.131743151e-07 | J30: 1.13570942e-05 | K30: 1.469577585e-05 | L30: 1.416583473e-07 | M30: 9.366406659e-08 | N30: 2.237665106e-06 | O30: 2.691399318e-05 | P30: 1.84052523e-07 | Q30: 1.345924811e-07 | R30: 8.288690534e-07 | S30: 9.232810416e-08 | T30: 8.941571954e-08 | U30: 9.062967059e-08 | V30: 2.387614099e-07 | W30: 9.840803769e-08 | X30: 1.270393238e-06 | Y30: 4.932442166e-06 | Z30: 1.106054262e-07 | AA30: 2.153457763e-07 | AB30: 1.118471846e-07 | AC30: 1.510674283e-07 | AD30: 4.621379902e-06 | AE30: 2.255985962e-05 | AF30: 3.433286021e-07 | AG30: 2.187802229e-07 | AH30: 1.712425477e-07 | AI30: 7.490711329e-06 | AJ30: 1.546356429e-07 | AK30: 1.03468788e-07 | AL30: 2.033489586e-07 | AM30: 2.143909122e-07 | AN30: 1.731920371e-07 | AO30: 1.205353506e-07 | AP30: 3.361619282e-07 | AQ30: 9.872243777e-08 | AR30: 4.09767525e-07 | AS30: 5.528385952e-08 | AT30: 2.74875151e-07 | AU30: 1.406552845e-07 | AV30: 1.911804336e-07 | AW30: 1.123696644e-07 | AX30: 1.468916405e-07 | AY30: 1.0740147e-07 | AZ30: 8.685129886e-08 | BA30: 1.674638974e-07 | BB30: 1.253886479e-07 | BC30: 2.218650227e-07 | BD30: 1.416310737e-07 | BE30: 1.421678518e-07 | BF30: 2.123943963e-07 | BG30: 9.906380964e-08 | BH30: 1.087581487e-07 | BI30: 4.383726053e-08 | BJ30: 2.309880797e-07 | BK30: 2.277102645e-08 | BL30: 1.662353579e-07 | BM30: 1.790316385e-07 | BN30: 1.239254399e-07 | BO30: 3.570860718e-07 | BP30: 1.038678986e-07 | BQ30: 9.847325046e-08 | BR30: 1.400837472e-07 | BS30: 1.028395817e-07 | BT30: 1.324115264e-07 | BU30: 2.93613744e-07 | BV30: 2.08090446e-07 | BW30: 1.640232997e-07 | BX30: 3.39034006e-07 | BY30: 1.907186404e-07 | BZ30: 2.028424831e-07 | CA30: 1.058448936e-07 | CB30: 1.289595667e-07 | CC30: 3.247326903e-07 | CD30: 1.172411132e-07 | CE30: 1.163602011e-07 | CF30: 1.325588499e-07 | CG30: 4.506311793e-07 | CH30: 1.951295261e-07 | CI30: 2.230192969e-07 | CJ30: 2.435636187e-07 | CK30: 0 | CL30: 2.092713787e-07 | CM30: 3.003979616e-07 | CN30: 1.313489028e-07 | CO30: 1.37004344e-07 | CP30: 1.622706556e-07 | CQ30: 3.240942574e-07 | CR30: 1.059657096e-07 | CS30: 4.686201098e-07 | CT30: 4.423410678e-07 | CU30: 3.278757626e-07 | CV30: 1.253816148e-07 | CW30: 1.173203225e-07 | CX30: 1.368255921e-07 | CY30: 1.4843935e-07 | CZ30: 7.463063619e-08 | DA30: 2.266017286e-07 | DB30: 2.405852089e-07 | DC30: 1.157053111e-08 | DD30: 5.643631164e-07 | DE30: 1.72814757e-07 | DF30: 1.862864e-07 | DG30: 2.160432013e-07 | DH30: 2.150793428e-07 | DI30: 28
A31: 20020129 | B31: 2.212120361e-07 | C31: 0 | D31: 0 | E31: 1.162682834e-07 | F31: 1.373738251e-07 | G31: 5.443227516e-06 | H31: 3.738999305e-05 | I31: 1.131743151e-07 | J31: 6.152246701e-06 | K31: 9.208648033e-06 | L31: 1.416583473e-07 | M31: 9.366406659e-08 | N31: 1.515085749e-06 | O31: 1.637538139e-05 | P31: 1.84052523e-07 | Q31: 1.345924811e-07 | R31: 6.105061853e-07 | S31: 9.232810416e-08 | T31: 8.941571954e-08 | U31: 9.062967059e-08 | V31: 2.387614099e-07 | W31: 9.840803769e-08 | X31: 8.495148676e-07 | Y31: 2.827131485e-06 | Z31: 1.106054262e-07 | AA31: 2.153457763e-07 | AB31: 1.118471846e-07 | AC31: 1.510674283e-07 | AD31: 2.515525608e-06 | AE31: 1.334039699e-05 | AF31: 3.433286021e-07 | AG31: 2.187802229e-07 | AH31: 1.712425477e-07 | AI31: 4.783672086e-06 | AJ31: 1.546356429e-07 | AK31: 1.03468788e-07 | AL31: 2.033489586e-07 | AM31: 2.143909122e-07 | AN31: 1.731920371e-07 | AO31: 1.205353506e-07 | AP31: 3.361619282e-07 | AQ31: 9.872243777e-08 | AR31: 4.09767525e-07 | AS31: 5.528385952e-08 | AT31: 2.74875151e-07 | AU31: 1.406552845e-07 | AV31: 1.911804336e-07 | AW31: 1.123696644e-07 | AX31: 1.468916405e-07 | AY31: 1.0740147e-07 | AZ31: 8.685129886e-08 | BA31: 1.674638974e-07 | BB31: 1.253886479e-07 | BC31: 2.218650227e-07 | BD31: 1.416310737e-07 | BE31: 1.421678518e-07 | BF31: 2.123943963e-07 | BG31: 9.906380964e-08 | BH31: 1.087581487e-07 | BI31: 4.383726053e-08 | BJ31: 2.309880797e-07 | BK31: 2.277102645e-08 | BL31: 1.662353579e-07 | BM31: 1.790316385e-07 | BN31: 1.239254399e-07 | BO31: 3.570860718e-07 | BP31: 1.038678986e-07 | BQ31: 9.847325046e-08 | BR31: 1.400837472e-07 | BS31: 1.028395817e-07 | BT31: 1.324115264e-07 | BU31: 2.93613744e-07 | BV31: 2.08090446e-07 | BW31: 1.640232997e-07 | BX31: 3.39034006e-07 | BY31: 1.907186404e-07 | BZ31: 2.028424831e-07 | CA31: 1.058448936e-07 | CB31: 1.289595667e-07 | CC31: 3.247326903e-07 | CD31: 1.172411132e-07 | CE31: 1.163602011e-07 | CF31: 1.325588499e-07 | CG31: 4.506311793e-07 | CH31: 1.951295261e-07 | CI31: 2.230192969e-07 | CJ31: 2.435636187e-07 | CK31: 0 | CL31: 2.092713787e-07 | CM31: 3.003979616e-07 | CN31: 1.313489028e-07 | CO31: 1.37004344e-07 | CP31: 1.622706556e-07 | CQ31: 3.240942574e-07 | CR31: 1.059657096e-07 | CS31: 4.686201098e-07 | CT31: 4.423410678e-07 | CU31: 3.278757626e-07 | CV31: 1.253816148e-07 | CW31: 1.173203225e-07 | CX31: 1.368255921e-07 | CY31: 1.4843935e-07 | CZ31: 7.463063619e-08 | DA31: 2.266017286e-07 | DB31: 2.405852089e-07 | DC31: 1.157053111e-08 | DD31: 5.643631164e-07 | DE31: 1.72814757e-07 | DF31: 1.862864e-07 | DG31: 2.160432013e-07 | DH31: 2.150793428e-07 | DI31: 29
A32: 20020130 | B32: 2.212120361e-07 | C32: 0 | D32: 0 | E32: 1.162682834e-07 | F32: 1.373738251e-07 | G32: 3.598721509e-06 | H32: 2.35792749e-05 | I32: 1.131743151e-07 | J32: 3.427011946e-06 | K32: 5.825447837e-06 | L32: 1.416583473e-07 | M32: 9.366406659e-08 | N32: 1.055898222e-06 | O32: 9.971148077e-06 | P32: 1.84052523e-07 | Q32: 1.345924811e-07 | R32: 4.649309399e-07 | S32: 9.232810416e-08 | T32: 8.941571954e-08 | U32: 9.062967059e-08 | V32: 2.387614099e-07 | W32: 9.840803769e-08 | X32: 5.925269225e-07 | Y32: 1.664197966e-06 | Z32: 1.106054262e-07 | AA32: 2.153457763e-07 | AB32: 1.118471846e-07 | AC32: 1.510674283e-07 | AD32: 1.437443204e-06 | AE32: 8.001230211e-06 | AF32: 3.433286021e-07 | AG32: 2.187802229e-07 | AH32: 1.712425477e-07 | AI32: 3.077866536e-06 | AJ32: 1.546356429e-07 | AK32: 1.03468788e-07 | AL32: 2.033489586e-07 | AM32: 2.143909122e-07 | AN32: 1.731920371e-07 | AO32: 1.205353506e-07 | AP32: 3.361619282e-07 | AQ32: 9.872243777e-08 | AR32: 4.09767525e-07 | AS32: 5.528385952e-08 | AT32: 2.74875151e-07 | AU32: 1.406552845e-07 | AV32: 1.911804336e-07 | AW32: 1.123696644e-07 | AX32: 1.468916405e-07 | AY32: 1.0740147e-07 | AZ32: 8.685129886e-08 | BA32: 1.674638974e-07 | BB32: 1.253886479e-07 | BC32: 2.218650227e-07 | BD32: 1.416310737e-07 | BE32: 1.421678518e-07 | BF32: 2.123943963e-07 | BG32: 9.906380964e-08 | BH32: 1.087581487e-07 | BI32: 4.383726053e-08 | BJ32: 2.309880797e-07 | BK32: 2.277102645e-08 | BL32: 1.662353579e-07 | BM32: 1.790316385e-07 | BN32: 1.239254399e-07 | BO32: 3.570860718e-07 | BP32: 1.038678986e-07 | BQ32: 9.847325046e-08 | BR32: 1.400837472e-07 | BS32: 1.028395817e-07 | BT32: 1.324115264e-07 | BU32: 2.93613744e-07 | BV32: 2.08090446e-07 | BW32: 1.640232997e-07 | BX32: 3.39034006e-07 | BY32: 1.907186404e-07 | BZ32: 2.028424831e-07 | CA32: 1.058448936e-07 | CB32: 1.289595667e-07 | CC32: 3.247326903e-07 | CD32: 1.172411132e-07 | CE32: 1.163602011e-07 | CF32: 1.325588499e-07 | CG32: 4.506311793e-07 | CH32: 1.951295261e-07 | CI32: 2.230192969e-07 | CJ32: 2.435636187e-07 | CK32: 0 | CL32: 2.092713787e-07 | CM32: 3.003979616e-07 | CN32: 1.313489028e-07 | CO32: 1.37004344e-07 | CP32: 1.622706556e-07 | CQ32: 3.240942574e-07 | CR32: 1.059657096e-07 | CS32: 4.686201098e-07 | CT32: 4.423410678e-07 | CU32: 3.278757626e-07 | CV32: 1.253816148e-07 | CW32: 1.173203225e-07 | CX32: 1.368255921e-07 | CY32: 1.4843935e-07 | CZ32: 7.463063619e-08 | DA32: 2.266017286e-07 | DB32: 2.405852089e-07 | DC32: 1.157053111e-08 | DD32: 5.643631164e-07 | DE32: 1.72814757e-07 | DF32: 1.862864e-07 | DG32: 2.160432013e-07 | DH32: 2.150793428e-07 | DI32: 30
A33: 20020131 | B33: 2.212120361e-07 | C33: 0 | D33: 0 | E33: 1.162682834e-07 | F33: 1.373738251e-07 | G33: 2.437843603e-06 | H33: 1.493354077e-05 | I33: 1.131743151e-07 | J33: 1.988368706e-06 | K33: 3.721520215e-06 | L33: 1.416583473e-07 | M33: 9.366406659e-08 | N33: 7.56377424e-07 | O33: 6.161034584e-06 | P33: 1.84052523e-07 | Q33: 1.345924811e-07 | R33: 3.675774946e-07 | S33: 9.232810416e-08 | T33: 8.941571954e-08 | U33: 9.062967059e-08 | V33: 2.387614099e-07 | W33: 9.840803769e-08 | X33: 4.373643896e-07 | Y33: 1.022579473e-06 | Z33: 1.106054262e-07 | AA33: 2.153457763e-07 | AB33: 1.118471846e-07 | AC33: 1.510674283e-07 | AD33: 8.768403546e-07 | AE33: 4.872929677e-06 | AF33: 3.433286021e-07 | AG33: 2.187802229e-07 | AH33: 1.712425477e-07 | AI33: 2.002467385e-06 | AJ33: 1.546356429e-07 | AK33: 1.03468788e-07 | AL33: 2.033489586e-07 | AM33: 2.143909122e-07 | AN33: 1.731920371e-07 | AO33: 1.205353506e-07 | AP33: 3.361619282e-07 | AQ33: 9.872243777e-08 | AR33: 4.09767525e-07 | AS33: 5.528385952e-08 | AT33: 2.74875151e-07 | AU33: 1.406552845e-07 | AV33: 1.911804336e-07 | AW33: 1.123696644e-07 | AX33: 1.468916405e-07 | AY33: 1.0740147e-07 | AZ33: 8.685129886e-08 | BA33: 1.674638974e-07 | BB33: 1.253886479e-07 | BC33: 2.218650227e-07 | BD33: 1.416310737e-07 | BE33: 1.421678518e-07 | BF33: 2.123943963e-07 | BG33: 9.906380964e-08 | BH33: 1.087581487e-07 | BI33: 4.383726053e-08 | BJ33: 2.309880797e-07 | BK33: 2.277102645e-08 | BL33: 1.662353579e-07 | BM33: 1.790316385e-07 | BN33: 1.239254399e-07 | BO33: 3.570860718e-07 | BP33: 1.038678986e-07 | BQ33: 9.847325046e-08 | BR33: 1.400837472e-07 | BS33: 1.028395817e-07 | BT33: 1.324115264e-07 | BU33: 2.93613744e-07 | BV33: 2.08090446e-07 | BW33: 1.640232997e-07 | BX33: 3.39034006e-07 | BY33: 1.907186404e-07 | BZ33: 2.028424831e-07 | CA33: 1.058448936e-07 | CB33: 1.289595667e-07 | CC33: 3.247326903e-07 | CD33: 1.172411132e-07 | CE33: 1.163602011e-07 | CF33: 1.325588499e-07 | CG33: 4.506311793e-07 | CH33: 1.951295261e-07 | CI33: 2.230192969e-07 | CJ33: 2.435636187e-07 | CK33: 0 | CL33: 2.092713787e-07 | CM33: 3.003979616e-07 | CN33: 1.313489028e-07 | CO33: 1.37004344e-07 | CP33: 1.622706556e-07 | CQ33: 3.240942574e-07 | CR33: 1.059657096e-07 | CS33: 4.686201098e-07 | CT33: 4.423410678e-07 | CU33: 3.278757626e-07 | CV33: 1.253816148e-07 | CW33: 1.173203225e-07 | CX33: 1.368255921e-07 | CY33: 1.4843935e-07 | CZ33: 7.463063619e-08 | DA33: 2.266017286e-07 | DB33: 2.405852089e-07 | DC33: 1.157053111e-08 | DD33: 5.643631164e-07 | DE33: 1.72814757e-07 | DF33: 1.862864e-07 | DG33: 2.160432013e-07 | DH33: 2.150793428e-07 | DI33: 31
A34: 20020201 | B34: 2.212120361e-07 | C34: 0 | D34: 0 | E34: 1.162682834e-07 | F34: 1.373738251e-07 | G34: 1.689722286e-06 | H34: 9.611361576e-06 | I34: 1.131743151e-07 | J34: 1.20471751e-06 | K34: 2.42110264e-06 | L34: 1.416583473e-07 | M34: 9.366406659e-08 | N34: 5.617471778e-07 | O34: 3.874966488e-06 | P34: 1.84052523e-07 | Q34: 1.345924811e-07 | R34: 3.011587889e-07 | S34: 9.232810416e-08 | T34: 8.941571954e-08 | U34: 9.062967059e-08 | V34: 2.387614099e-07 | W34: 9.840803769e-08 | X34: 3.423273382e-07 | Y34: 6.630057762e-07 | Z34: 1.106054262e-07 | AA34: 2.153457763e-07 | AB34: 1.118471846e-07 | AC34: 1.510674283e-07 | AD34: 5.843206625e-07 | AE34: 3.023021189e-06 | AF34: 3.433286021e-07 | AG34: 2.187802229e-07 | AH34: 1.712425477e-07 | AI34: 1.320145165e-06 | AJ34: 1.546356429e-07 | AK34: 1.03468788e-07 | AL34: 2.033489586e-07 | AM34: 2.143909122e-07 | AN34: 1.731920371e-07 | AO34: 1.205353506e-07 | AP34: 3.361619282e-07 | AQ34: 9.872243777e-08 | AR34: 4.09767525e-07 | AS34: 5.528385952e-08 | AT34: 2.74875151e-07 | AU34: 1.406552845e-07 | AV34: 1.911804336e-07 | AW34: 1.123696644e-07 | AX34: 1.468916405e-07 | AY34: 1.0740147e-07 | AZ34: 8.685129886e-08 | BA34: 1.674638974e-07 | BB34: 1.253886479e-07 | BC34: 2.218650227e-07 | BD34: 1.416310737e-07 | BE34: 1.421678518e-07 | BF34: 2.123943963e-07 | BG34: 9.906380964e-08 | BH34: 1.087581487e-07 | BI34: 4.383726053e-08 | BJ34: 2.309880797e-07 | BK34: 2.277102645e-08 | BL34: 1.662353579e-07 | BM34: 1.790316385e-07 | BN34: 1.239254399e-07 | BO34: 3.570860718e-07 | BP34: 1.038678986e-07 | BQ34: 9.847325046e-08 | BR34: 1.400837472e-07 | BS34: 1.028395817e-07 | BT34: 1.324115264e-07 | BU34: 2.93613744e-07 | BV34: 2.08090446e-07 | BW34: 1.640232997e-07 | BX34: 3.39034006e-07 | BY34: 1.907186404e-07 | BZ34: 2.028424831e-07 | CA34: 1.058448936e-07 | CB34: 1.289595667e-07 | CC34: 3.247326903e-07 | CD34: 1.172411132e-07 | CE34: 1.163602011e-07 | CF34: 1.325588499e-07 | CG34: 4.506311793e-07 | CH34: 1.951295261e-07 | CI34: 2.230192969e-07 | CJ34: 2.435636187e-07 | CK34: 0 | CL34: 2.092713787e-07 | CM34: 3.003979616e-07 | CN34: 1.313489028e-07 | CO34: 1.37004344e-07 | CP34: 1.622706556e-07 | CQ34: 3.240942574e-07 | CR34: 1.059657096e-07 | CS34: 4.686201098e-07 | CT34: 4.423410678e-07 | CU34: 3.278757626e-07 | CV34: 1.253816148e-07 | CW34: 1.173203225e-07 | CX34: 1.368255921e-07 | CY34: 1.4843935e-07 | CZ34: 7.463063619e-08 | DA34: 2.266017286e-07 | DB34: 2.405852089e-07 | DC34: 1.157053111e-08 | DD34: 5.643631164e-07 | DE34: 1.72814757e-07 | DF34: 1.862864e-07 | DG34: 2.160432013e-07 | DH34: 2.150793428e-07 | DI34: 32
A35: 20020202 | B35: 2.212120361e-07 | C35: 0 | D35: 0 | E35: 1.162682834e-07 | F35: 1.373738251e-07 | G35: 1.206023158e-06 | H35: 6.231665508e-06 | I35: 1.131743151e-07 | J35: 7.766334239e-07 | K35: 1.596447592e-06 | L35: 1.416583473e-07 | M35: 9.366406659e-08 | N35: 4.370439661e-07 | O35: 2.496840331e-06 | P35: 1.84052523e-07 | Q35: 1.345924811e-07 | R35: 2.5657637e-07 | S35: 9.232810416e-08 | T35: 8.941571954e-08 | U35: 9.062967059e-08 | V35: 2.387614099e-07 | W35: 9.840803769e-08 | X35: 2.851111542e-07 | Y35: 4.638367023e-07 | Z35: 1.106054262e-07 | AA35: 2.153457763e-07 | AB35: 1.118471846e-07 | AC35: 1.510674283e-07 | AD35: 4.283580749e-07 | AE35: 1.940147927e-06 | AF35: 3.433286021e-07 | AG35: 2.187802229e-07 | AH35: 1.712425477e-07 | AI35: 8.825689585e-07 | AJ35: 1.546356429e-07 | AK35: 1.03468788e-07 | AL35: 2.033489586e-07 | AM35: 2.143909122e-07 | AN35: 1.731920371e-07 | AO35: 1.205353506e-07 | AP35: 3.361619282e-07 | AQ35: 9.872243777e-08 | AR35: 4.09767525e-07 | AS35: 5.528385952e-08 | AT35: 2.74875151e-07 | AU35: 1.406552845e-07 | AV35: 1.911804336e-07 | AW35: 1.123696644e-07 | AX35: 1.468916405e-07 | AY35: 1.0740147e-07 | AZ35: 8.685129886e-08 | BA35: 1.674638974e-07 | BB35: 1.253886479e-07 | BC35: 2.218650227e-07 | BD35: 1.416310737e-07 | BE35: 1.421678518e-07 | BF35: 2.123943963e-07 | BG35: 9.906380964e-08 | BH35: 1.087581487e-07 | BI35: 4.383726053e-08 | BJ35: 2.309880797e-07 | BK35: 2.277102645e-08 | BL35: 1.662353579e-07 | BM35: 1.790316385e-07 | BN35: 1.239254399e-07 | BO35: 3.570860718e-07 | BP35: 1.038678986e-07 | BQ35: 9.847325046e-08 | BR35: 1.400837472e-07 | BS35: 1.028395817e-07 | BT35: 1.324115264e-07 | BU35: 2.93613744e-07 | BV35: 2.08090446e-07 | BW35: 1.640232997e-07 | BX35: 3.39034006e-07 | BY35: 1.907186404e-07 | BZ35: 2.028424831e-07 | CA35: 1.058448936e-07 | CB35: 1.289595667e-07 | CC35: 3.247326903e-07 | CD35: 1.172411132e-07 | CE35: 1.163602011e-07 | CF35: 1.325588499e-07 | CG35: 4.506311793e-07 | CH35: 1.951295261e-07 | CI35: 2.230192969e-07 | CJ35: 2.435636187e-07 | CK35: 0 | CL35: 2.092713787e-07 | CM35: 3.003979616e-07 | CN35: 1.313489028e-07 | CO35: 1.37004344e-07 | CP35: 1.622706556e-07 | CQ35: 3.240942574e-07 | CR35: 1.059657096e-07 | CS35: 4.686201098e-07 | CT35: 4.423410678e-07 | CU35: 3.278757626e-07 | CV35: 1.253816148e-07 | CW35: 1.173203225e-07 | CX35: 1.368255921e-07 | CY35: 1.4843935e-07 | CZ35: 7.463063619e-08 | DA35: 2.266017286e-07 | DB35: 2.405852089e-07 | DC35: 1.157053111e-08 | DD35: 5.643631164e-07 | DE35: 1.72814757e-07 | DF35: 1.862864e-07 | DG35: 2.160432013e-07 | DH35: 2.150793428e-07 | DI35: 33
A36: 20020203 | B36: 2.212120361e-07 | C36: 0 | D36: 0 | E36: 1.162682834e-07 | F36: 1.373738251e-07 | G36: 8.990354452e-07 | H36: 4.075846089e-06 | I36: 1.131743151e-07 | J36: 5.473862084e-07 | K36: 1.088967563e-06 | L36: 1.416583473e-07 | M36: 9.366406659e-08 | N36: 3.554624258e-07 | O36: 1.653751388e-06 | P36: 1.84052523e-07 | Q36: 1.345924811e-07 | R36: 2.265514756e-07 | S36: 9.232810416e-08 | T36: 8.941571954e-08 | U36: 9.062967059e-08 | V36: 2.387614099e-07 | W36: 9.840803769e-08 | X36: 2.492298185e-07 | Y36: 3.528901712e-07 | Z36: 1.106054262e-07 | AA36: 2.153457763e-07 | AB36: 1.118471846e-07 | AC36: 1.510674283e-07 | AD36: 3.464238122e-07 | AE36: 1.284408008e-06 | AF36: 3.433286021e-07 | AG36: 2.187802229e-07 | AH36: 1.712425477e-07 | AI36: 6.059317976e-07 | AJ36: 1.546356429e-07 | AK36: 1.03468788e-07 | AL36: 2.033489586e-07 | AM36: 2.143909122e-07 | AN36: 1.731920371e-07 | AO36: 1.205353506e-07 | AP36: 3.361619282e-07 | AQ36: 9.872243777e-08 | AR36: 4.09767525e-07 | AS36: 5.528385952e-08 | AT36: 2.74875151e-07 | AU36: 1.406552845e-07 | AV36: 1.911804336e-07 | AW36: 1.123696644e-07 | AX36: 1.468916405e-07 | AY36: 1.0740147e-07 | AZ36: 8.685129886e-08 | BA36: 1.674638974e-07 | BB36: 1.253886479e-07 | BC36: 2.218650227e-07 | BD36: 1.416310737e-07 | BE36: 1.421678518e-07 | BF36: 2.123943963e-07 | BG36: 9.906380964e-08 | BH36: 1.087581487e-07 | BI36: 4.383726053e-08 | BJ36: 2.309880797e-07 | BK36: 2.277102645e-08 | BL36: 1.662353579e-07 | BM36: 1.790316385e-07 | BN36: 1.239254399e-07 | BO36: 3.570860718e-07 | BP36: 1.038678986e-07 | BQ36: 9.847325046e-08 | BR36: 1.400837472e-07 | BS36: 1.028395817e-07 | BT36: 1.324115264e-07 | BU36: 2.93613744e-07 | BV36: 2.08090446e-07 | BW36: 1.640232997e-07 | BX36: 3.39034006e-07 | BY36: 1.907186404e-07 | BZ36: 2.028424831e-07 | CA36: 1.058448936e-07 | CB36: 1.289595667e-07 | CC36: 3.247326903e-07 | CD36: 1.172411132e-07 | CE36: 1.163602011e-07 | CF36: 1.325588499e-07 | CG36: 4.506311793e-07 | CH36: 1.951295261e-07 | CI36: 2.230192969e-07 | CJ36: 2.435636187e-07 | CK36: 0 | CL36: 2.092713787e-07 | CM36: 3.003979616e-07 | CN36: 1.313489028e-07 | CO36: 1.37004344e-07 | CP36: 1.622706556e-07 | CQ36: 3.240942574e-07 | CR36: 1.059657096e-07 | CS36: 4.686201098e-07 | CT36: 4.423410678e-07 | CU36: 3.278757626e-07 | CV36: 1.253816148e-07 | CW36: 1.173203225e-07 | CX36: 1.368255921e-07 | CY36: 1.4843935e-07 | CZ36: 7.463063619e-08 | DA36: 2.266017286e-07 | DB36: 2.405852089e-07 | DC36: 1.157053111e-08 | DD36: 5.643631164e-07 | DE36: 1.72814757e-07 | DF36: 1.862864e-07 | DG36: 2.160432013e-07 | DH36: 2.150793428e-07 | DI36: 34
A37: 20020204 | B37: 2.212120361e-07 | C37: 0 | D37: 0 | E37: 1.162682834e-07 | F37: 1.373738251e-07 | G37: 7.016862011e-07 | H37: 2.7060025e-06 | I37: 1.131743151e-07 | J37: 4.198966855e-07 | K37: 7.760215449e-07 | L37: 1.416583473e-07 | M37: 9.366406659e-08 | N37: 3.030171498e-07 | O37: 1.141412723e-06 | P37: 1.84052523e-07 | Q37: 1.345924811e-07 | R37: 2.065348794e-07 | S37: 9.232810416e-08 | T37: 8.941571954e-08 | U37: 9.062967059e-08 | V37: 2.387614099e-07 | W37: 9.840803769e-08 | X37: 2.278949702e-07 | Y37: 2.900650271e-07 | Z37: 1.106054262e-07 | AA37: 2.153457763e-07 | AB37: 1.118471846e-07 | AC37: 1.510674283e-07 | AD37: 3.033005161e-07 | AE37: 8.933704408e-07 | AF37: 3.433286021e-07 | AG37: 2.187802229e-07 | AH37: 1.712425477e-07 | AI37: 4.286763513e-07 | AJ37: 1.546356429e-07 | AK37: 1.03468788e-07 | AL37: 2.033489586e-07 | AM37: 2.143909122e-07 | AN37: 1.731920371e-07 | AO37: 1.205353506e-07 | AP37: 3.361619282e-07 | AQ37: 9.872243777e-08 | AR37: 4.09767525e-07 | AS37: 5.528385952e-08 | AT37: 2.74875151e-07 | AU37: 1.406552845e-07 | AV37: 1.911804336e-07 | AW37: 1.123696644e-07 | AX37: 1.468916405e-07 | AY37: 1.0740147e-07 | AZ37: 8.685129886e-08 | BA37: 1.674638974e-07 | BB37: 1.253886479e-07 | BC37: 2.218650227e-07 | BD37: 1.416310737e-07 | BE37: 1.421678518e-07 | BF37: 2.123943963e-07 | BG37: 9.906380964e-08 | BH37: 1.087581487e-07 | BI37: 4.383726053e-08 | BJ37: 2.309880797e-07 | BK37: 2.277102645e-08 | BL37: 1.662353579e-07 | BM37: 1.790316385e-07 | BN37: 1.239254399e-07 | BO37: 3.570860718e-07 | BP37: 1.038678986e-07 | BQ37: 9.847325046e-08 | BR37: 1.400837472e-07 | BS37: 1.028395817e-07 | BT37: 1.324115264e-07 | BU37: 2.93613744e-07 | BV37: 2.08090446e-07 | BW37: 1.640232997e-07 | BX37: 3.39034006e-07 | BY37: 1.907186404e-07 | BZ37: 2.028424831e-07 | CA37: 1.058448936e-07 | CB37: 1.289595667e-07 | CC37: 3.247326903e-07 | CD37: 1.172411132e-07 | CE37: 1.163602011e-07 | CF37: 1.325588499e-07 | CG37: 4.506311793e-07 | CH37: 1.951295261e-07 | CI37: 2.230192969e-07 | CJ37: 2.435636187e-07 | CK37: 0 | CL37: 2.092713787e-07 | CM37: 3.003979616e-07 | CN37: 1.313489028e-07 | CO37: 1.37004344e-07 | CP37: 1.622706556e-07 | CQ37: 3.240942574e-07 | CR37: 1.059657096e-07 | CS37: 4.686201098e-07 | CT37: 4.423410678e-07 | CU37: 3.278757626e-07 | CV37: 1.253816148e-07 | CW37: 1.173203225e-07 | CX37: 1.368255921e-07 | CY37: 1.4843935e-07 | CZ37: 7.463063619e-08 | DA37: 2.266017286e-07 | DB37: 2.405852089e-07 | DC37: 1.157053111e-08 | DD37: 5.643631164e-07 | DE37: 1.72814757e-07 | DF37: 1.862864e-07 | DG37: 2.160432013e-07 | DH37: 2.150793428e-07 | DI37: 35
A38: 20020205 | B38: 2.212120361e-07 | C38: 0 | D38: 0 | E38: 1.162682834e-07 | F38: 1.373738251e-07 | G38: 5.752794958e-07 | H38: 1.830200861e-06 | I38: 1.131743151e-07 | J38: 3.497189665e-07 | K38: 5.783157835e-07 | L38: 1.416583473e-07 | M38: 9.366406659e-08 | N38: 2.692190831e-07 | O38: 8.30118344e-07 | P38: 1.84052523e-07 | Q38: 1.345924811e-07 | R38: 1.937970454e-07 | S38: 9.232810416e-08 | T38: 8.941571954e-08 | U38: 9.062967059e-08 | V38: 2.387614099e-07 | W38: 9.840803769e-08 | X38: 2.17227546e-07 | Y38: 2.559790446e-07 | Z38: 1.106054262e-07 | AA38: 2.153457763e-07 | AB38: 1.118471846e-07 | AC38: 1.510674283e-07 | AD38: 2.803014248e-07 | AE38: 6.587479008e-07 | AF38: 3.433286021e-07 | AG38: 2.187802229e-07 | AH38: 1.712425477e-07 | AI38: 3.159448541e-07 | AJ38: 1.546356429e-07 | AK38: 1.03468788e-07 | AL38: 2.033489586e-07 | AM38: 2.143909122e-07 | AN38: 1.731920371e-07 | AO38: 1.205353506e-07 | AP38: 3.361619282e-07 | AQ38: 9.872243777e-08 | AR38: 4.09767525e-07 | AS38: 5.528385952e-08 | AT38: 2.74875151e-07 | AU38: 1.406552845e-07 | AV38: 1.911804336e-07 | AW38: 1.123696644e-07 | AX38: 1.468916405e-07 | AY38: 1.0740147e-07 | AZ38: 8.685129886e-08 | BA38: 1.674638974e-07 | BB38: 1.253886479e-07 | BC38: 2.218650227e-07 | BD38: 1.416310737e-07 | BE38: 1.421678518e-07 | BF38: 2.123943963e-07 | BG38: 9.906380964e-08 | BH38: 1.087581487e-07 | BI38: 4.383726053e-08 | BJ38: 2.309880797e-07 | BK38: 2.277102645e-08 | BL38: 1.662353579e-07 | BM38: 1.790316385e-07 | BN38: 1.239254399e-07 | BO38: 3.570860718e-07 | BP38: 1.038678986e-07 | BQ38: 9.847325046e-08 | BR38: 1.400837472e-07 | BS38: 1.028395817e-07 | BT38: 1.324115264e-07 | BU38: 2.93613744e-07 | BV38: 2.08090446e-07 | BW38: 1.640232997e-07 | BX38: 3.39034006e-07 | BY38: 1.907186404e-07 | BZ38: 2.028424831e-07 | CA38: 1.058448936e-07 | CB38: 1.289595667e-07 | CC38: 3.247326903e-07 | CD38: 1.172411132e-07 | CE38: 1.163602011e-07 | CF38: 1.325588499e-07 | CG38: 4.506311793e-07 | CH38: 1.951295261e-07 | CI38: 2.230192969e-07 | CJ38: 2.435636187e-07 | CK38: 0 | CL38: 2.092713787e-07 | CM38: 3.003979616e-07 | CN38: 1.313489028e-07 | CO38: 1.37004344e-07 | CP38: 1.622706556e-07 | CQ38: 3.240942574e-07 | CR38: 1.059657096e-07 | CS38: 4.686201098e-07 | CT38: 4.423410678e-07 | CU38: 3.278757626e-07 | CV38: 1.253816148e-07 | CW38: 1.173203225e-07 | CX38: 1.368255921e-07 | CY38: 1.4843935e-07 | CZ38: 7.463063619e-08 | DA38: 2.266017286e-07 | DB38: 2.405852089e-07 | DC38: 1.157053111e-08 | DD38: 5.643631164e-07 | DE38: 1.72814757e-07 | DF38: 1.862864e-07 | DG38: 2.160432013e-07 | DH38: 2.150793428e-07 | DI38: 36
A39: 20020206 | B39: 2.212120361e-07 | C39: 0 | D39: 0 | E39: 1.162682834e-07 | F39: 1.373738251e-07 | G39: 4.92728178e-07 | H39: 1.268789554e-06 | I39: 1.131743151e-07 | J39: 3.099515924e-07 | K39: 4.546175263e-07 | L39: 1.416583473e-07 | M39: 9.366406659e-08 | N39: 2.470755222e-07 | O39: 6.404233318e-07 | P39: 1.84052523e-07 | Q39: 1.345924811e-07 | R39: 1.874281284e-07 | S39: 9.232810416e-08 | T39: 8.941571954e-08 | U39: 9.062967059e-08 | V39: 2.387614099e-07 | W39: 9.840803769e-08 | X39: 2.133484827e-07 | Y39: 2.365968193e-07 | Z39: 1.106054262e-07 | AA39: 2.153457763e-07 | AB39: 1.118471846e-07 | AC39: 1.510674283e-07 | AD39: 2.688018792e-07 | AE39: 5.173727805e-07 | AF39: 3.433286021e-07 | AG39: 2.187802229e-07 | AH39: 1.712425477e-07 | AI39: 2.432627045e-07 | AJ39: 1.546356429e-07 | AK39: 1.03468788e-07 | AL39: 2.033489586e-07 | AM39: 2.143909122e-07 | AN39: 1.731920371e-07 | AO39: 1.205353506e-07 | AP39: 3.361619282e-07 | AQ39: 9.872243777e-08 | AR39: 4.09767525e-07 | AS39: 5.528385952e-08 | AT39: 2.74875151e-07 | AU39: 1.406552845e-07 | AV39: 1.911804336e-07 | AW39: 1.123696644e-07 | AX39: 1.468916405e-07 | AY39: 1.0740147e-07 | AZ39: 8.685129886e-08 | BA39: 1.674638974e-07 | BB39: 1.253886479e-07 | BC39: 2.218650227e-07 | BD39: 1.416310737e-07 | BE39: 1.421678518e-07 | BF39: 2.123943963e-07 | BG39: 9.906380964e-08 | BH39: 1.087581487e-07 | BI39: 4.383726053e-08 | BJ39: 2.309880797e-07 | BK39: 2.277102645e-08 | BL39: 1.662353579e-07 | BM39: 1.790316385e-07 | BN39: 1.239254399e-07 | BO39: 3.570860718e-07 | BP39: 1.038678986e-07 | BQ39: 9.847325046e-08 | BR39: 1.400837472e-07 | BS39: 1.028395817e-07 | BT39: 1.324115264e-07 | BU39: 2.93613744e-07 | BV39: 2.08090446e-07 | BW39: 1.640232997e-07 | BX39: 3.39034006e-07 | BY39: 1.907186404e-07 | BZ39: 2.028424831e-07 | CA39: 1.058448936e-07 | CB39: 1.289595667e-07 | CC39: 3.247326903e-07 | CD39: 1.172411132e-07 | CE39: 1.163602011e-07 | CF39: 1.325588499e-07 | CG39: 4.506311793e-07 | CH39: 1.951295261e-07 | CI39: 2.230192969e-07 | CJ39: 2.435636187e-07 | CK39: 0 | CL39: 2.092713787e-07 | CM39: 3.003979616e-07 | CN39: 1.313489028e-07 | CO39: 1.37004344e-07 | CP39: 1.622706556e-07 | CQ39: 3.240942574e-07 | CR39: 1.059657096e-07 | CS39: 4.686201098e-07 | CT39: 4.423410678e-07 | CU39: 3.278757626e-07 | CV39: 1.253816148e-07 | CW39: 1.173203225e-07 | CX39: 1.368255921e-07 | CY39: 1.4843935e-07 | CZ39: 7.463063619e-08 | DA39: 2.266017286e-07 | DB39: 2.405852089e-07 | DC39: 1.157053111e-08 | DD39: 5.643631164e-07 | DE39: 1.72814757e-07 | DF39: 1.862864e-07 | DG39: 2.160432013e-07 | DH39: 2.150793428e-07 | DI39: 37
A40: 20020207 | B40: 2.212120361e-07 | C40: 0 | D40: 0 | E40: 1.162682834e-07 | F40: 1.373738251e-07 | G40: 4.3984374e-07 | H40: 8.993809139e-07 | I40: 1.131743151e-07 | J40: 2.888982767e-07 | K40: 3.774382719e-07 | L40: 1.416583473e-07 | M40: 9.366406659e-08 | N40: 2.330901153e-07 | O40: 5.236879396e-07 | P40: 1.84052523e-07 | Q40: 1.345924811e-07 | R40: 1.819690567e-07 | S40: 9.232810416e-08 | T40: 8.941571954e-08 | U40: 9.062967059e-08 | V40: 2.387614099e-07 | W40: 9.840803769e-08 | X40: 2.114089511e-07 | Y40: 2.285765882e-07 | Z40: 1.106054262e-07 | AA40: 2.153457763e-07 | AB40: 1.118471846e-07 | AC40: 1.510674283e-07 | AD40: 2.652082712e-07 | AE40: 4.301413234e-07 | AF40: 3.433286021e-07 | AG40: 2.187802229e-07 | AH40: 1.712425477e-07 | AI40: 1.972801201e-07 | AJ40: 1.546356429e-07 | AK40: 1.03468788e-07 | AL40: 2.033489586e-07 | AM40: 2.143909122e-07 | AN40: 1.731920371e-07 | AO40: 1.205353506e-07 | AP40: 3.361619282e-07 | AQ40: 9.872243777e-08 | AR40: 4.09767525e-07 | AS40: 5.528385952e-08 | AT40: 2.74875151e-07 | AU40: 1.406552845e-07 | AV40: 1.911804336e-07 | AW40: 1.123696644e-07 | AX40: 1.468916405e-07 | AY40: 1.0740147e-07 | AZ40: 8.685129886e-08 | BA40: 1.674638974e-07 | BB40: 1.253886479e-07 | BC40: 2.218650227e-07 | BD40: 1.416310737e-07 | BE40: 1.421678518e-07 | BF40: 2.123943963e-07 | BG40: 9.906380964e-08 | BH40: 1.087581487e-07 | BI40: 4.383726053e-08 | BJ40: 2.309880797e-07 | BK40: 2.277102645e-08 | BL40: 1.662353579e-07 | BM40: 1.790316385e-07 | BN40: 1.239254399e-07 | BO40: 3.570860718e-07 | BP40: 1.038678986e-07 | BQ40: 9.847325046e-08 | BR40: 1.400837472e-07 | BS40: 1.028395817e-07 | BT40: 1.324115264e-07 | BU40: 2.93613744e-07 | BV40: 2.08090446e-07 | BW40: 1.640232997e-07 | BX40: 3.39034006e-07 | BY40: 1.907186404e-07 | BZ40: 2.028424831e-07 | CA40: 1.058448936e-07 | CB40: 1.289595667e-07 | CC40: 3.247326903e-07 | CD40: 1.172411132e-07 | CE40: 1.163602011e-07 | CF40: 1.325588499e-07 | CG40: 4.506311793e-07 | CH40: 1.951295261e-07 | CI40: 2.230192969e-07 | CJ40: 2.435636187e-07 | CK40: 0 | CL40: 2.092713787e-07 | CM40: 3.003979616e-07 | CN40: 1.313489028e-07 | CO40: 1.37004344e-07 | CP40: 1.622706556e-07 | CQ40: 3.240942574e-07 | CR40: 1.059657096e-07 | CS40: 4.686201098e-07 | CT40: 4.423410678e-07 | CU40: 3.278757626e-07 | CV40: 1.253816148e-07 | CW40: 1.173203225e-07 | CX40: 1.368255921e-07 | CY40: 1.4843935e-07 | CZ40: 7.463063619e-08 | DA40: 2.266017286e-07 | DB40: 2.405852089e-07 | DC40: 1.157053111e-08 | DD40: 5.643631164e-07 | DE40: 1.72814757e-07 | DF40: 1.862864e-07 | DG40: 2.160432013e-07 | DH40: 2.150793428e-07 | DI40: 38
A41: 20020208 | B41: 2.212120361e-07 | C41: 0 | D41: 0 | E41: 1.162682834e-07 | F41: 1.373738251e-07 | G41: 4.088869959e-07 | H41: 6.624653423e-07 | I41: 1.131743151e-07 | J41: 2.783716188e-07 | K41: 3.28804769e-07 | L41: 1.416583473e-07 | M41: 9.366406659e-08 | N41: 2.28428313e-07 | O41: 4.555922942e-07 | P41: 1.84052523e-07 | Q41: 1.345924811e-07 | R41: 1.783296756e-07 | S41: 9.232810416e-08 | T41: 8.941571954e-08 | U41: 9.062967059e-08 | V41: 2.387614099e-07 | W41: 9.840803769e-08 | X41: 2.114089511e-07 | Y41: 2.279082356e-07 | Z41: 1.106054262e-07 | AA41: 2.153457763e-07 | AB41: 1.118471846e-07 | AC41: 1.510674283e-07 | AD41: 2.652082712e-07 | AE41: 3.790056416e-07 | AF41: 3.433286021e-07 | AG41: 2.187802229e-07 | AH41: 1.712425477e-07 | AI41: 1.676139367e-07 | AJ41: 1.546356429e-07 | AK41: 1.03468788e-07 | AL41: 2.033489586e-07 | AM41: 2.143909122e-07 | AN41: 1.731920371e-07 | AO41: 1.205353506e-07 | AP41: 3.361619282e-07 | AQ41: 9.872243777e-08 | AR41: 4.09767525e-07 | AS41: 5.528385952e-08 | AT41: 2.74875151e-07 | AU41: 1.406552845e-07 | AV41: 1.911804336e-07 | AW41: 1.123696644e-07 | AX41: 1.468916405e-07 | AY41: 1.0740147e-07 | AZ41: 8.685129886e-08 | BA41: 1.674638974e-07 | BB41: 1.253886479e-07 | BC41: 2.218650227e-07 | BD41: 1.416310737e-07 | BE41: 1.421678518e-07 | BF41: 2.123943963e-07 | BG41: 9.906380964e-08 | BH41: 1.087581487e-07 | BI41: 4.383726053e-08 | BJ41: 2.309880797e-07 | BK41: 2.277102645e-08 | BL41: 1.662353579e-07 | BM41: 1.790316385e-07 | BN41: 1.239254399e-07 | BO41: 3.570860718e-07 | BP41: 1.038678986e-07 | BQ41: 9.847325046e-08 | BR41: 1.400837472e-07 | BS41: 1.028395817e-07 | BT41: 1.324115264e-07 | BU41: 2.93613744e-07 | BV41: 2.08090446e-07 | BW41: 1.640232997e-07 | BX41: 3.39034006e-07 | BY41: 1.907186404e-07 | BZ41: 2.028424831e-07 | CA41: 1.058448936e-07 | CB41: 1.289595667e-07 | CC41: 3.247326903e-07 | CD41: 1.172411132e-07 | CE41: 1.163602011e-07 | CF41: 1.325588499e-07 | CG41: 4.506311793e-07 | CH41: 1.951295261e-07 | CI41: 2.230192969e-07 | CJ41: 2.435636187e-07 | CK41: 0 | CL41: 2.092713787e-07 | CM41: 3.003979616e-07 | CN41: 1.313489028e-07 | CO41: 1.37004344e-07 | CP41: 1.622706556e-07 | CQ41: 3.240942574e-07 | CR41: 1.059657096e-07 | CS41: 4.686201098e-07 | CT41: 4.423410678e-07 | CU41: 3.278757626e-07 | CV41: 1.253816148e-07 | CW41: 1.173203225e-07 | CX41: 1.368255921e-07 | CY41: 1.4843935e-07 | CZ41: 7.463063619e-08 | DA41: 2.266017286e-07 | DB41: 2.405852089e-07 | DC41: 1.157053111e-08 | DD41: 5.643631164e-07 | DE41: 1.72814757e-07 | DF41: 1.862864e-07 | DG41: 2.160432013e-07 | DH41: 2.150793428e-07 | DI41: 39
A42: 20020209 | B42: 2.212120361e-07 | C42: 0 | D42: 0 | E42: 1.162682834e-07 | F42: 1.373738251e-07 | G42: 3.882491664e-07 | H42: 5.086386442e-07 | I42: 1.131743151e-07 | J42: 2.760323615e-07 | K42: 2.992017673e-07 | L42: 1.416583473e-07 | M42: 9.366406659e-08 | N42: 2.28428313e-07 | O42: 4.134378471e-07 | P42: 1.84052523e-07 | Q42: 1.345924811e-07 | R42: 1.774198303e-07 | S42: 9.232810416e-08 | T42: 8.941571954e-08 | U42: 9.062967059e-08 | V42: 2.387614099e-07 | W42: 9.840803769e-08 | X42: 2.114089511e-07 | Y42: 2.279082356e-07 | Z42: 1.106054262e-07 | AA42: 2.153457763e-07 | AB42: 1.118471846e-07 | AC42: 1.510674283e-07 | AD42: 2.652082712e-07 | AE42: 3.489258287e-07 | AF42: 3.433286021e-07 | AG42: 2.187802229e-07 | AH42: 1.712425477e-07 | AI42: 1.49072572e-07 | AJ42: 1.546356429e-07 | AK42: 1.03468788e-07 | AL42: 2.033489586e-07 | AM42: 2.143909122e-07 | AN42: 1.731920371e-07 | AO42: 1.205353506e-07 | AP42: 3.361619282e-07 | AQ42: 9.872243777e-08 | AR42: 4.09767525e-07 | AS42: 5.528385952e-08 | AT42: 2.74875151e-07 | AU42: 1.406552845e-07 | AV42: 1.911804336e-07 | AW42: 1.123696644e-07 | AX42: 1.468916405e-07 | AY42: 1.0740147e-07 | AZ42: 8.685129886e-08 | BA42: 1.674638974e-07 | BB42: 1.253886479e-07 | BC42: 2.218650227e-07 | BD42: 1.416310737e-07 | BE42: 1.421678518e-07 | BF42: 2.123943963e-07 | BG42: 9.906380964e-08 | BH42: 1.087581487e-07 | BI42: 4.383726053e-08 | BJ42: 2.309880797e-07 | BK42: 2.277102645e-08 | BL42: 1.662353579e-07 | BM42: 1.790316385e-07 | BN42: 1.239254399e-07 | BO42: 3.570860718e-07 | BP42: 1.038678986e-07 | BQ42: 9.847325046e-08 | BR42: 1.400837472e-07 | BS42: 1.028395817e-07 | BT42: 1.324115264e-07 | BU42: 2.93613744e-07 | BV42: 2.08090446e-07 | BW42: 1.640232997e-07 | BX42: 3.39034006e-07 | BY42: 1.907186404e-07 | BZ42: 2.028424831e-07 | CA42: 1.058448936e-07 | CB42: 1.289595667e-07 | CC42: 3.247326903e-07 | CD42: 1.172411132e-07 | CE42: 1.163602011e-07 | CF42: 1.325588499e-07 | CG42: 4.506311793e-07 | CH42: 1.951295261e-07 | CI42: 2.230192969e-07 | CJ42: 2.435636187e-07 | CK42: 0 | CL42: 2.092713787e-07 | CM42: 3.003979616e-07 | CN42: 1.313489028e-07 | CO42: 1.37004344e-07 | CP42: 1.622706556e-07 | CQ42: 3.240942574e-07 | CR42: 1.059657096e-07 | CS42: 4.686201098e-07 | CT42: 4.423410678e-07 | CU42: 3.278757626e-07 | CV42: 1.253816148e-07 | CW42: 1.173203225e-07 | CX42: 1.368255921e-07 | CY42: 1.4843935e-07 | CZ42: 7.463063619e-08 | DA42: 2.266017286e-07 | DB42: 2.405852089e-07 | DC42: 1.157053111e-08 | DD42: 5.643631164e-07 | DE42: 1.72814757e-07 | DF42: 1.862864e-07 | DG42: 2.160432013e-07 | DH42: 2.150793428e-07 | DI42: 40
A43: 20020210 | B43: 2.212120361e-07 | C43: 0 | D43: 0 | E43: 1.162682834e-07 | F43: 1.373738251e-07 | G43: 3.75350523e-07 | H43: 4.087074315e-07 | I43: 1.131743151e-07 | J43: 2.760323615e-07 | K43: 2.822857663e-07 | L43: 1.416583473e-07 | M43: 9.366406659e-08 | N43: 2.28428313e-07 | O43: 3.874966488e-07 | P43: 1.84052523e-07 | Q43: 1.345924811e-07 | R43: 1.774198303e-07 | S43: 9.232810416e-08 | T43: 8.941571954e-08 | U43: 9.062967059e-08 | V43: 2.387614099e-07 | W43: 9.840803769e-08 | X43: 2.114089511e-07 | Y43: 2.279082356e-07 | Z43: 1.106054262e-07 | AA43: 2.153457763e-07 | AB43: 1.118471846e-07 | AC43: 1.510674283e-07 | AD43: 2.652082712e-07 | AE43: 3.323819317e-07 | AF43: 3.433286021e-07 | AG43: 2.187802229e-07 | AH43: 1.712425477e-07 | AI43: 1.379477532e-07 | AJ43: 1.546356429e-07 | AK43: 1.03468788e-07 | AL43: 2.033489586e-07 | AM43: 2.143909122e-07 | AN43: 1.731920371e-07 | AO43: 1.205353506e-07 | AP43: 3.361619282e-07 | AQ43: 9.872243777e-08 | AR43: 4.09767525e-07 | AS43: 5.528385952e-08 | AT43: 2.74875151e-07 | AU43: 1.406552845e-07 | AV43: 1.911804336e-07 | AW43: 1.123696644e-07 | AX43: 1.468916405e-07 | AY43: 1.0740147e-07 | AZ43: 8.685129886e-08 | BA43: 1.674638974e-07 | BB43: 1.253886479e-07 | BC43: 2.218650227e-07 | BD43: 1.416310737e-07 | BE43: 1.421678518e-07 | BF43: 2.123943963e-07 | BG43: 9.906380964e-08 | BH43: 1.087581487e-07 | BI43: 4.383726053e-08 | BJ43: 2.309880797e-07 | BK43: 2.277102645e-08 | BL43: 1.662353579e-07 | BM43: 1.790316385e-07 | BN43: 1.239254399e-07 | BO43: 3.570860718e-07 | BP43: 1.038678986e-07 | BQ43: 9.847325046e-08 | BR43: 1.400837472e-07 | BS43: 1.028395817e-07 | BT43: 1.324115264e-07 | BU43: 2.93613744e-07 | BV43: 2.08090446e-07 | BW43: 1.640232997e-07 | BX43: 3.39034006e-07 | BY43: 1.907186404e-07 | BZ43: 2.028424831e-07 | CA43: 1.058448936e-07 | CB43: 1.289595667e-07 | CC43: 3.247326903e-07 | CD43: 1.172411132e-07 | CE43: 1.163602011e-07 | CF43: 1.325588499e-07 | CG43: 4.506311793e-07 | CH43: 1.951295261e-07 | CI43: 2.230192969e-07 | CJ43: 2.435636187e-07 | CK43: 0 | CL43: 2.092713787e-07 | CM43: 3.003979616e-07 | CN43: 1.313489028e-07 | CO43: 1.37004344e-07 | CP43: 1.622706556e-07 | CQ43: 3.240942574e-07 | CR43: 1.059657096e-07 | CS43: 4.686201098e-07 | CT43: 4.423410678e-07 | CU43: 3.278757626e-07 | CV43: 1.253816148e-07 | CW43: 1.173203225e-07 | CX43: 1.368255921e-07 | CY43: 1.4843935e-07 | CZ43: 7.463063619e-08 | DA43: 2.266017286e-07 | DB43: 2.405852089e-07 | DC43: 1.157053111e-08 | DD43: 5.643631164e-07 | DE43: 1.72814757e-07 | DF43: 1.862864e-07 | DG43: 2.160432013e-07 | DH43: 2.150793428e-07 | DI43: 41
A44: 20020211 | B44: 2.212120361e-07 | C44: 0 | D44: 0 | E44: 1.162682834e-07 | F44: 1.373738251e-07 | G44: 3.689012013e-07 | H44: 3.435837199e-07 | I44: 1.131743151e-07 | J44: 2.760323615e-07 | K44: 2.727705158e-07 | L44: 1.416583473e-07 | M44: 9.366406659e-08 | N44: 2.28428313e-07 | O44: 3.761473746e-07 | P44: 1.84052523e-07 | Q44: 1.345924811e-07 | R44: 1.774198303e-07 | S44: 9.232810416e-08 | T44: 8.941571954e-08 | U44: 9.062967059e-08 | V44: 2.387614099e-07 | W44: 9.840803769e-08 | X44: 2.114089511e-07 | Y44: 2.279082356e-07 | Z44: 1.106054262e-07 | AA44: 2.153457763e-07 | AB44: 1.118471846e-07 | AC44: 1.510674283e-07 | AD44: 2.652082712e-07 | AE44: 3.233579878e-07 | AF44: 3.433286021e-07 | AG44: 2.187802229e-07 | AH44: 1.712425477e-07 | AI44: 1.305312073e-07 | AJ44: 1.546356429e-07 | AK44: 1.03468788e-07 | AL44: 2.033489586e-07 | AM44: 2.143909122e-07 | AN44: 1.731920371e-07 | AO44: 1.205353506e-07 | AP44: 3.361619282e-07 | AQ44: 9.872243777e-08 | AR44: 4.09767525e-07 | AS44: 5.528385952e-08 | AT44: 2.74875151e-07 | AU44: 1.406552845e-07 | AV44: 1.911804336e-07 | AW44: 1.123696644e-07 | AX44: 1.468916405e-07 | AY44: 1.0740147e-07 | AZ44: 8.685129886e-08 | BA44: 1.674638974e-07 | BB44: 1.253886479e-07 | BC44: 2.218650227e-07 | BD44: 1.416310737e-07 | BE44: 1.421678518e-07 | BF44: 2.123943963e-07 | BG44: 9.906380964e-08 | BH44: 1.087581487e-07 | BI44: 4.383726053e-08 | BJ44: 2.309880797e-07 | BK44: 2.277102645e-08 | BL44: 1.662353579e-07 | BM44: 1.790316385e-07 | BN44: 1.239254399e-07 | BO44: 3.570860718e-07 | BP44: 1.038678986e-07 | BQ44: 9.847325046e-08 | BR44: 1.400837472e-07 | BS44: 1.028395817e-07 | BT44: 1.324115264e-07 | BU44: 2.93613744e-07 | BV44: 2.08090446e-07 | BW44: 1.640232997e-07 | BX44: 3.39034006e-07 | BY44: 1.907186404e-07 | BZ44: 2.028424831e-07 | CA44: 1.058448936e-07 | CB44: 1.289595667e-07 | CC44: 3.247326903e-07 | CD44: 1.172411132e-07 | CE44: 1.163602011e-07 | CF44: 1.325588499e-07 | CG44: 4.506311793e-07 | CH44: 1.951295261e-07 | CI44: 2.230192969e-07 | CJ44: 2.435636187e-07 | CK44: 0 | CL44: 2.092713787e-07 | CM44: 3.003979616e-07 | CN44: 1.313489028e-07 | CO44: 1.37004344e-07 | CP44: 1.622706556e-07 | CQ44: 3.240942574e-07 | CR44: 1.059657096e-07 | CS44: 4.686201098e-07 | CT44: 4.423410678e-07 | CU44: 3.278757626e-07 | CV44: 1.253816148e-07 | CW44: 1.173203225e-07 | CX44: 1.368255921e-07 | CY44: 1.4843935e-07 | CZ44: 7.463063619e-08 | DA44: 2.266017286e-07 | DB44: 2.405852089e-07 | DC44: 1.157053111e-08 | DD44: 5.643631164e-07 | DE44: 1.72814757e-07 | DF44: 1.862864e-07 | DG44: 2.160432013e-07 | DH44: 2.150793428e-07 | DI44: 42
A45: 20020212 | B45: 2.212120361e-07 | C45: 0 | D45: 0 | E45: 1.162682834e-07 | F45: 1.373738251e-07 | G45: 3.650316083e-07 | H45: 3.020392832e-07 | I45: 1.131743151e-07 | J45: 2.760323615e-07 | K45: 2.685415155e-07 | L45: 1.416583473e-07 | M45: 9.366406659e-08 | N45: 2.28428313e-07 | O45: 3.729047248e-07 | P45: 1.84052523e-07 | Q45: 1.345924811e-07 | R45: 1.774198303e-07 | S45: 9.232810416e-08 | T45: 8.941571954e-08 | U45: 9.062967059e-08 | V45: 2.387614099e-07 | W45: 9.840803769e-08 | X45: 2.114089511e-07 | Y45: 2.279082356e-07 | Z45: 1.106054262e-07 | AA45: 2.153457763e-07 | AB45: 1.118471846e-07 | AC45: 1.510674283e-07 | AD45: 2.652082712e-07 | AE45: 3.173420253e-07 | AF45: 3.433286021e-07 | AG45: 2.187802229e-07 | AH45: 1.712425477e-07 | AI45: 1.268229344e-07 | AJ45: 1.546356429e-07 | AK45: 1.03468788e-07 | AL45: 2.033489586e-07 | AM45: 2.143909122e-07 | AN45: 1.731920371e-07 | AO45: 1.205353506e-07 | AP45: 3.361619282e-07 | AQ45: 9.872243777e-08 | AR45: 4.09767525e-07 | AS45: 5.528385952e-08 | AT45: 2.74875151e-07 | AU45: 1.406552845e-07 | AV45: 1.911804336e-07 | AW45: 1.123696644e-07 | AX45: 1.468916405e-07 | AY45: 1.0740147e-07 | AZ45: 8.685129886e-08 | BA45: 1.674638974e-07 | BB45: 1.253886479e-07 | BC45: 2.218650227e-07 | BD45: 1.416310737e-07 | BE45: 1.421678518e-07 | BF45: 2.123943963e-07 | BG45: 9.906380964e-08 | BH45: 1.087581487e-07 | BI45: 4.383726053e-08 | BJ45: 2.309880797e-07 | BK45: 2.277102645e-08 | BL45: 1.662353579e-07 | BM45: 1.790316385e-07 | BN45: 1.239254399e-07 | BO45: 3.570860718e-07 | BP45: 1.038678986e-07 | BQ45: 9.847325046e-08 | BR45: 1.400837472e-07 | BS45: 1.028395817e-07 | BT45: 1.324115264e-07 | BU45: 2.93613744e-07 | BV45: 2.08090446e-07 | BW45: 1.640232997e-07 | BX45: 3.39034006e-07 | BY45: 1.907186404e-07 | BZ45: 2.028424831e-07 | CA45: 1.058448936e-07 | CB45: 1.289595667e-07 | CC45: 3.247326903e-07 | CD45: 1.172411132e-07 | CE45: 1.163602011e-07 | CF45: 1.325588499e-07 | CG45: 4.506311793e-07 | CH45: 1.951295261e-07 | CI45: 2.230192969e-07 | CJ45: 2.435636187e-07 | CK45: 0 | CL45: 2.092713787e-07 | CM45: 3.003979616e-07 | CN45: 1.313489028e-07 | CO45: 1.37004344e-07 | CP45: 1.622706556e-07 | CQ45: 3.240942574e-07 | CR45: 1.059657096e-07 | CS45: 4.686201098e-07 | CT45: 4.423410678e-07 | CU45: 3.278757626e-07 | CV45: 1.253816148e-07 | CW45: 1.173203225e-07 | CX45: 1.368255921e-07 | CY45: 1.4843935e-07 | CZ45: 7.463063619e-08 | DA45: 2.266017286e-07 | DB45: 2.405852089e-07 | DC45: 1.157053111e-08 | DD45: 5.643631164e-07 | DE45: 1.72814757e-07 | DF45: 1.862864e-07 | DG45: 2.160432013e-07 | DH45: 2.150793428e-07 | DI45: 43
A46: 20020213 | B46: 2.212120361e-07 | C46: 0 | D46: 0 | E46: 1.162682834e-07 | F46: 1.373738251e-07 | G46: 3.650316083e-07 | H46: 0.006512371162 | I46: 1.131743151e-07 | J46: 0.006070372696 | K46: 2.685415155e-07 | L46: 1.416583473e-07 | M46: 9.366406659e-08 | N46: 2.28428313e-07 | O46: 0.004507283196 | P46: 1.84052523e-07 | Q46: 1.345924811e-07 | R46: 1.774198303e-07 | S46: 9.232810416e-08 | T46: 8.941571954e-08 | U46: 9.062967059e-08 | V46: 2.387614099e-07 | W46: 9.840803769e-08 | X46: 2.114089511e-07 | Y46: 2.279082356e-07 | Z46: 1.106054262e-07 | AA46: 2.153457763e-07 | AB46: 1.118471846e-07 | AC46: 1.510674283e-07 | AD46: 2.652082712e-07 | AE46: 3.173420253e-07 | AF46: 3.433286021e-07 | AG46: 2.187802229e-07 | AH46: 1.712425477e-07 | AI46: 1.253396252e-07 | AJ46: 1.546356429e-07 | AK46: 1.03468788e-07 | AL46: 2.033489586e-07 | AM46: 2.143909122e-07 | AN46: 1.731920371e-07 | AO46: 1.205353506e-07 | AP46: 3.361619282e-07 | AQ46: 9.872243777e-08 | AR46: 4.09767525e-07 | AS46: 5.528385952e-08 | AT46: 2.74875151e-07 | AU46: 1.406552845e-07 | AV46: 1.911804336e-07 | AW46: 1.123696644e-07 | AX46: 1.468916405e-07 | AY46: 1.0740147e-07 | AZ46: 8.685129886e-08 | BA46: 1.674638974e-07 | BB46: 1.253886479e-07 | BC46: 2.218650227e-07 | BD46: 1.416310737e-07 | BE46: 1.421678518e-07 | BF46: 2.123943963e-07 | BG46: 9.906380964e-08 | BH46: 1.087581487e-07 | BI46: 4.383726053e-08 | BJ46: 2.309880797e-07 | BK46: 2.277102645e-08 | BL46: 1.662353579e-07 | BM46: 1.790316385e-07 | BN46: 1.239254399e-07 | BO46: 3.570860718e-07 | BP46: 1.038678986e-07 | BQ46: 9.847325046e-08 | BR46: 1.400837472e-07 | BS46: 1.028395817e-07 | BT46: 1.324115264e-07 | BU46: 2.93613744e-07 | BV46: 2.08090446e-07 | BW46: 1.640232997e-07 | BX46: 3.39034006e-07 | BY46: 1.907186404e-07 | BZ46: 2.028424831e-07 | CA46: 1.058448936e-07 | CB46: 1.289595667e-07 | CC46: 3.247326903e-07 | CD46: 1.172411132e-07 | CE46: 1.163602011e-07 | CF46: 1.325588499e-07 | CG46: 4.506311793e-07 | CH46: 1.951295261e-07 | CI46: 2.230192969e-07 | CJ46: 2.435636187e-07 | CK46: 0 | CL46: 2.092713787e-07 | CM46: 3.003979616e-07 | CN46: 1.313489028e-07 | CO46: 1.37004344e-07 | CP46: 1.622706556e-07 | CQ46: 3.240942574e-07 | CR46: 1.059657096e-07 | CS46: 4.686201098e-07 | CT46: 4.423410678e-07 | CU46: 3.278757626e-07 | CV46: 1.253816148e-07 | CW46: 1.173203225e-07 | CX46: 1.368255921e-07 | CY46: 1.4843935e-07 | CZ46: 7.463063619e-08 | DA46: 2.266017286e-07 | DB46: 2.405852089e-07 | DC46: 1.157053111e-08 | DD46: 5.643631164e-07 | DE46: 1.72814757e-07 | DF46: 1.862864e-07 | DG46: 2.160432013e-07 | DH46: 2.150793428e-07 | DI46: 44
A47: 20020214 | B47: 2.212120361e-07 | C47: 0 | D47: 0 | E47: 1.162682834e-07 | F47: 1.373738251e-07 | G47: 3.650316083e-07 | H47: 0.003525663008 | I47: 1.131743151e-07 | J47: 0.00267844961 | K47: 2.685415155e-07 | L47: 1.416583473e-07 | M47: 9.366406659e-08 | N47: 2.28428313e-07 | O47: 0.004701842183 | P47: 4.915736136e-05 | Q47: 1.345924811e-07 | R47: 1.774198303e-07 | S47: 2.047428569e-05 | T47: 8.941571954e-08 | U47: 9.062967059e-08 | V47: 9.717034124e-05 | W47: 9.840803769e-08 | X47: 2.114089511e-07 | Y47: 2.279082356e-07 | Z47: 1.106054262e-07 | AA47: 2.153457763e-07 | AB47: 1.118471846e-07 | AC47: 1.510674283e-07 | AD47: 2.652082712e-07 | AE47: 3.173420253e-07 | AF47: 3.433286021e-07 | AG47: 2.187802229e-07 | AH47: 1.712425477e-07 | AI47: 1.245979706e-07 | AJ47: 1.546356429e-07 | AK47: 1.03468788e-07 | AL47: 2.033489586e-07 | AM47: 2.143909122e-07 | AN47: 1.731920371e-07 | AO47: 1.205353506e-07 | AP47: 3.361619282e-07 | AQ47: 9.872243777e-08 | AR47: 4.09767525e-07 | AS47: 5.528385952e-08 | AT47: 2.74875151e-07 | AU47: 1.406552845e-07 | AV47: 1.911804336e-07 | AW47: 1.123696644e-07 | AX47: 1.468916405e-07 | AY47: 1.0740147e-07 | AZ47: 8.685129886e-08 | BA47: 1.674638974e-07 | BB47: 1.253886479e-07 | BC47: 2.218650227e-07 | BD47: 1.416310737e-07 | BE47: 1.421678518e-07 | BF47: 2.123943963e-07 | BG47: 9.906380964e-08 | BH47: 1.087581487e-07 | BI47: 4.383726053e-08 | BJ47: 2.309880797e-07 | BK47: 2.277102645e-08 | BL47: 1.662353579e-07 | BM47: 1.790316385e-07 | BN47: 1.239254399e-07 | BO47: 3.570860718e-07 | BP47: 1.038678986e-07 | BQ47: 9.847325046e-08 | BR47: 1.400837472e-07 | BS47: 1.028395817e-07 | BT47: 1.324115264e-07 | BU47: 2.93613744e-07 | BV47: 2.08090446e-07 | BW47: 1.640232997e-07 | BX47: 3.39034006e-07 | BY47: 1.907186404e-07 | BZ47: 2.028424831e-07 | CA47: 1.058448936e-07 | CB47: 1.289595667e-07 | CC47: 3.247326903e-07 | CD47: 1.172411132e-07 | CE47: 1.163602011e-07 | CF47: 1.325588499e-07 | CG47: 4.506311793e-07 | CH47: 1.951295261e-07 | CI47: 2.230192969e-07 | CJ47: 2.435636187e-07 | CK47: 0 | CL47: 2.092713787e-07 | CM47: 3.003979616e-07 | CN47: 1.313489028e-07 | CO47: 1.37004344e-07 | CP47: 1.622706556e-07 | CQ47: 3.240942574e-07 | CR47: 1.059657096e-07 | CS47: 4.686201098e-07 | CT47: 4.423410678e-07 | CU47: 3.278757626e-07 | CV47: 1.253816148e-07 | CW47: 1.173203225e-07 | CX47: 1.368255921e-07 | CY47: 1.4843935e-07 | CZ47: 7.463063619e-08 | DA47: 2.266017286e-07 | DB47: 2.405852089e-07 | DC47: 1.157053111e-08 | DD47: 5.643631164e-07 | DE47: 1.72814757e-07 | DF47: 1.862864e-07 | DG47: 2.160432013e-07 | DH47: 2.150793428e-07 | DI47: 45
A48: 20020215 | B48: 2.160223109e-05 | C48: 0 | D48: 0 | E48: 0.001988632389 | F48: 4.637275153e-06 | G48: 0.001883201937 | H48: 0.002818284761 | I48: 1.131743151e-07 | J48: 0.001532213532 | K48: 0.0003848390223 | L48: 1.416583473e-07 | M48: 9.366406659e-08 | N48: 0.0004288858121 | O48: 0.003031877545 | P48: 0.0008359052088 | Q48: 1.345924811e-07 | R48: 0.0002829618832 | S48: 0.0003460541919 | T48: 8.941571954e-08 | U48: 9.062967059e-08 | V48: 0.0007421963207 | W48: 9.840803769e-08 | X48: 0.0005508269918 | Y48: 2.279082356e-07 | Z48: 0.0001611288924 | AA48: 0.0003440974838 | AB48: 0.0008028294847 | AC48: 2.526586246e-07 | AD48: 2.652082712e-07 | AE48: 3.173420253e-07 | AF48: 3.433286021e-07 | AG48: 0.0002507368846 | AH48: 2.159145166e-06 | AI48: 1.290478981e-06 | AJ48: 1.721415648e-06 | AK48: 1.03468788e-07 | AL48: 2.49174076e-06 | AM48: 0.0006407773075 | AN48: 0.0002185518563 | AO48: 1.008925527e-06 | AP48: 5.631803733e-07 | AQ48: 1.79790133e-07 | AR48: 4.09767525e-07 | AS48: 8.753277757e-05 | AT48: 2.74875151e-07 | AU48: 1.406552845e-07 | AV48: 0.0003617298852 | AW48: 0.0002796866096 | AX48: 0.0005788199494 | AY48: 0.0002296718703 | AZ48: 0.0002662181117 | BA48: 0.0002777646375 | BB48: 0.0002818736806 | BC48: 2.454381813e-06 | BD48: 0.0004551924061 | BE48: 1.421678518e-07 | BF48: 0.0002677240289 | BG48: 0.0003054467464 | BH48: 0.0004147850671 | BI48: 4.405481517e-07 | BJ48: 4.437402584e-07 | BK48: 2.277102645e-08 | BL48: 1.662353579e-07 | BM48: 1.790316385e-07 | BN48: 0.0001738655426 | BO48: 3.570860718e-07 | BP48: 0.0003345157322 | BQ48: 9.184033722e-07 | BR48: 1.649717226e-06 | BS48: 1.028395817e-07 | BT48: 0.0001581969289 | BU48: 2.713542183e-06 | BV48: 0.0002623749102 | BW48: 0.0002586060784 | BX48: 5.795453095e-07 | BY48: 3.331218918e-07 | BZ48: 0.0003162426115 | CA48: 0.0005010639002 | CB48: 0.0004139932756 | CC48: 3.247326903e-07 | CD48: 1.172411132e-07 | CE48: 1.163602011e-07 | CF48: 1.313857627e-06 | CG48: 4.506311793e-07 | CH48: 1.951295261e-07 | CI48: 2.230192969e-07 | CJ48: 2.435636187e-07 | CK48: 0 | CL48: 2.092713787e-07 | CM48: 3.003979616e-07 | CN48: 1.313489028e-07 | CO48: 1.37004344e-07 | CP48: 1.622706556e-07 | CQ48: 3.240942574e-07 | CR48: 1.059657096e-07 | CS48: 4.686201098e-07 | CT48: 4.423410678e-07 | CU48: 3.278757626e-07 | CV48: 1.253816148e-07 | CW48: 1.173203225e-07 | CX48: 1.368255921e-07 | CY48: 1.4843935e-07 | CZ48: 5.955588464e-07 | DA48: 2.266017286e-07 | DB48: 3.879000651e-07 | DC48: 1.157053111e-08 | DD48: 5.643631164e-07 | DE48: 1.72814757e-07 | DF48: 1.862864e-07 | DG48: 2.160432013e-07 | DH48: 2.870687096e-07 | DI48: 46
A49: 20020216 | B49: 1.77099372e-05 | C49: 0 | D49: 0 | E49: 0.0009974929234 | F49: 3.815939585e-06 | G49: 0.0008255131778 | H49: 0.002829512987 | I49: 1.131743151e-07 | J49: 0.0007509015936 | K49: 0.0002199080127 | L49: 1.416583473e-07 | M49: 3.462732159e-06 | N49: 0.0002494064233 | O49: 0.001799670628 | P49: 0.0004839047585 | Q49: 1.345924811e-07 | R49: 0.0001746902944 | S49: 0.0001991044994 | T49: 8.941571954e-08 | U49: 9.062967059e-08 | V49: 0.0003905322286 | W49: 9.840803769e-08 | X49: 0.0003151738949 | Y49: 2.279082356e-07 | Z49: 9.695043527e-05 | AA49: 0.0002723155583 | AB49: 0.0006203058582 | AC49: 2.012033434e-07 | AD49: 2.652082712e-07 | AE49: 3.173420253e-07 | AF49: 4.204987924e-06 | AG49: 0.0001778101437 | AH49: 1.315341308e-06 | AI49: 7.861538622e-07 | AJ49: 1.089257359e-06 | AK49: 1.03468788e-07 | AL49: 1.546597713e-06 | AM49: 0.000397641245 | AN49: 0.0001618520822 | AO49: 6.205338418e-07 | AP49: 4.292977006e-07 | AQ49: 1.289877107e-07 | AR49: 4.09767525e-07 | AS49: 6.659192169e-05 | AT49: 2.74875151e-07 | AU49: 4.1644996e-07 | AV49: 0.0002943353438 | AW49: 0.0001791974384 | AX49: 0.0004450482277 | AY49: 0.0001460341372 | AZ49: 0.0001557659164 | BA49: 0.000177930391 | BB49: 0.000185575199 | BC49: 1.608521414e-06 | BD49: 0.0002593046524 | BE49: 1.421678518e-07 | BF49: 0.000203470262 | BG49: 0.0001769733683 | BH49: 0.000254540348 | BI49: 2.621533446e-07 | BJ49: 3.358445106e-07 | BK49: 2.277102645e-08 | BL49: 1.662353579e-07 | BM49: 1.790316385e-07 | BN49: 0.0001257750734 | BO49: 3.570860718e-07 | BP49: 0.0001888970116 | BQ49: 6.071666738e-07 | BR49: 1.066627517e-06 | BS49: 1.028395817e-07 | BT49: 8.990045738e-05 | BU49: 1.547567026e-06 | BV49: 0.0001350649168 | BW49: 0.0001532480465 | BX49: 4.491476148e-07 | BY49: 2.670060965e-07 | BZ49: 0.0002411749209 | CA49: 0.000333071546 | CB49: 0.0002665164378 | CC49: 3.247326903e-07 | CD49: 1.662264214e-05 | CE49: 8.172918884e-06 | CF49: 8.387573247e-07 | CG49: 4.506311793e-07 | CH49: 0.0002304885677 | CI49: 2.230192969e-07 | CJ49: 2.435636187e-07 | CK49: 0 | CL49: 1.389329431e-05 | CM49: 3.003979616e-07 | CN49: 8.768426758e-06 | CO49: 5.847149683e-06 | CP49: 0.0001071501472 | CQ49: 3.240942574e-07 | CR49: 1.059657096e-07 | CS49: 4.686201098e-07 | CT49: 4.423410678e-07 | CU49: 3.278757626e-07 | CV49: 1.253816148e-07 | CW49: 1.173203225e-07 | CX49: 1.368255921e-07 | CY49: 5.065699752e-06 | CZ49: 6.571317753e-06 | DA49: 2.266017286e-07 | DB49: 1.011155226e-05 | DC49: 1.157053111e-08 | DD49: 5.643631164e-07 | DE49: 1.72814757e-07 | DF49: 1.862864e-07 | DG49: 2.160432013e-07 | DH49: 2.74626103e-07 | DI49: 47
A50: 20020217 | B50: 2.114813014e-05 | C50: 0 | D50: 0 | E50: 0.001448588449 | F50: 3.154510057e-06 | G50: 0.005172356004 | H50: 0.001976167801 | I50: 1.131743151e-07 | J50: 0.0008971051749 | K50: 0.004038695234 | L50: 1.416583473e-07 | M50: 4.87478892e-06 | N50: 0.00451029373 | O50: 0.00340478227 | P50: 0.0002860482962 | Q50: 1.345924811e-07 | R50: 0.002820520379 | S50: 0.0001166435209 | T50: 5.396044292e-06 | U50: 2.785204511e-06 | V50: 0.0002100730235 | W50: 9.840803769e-08 | X50: 0.001871648053 | Y50: 0.0008087066423 | Z50: 0.001533910643 | AA50: 0.0007292132106 | AB50: 0.002333008759 | AC50: 5.277464745e-06 | AD50: 0.0004815434734 | AE50: 0.0008151629275 | AF50: 9.638399287e-06 | AG50: 0.0001007863948 | AH50: 0.002059874124 | AI50: 0.001208896977 | AJ50: 0.001614435014 | AK50: 1.03468788e-07 | AL50: 0.002362857617 | AM50: 0.0009174493786 | AN50: 0.0002670043905 | AO50: 0.0009241043544 | AP50: 3.6817735e-07 | AQ50: 1.088108621e-07 | AR50: 0.0008597667706 | AS50: 0.0002039639363 | AT50: 0.0007749305105 | AU50: 1.054914634e-06 | AV50: 0.0002640765702 | AW50: 0.0004059168494 | AX50: 0.001378877746 | AY50: 0.001278462492 | AZ50: 9.2515514e-05 | BA50: 0.002777646375 | BB50: 0.001845720898 | BC50: 0.00230184961 | BD50: 0.000149382028 | BE50: 1.421678518e-07 | BF50: 0.0001365392547 | BG50: 0.0001098989138 | BH50: 0.0001596662183 | BI50: 9.844347588e-05 | BJ50: 2.780974907e-07 | BK50: 2.277102645e-08 | BL50: 1.662353579e-07 | BM50: 2.233184122e-07 | BN50: 8.076732653e-05 | BO50: 3.570860718e-07 | BP50: 0.0001120144004 | BQ50: 0.0007347226977 | BR50: 0.001351061521 | BS50: 1.028395817e-07 | BT50: 0.0009547567955 | BU50: 0.001854960477 | BV50: 0.00085304158 | BW50: 9.542085393e-05 | BX50: 3.882953573e-07 | BY50: 2.288623684e-07 | BZ50: 0.0001512534106 | CA50: 0.000235966139 | CB50: 0.0001719460889 | CC50: 5.062009584e-07 | CD50: 0.002147704206 | CE50: 0.0001135897201 | CF50: 0.0003413683657 | CG50: 0.003422912791 | CH50: 0.0001240185646 | CI50: 0.0005103550202 | CJ50: 0.001053283096 | CK50: 0 | CL50: 0.0001903788237 | CM50: 0.002385513224 | CN50: 8.493304056e-05 | CO50: 2.821637086e-06 | CP50: 5.202963879e-05 | CQ50: 0.002490215763 | CR50: 0.0003615678455 | CS50: 0.002132729292 | CT50: 4.423410678e-07 | CU50: 0.0001418217332 | CV50: 0.001287475642 | CW50: 0.0001334518668 | CX50: 0.001055122725 | CY50: 2.361785941e-06 | CZ50: 4.564889554e-06 | DA50: 6.109739439e-06 | DB50: 5.360866068e-06 | DC50: 2.708708151e-06 | DD50: 5.643631164e-07 | DE50: 1.72814757e-07 | DF50: 1.862864e-07 | DG50: 2.160432013e-07 | DH50: 2.639610116e-07 | DI50: 48
A51: 20020218 | B51: 1.738557938e-05 | C51: 0 | D51: 0 | E51: 0.0007878288057 | F51: 6.061892598e-06 | G51: 0.002334654456 | H51: 0.001448441172 | I51: 3.723270945e-05 | J51: 0.000431592972 | K51: 0.002674842655 | L51: 1.074894997e-05 | M51: 3.987818593e-05 | N51: 0.002633918302 | O51: 0.001945589869 | P51: 0.000243869593 | Q51: 1.345924811e-07 | R51: 0.001746902944 | S51: 9.796646167e-05 | T51: 6.764493565e-05 | U51: 3.662028153e-05 | V51: 0.0001175298413 | W51: 8.243270689e-05 | X51: 0.001687392545 | Y51: 0.004264089569 | Z51: 0.0009239877165 | AA51: 0.000499055291 | AB51: 0.001633106131 | AC51: 6.088874949e-06 | AD51: 0.002263973047 | AE51: 0.00394045548 | AF51: 0.0001299294022 | AG51: 0.00018108775 | AH51: 0.003251126629 | AI51: 0.003063033444 | AJ51: 0.00218824023 | AK51: 6.257693169e-05 | AL51: 0.002405818665 | AM51: 0.0006826973183 | AN51: 0.000177315657 | AO51: 0.001633923641 | AP51: 1.38248412e-05 | AQ51: 1.405173384e-05 | AR51: 0.0005125819222 | AS51: 0.0001323462092 | AT51: 0.0003991125074 | AU51: 6.005429059e-05 | AV51: 0.0002104360169 | AW51: 0.0002821617124 | AX51: 0.001070173773 | AY51: 0.001606375509 | AZ51: 8.685129886e-05 | BA51: 0.001787355059 | BB51: 0.001213762112 | BC51: 0.001442122647 | BD51: 0.0001296523262 | BE51: 1.558003855e-05 | BF51: 0.0001151213324 | BG51: 0.0001135106152 | BH51: 0.0001984257713 | BI51: 5.471499267e-05 | BJ51: 2.82656466e-07 | BK51: 2.277102645e-08 | BL51: 2.456860804e-07 | BM51: 3.024692418e-07 | BN51: 9.309821608e-05 | BO51: 3.570860718e-07 | BP51: 0.0001150693386 | BQ51: 0.0004592016861 | BR51: 0.0008319694629 | BS51: 1.028395817e-07 | BT51: 0.0005435841609 | BU51: 0.0009730592671 | BV51: 0.0004420306369 | BW51: 0.0001293030392 | BX51: 3.564203653e-07 | BY51: 2.076714084e-07 | BZ51: 0.0002842989134 | CA51: 0.00036026106 | CB51: 0.0001719460889 | CC51: 4.737276894e-07 | CD51: 0.001334224462 | CE51: 7.692702181e-05 | CF51: 0.000207049885 | CG51: 0.001680053526 | CH51: 7.176575859e-05 | CI51: 0.000267289045 | CJ51: 0.0005713380631 | CK51: 0 | CL51: 0.0001136459848 | CM51: 0.0013620986 | CN51: 5.191831633e-05 | CO51: 1.133547846e-05 | CP51: 4.940239961e-05 | CQ51: 0.001179190405 | CR51: 0.0002189957999 | CS51: 0.0009967245059 | CT51: 4.423410678e-07 | CU51: 7.5163972e-05 | CV51: 0.000749765227 | CW51: 7.552495761e-05 | CX51: 0.0005568325091 | CY51: 1.225038502e-06 | CZ51: 3.099878488e-06 | DA51: 3.23274821e-06 | DB51: 2.998598256e-06 | DC51: 1.130300438e-06 | DD51: 5.643631164e-07 | DE51: 1.72814757e-07 | DF51: 1.862864e-07 | DG51: 2.160432013e-07 | DH51: 2.550734355e-07 | DI51: 49
A52: 20020219 | B52: 5.248109596e-05 | C52: 0 | D52: 0 | E52: 0.002808228485 | F52: 0.0004128483208 | G52: 0.004862788563 | H52: 0.003379696068 | I52: 0.0002881297779 | J52: 0.001274895229 | K52: 0.002981445173 | L52: 0.0004968719919 | M52: 0.0001610738115 | N52: 0.003368152165 | O52: 0.007393241501 | P52: 0.004654995062 | Q52: 0.0010845048 | R52: 0.002956997172 | S52: 0.002223627242 | T52: 0.000586256109 | U52: 0.00032088798 | V52: 0.0006366970931 | W52: 0.000805156672 | X52: 0.004887619786 | Y52: 0.003214775991 | Z52: 0.001069640953 | AA52: 0.004238551787 | AB52: 0.005256131498 | AC52: 0.0003832758771 | AD52: 0.0122901394 | AE52: 0.01081369271 | AF52: 0.002677333135 | AG52: 0.001573251041 | AH52: 0.00281681582 | AI52: 0.003463526921 | AJ52: 0.001925651402 | AK52: 0.0006939224108 | AL52: 0.004324745457 | AM52: 0.003497326613 | AN52: 0.002092737114 | AO52: 0.002776777335 | AP52: 0.001155465675 | AQ52: 0.000321388374 | AR52: 0.008091046039 | AS52: 0.001214569641 | AT52: 0.0007205766671 | AU52: 0.0004523032678 | AV52: 0.001980574276 | AW52: 0.001395957945 | AX52: 0.002804061088 | AY52: 0.001433789711 | AZ52: 0.0003686460022 | BA52: 0.001819559654 | BB52: 0.003250073755 | BC52: 0.003938104152 | BD52: 0.0006306458258 | BE52: 0.0002012421647 | BF52: 0.002257805977 | BG52: 0.001872925151 | BH52: 0.001457821993 | BI52: 0.001403227446 | BJ52: 0.003024120254 | BK52: 3.504422375e-05 | BL52: 0.0009424078009 | BM52: 0.0004259068452 | BN52: 0.002737457479 | BO52: 0.001111430399 | BP52: 0.001374722187 | BQ52: 0.002525609273 | BR52: 0.004600720021 | BS52: 0.0002613335252 | BT52: 0.002160398588 | BU52: 0.009709393123 | BV52: 0.00402609776 | BW52: 0.002993125907 | BX52: 0.004592896578 | BY52: 0.003068451014 | BZ52: 0.002443692907 | CA52: 0.001922687059 | CB52: 0.001481381689 | CC52: 0.003113613442 | CD52: 0.003295107823 | CE52: 0.003001354392 | CF52: 0.00497388959 | CG52: 0.004003865879 | CH52: 0.005225280598 | CI52: 0.01027392267 | CJ52: 0.005195160165 | CK52: 0.0003257606706 | CL52: 0.006888516215 | CM52: 0.00591960689 | CN52: 0.007233064583 | CO52: 0.003351713417 | CP52: 0.00226148628 | CQ52: 0.004376187995 | CR52: 0.003352369722 | CS52: 0.00361258227 | CT52: 0.006059151085 | CU52: 0.006820434497 | CV52: 0.00191017628 | CW52: 0.003878903163 | CX52: 0.001483979059 | CY52: 0.004309707523 | CZ52: 0.002112588421 | DA52: 0.003472497479 | DB52: 0.005404450345 | DC52: 0.0001280784225 | DD52: 0.0004528558878 | DE52: 0.003788431609 | DF52: 0.002893084243 | DG52: 0.001822864511 | DH52: 0.0001528663098 | DI52: 50
A53: 20020220 | B53: 4.300984749e-05 | C53: 0 | D53: 0 | E53: 0.009085445098 | F53: 0.0003452516767 | G53: 0.004978876353 | H53: 0.00241406862 | I53: 0.0002356431391 | J53: 0.0006058676409 | K53: 0.002452820142 | L53: 0.000406466916 | M53: 0.0001319811847 | N53: 0.00214442906 | O53: 0.004215444715 | P53: 0.00361969962 | Q53: 0.0008877927118 | R53: 0.005631942305 | S53: 0.001377873616 | T53: 0.0004805123015 | U53: 0.0002626786794 | V53: 0.0004358783879 | W53: 0.0006581836287 | X53: 0.007428406262 | Y53: 0.003909862692 | Z53: 0.002630861577 | AA53: 0.00285988306 | AB53: 0.009743742464 | AC53: 0.0002922396102 | AD53: 0.004707626494 | AE53: 0.01143032887 | AF53: 0.002204862582 | AG53: 0.001016057964 | AH53: 0.004789827782 | AI53: 0.002106299027 | AJ53: 0.001935376915 | AK53: 0.0005675294003 | AL53: 0.006558719931 | AM53: 0.002299612019 | AN53: 0.002402008609 | AO53: 0.001607138008 | AP53: 0.001148189443 | AQ53: 0.0002201438302 | AR53: 0.005051316035 | AS53: 0.00163757493 | AT53: 0.01879090015 | AU53: 0.0003702543519 | AV53: 0.006326834494 | AW53: 0.0009157880138 | AX53: 0.01083036439 | AY53: 0.001991374598 | AZ53: 0.0002388410719 | BA53: 0.00118351889 | BB53: 0.002196809112 | BC53: 0.006434085657 | BD53: 0.000403754255 | BE53: 0.0001642395731 | BF53: 0.001490330428 | BG53: 0.001227978474 | BH53: 0.0009718813288 | BI53: 0.002001502714 | BJ53: 0.003100103175 | BK53: 2.91005999e-05 | BL53: 0.0007773947619 | BM53: 0.0003514673745 | BN53: 0.003273851175 | BO53: 0.0009105694831 | BP53: 0.0008553826942 | BQ53: 0.001627614865 | BR53: 0.002943891946 | BS53: 0.0002141483054 | BT53: 0.001282301098 | BU53: 0.00737744281 | BV53: 0.002274777547 | BW53: 0.002071243128 | BX53: 0.002709374322 | BY53: 0.001974997476 | BZ53: 0.00597347155 | CA53: 0.001398317861 | CB53: 0.001005223289 | CC53: 0.002540555753 | CD53: 0.003148004796 | CE53: 0.003998727544 | CF53: 0.004657156055 | CG53: 0.02308110919 | CH53: 0.003954974287 | CI53: 0.006832576212 | CJ53: 0.009975743958 | CK53: 9.145485185e-05 | CL53: 0.01130646754 | CM53: 0.01072008412 | CN53: 0.006256822737 | CO53: 0.002625916594 | CP53: 0.001411497132 | CQ53: 0.01332997849 | CR53: 0.003557878977 | CS53: 0.01323162663 | CT53: 0.003501866787 | CU53: 0.004794409737 | CV53: 0.006285910489 | CW53: 0.003607599917 | CX53: 0.005119047028 | CY53: 0.002935677852 | CZ53: 0.004044704465 | DA53: 0.00266817735 | DB53: 0.003007315112 | DC53: 6.320319019e-05 | DD53: 0.0003709322096 | DE53: 0.001987629187 | DF53: 0.00155944297 | DG53: 0.001005201006 | DH53: 0.0001608651283 | DI53: 51
A54: 20020221 | B54: 3.529013127e-05 | C54: 0 | D54: 0 | E54: 0.006150147451 | F54: 0.0002892845628 | G54: 0.003469735075 | H54: 0.001818972635 | I54: 0.000192997745 | J54: 0.000314630107 | K54: 0.001596447592 | L54: 0.0003331462639 | M54: 0.0001078555918 | N54: 0.001421849703 | O54: 0.002577906576 | P54: 0.002392682799 | Q54: 0.0007273170613 | R54: 0.004048811512 | S54: 0.0008809933603 | T54: 0.000393429166 | U54: 0.0002151533643 | V54: 0.0003127959556 | W54: 0.0005380491411 | X54: 0.005062177635 | Y54: 0.002292449408 | Z54: 0.001725080515 | AA54: 0.001948366547 | AB54: 0.006402050506 | AC54: 0.000226930984 | AD54: 0.002012420486 | AE54: 0.006361880412 | AF54: 0.001795388102 | AG54: 0.0006891167319 | AH54: 0.003089811186 | AI54: 0.001327561711 | AJ54: 0.001254591065 | AK54: 0.0004646801858 | AL54: 0.004238823361 | AM54: 0.001545051826 | AN54: 0.001628829872 | AO54: 0.0009553542601 | AP54: 0.0008775136049 | AQ54: 0.0001628559922 | AR54: 0.002741717258 | AS54: 0.001101489019 | AT54: 0.01074653133 | AU54: 0.0003033741431 | AV54: 0.004566324026 | AW54: 0.000608875274 | AX54: 0.008772337899 | AY54: 0.001460341372 | AZ54: 0.0001609581136 | BA54: 0.0007785460998 | BB54: 0.001494632683 | BC54: 0.004215435431 | BD54: 0.0002684648711 | BE54: 0.0001350270008 | BF54: 0.001008427176 | BG54: 0.0008461700407 | BH54: 0.0006710609175 | BI54: 0.001414105178 | BJ54: 0.002142718371 | BK54: 2.377449541e-05 | BL54: 0.0006368280989 | BM54: 0.0002883351651 | BN54: 0.002219560118 | BO54: 0.0007454171749 | BP54: 0.0005600720021 | BQ54: 0.001056163878 | BR54: 0.00191992953 | BS54: 0.0001754322276 | BT54: 0.0007875001306 | BU54: 0.004504904015 | BV54: 0.001337724296 | BW54: 0.001544452968 | BX54: 0.001724147296 | BY54: 0.001296886754 | BZ54: 0.004184624455 | CA54: 0.001029317314 | CB54: 0.0006943976668 | CC54: 0.002082109602 | CD54: 0.002206545417 | CE54: 0.00289977009 | CF54: 0.003026564892 | CG54: 0.01314210094 | CH54: 0.002579900446 | CI54: 0.004101216284 | CJ54: 0.006296378654 | CK54: 0.0004829723168 | CL54: 0.007615152947 | CM54: 0.006847306477 | CN54: 0.004153465306 | CO54: 0.00170439928 | CP54: 0.0009169579906 | CQ54: 0.007781924258 | CR54: 0.00234408994 | CS54: 0.007616890329 | CT54: 0.002101120072 | CU54: 0.002783850815 | CV54: 0.004215851613 | CW54: 0.00232440889 | CX54: 0.003151753689 | CY54: 0.001925848816 | CZ54: 0.00272831771 | DA54: 0.001492632547 | DB54: 0.001743371079 | DC54: 3.477847503e-05 | DD54: 0.0003026624778 | DE54: 0.001089822792 | DF54: 0.0008749815759 | DG54: 0.0005768653534 | DH54: 0.0001795290382 | DI54: 52
A55: 20020222 | B55: 2.893271792e-05 | C55: 0 | D55: 0 | E55: 0.003291091301 | F55: 0.0002507617442 | G55: 0.002579728681 | H55: 0.001437212946 | I55: 0.0001886238584 | J55: 0.0001754442976 | K55: 0.001078395062 | L55: 0.0002726389297 | M55: 8.869703275e-05 | N55: 0.001006949298 | O55: 0.001653751388 | P55: 0.001641134997 | Q55: 0.0006289610174 | R55: 0.003102572417 | S55: 0.0005814556178 | T55: 0.0003218965903 | U55: 0.0002055746187 | V55: 0.000233208819 | W55: 0.0004460312357 | X55: 0.003723900789 | Y55: 0.001457008661 | Z55: 0.001169777552 | AA55: 0.001344486857 | AB55: 0.004329789785 | AC55: 0.0001787741182 | AD55: 0.001063707971 | AE55: 0.003925415573 | AF55: 0.001500881458 | AG55: 0.0004834469344 | AH55: 0.002171554046 | AI55: 0.0009048185961 | AJ55: 0.0008529274141 | AK55: 0.0003804181788 | AL55: 0.002921351236 | AM55: 0.001063570559 | AN55: 0.001144304531 | AO55: 0.0006026767528 | AP55: 0.0006897868138 | AQ55: 0.000125384702 | AR55: 0.0016390701 | AS55: 0.0007664353252 | AT55: 0.006677757906 | AU55: 0.000248215208 | AV55: 0.003369727067 | AW55: 0.0004078969316 | AX55: 0.007871951312 | AY55: 0.001119152524 | AZ55: 0.0001118682491 | BA55: 0.0005136633006 | BB55: 0.001033202459 | BC55: 0.002828779039 | BD55: 0.0001853182706 | BE55: 0.0001103586064 | BF55: 0.0006960824752 | BG55: 0.00060367009 | BH55: 0.0004749491494 | BI55: 0.001081246575 | BJ55: 0.001550051588 | BK55: 2.300259621e-05 | BL55: 0.000521930131 | BM55: 0.0002515865656 | BN55: 0.001603015641 | BO55: 0.0006100220393 | BP55: 0.0003833947433 | BQ55: 0.0006939047701 | BR55: 0.00127995302 | BS55: 0.0001433704756 | BT55: 0.0005045576058 | BU55: 0.002914937892 | BV55: 0.00085304158 | BW55: 0.001209222867 | BX55: 0.001157641756 | BY55: 0.0008730675537 | BZ55: 0.003034651322 | CA55: 0.000775872202 | CB55: 0.0004880623601 | CC55: 0.00170580172 | CD55: 0.001588712701 | CE55: 0.002142505289 | CF55: 0.002011844492 | CG55: 0.008494476238 | CH55: 0.001820335848 | CI55: 0.002656184884 | CJ55: 0.004236452304 | CK55: 0.0007407087174 | CL55: 0.005348046344 | CM55: 0.004667948716 | CN55: 0.002839976278 | CO55: 0.001223253072 | CP55: 0.0006336282744 | CQ55: 0.005291708496 | CR55: 0.001611963219 | CS55: 0.005150468699 | CT55: 0.001393835136 | CU55: 0.001716708003 | CV55: 0.003004109832 | CW55: 0.001576491834 | CX55: 0.002083016477 | CY55: 0.001401620629 | CZ55: 0.00196396411 | DA55: 0.0009048601448 | DB55: 0.001063456358 | DC55: 2.207095531e-05 | DD55: 0.0002480466923 | DE55: 0.0006435144103 | DF55: 0.0005419240728 | DG55: 0.0003735747022 | DH55: 0.0002026367362 | DI55: 53
A56: 20020223 | B56: 0.000343170578 | C56: 2.120430899e-05 | D56: 1.240152453e-05 | E56: 0.005724465758 | F56: 0.0003212657708 | G56: 0.005726997671 | H56: 0.001493354077 | I56: 0.0001547262375 | J56: 0.0003953344839 | K56: 0.001012845559 | L56: 0.0002235212113 | M56: 7.237677873e-05 | N56: 0.001340268163 | O56: 0.00140893133 | P56: 0.001157997124 | Q56: 0.001032738461 | R56: 0.003011587889 | S56: 0.0003982089989 | T56: 0.0002628044626 | U56: 0.0001683648759 | V56: 0.0001786083415 | W56: 0.0003655155685 | X56: 0.002763832617 | Y56: 0.001082731207 | Z56: 0.0008238511166 | AA56: 0.0009445589869 | AB56: 0.003032911387 | AC56: 0.0001424915481 | AD56: 0.000587195549 | AE56: 0.00255678409 | AF56: 0.001228423439 | AG56: 0.0003507038778 | AH56: 0.001538701153 | AI56: 0.0007223715677 | AJ56: 0.0005874209328 | AK56: 0.0003116455113 | AL56: 0.002119411681 | AM56: 0.0007437807625 | AN56: 0.0008288476059 | AO56: 0.0004401772432 | AP56: 0.0005500831553 | AQ56: 9.872243777e-05 | AR56: 0.001068375692 | AS56: 0.000548650424 | AT56: 0.004674430534 | AU56: 0.0002033985732 | AV56: 0.002530733797 | AW56: 0.0002767164863 | AX56: 0.009698449818 | AY56: 0.0008854979046 | AZ56: 7.977102993e-05 | BA56: 0.0003502249777 | BB56: 0.000716219957 | BC56: 0.001941318948 | BD56: 0.0001317662228 | BE56: 9.023438996e-05 | BF56: 0.0004917197998 | BG56: 0.0004385637406 | BH56: 0.000343050969 | BI56: 0.0008865351695 | BJ56: 0.001157979715 | BK56: 0.0002022375908 | BL56: 0.000426589264 | BM56: 0.0002063575201 | BN56: 0.001220758065 | BO56: 0.0007186357195 | BP56: 0.0002693437174 | BQ56: 0.0004632834789 | BR56: 0.0008817454137 | BS56: 0.0001173581109 | BT56: 0.0003902655514 | BU56: 0.001982157766 | BV56: 0.0005706331175 | BW56: 0.0009865342991 | BX56: 0.0008200566129 | BY56: 0.0006018232651 | BZ56: 0.002283974416 | CA56: 0.0005884587665 | CB56: 0.0003478601645 | CC56: 0.001398260761 | CD56: 0.001179766283 | CE56: 0.001606878967 | CF56: 0.001378377422 | CG56: 0.005840933753 | CH56: 0.0013619779 | CI56: 0.001770789923 | CJ56: 0.003005678699 | CK56: 0.0008843155096 | CL56: 0.003880240146 | CM56: 0.003269036641 | CN56: 0.001987983394 | CO56: 0.00102753258 | CP56: 0.0004626001548 | CQ56: 0.004083221434 | CR56: 0.001130300903 | CS56: 0.003989799696 | CT56: 0.0009261516107 | CU56: 0.001110447158 | CV56: 0.002204696852 | CW56: 0.001107210544 | CX56: 0.001483979059 | CY56: 0.001092601907 | CZ56: 0.001496859133 | DA56: 0.0005784917849 | DB56: 0.0006851448341 | DC56: 1.95628922e-05 | DD56: 0.0002059470243 | DE56: 0.0003871465726 | DF56: 0.0003387025455 | DG56: 0.0002370474014 | DH56: 0.0002248556766 | DI56: 54
A57: 20020224 | B57: 0.0002808938758 | C57: 7.731957973e-05 | D57: 5.109131065e-05 | E57: 0.004739679751 | F57: 0.0003503395962 | G57: 0.004630612982 | H57: 0.001235104875 | I57: 0.0001268427106 | J57: 0.0003988433698 | K57: 0.0007485330433 | L57: 0.0001829457048 | M57: 5.939153313e-05 | N57: 0.001020934705 | O57: 0.00103116263 | P57: 0.0008435740639 | Q57: 0.0008463796407 | R57: 0.002356499285 | S57: 0.0002773367098 | T57: 0.0002161527829 | U57: 0.0001377865724 | V57: 0.000139740205 | W57: 0.0002990581924 | X57: 0.002123787169 | Y57: 0.0008287572202 | Z57: 0.0006008195989 | AA57: 0.0006699646372 | AB57: 0.00220263474 | AC57: 0.0001147848582 | AD57: 0.0003392365962 | AE57: 0.001744629144 | AF57: 0.001006362278 | AG57: 0.0002613891052 | AH57: 0.00113789432 | AI57: 0.00068232222 | AJ57: 0.0004143068169 | AK57: 0.0002552643154 | AL57: 0.001632519808 | AM57: 0.0005293898503 | AN57: 0.0006226666094 | AO57: 0.0003691953145 | AP57: 0.0004423949185 | AQ57: 7.890589004e-05 | AR57: 0.0006943696969 | AS57: 0.0004104407752 | AT57: 0.003494175649 | AU57: 0.0001668557787 | AV57: 0.001939312312 | AW57: 0.0001895928699 | AX57: 0.01000715379 | AY57: 0.0007089293569 | AZ57: 5.853022314e-05 | BA57: 0.0002455600418 | BB57: 0.0004995483734 | BC57: 0.001367243202 | BD57: 9.653461244e-05 | BE57: 7.400518313e-05 | BF57: 0.0003542881316 | BG57: 0.0003266009974 | BH57: 0.0002522263448 | BI57: 0.0007625290231 | BJ57: 0.0008950788089 | BK57: 0.0004724023114 | BL57: 0.0003495831791 | BM57: 0.0001686666489 | BN57: 0.0009864711637 | BO57: 0.0007260750127 | BP57: 0.0001944977317 | BQ57: 0.0003127673706 | BR57: 0.0006264658947 | BS57: 9.618525581e-05 | BT57: 0.0003589049268 | BU57: 0.001409769962 | BV57: 0.0003922698781 | BW57: 0.0008308917519 | BX57: 0.0006027271219 | BY57: 0.0004255144776 | BZ57: 0.001772875246 | CA57: 0.0004505690885 | CB57: 0.0002513058223 | CC57: 0.001144205185 | CD57: 0.0008914443486 | CE57: 0.001228246567 | CF57: 0.0009736623489 | CG57: 0.004349297445 | CH57: 0.001059461655 | CI57: 0.001236211833 | CJ57: 0.002228348001 | CK57: 0.0009750145362 | CL57: 0.002906546926 | CM57: 0.002400238614 | CN57: 0.001419988139 | CO57: 0.0008807422117 | CP57: 0.0003477228335 | CQ57: 0.003259252984 | CR57: 0.0008156148558 | CS57: 0.003090281219 | CT57: 0.0006381691447 | CU57: 0.0007454533849 | CV57: 0.001674559822 | CW57: 0.0008065772172 | CX57: 0.001116387916 | CY57: 0.0008884288236 | CZ57: 0.001188994488 | DA57: 0.0003897859085 | DB57: 0.0004637367071 | DC57: 1.64863348e-05 | DD57: 0.0001706743296 | DE57: 0.0002433937568 | DF57: 0.0002215679152 | DG57: 0.0001567813509 | DH57: 0.0002426308288 | DI57: 55
A58: 20020225 | B58: 0.0002302940552 | C58: 0.0001341377557 | D58: 9.208317617e-05 | E58: 0.00400267861 | F58: 0.00035470067 | G58: 0.003766403874 | H58: 0.001031873982 | I58: 0.0001038798061 | J58: 0.00038129894 | K58: 0.0005656287828 | L58: 0.0001494887082 | M58: 4.860597395e-05 | N58: 0.0007843482378 | O58: 0.0007814785972 | P58: 0.0006296130059 | Q58: 0.0006923747825 | R58: 0.001883379737 | S58: 0.0001987521021 | T58: 0.0001772763831 | U58: 0.0001131028816 | V58: 0.0001101263867 | W58: 0.0002447420678 | X58: 0.001667997229 | Y58: 0.0006750361229 | Z58: 0.0004551663628 | AA58: 0.0004819643564 | AB58: 0.001660553293 | AC58: 9.235563303e-05 | AD58: 0.0002084292646 | AE58: 0.001273880073 | AF58: 0.0008236736646 | AG58: 0.0001991145848 | AH58: 0.0008711033946 | AI58: 0.0006415312178 | AJ58: 0.0003005183249 | AK58: 0.0002087962968 | AL58: 0.001304583812 | AM58: 0.0003832686699 | AN58: 0.0004824635318 | AO58: 0.0003116062026 | AP58: 0.0003579906249 | AQ58: 6.377325359e-05 | AR58: 0.0004738402653 | AS58: 0.0003178821922 | AT58: 0.002810870188 | AU58: 0.0001365183644 | AV58: 0.001526692671 | AW58: 0.0001321704863 | AX58: 0.008592260582 | AY58: 0.0005788262165 | AZ58: 4.356725481e-05 | BA58: 0.0001747099314 | BB58: 0.0003520913234 | BC58: 0.0009997792584 | BD58: 7.187248518e-05 | BE58: 6.063231671e-05 | BF58: 0.000259692308 | BG58: 0.0002471435668 | BH58: 0.0001880127571 | BI58: 0.0006776827124 | BJ58: 0.0007096804818 | BK58: 0.0006630614142 | BL58: 0.0002860226011 | BM58: 0.0001385139519 | BN58: 0.0008138387101 | BO58: 0.0006620970915 | BP58: 0.0001440912515 | BQ58: 0.0002142941202 | BR58: 0.000449405727 | BS58: 7.864203305e-05 | BT58: 0.0003449668714 | BU58: 0.001046197709 | BV58: 0.000279823488 | BW58: 0.0007195474681 | BX58: 0.0004549430679 | BY58: 0.0003076927398 | BZ58: 0.001424688937 | CA58: 0.0003476373571 | CB58: 0.0001838500489 | CC58: 0.000935994225 | CD58: 0.0006855001097 | CE58: 0.000951198469 | CF58: 0.0007038523004 | CG58: 0.00348571853 | CH58: 0.0008617129408 | CI58: 0.0008937477441 | CJ58: 0.001710127536 | CK58: 0.001027922302 | CL58: 0.002238041133 | CM58: 0.001840673784 | CN58: 0.001047241252 | CO58: 0.0007828819659 | CP58: 0.000268390513 | CQ58: 0.002746561503 | CR58: 0.0006056100859 | CS58: 0.002509946718 | CT58: 0.0004561642262 | CU58: 0.0005242919035 | CV58: 0.001321135136 | CW58: 0.0006034664089 | CX58: 0.000878134397 | CY58: 0.0007504740373 | CZ58: 0.0009841052596 | DA58: 0.0002791918908 | DB58: 0.0003268820773 | DC58: 1.451332516e-05 | DD58: 0.0001406356476 | DE58: 0.0001603596393 | DF58: 0.0001510048849 | DG58: 0.0001080216006 | DH58: 0.0002550734355 | DI58: 56
A59: 20020226 | B59: 0.000188127538 | C59: 0.0001739690544 | D59: 0.0001210448203 | E59: 0.003424513922 | F59: 0.0003517932875 | G59: 0.00306987713 | H59: 0.000875801639 | I59: 8.474405234e-05 | J59: 0.0003672633962 | K59: 0.0004366442753 | L59: 0.0001224383705 | M59: 3.98072283e-05 | N59: 0.0006083652008 | O59: 0.0006096181588 | P59: 0.0004823709875 | Q59: 0.0005668414107 | R59: 0.001519441624 | S59: 0.0001458925005 | T59: 0.0001446202073 | U59: 9.247173707e-05 | V59: 8.837873894e-05 | W59: 0.0002006501548 | X59: 0.001347974504 | Y59: 0.0005774566438 | Z59: 0.0003586710939 | AA59: 0.0003509338576 | AB59: 0.001296878398 | AC59: 7.520387261e-05 | AD59: 0.0001358383828 | AE59: 0.0009911298325 | AF59: 0.0006740579893 | AG59: 0.0001540474977 | AH59: 0.0006911746307 | AI59: 0.0006148316526 | AJ59: 0.0002246593303 | AK59: 0.0001710023084 | AL59: 0.001079754329 | AM59: 0.0002814629295 | AN59: 0.0003845275585 | AO59: 0.0002767848791 | AP59: 0.0002910492885 | AQ59: 5.152302409e-05 | AR59: 0.0003412245935 | AS59: 0.0002542219904 | AT59: 0.002391569111 | AU59: 0.0001116968436 | AV59: 0.001213101744 | AW59: 9.306386302e-05 | AX59: 0.007408895352 | AY59: 0.0004819126527 | AZ59: 3.308845679e-05 | BA59: 0.0001280132677 | BB59: 0.0002497741867 | BC59: 0.0007585010463 | BD59: 5.496131219e-05 | BE59: 4.966137289e-05 | BF59: 0.0001945461277 | BG59: 0.0001898723018 | BH59: 0.0001423111946 | BI59: 0.0006156796392 | BJ59: 0.000572911224 | BK59: 0.0007950561777 | BL59: 0.0002346852111 | BM59: 0.0001130726138 | BN59: 0.0006843643698 | BO59: 0.0006040706048 | BP59: 0.0001084503059 | BQ59: 0.00014949566 | BR59: 0.0003299434451 | BS59: 6.472844259e-05 | BT59: 0.0003379978436 | BU59: 0.0008055828355 | BV59: 0.0002061517152 | BW59: 0.0006189784377 | BX59: 0.0003520737755 | BY59: 0.0002263194532 | BZ59: 0.001167542167 | CA59: 0.0002699530315 | CB59: 0.0001362342089 | CC59: 0.0007678973029 | CD59: 0.000533983991 | CE59: 0.000742488902 | CF59: 0.0005284757689 | CG59: 0.002936168311 | CH59: 0.0007189671801 | CI59: 0.0006690578907 | CJ59: 0.001373284233 | CK59: 0.001050597058 | CL59: 0.001772993625 | CM59: 0.001454868559 | CN59: 0.0007827684616 | CO59: 0.0006801287079 | CP59: 0.0002106942799 | CQ59: 0.002398663713 | CR59: 0.0004604691745 | CS59: 0.00211822093 | CT59: 0.0003340596606 | CU59: 0.0003866459465 | CV59: 0.001068688932 | CW59: 0.000467081534 | CX59: 0.0007283750425 | CY59: 0.0006290738254 | CZ59: 0.0008386657552 | DA59: 0.0002119074185 | DB59: 0.0002388418378 | DC59: 1.193838037e-05 | DD59: 0.0001160585441 | DE59: 0.0001100202056 | DF59: 0.0001072558061 | DG59: 7.651530046e-05 | DH59: 0.0002595172235 | DI59: 57
A60: 20020227 | B60: 0.0001543943243 | C60: 0.0002009137564 | D60: 0.000140352583 | E60: 0.00296071148 | F60: 0.0003437979855 | G60: 0.002515235463 | H60: 0.0007511683288 | I60: 6.943544933e-05 | J60: 0.0003520582238 | K60: 0.0003436062699 | L60: 0.0001003709898 | M60: 3.264050805e-05 | N60: 0.0004766692857 | O60: 0.0004863974672 | P60: 0.0003765407867 | Q60: 0.0004646028915 | R60: 0.001237389586 | S60: 0.0001092431767 | T60: 0.0001184952666 | U60: 7.589313879e-05 | V60: 7.125825025e-05 | W60: 0.0001642264006 | X60: 0.001115230705 | Y60: 0.0005112897367 | Z60: 0.0002917616385 | AA60: 0.0002597822063 | AB60: 0.001056715732 | AC60: 6.108665442e-05 | AD60: 9.271508668e-05 | AE60: 0.0008106509556 | AF60: 0.0005527905473 | AG60: 0.0001212714344 | AH60: 0.000564604052 | AI60: 0.0005940653242 | AJ60: 0.0001721415648 | AK60: 0.0001400236293 | AL60: 0.0009222304881 | AM60: 0.0002107977684 | AN60: 0.0003133951147 | AO60: 0.0002544635179 | AP60: 0.0002372051701 | AQ60: 4.179490066e-05 | AR60: 0.0002577810248 | AS60: 0.0002098273759 | AT60: 0.002112035059 | AU60: 9.170172961e-05 | AV60: 0.0009861609417 | AW60: 6.682777398e-05 | AX60: 0.00640560744 | AY60: 0.000406240418 | AZ60: 2.548896814e-05 | BA60: 9.661378695e-05 | BB60: 0.0001785534347 | BC60: 0.0005976489048 | BD60: 4.263024856e-05 | BE60: 4.070285072e-05 | BF60: 0.0001472482159 | BG60: 0.0001475637998 | BH60: 0.0001087581487 | BI60: 0.0005656420713 | BJ60: 0.0004695744515 | BK60: 0.0008722460979 | BL60: 0.0001919040528 | BM60: 9.281377047e-05 | BN60: 0.0005949654206 | BO60: 0.0005490198354 | BP60: 8.299248759e-05 | BQ60: 0.0001061266119 | BR60: 0.0002481686689 | BS60: 5.287164376e-05 | BT60: 0.0003324226215 | BU60: 0.0006391663814 | BV60: 0.0001563909563 | BW60: 0.0005399599137 | BX60: 0.0002796306118 | BY60: 0.0001695276803 | BZ60: 0.0009774771628 | CA60: 0.0002107187332 | CB60: 0.0001025063222 | CC60: 0.0006284532653 | CD60: 0.0004236567201 | CE60: 0.0005891889546 | CF60: 0.0004082343343 | CG60: 0.002575035311 | CH60: 0.0006128900551 | CI60: 0.0005170372464 | CJ60: 0.001129720615 | CK60: 0.001043038806 | CL60: 0.001437287455 | CM60: 0.001191284073 | CN60: 0.0006008324813 | CO60: 0.0005993940052 | CP60: 0.000167422105 | CQ60: 0.002160628382 | CR60: 0.0003589989799 | CS60: 0.001842562041 | CT60: 0.0002511207104 | CU60: 0.0002953975031 | CV60: 0.0008835617154 | CW60: 0.0003702922679 | CX60: 0.0006180976996 | CY60: 0.000532505475 | CZ60: 0.0007314439308 | DA60: 0.0001685978731 | DB60: 0.0001795672212 | DC60: 9.99881157e-06 | DD60: 9.580519033e-05 | DE60: 7.836344835e-05 | DF60: 7.832496364e-05 | DG60: 5.648629534e-05 | DH60: 0.0002577397083 | DI60: 58
A61: 20020228 | B61: 0.0001264995514 | C61: 0.0002173148794 | D61: 0.0001522342832 | E61: 0.002579503993 | F61: 0.0003314416097 | G61: 0.002063782944 | H61: 0.0006478686483 | I61: 5.686052544e-05 | J61: 0.0003356834227 | K61: 0.0002738277659 | L61: 8.1862864e-05 | M61: 2.675102508e-05 | N61: 0.0003764405361 | O61: 0.0003972245982 | P61: 0.0002998522354 | Q61: 0.0003804825908 | R61: 0.001019026718 | S61: 8.316577322e-05 | T61: 9.70354939e-05 | U61: 6.189343358e-05 | V61: 5.765440247e-05 | W61: 0.0001341927787 | X61: 0.0009309751973 | Y61: 0.0004624999971 | Z61: 0.0002444243368 | AA61: 0.0001936972591 | AB61: 0.0008851709703 | AC61: 4.980607353e-05 | AD61: 6.6841109e-05 | AE61: 0.0006903317043 | AF61: 0.0004519968293 | AG61: 9.668938688e-05 | AH61: 0.0004740192261 | AI61: 0.0005732989958 | AJ61: 0.0001361571699 | AK61: 0.0001146211125 | AL61: 0.0008062356596 | AM61: 0.0001592960409 | AN61: 0.0002608189606 | AO61: 0.0002374992833 | AP61: 0.0001935477769 | AQ61: 3.419255235e-05 | AR61: 0.0002041387306 | AS61: 0.0001775784578 | AT61: 0.001910149355 | AU61: 7.515404908e-05 | AV61: 0.0008142360914 | AW61: 4.871002192e-05 | AX61: 0.005556671514 | AY61: 0.0003491543462 | AZ61: 1.987195479e-05 | BA61: 7.568079978e-05 | BB61: 0.0001283979755 | BC61: 0.0004867163935 | BD61: 3.354049308e-05 | BE61: 3.336724924e-05 | BF61: 0.0001133365056 | BG61: 0.0001160904019 | BH61: 8.446111548e-05 | BI61: 0.000523218916 | BJ61: 0.0003890325553 | BK61: 0.00091856005 | BL61: 0.0001576791262 | BM61: 7.604133276e-05 | BN61: 0.0005234462613 | BO61: 0.0004999205005 | BP61: 6.466285843e-05 | BQ61: 7.704383844e-05 | BR61: 0.000191281868 | BS61: 4.331361205e-05 | BT61: 0.0003254535938 | BU61: 0.000518328956 | BV61: 0.0001208475572 | BW61: 0.0004741111437 | BX61: 0.0002245738074 | BY61: 0.0001296886754 | BZ61: 0.0008321333363 | CA61: 0.000166050246 | CB61: 7.803707112e-05 | CC61: 0.0005138417276 | CD61: 0.000338336964 | CE61: 0.0004728287535 | CF61: 0.0003243586018 | CG61: 0.002308110919 | CH61: 0.0005303856246 | CI61: 0.0004101216284 | CJ61: 0.0009548212074 | CK61: 0.00102036405 | CL61: 0.001188777693 | CM61: 0.001001326539 | CN61: 0.0004712585636 | CO61: 0.0005325228372 | CP61: 0.000133937684 | CQ61: 0.001959213872 | CR61: 0.0002857863078 | CS61: 0.001624936604 | CT61: 0.0001916811294 | CU61: 0.0002350807355 | CV61: 0.0007455577903 | CW61: 0.0003006333264 | CX61: 0.0005370915033 | CY61: 0.0004569062521 | CZ61: 0.0006465157531 | DA61: 0.0001399826378 | DB61: 0.0001385980008 | DC61: 8.460532867e-06 | DD61: 7.919288892e-05 | DE61: 5.760491899e-05 | DF61: 5.899069334e-05 | DG61: 4.268353525e-05 | DH61: 0.0002524071626 | DI61: 59
A62: 20020301 | B62: 0.0001037945037 | C62: 0.0002255154409 | D62: 0.0001589177395 | E62: 0.002261831087 | F62: 0.000316904697 | G62: 0.001702620929 | H62: 0.0005636569523 | I62: 4.669123916e-05 | J62: 0.0003181389929 | K62: 0.0002220225129 | L62: 6.734110378e-05 | M62: 2.19259065e-05 | N62: 0.0002995207981 | O62: 0.0003291289528 | P62: 0.000242335822 | Q62: 0.0003105980333 | R62: 0.0008479758043 | S62: 6.448871398e-05 | T62: 7.946336119e-05 | U62: 5.084103472e-05 | V62: 4.691939334e-05 | W62: 0.0001099102759 | X62: 0.0007893893861 | Y62: 0.0004223988413 | Z62: 0.0002093765269 | AA62: 0.0001469820378 | AB62: 0.0007547969514 | AC62: 4.063647853e-05 | AD62: 4.980740703e-05 | AE62: 0.0006031002471 | AF62: 0.0003701019334 | AG62: 7.73515095e-05 | AH62: 0.0004057703846 | AI62: 0.0005517910127 | AJ62: 0.0001108708383 | AK62: 9.417518433e-05 | AL62: 0.0007174494946 | AM62: 0.0001221668885 | AN62: 0.0002195827613 | AO62: 0.0002241064666 | AP62: 0.0001586218622 | AQ62: 2.792331725e-05 | AR62: 0.0001668871375 | AS62: 0.000153287065 | AT62: 0.001754852659 | AU62: 6.13643153e-05 | AV62: 0.0006821978063 | AW62: 3.598799384e-05 | AX62: 0.004836362244 | AY62: 0.0003026889389 | AZ62: 1.567099523e-05 | BA62: 6.102770876e-05 | BB62: 9.34897759e-05 | BC62: 0.0004090636356 | BD62: 2.663509745e-05 | BE62: 2.73299843e-05 | BF62: 8.808120551e-05 | BG62: 9.184040685e-05 | BH62: 6.594909017e-05 | BI62: 0.0004851468535 | BJ62: 0.0003267265601 | BK62: 0.000941717026 | BL62: 0.0001283434748 | BM62: 6.228416475e-05 | BN62: 0.0004654910804 | BO62: 0.0004552847416 | BP62: 5.086472092e-05 | BQ62: 5.663487462e-05 | BR62: 0.0001507500223 | BS62: 3.544940874e-05 | BT62: 0.0003170907605 | BU62: 0.0004292908532 | BV62: 9.499781231e-05 | BW62: 0.0004202348774 | BX62: 0.0001840056358 | BY62: 0.0001000213314 | BZ62: 0.0007187332079 | CA62: 0.0001310922995 | CB62: 5.978433245e-05 | CC62: 0.0004202423051 | CD62: 0.000275082662 | CE62: 0.0003841733622 | CF62: 0.0002633580691 | CG62: 0.002088290831 | CH62: 0.0004649059179 | CI62: 0.0003324407497 | CJ62: 0.0008226749888 | CK62: 0.0009901310407 | CL62: 0.0009983988691 | CM62: 0.0008584902529 | CN62: 0.0003762968568 | CO62: 0.0004762531959 | CP62: 0.0001081804371 | CQ62: 0.001792589141 | CR62: 0.0002331245612 | CS62: 0.001445032908 | CT62: 0.0001490597244 | CU62: 0.0001917763895 | CV62: 0.0006395303845 | CW62: 0.0002485724333 | CX62: 0.0004744648641 | CY62: 0.0003939988696 | CZ62: 0.0005785732109 | DA62: 0.0001191012498 | DB62: 0.0001080890069 | DC62: 7.189780895e-06 | DD62: 6.553894255e-05 | DE62: 4.385239328e-05 | DF62: 4.537202849e-05 | DG62: 3.29315852e-05 | DH62: 0.0002444083441 | DI62: 60
A63: 20020302 | B63: 8.498174994e-05 | C63: 0.0002278584585 | D63: 0.000160402952 | E63: 0.001994985847 | F63: 0.000300914093 | G63: 0.001405952131 | H63: 0.000491796305 | I63: 3.821683393e-05 | J63: 0.0003005945632 | K63: 0.0001818470105 | L63: 5.516845183e-05 | M63: 1.795227943e-05 | N63: 0.0002389173681 | O63: 0.0002772465563 | P63: 0.0001986233478 | Q63: 0.000254949219 | R63: 0.0007105891665 | S63: 5.074521756e-05 | T63: 6.500134047e-05 | U63: 4.163070235e-05 | V63: 3.822033422e-05 | W63: 9.010086567e-05 | X63: 0.0006759267839 | Y63: 0.0003889812114 | Z63: 0.0001825217115 | AA63: 0.0001125722894 | AB63: 0.000660790422 | AC63: 3.324802789e-05 | AD63: 3.823598923e-05 | AE63: 0.0005384286495 | AF63: 0.0003039560559 | AG63: 6.243840068e-05 | AH63: 0.0003536530875 | AI63: 0.0005287997205 | AJ63: 9.21005999e-05 | AK63: 7.682712406e-05 | AL63: 0.0006458477487 | AM63: 9.509853872e-05 | AN63: 0.0001886556118 | AO63: 0.0002120529316 | AP63: 0.0001292258841 | AQ63: 2.280704493e-05 | AR63: 0.0001396189712 | AS63: 0.0001344402947 | AT63: 0.001615085633 | AU63: 5.026357961e-05 | AV63: 0.0005790428961 | AW63: 2.697861987e-05 | AX63: 0.004218954298 | AY63: 0.00026418903 | AZ63: 1.246127331e-05 | BA63: 5.056121517e-05 | BB63: 6.861266815e-05 | BC63: 0.0003522107235 | BD63: 2.135035589e-05 | BE63: 2.239630542e-05 | BF63: 6.91620408e-05 | BG63: 7.326594254e-05 | BH63: 5.166012063e-05 | BI63: 0.0004492503374 | BJ63: 0.0002765778323 | BK63: 0.000933998034 | BL63: 0.0001053638812 | BM63: 5.097690337e-05 | BN63: 0.0004174006112 | BO63: 0.0004136246998 | BP63: 4.037609979e-05 | BQ63: 4.234859994e-05 | BR63: 0.0001215955369 | BS63: 2.903705836e-05 | BT63: 0.000306637219 | BU63: 0.0003603923212 | BV63: 7.561050368e-05 | BW63: 0.0003735421132 | BX63: 0.0001521306437 | BY63: 7.815226063e-05 | BZ63: 0.0006276936682 | CA63: 0.0001039027855 | CB63: 4.63593109e-05 | CC63: 0.0003457448056 | CD63: 0.0002250676326 | CE63: 0.0003158348314 | CF63: 0.0002187807567 | CG63: 0.001915575048 | CH63: 0.0004112125584 | CI63: 0.0002739712711 | CJ63: 0.0007203264469 | CK63: 0.0009447815273 | CL63: 0.0008516182494 | CM63: 0.0007480498259 | CN63: 0.0003061849425 | CO63: 0.0004281385751 | CP63: 8.757463955e-05 | CQ63: 0.001647936902 | CR63: 0.000193307143 | CS63: 0.001295596774 | CT63: 0.0001172664602 | CU63: 0.0001608447137 | CV63: 0.0005553816497 | CW63: 0.0002089768245 | CX63: 0.0004227298144 | CY63: 0.00034212787 | CZ63: 0.0005212466909 | DA63: 0.0001028601703 | DB63: 8.603536276e-05 | DC63: 6.153114812e-06 | DD63: 5.416065392e-05 | DE63: 3.394019551e-05 | DF63: 3.549320425e-05 | DG63: 2.588017515e-05 | DH63: 0.0002337432527 | DI63: 61
A64: 20020303 | B64: 6.941257438e-05 | C64: 0.0002255154409 | D64: 0.0001589177395 | E64: 0.001766261355 | F64: 0.0002834697977 | G64: 0.001168617092 | H64: 0.0004322867064 | I64: 3.132796257e-05 | J64: 0.0002818805048 | K64: 0.0001501295087 | L64: 4.520253795e-05 | M64: 1.468822862e-05 | N64: 0.0001922993451 | O64: 0.0002350921091 | P64: 0.0001641134997 | Q64: 0.000208359514 | R64: 0.0006004978872 | S64: 4.017329723e-05 | T64: 5.333842053e-05 | U64: 3.40782298e-05 | V64: 3.118705238e-05 | W64: 7.412553488e-05 | X64: 0.00058379903 | Y64: 0.000358236992 | Z64: 0.0001611288924 | AA64: 8.704982702e-05 | AB64: 0.0005853107269 | AC64: 2.717894343e-05 | AD64: 2.997069081e-05 | AE64: 0.0004857889771 | AF64: 0.0002488344914 | AG64: 5.055707772e-05 | AH64: 0.0003114628946 | AI64: 0.0005035834646 | AJ64: 7.809586243e-05 | AK64: 6.319650527e-05 | AL64: 0.000587134317 | AM64: 7.461761917e-05 | AN64: 0.0001628829872 | AO64: 0.0001999993965 | AP64: 0.0001057964164 | AQ64: 1.866358495e-05 | AR64: 0.0001193541046 | AS64: 0.0001189440614 | AT64: 0.001492401244 | AU64: 4.116235532e-05 | AV64: 0.0004978943667 | AW64: 2.049385069e-05 | AX64: 0.003704447676 | AY64: 0.0002336546195 | AZ64: 9.959578293e-06 | BA64: 4.299313519e-05 | BB64: 5.08576356e-05 | BC64: 0.0003092243753 | BD64: 1.719302587e-05 | BE64: 1.837146213e-05 | BF64: 5.479418458e-05 | BG64: 5.881913697e-05 | BH64: 4.090000592e-05 | BI64: 0.000416617141 | BJ64: 0.000235547055 | BK64: 0.00091856005 | BL64: 8.629570784e-05 | BM64: 4.183686709e-05 | BN64: 0.0003760921312 | BO64: 0.000376428234 | BP64: 3.228051358e-05 | BQ64: 3.214411803e-05 | BR64: 0.0001002629866 | BS64: 2.377409153e-05 | BT64: 0.0002947898719 | BU64: 0.000306333473 | BV64: 6.035915422e-05 | BW64: 0.0003340328513 | BX64: 0.0001272101954 | BY64: 6.170807564e-05 | BZ64: 0.0005526259776 | CA64: 8.283091218e-05 | CB64: 3.630707801e-05 | CC64: 0.0002827084598 | CD64: 0.0001868208453 | CE64: 0.0002622721992 | CF64: 0.0001847612289 | CG64: 0.0017585607 | CH64: 0.0003666863578 | CI64: 0.0002280309665 | CJ64: 0.0006374111724 | CK64: 0.000899432014 | CL64: 0.0007339030989 | CM64: 0.0006596974842 | CN64: 0.0002529353872 | CO64: 0.0003849169666 | CP64: 7.160514646e-05 | CQ64: 0.00151610195 | CR64: 0.0001631229712 | CS64: 0.001167923184 | CT64: 9.330631899e-05 | CU64: 0.0001374912986 | CV64: 0.0004863796871 | CW64: 0.0001774469878 | CX64: 0.000379844181 | CY64: 0.0002985341575 | CZ64: 0.0004724129887 | DA64: 9.048601448e-05 | DB64: 6.886315763e-05 | DC64: 5.317093778e-06 | DD64: 4.5058023e-05 | DE64: 2.672660656e-05 | DF64: 2.815464909e-05 | DG64: 2.055411012e-05 | DH64: 0.0002221894037 | DI64: 62
A65: 20020304 | B65: 5.689236236e-05 | C65: 0.0002202436514 | D65: 0.0001552047082 | E65: 0.001569304153 | F65: 0.0002660255025 | G65: 0.0009712678482 | H65: 0.0003806368662 | I65: 2.564191003e-05 | J65: 0.0002631664464 | K65: 0.0001258127573 | L65: 3.701625155e-05 | M65: 1.206279645e-05 | N65: 0.0001550049266 | O65: 0.0002010442864 | P65: 0.0001365056213 | Q65: 0.0001708289183 | R65: 0.0005095133588 | S65: 3.199767885e-05 | T65: 4.369707338e-05 | U65: 2.792572777e-05 | V65: 2.554191827e-05 | W65: 6.051455304e-05 | X65: 0.0005071875294 | Y65: 0.0003308345355 | Z65: 0.0001433774043 | AA65: 6.80219198e-05 | AB65: 0.0005242407917 | AC65: 2.223132024e-05 | AD65: 2.386155719e-05 | AE65: 0.0004406692578 | AF65: 0.0002031623379 | AG65: 4.11339595e-05 | AH65: 0.0002767180299 | AI65: 0.000477625554 | AJ65: 6.739779908e-05 | AK65: 5.161047931e-05 | AL65: 0.0005355810599 | AM65: 5.8927558e-05 | AN65: 0.0001412339826 | AO65: 0.0001888387159 | AP65: 8.658716333e-05 | AQ65: 1.527675679e-05 | AR65: 0.000103559429 | AS65: 0.0001059607307 | AT65: 0.00138214059 | AU65: 3.371589908e-05 | AV65: 0.0004318752241 | AW65: 1.579115548e-05 | AX65: 0.003241391717 | AY65: 0.0002071029582 | AZ65: 8.024304786e-06 | BA65: 3.727681946e-05 | BB65: 3.801783806e-05 | BC65: 0.0002745579656 | BD65: 1.395171771e-05 | BE65: 1.506070394e-05 | BF65: 4.372825806e-05 | BG65: 4.726169251e-05 | BH65: 3.256959453e-05 | BI65: 0.000386159491 | BJ65: 0.0002005949113 | BK65: 0.0008876840819 | BL65: 7.06500271e-05 | BM65: 3.420446566e-05 | BN65: 0.0003403325515 | BO65: 0.0003407196269 | BP65: 2.596697464e-05 | BQ65: 2.479689105e-05 | BR65: 8.319694629e-05 | BS65: 1.947902665e-05 | BT65: 0.0002808518165 | BU65: 0.0002618144216 | BV65: 4.872676904e-05 | BW65: 0.0003005098411 | BX65: 0.0001070709959 | BY65: 4.907826345e-05 | BZ65: 0.0004903357663 | CA65: 6.622588758e-05 | CB65: 2.863563712e-05 | CC65: 0.0002311332678 | CD65: 0.0001559292095 | CE65: 0.0002197914909 | CF65: 0.000157780224 | CG65: 0.001617247786 | CH65: 0.0003287081279 | CI65: 0.0001921140011 | CJ65: 0.0005687469607 | CK65: 0.0008465242485 | CL65: 0.0006394403238 | CM65: 0.0005860705329 | CN65: 0.0002121107282 | CO65: 0.0003474038724 | CP65: 5.821137806e-05 | CQ65: 0.001395253244 | CR65: 0.0001393609636 | CS65: 0.001056208792 | CT65: 7.464505519e-05 | CU65: 0.0001189322931 | CV65: 0.0004300000348 | CW65: 0.0001525164193 | CX65: 0.0003424043424 | CY65: 0.0002615622748 | CZ65: 0.0004288872976 | DA65: 8.043201287e-05 | DB65: 5.552636887e-05 | DC65: 4.581395268e-06 | DD65: 3.732078673e-05 | DE65: 2.132938892e-05 | DF65: 2.250960667e-05 | DG65: 1.65033001e-05 | DH65: 0.0002097467971 | DI65: 63
A66: 20020305 | B66: 4.664265512e-05 | C66: 0.0002126288443 | D66: 0.0001500064644 | E66: 0.001397760784 | F66: 0.0002485812073 | G66: 0.0008087449413 | H66: 0.0003357239616 | I66: 2.104932913e-05 | J66: 0.0002456220166 | K66: 0.0001054078311 | L66: 3.032485223e-05 | M66: 9.863110042e-06 | N66: 0.0001258686622 | O66: 0.0001734817633 | P66: 0.0001150328269 | Q66: 0.000139769115 | R66: 0.0004358158908 | S66: 2.568976639e-05 | T66: 3.576628782e-05 | U66: 2.287846563e-05 | V66: 2.091475916e-05 | W66: 4.952352546e-05 | X66: 0.0004422132187 | Y66: 0.0003047687842 | Z66: 0.0001283569143 | AA66: 5.343765559e-05 | AB66: 0.0004720911841 | AC66: 1.820725337e-05 | AD66: 1.926173894e-05 | AE66: 0.0004015655012 | AF66: 0.0001669395955 | AG66: 3.351352477e-05 | AH66: 0.0002481776053 | AI66: 0.0004509259889 | AJ66: 5.893660353e-05 | AK66: 4.225491823e-05 | AL66: 0.0004897559424 | AM66: 4.695041206e-05 | AN66: 0.0001247395029 | AO66: 0.0001772316081 | AP66: 7.087050175e-05 | AQ66: 1.25384702e-05 | AR66: 9.074488099e-05 | AS66: 9.507148569e-05 | AT66: 0.001279644771 | AU66: 2.764841622e-05 | AV66: 0.0003782346708 | AW66: 1.227650959e-05 | AX66: 0.00285551175 | AY66: 0.0001845340461 | AZ66: 6.466645622e-06 | BA66: 3.276817607e-05 | BB66: 2.868892265e-05 | BC66: 0.0002468248377 | BD66: 1.134457854e-05 | BE66: 1.233419719e-05 | BF66: 3.507184779e-05 | BG66: 3.823243903e-05 | BH66: 2.603253559e-05 | BI66: 0.0003567896142 | BJ66: 0.0001732410598 | BK66: 0.0008568081138 | BL66: 5.79379115e-05 | BM66: 2.807969909e-05 | BN66: 0.0003082722387 | BO66: 0.0003094745956 | BP66: 2.097724226e-05 | BQ66: 1.928647082e-05 | BR66: 7.06818501e-05 | BS66: 1.59703821e-05 | BT66: 0.0002662168583 | BU66: 0.0002257751894 | BV66: 3.948548525e-05 | BW66: 0.0002693813317 | BX66: 9.069884093e-05 | BY66: 3.933042183e-05 | BZ66: 0.0004376286644 | CA66: 5.311665763e-05 | CB66: 2.268365711e-05 | CC66: 0.0001893000565 | CD66: 0.0001315101069 | CE66: 0.0001865457192 | CF66: 0.000136664655 | CG66: 0.001488496021 | CH66: 0.0002959682745 | CI66: 0.00016371454 | CJ66: 0.0005104471584 | CK66: 0.000793616483 | CL66: 0.0005595102833 | CM66: 0.0005227513547 | CN66: 0.0001801609951 | CO66: 0.0003139682884 | CP66: 4.744484884e-05 | CQ66: 0.001283559742 | CR66: 0.0001207366873 | CS66: 0.0009546502546 | CT66: 6.01307389e-05 | CU66: 0.000103775772 | CV66: 0.0003811937686 | CW66: 0.0001319853628 | CX66: 0.0003097295741 | CY66: 0.0002295567644 | CZ66: 0.0003906696176 | DA66: 7.177010379e-05 | DB66: 4.50661424e-05 | DC66: 3.979460123e-06 | DD66: 3.094894509e-05 | DE66: 1.717768305e-05 | DF66: 1.820526182e-05 | DG66: 1.335267008e-05 | DH66: 0.0001964154329 | DI66: 64
A67: 20020306 | B67: 3.820935169e-05 | C67: 0.000203256774 | D67: 0.0001433230081 | E67: 0.001251631248 | F67: 0.000231136912 | G67: 0.00067459905 | H67: 0.0002975479927 | I67: 1.722217838e-05 | J67: 0.0002280775868 | K67: 8.902045515e-05 | L67: 2.48435996e-05 | M67: 8.089169387e-06 | N67: 0.0001016272903 | O67: 0.0001498104199 | P67: 9.739446011e-05 | Q67: 0.0001145330248 | R67: 0.0003739464116 | S67: 2.075620357e-05 | T67: 2.923505265e-05 | U67: 1.875223672e-05 | V67: 1.71204887e-05 | W67: 4.057734021e-05 | X67: 0.0003879063322 | Y67: 0.0002807080907 | Z67: 0.0001156122561 | AA67: 4.238551787e-05 | AB67: 0.0004274895461 | AC67: 1.49088379e-05 | AD67: 1.559625877e-05 | AE67: 0.0003669737164 | AF67: 0.0001363864997 | AG67: 2.73680129e-05 | AH67: 0.0002221189567 | AI67: 0.0004234847692 | AJ67: 5.203148991e-05 | AK67: 3.463416318e-05 | AL67: 0.0004482269298 | AM67: 3.760823823e-05 | AN67: 0.0001092759281 | AO67: 0.0001660709275 | AP67: 5.806433306e-05 | AQ67: 1.026857473e-05 | AR67: 8.016542853e-05 | AS67: 8.58575091e-05 | AT67: 0.00118336082 | AU67: 2.268411206e-05 | AV67: 0.0003328465103 | AW67: 9.652900686e-06 | AX67: 0.002505647248 | AY67: 0.0001659478832 | AZ67: 5.2866008e-06 | BA67: 2.922567055e-05 | BB67: 2.18677802e-05 | BC67: 0.0002218650227 | BD67: 9.23068192e-06 | BE67: 1.012702506e-05 | BF67: 2.820026438e-05 | BG67: 3.095744051e-05 | BH67: 2.094172863e-05 | BI67: 0.0003285075107 | BJ67: 0.0001492304568 | BK67: 0.0008104941617 | BL67: 4.742596975e-05 | BM67: 2.299143147e-05 | BN67: 0.0002799111927 | BO67: 0.0002812052815 | BP67: 1.700582261e-05 | BQ67: 1.520467805e-05 | BR67: 6.051333444e-05 | BS67: 1.312717013e-05 | BT67: 0.0002515819001 | BU67: 0.0001960958218 | BV67: 3.211830797e-05 | BW67: 0.0002430418237 | BX67: 7.722441249e-05 | BY67: 3.161691238e-05 | BZ67: 0.0003913103021 | CA67: 4.272637908e-05 | CB67: 1.812047245e-05 | CC67: 0.0001551076144 | CD67: 0.0001116511981 | CE67: 0.0001588409094 | CF67: 0.0001190683475 | CG67: 0.001369165116 | CH67: 0.0002658476094 | CI67: 0.0001394914703 | CJ67: 0.000459920663 | CK67: 0.0007399528922 | CL67: 0.0004941129774 | CM67: 0.0004697399497 | CN67: 0.0001535362175 | CO67: 0.0002837947126 | CP67: 3.879041387e-05 | CQ67: 0.001179190405 | CR67: 0.0001053234932 | CS67: 0.0008646984069 | CT67: 4.861144026e-05 | CU67: 9.140310176e-05 | CV67: 0.0003399608886 | CW67: 0.0001151205665 | CX67: 0.0002804584276 | CY67: 0.0002019658071 | CZ67: 0.0003556367443 | DA67: 6.434561029e-05 | DB67: 3.661079266e-05 | DC67: 3.444406661e-06 | DD67: 2.594249809e-05 | DE67: 1.390821467e-05 | DF67: 1.474767333e-05 | DG67: 1.087717506e-05 | DH67: 0.0001839728263 | DI67: 65
A68: 20020307 | B68: 3.133296582e-05 | C68: 0.0001927131949 | D68: 0.0001358969455 | E68: 0.001118208627 | F68: 0.0002144194624 | G68: 0.0005636707167 | H68: 0.0002649861369 | I68: 1.416045778e-05 | J68: 0.0002117027857 | K68: 7.559337938e-05 | L68: 2.035893835e-05 | M68: 6.662921101e-06 | N68: 8.263044586e-05 | O68: 0.0001303545212 | P68: 8.282363537e-05 | Q68: 9.382648922e-05 | R68: 0.0003229950757 | S68: 1.680935332e-05 | T68: 2.394786228e-05 | U68: 1.536283441e-05 | V68: 1.406656368e-05 | W68: 3.322868805e-05 | X68: 0.0003413575724 | Y68: 0.000258652455 | Z68: 0.0001042330971 | AA68: 3.372611099e-05 | AB68: 0.0003883773404 | AC68: 1.227010553e-05 | AD68: 1.272137236e-05 | AE68: 0.0003368939036 | AF68: 0.0001118180309 | AG68: 2.236966324e-05 | AH68: 0.0002010238603 | AI68: 0.0003960435495 | AJ68: 4.629343775e-05 | AK68: 2.837647001e-05 | AL68: 0.0004109940219 | AM68: 3.030217921e-05 | AN68: 9.669888736e-05 | AO68: 0.0001549102468 | AP68: 4.758655867e-05 | AQ68: 8.431040306e-06 | AR68: 7.107603979e-05 | AS68: 7.748116675e-05 | AT68: 0.001093288736 | AU68: 1.86161406e-05 | AV68: 0.0002943353438 | AW68: 7.623316439e-06 | AX68: 0.00220980594 | AY68: 0.0001486893033 | AZ68: 4.281202612e-06 | BA68: 2.624674545e-05 | BB68: 1.675192336e-05 | BC68: 0.0002010651768 | BD68: 7.539564621e-06 | BE68: 8.309353896e-06 | BF68: 2.28457838e-05 | BG68: 2.517871828e-05 | BH68: 1.68922231e-05 | BI68: 0.0003034887267 | BJ68: 0.0001293229315 | BK68: 0.0007672678064 | BL68: 3.886973809e-05 | BM68: 1.875120845e-05 | BN68: 0.0002546328691 | BO68: 0.0002559116848 | BP68: 1.379813751e-05 | BQ68: 1.204128866e-05 | BR68: 5.233585681e-05 | BS68: 1.076790914e-05 | BT68: 0.0002355531364 | BU68: 0.0001706563638 | BV68: 2.617286666e-05 | BW68: 0.0002190968164 | BX68: 6.606816528e-05 | BY68: 2.559867973e-05 | BZ68: 0.0003513806794 | CA68: 3.447241949e-05 | CB68: 1.454928445e-05 | CC68: 0.0001270277877 | CD68: 9.546986506e-05 | CE68: 0.0001366770616 | CF68: 0.0001044047579 | CG68: 0.001257684929 | CH68: 0.0002409653208 | CI68: 0.0001202800702 | CJ68: 0.0004158719235 | CK68: 0.0006878009519 | CL68: 0.0004374353124 | CM68: 0.0004226187008 | CN68: 0.000133123888 | CO68: 0.0002568831451 | CP68: 3.173292821e-05 | CQ68: 0.001082145232 | CR68: 9.247916476e-05 | CS68: 0.000784902413 | CT68: 3.962638732e-05 | CU68: 8.088633201e-05 | CV68: 0.0003037769326 | CW68: 0.0001011887782 | CX68: 0.0002545909027 | CY68: 0.0001782375839 | CZ68: 0.0003248502799 | DA68: 5.784917849e-05 | DB68: 2.989881401e-05 | DC68: 3.006331639e-06 | DD68: 2.161874841e-05 | DE68: 1.13133985e-05 | DF68: 1.199571515e-05 | DG68: 8.851770053e-06 | DH68: 0.0001715302197 | DI68: 66
A69: 20020308 | B69: 2.568913968e-05 | C69: 0.0001815838615 | D69: 0.0001284708829 | E69: 0.001003846381 | F69: 0.0001984288584 | G69: 0.0004720903485 | H69: 0.000235792749 | I69: 1.159079942e-05 | J69: 0.0001953279846 | K69: 6.449225373e-05 | L69: 1.67284983e-05 | M69: 5.47083298e-06 | N69: 6.724649825e-05 | O69: 0.0001139791398 | P69: 7.047677861e-05 | Q69: 7.687301324e-05 | R69: 0.0002793225021 | S69: 1.367301695e-05 | T69: 1.95937055e-05 | U69: 1.259973469e-05 | V69: 1.156789777e-05 | W69: 2.722196367e-05 | X69: 0.0003015971733 | Y69: 0.0002372651719 | Z69: 9.467460346e-05 | AA69: 2.711761627e-05 | AB69: 0.00035269603 | AC69: 1.002718301e-05 | AD69: 1.042146323e-05 | AE69: 0.0003083180814 | AF69: 9.150179715e-05 | AG69: 1.827265532e-05 | AH69: 0.0001811696519 | AI69: 0.0003693439843 | AJ69: 4.143068169e-05 | AK69: 2.323400929e-05 | AL69: 0.0003766251838 | AM69: 2.443337771e-05 | AN69: 8.577129454e-05 | AO69: 0.0001441959935 | AP69: 3.900060466e-05 | AQ69: 6.917776661e-06 | AR69: 6.332770841e-05 | AS69: 6.994245863e-05 | AT69: 0.001007875554 | AU69: 1.523765582e-05 | AV69: 0.0002613257726 | AW69: 6.08875274e-06 | AX69: 0.001952552629 | AY69: 0.0001340858896 | AZ69: 3.37020801e-06 | BA69: 2.358986631e-05 | BB69: 1.304041939e-05 | BC69: 0.0001830386437 | BD69: 6.172578139e-06 | BE69: 6.75135004e-06 | BF69: 1.856219934e-05 | BG69: 2.048350647e-05 | BH69: 1.365261867e-05 | BI69: 0.0002784699428 | BJ69: 0.0001126066889 | BK69: 0.0007209538543 | BL69: 3.190252089e-05 | BM69: 1.535903004e-05 | BN69: 0.000231204179 | BO69: 0.0002321059467 | BP69: 1.125235568e-05 | BQ69: 9.643235408e-06 | BR69: 4.558054921e-05 | BS69: 8.83210525e-06 | BT69: 0.0002202212754 | BU69: 0.0001483968381 | BV69: 2.139066386e-05 | BW69: 0.0001975463099 | BX69: 5.679544033e-05 | BY69: 2.076714084e-05 | BZ69: 0.0003162426115 | CA69: 2.786925181e-05 | CB69: 1.170556067e-05 | CC69: 0.0001041054801 | CD69: 8.223059256e-05 | CE69: 0.0001182071884 | CF69: 9.208734264e-05 | CG69: 0.001154055459 | CH69: 0.0002173926264 | CI69: 0.0001035745049 | CJ69: 0.0003770053886 | CK69: 0.0006379164873 | CL69: 0.0003894772881 | CM69: 0.000379915069 | CN69: 0.0001153740363 | CO69: 0.0002324180836 | CP69: 2.59633049e-05 | CQ69: 0.0009924242231 | CR69: 8.220370201e-05 | CS69: 0.000710909764 | CT69: 3.225403619e-05 | CU69: 7.176148767e-05 | CV69: 0.0002726419007 | CW69: 8.872349389e-05 | CX69: 0.0002307655509 | CY69: 0.0001578202755 | CZ69: 0.0002961870199 | DA69: 5.204879294e-05 | DB69: 2.440719511e-05 | DC69: 2.625106048e-06 | DD69: 1.806872236e-05 | DE69: 9.237545567e-06 | DF69: 9.808261213e-06 | DG69: 7.238947543e-06 | DH69: 0.0001590876131 | DI69: 67
A70: 20020309 | B70: 2.108325857e-05 | C70: 0.000170454528 | D70: 0.000120302214 | E70: 0.0009021910517 | F70: 0.0001831651001 | G70: 0.0003972782168 | H70: 0.0002099678288 | I70: 9.513203295e-06 | J70: 0.0001801228122 | K70: 5.52941782e-05 | L70: 1.373872413e-05 | M70: 4.498713501e-06 | N70: 5.477617709e-05 | O70: 9.987361326e-05 | P70: 6.035388985e-05 | Q70: 6.289610174e-05 | R70: 0.0002429286907 | S70: 1.113575607e-05 | T70: 1.617258232e-05 | U70: 1.031557226e-05 | V70: 9.53194776e-06 | W70: 2.230156179e-05 | X70: 0.0002666856034 | Y70: 0.0002178829466 | Z70: 8.55712762e-05 | AA70: 2.176245675e-05 | AB70: 0.0003211317939 | AC70: 8.246038663e-06 | AD70: 8.552787066e-06 | AE70: 0.0002812462499 | AF70: 7.496532779e-05 | AG70: 1.499504898e-05 | AH70: 0.0001650381075 | AI70: 0.0003433860738 | AJ70: 3.715145635e-05 | AK70: 1.902090894e-05 | AL70: 0.0003451204156 | AM70: 1.988206225e-05 | AN70: 7.62869687e-05 | AO70: 0.0001339281673 | AP70: 3.201542174e-05 | AQ70: 5.692753711e-06 | AR70: 5.662242163e-05 | AS70: 6.366020187e-05 | AT70: 0.000928674239 | AU70: 1.247970907e-05 | AV70: 0.0002324423977 | AW70: 4.885852809e-06 | AX70: 0.001726169716 | AY70: 0.0001217393671 | AZ70: 2.695222372e-06 | BA70: 2.125503313e-05 | BB70: 1.013140275e-05 | BC70: 0.000166398767 | BD70: 5.059259251e-06 | BE70: 5.550388735e-06 | BF70: 1.508178696e-05 | BG70: 1.671701788e-05 | BH70: 1.104936511e-05 | BI70: 0.0002567144785 | BJ70: 9.816993388e-05 | BK70: 0.000673868003 | BL70: 2.615762249e-05 | BM70: 1.262644187e-05 | BN70: 0.0002102416668 | BO70: 0.0002112759258 | BP70: 9.164814581e-06 | BQ70: 7.755406254e-06 | BR70: 3.996297762e-05 | BS70: 7.259264589e-06 | BT70: 0.0002055863173 | BU70: 0.0001303772221 | BV70: 1.751320213e-05 | BW70: 0.0001783903041 | BX70: 4.882669232e-05 | BY70: 1.686800419e-05 | BZ70: 0.0002842989134 | CA70: 2.252845443e-05 | CB70: 9.45703489e-06 | CC70: 8.51945764e-05 | CD70: 7.119786547e-05 | CE70: 0.0001034312898 | CF70: 8.152955813e-05 | CG70: 0.001058276707 | CH70: 0.0001964391202 | CI70: 9.021005268e-05 | CJ70: 0.000340729956 | CK70: 0.0005902994983 | CL70: 0.0003473323577 | CM70: 0.0003431015934 | CN70: 0.0001011741549 | CO70: 0.0002103995283 | CP70: 2.127548596e-05 | CQ70: 0.000910027378 | CR70: 7.32126721e-05 | CS70: 0.0006456221327 | CT70: 2.62640009e-05 | CU70: 6.402856874e-05 | CV70: 0.0002448728183 | CW70: 7.845796567e-05 | CX70: 0.0002096630963 | CY70: 0.0001396102437 | CZ70: 0.0002696469643 | DA70: 4.694445366e-05 | DB70: 1.996159886e-05 | DC70: 2.300729886e-06 | DD70: 1.515588047e-05 | DE70: 7.524966895e-06 | DF70: 8.044185455e-06 | DG70: 5.941188035e-06 | DH70: 0.0001475337641 | DI70: 68
A71: 20020310 | B71: 1.732070781e-05 | C71: 0.0001593251946 | D71: 0.0001128761514 | E71: 0.0008068891801 | F71: 0.0001686281874 | G71: 0.0003340748641 | H71: 0.0001875113765 | I71: 7.818322248e-06 | J71: 0.0001660872684 | K71: 4.757625275e-05 | L71: 1.124724566e-05 | M71: 3.696892325e-06 | N71: 4.475330213e-05 | O71: 8.787580907e-05 | P71: 5.191814921e-05 | Q71: 5.150750719e-05 | R71: 0.0002119939511 | S71: 9.091851479e-06 | T71: 1.320242537e-05 | U71: 8.473505787e-06 | V71: 7.819898891e-06 | W71: 1.827577843e-05 | X71: 0.0002366228627 | Y71: 0.0001998374265 | Z71: 7.783344804e-05 | AA71: 1.754669288e-05 | AB71: 0.000292998453 | AC71: 6.794735859e-06 | AD71: 7.007535621e-06 | AE71: 0.0002571823996 | AF71: 6.142117193e-05 | AG71: 1.229102376e-05 | AH71: 0.0001489065632 | AI71: 0.0003181698178 | AJ71: 3.355301686e-05 | AK71: 1.561325424e-05 | AL71: 0.0003164797172 | AM71: 1.616914701e-05 | AN71: 6.803972884e-05 | AO71: 0.0001236603411 | AP71: 2.633996061e-05 | AQ71: 4.647881194e-06 | AR71: 5.066216673e-05 | AS71: 5.779676222e-05 | AT71: 0.0008541318252 | AU71: 1.027335166e-05 | AV71: 0.0002090606181 | AW71: 3.945313768e-06 | AX71: 0.001530657199 | AY71: 0.0001101893944 | AZ71: 2.209043906e-06 | BA71: 1.92422459e-05 | BB71: 7.964686917e-06 | BC71: 0.0001525322031 | BD71: 4.157330025e-06 | BE71: 4.570144643e-06 | BF71: 1.231530533e-05 | BG71: 1.367286956e-05 | BH71: 9.024612339e-06 | BI71: 0.0002349590143 | BJ71: 8.601266653e-05 | BK71: 0.0006283259501 | BL71: 2.139057914e-05 | BM71: 1.03649896e-05 | BN71: 0.000191128788 | BO71: 0.000190445905 | BP71: 7.484598574e-06 | BQ71: 6.275756376e-06 | BR71: 3.526981655e-05 | BS71: 5.946547576e-06 | BT71: 0.0001909513591 | BU71: 0.0001144775608 | BV71: 1.434660839e-05 | BW71: 0.000161628799 | BX71: 4.230680759e-05 | BY71: 1.373174211e-05 | BZ71: 0.0002571467699 | CA71: 1.825581652e-05 | CB71: 7.67144089e-06 | CC71: 6.991303803e-05 | CD71: 6.193037472e-05 | CE71: 9.041002923e-05 | CF71: 7.273140438e-05 | CG71: 0.0009703486719 | CH71: 0.0001781048023 | CI71: 7.818204565e-05 | CJ71: 0.0003096367281 | CK71: 0.000544949985 | CL71: 0.0003110005211 | CM71: 0.0003107057348 | CN71: 8.848301091e-05 | CO71: 0.0001900119771 | CP71: 1.741189892e-05 | CQ71: 0.0008331236559 | CR71: 6.486385861e-05 | CS71: 0.00058468701 | CT71: 2.151804986e-05 | CU71: 5.722360008e-05 | CV71: 0.0002204696852 | CW71: 6.973226669e-05 | CX71: 0.0001906028149 | CY71: 0.0001241593076 | CZ71: 0.0002462917155 | DA71: 4.23814837e-05 | DB71: 1.638768814e-05 | DC71: 2.019826819e-06 | DD71: 1.274368327e-05 | DE71: 6.175662486e-06 | DF71: 6.569418122e-06 | DG71: 4.890978029e-06 | DH71: 0.0001359799151 | DI71: 69
A72: 20020311 | B72: 1.42068727e-05 | C72: 0.0001481958612 | D72: 0.0001047074826 | E72: 0.0007242942246 | F72: 0.0001548181203 | G72: 0.0002811904262 | H72: 0.0001673005695 | I72: 6.396809112e-06 | J72: 0.0001520517246 | K72: 4.102130238e-05 | L72: 9.254062887e-06 | M72: 3.044082164e-06 | N72: 3.65951481e-05 | O72: 7.749932977e-05 | P72: 4.486280249e-05 | Q72: 4.206015034e-05 | R72: 0.0001856084379 | S72: 7.435583961e-06 | T72: 1.08231897e-05 | U72: 6.963011277e-06 | V72: 6.441005477e-06 | W72: 1.501681095e-05 | X72: 0.0002104391852 | Y72: 0.0001831286116 | Z72: 7.055078623e-05 | AA72: 1.424244552e-05 | AB72: 0.0002669236492 | AC72: 5.580918967e-06 | AD72: 5.778521681e-06 | AE72: 0.0002361265307 | AF72: 5.039685902e-05 | AG72: 1.007863948e-05 | AH72: 0.0001352567949 | AI72: 0.0002936952165 | AJ72: 3.034359786e-05 | AK72: 1.282517313e-05 | AL72: 0.0002892710537 | AM72: 1.317486053e-05 | AN72: 6.072030347e-05 | AO72: 0.0001142853694 | AP72: 2.153764735e-05 | AQ72: 3.855219285e-06 | AR72: 4.544694368e-05 | AS72: 5.23521397e-05 | AT72: 0.0007842483122 | AU72: 8.411737603e-06 | AV72: 0.0001870542372 | AW72: 3.19783274e-06 | AX72: 0.001358297481 | AY72: 9.983424651e-05 | AZ72: 1.817269025e-06 | BA72: 1.755150463e-05 | BB72: 6.299525673e-06 | BC72: 0.0001386656392 | BD72: 3.424512529e-06 | BE72: 3.765175984e-06 | BF72: 1.008427176e-05 | BG72: 1.114467858e-05 | BH72: 7.346960045e-06 | BI72: 0.0002153790964 | BJ72: 7.537505759e-05 | BK72: 0.0005835557964 | BL72: 1.760139083e-05 | BM72: 8.508714186e-06 | BN72: 0.0001738655426 | BO72: 0.00017407946 | BP72: 6.160792024e-06 | BQ72: 5.086934234e-06 | BR72: 3.121663198e-05 | BS72: 4.887904823e-06 | BT72: 0.0001763164009 | BU72: 0.0001012278432 | BV72: 1.176163391e-05 | BW72: 0.0001460645443 | BX72: 3.665624082e-05 | BY72: 1.11888269e-05 | BZ72: 0.0002331889963 | CA72: 1.485712727e-05 | CB72: 6.24296569e-06 | CC72: 5.730576888e-05 | CD72: 5.413391424e-05 | CE72: 7.951280406e-05 | CF72: 6.451979421e-05 | CG72: 0.0008871310673 | CH72: 0.0001623896727 | CI72: 6.815870647e-05 | CJ72: 0.0002811346025 | CK72: 0.0005018679473 | CL72: 0.0002790285049 | CM72: 0.0002812549542 | CN72: 7.792184912e-05 | CO72: 0.0001720709321 | CP72: 1.432102929e-05 | CQ72: 0.0007617130568 | CR72: 5.837747275e-05 | CS72: 0.0005310060687 | CT72: 1.762452692e-05 | CU72: 5.119192332e-05 | CV72: 0.0001985910141 | CW72: 6.203312052e-05 | CX72: 0.0001729039821 | CY72: 0.000110363829 | CZ72: 0.0002239980688 | DA72: 3.828254459e-05 | DB72: 1.342395731e-05 | DC72: 1.779052761e-06 | DD72: 1.076386105e-05 | DE72: 5.085839694e-06 | DF72: 5.405128122e-06 | DG72: 4.035807024e-06 | DH72: 0.0001253148237 | DI72: 70
A73: 20020312 | B73: 1.167688167e-05 | C73: 0.0001376522821 | D73: 9.728141999e-05 | E73: 0.001270691622 | F73: 0.0001424617445 | G73: 0.0004836991276 | H73: 0.003761455757 | I73: 5.27053332e-06 | J73: 0.004093700277 | K73: 0.003658085212 | L73: 7.616805607e-06 | M73: 2.511899968e-06 | N73: 0.002785426877 | O73: 0.005755703361 | P73: 0.002845145252 | Q73: 3.442461536e-05 | R73: 0.000676924891 | S73: 0.001169959183 | T73: 8.879369714e-06 | U73: 5.710406074e-06 | V73: 0.003026162056 | W73: 1.226905405e-05 | X73: 0.003345692115 | Y73: 0.0009624277396 | Z73: 0.001192535871 | AA73: 0.003395399012 | AB73: 0.003307383005 | AC73: 0.0006359345017 | AD73: 0.0001387132692 | AE73: 0.0004421732485 | AF73: 4.126242832e-05 | AG73: 0.002474592783 | AH73: 0.002605864856 | AI73: 0.001728055188 | AJ73: 0.001984004475 | AK73: 1.047079352e-05 | AL73: 0.003121836124 | AM73: 0.00256310923 | AN73: 0.001556666524 | AO73: 0.001218746322 | AP73: 0.001347558206 | AQ73: 0.0004792001541 | AR73: 0.0002801319807 | AS73: 0.0009088331451 | AT73: 0.0009348861069 | AU73: 6.894866888e-06 | AV73: 0.002640765702 | AW73: 0.0009405390412 | AX73: 0.007640423332 | AY73: 0.00163292717 | AZ73: 0.002020236734 | BA73: 0.0014814114 | BB73: 0.001223793204 | BC73: 0.002024518332 | BD73: 0.003452697817 | BE73: 3.109516028e-06 | BF73: 0.001722357919 | BG73: 0.002326967612 | BH73: 0.001683437302 | BI73: 0.0006918237642 | BJ73: 0.00129778829 | BK73: 0.0005403294411 | BL73: 1.442336193e-05 | BM73: 6.916274875e-06 | BN73: 0.001868129766 | BO73: 0.000157713015 | BP73: 0.002540690264 | BQ73: 0.001030652673 | BR73: 0.00190570783 | BS73: 4.02284246e-06 | BT73: 0.002230088865 | BU73: 0.003105733827 | BV73: 0.003373391703 | BW73: 0.001628260494 | BX73: 0.001432925778 | BY73: 0.0008027135663 | BZ73: 0.002092312227 | CA73: 0.001349765157 | CB73: 0.0009390901779 | CC73: 4.699073048e-05 | CD73: 0.0008855602275 | CE73: 0.001348300742 | CF73: 0.001530878753 | CG73: 0.00433359601 | CH73: 0.002540612622 | CI73: 0.003934160631 | CJ73: 0.003497988141 | CK73: 0.0006477422151 | CL73: 0.002252573868 | CM73: 0.003342663592 | CN73: 0.00311509898 | CO73: 0.002169235447 | CP73: 0.001493920322 | CQ73: 0.003900117334 | CR73: 0.0014000318 | CS73: 0.004265458584 | CT73: 0.003018056244 | CU73: 0.003850993627 | CV73: 0.001842857292 | CW73: 0.001451838991 | CX73: 0.001729039821 | CY73: 0.001832039562 | CZ73: 0.001932116044 | DA73: 0.001755583358 | DB73: 0.003329838761 | DC73: 0.0001330945487 | DD73: 9.10263091e-06 | DE73: 0.00270379845 | DF73: 0.003055379212 | DG73: 0.003203140519 | DH73: 0.0001155384899 | DI73: 71
A74: 20020313 | B74: 9.600991596e-06 | C74: 0.000127108703 | D74: 8.985535739e-05 | E74: 0.006239095865 | F74: 0.0001308322143 | G74: 0.004708004842 | H74: 0.002200732324 | I74: 4.335615065e-06 | J74: 0.001871405841 | K74: 0.002844002665 | L74: 6.235814684e-06 | M74: 2.071962685e-06 | N74: 0.003251607108 | O74: 0.003048090794 | P74: 0.001664141562 | Q74: 2.821265469e-05 | R74: 0.00243838536 | S74: 0.0006730789273 | T74: 7.293212602e-06 | U74: 4.678848848e-06 | V74: 0.001591742733 | W74: 1.009640906e-05 | X74: 0.002569879451 | Y74: 0.0005453757191 | Z74: 0.001306327461 | AA74: 0.002187639632 | AB74: 0.005173790012 | AC74: 0.0003549095041 | AD74: 5.49103304e-05 | AE74: 0.000314334044 | AF74: 3.386038965e-05 | AG74: 0.001384788676 | AH74: 0.001551110033 | AI74: 0.001082815697 | AJ74: 0.001205963505 | AK74: 8.612072777e-06 | AL74: 0.001933247141 | AM74: 0.003078126505 | AN74: 0.001350485527 | AO74: 0.0007232121034 | AP74: 0.0006563161456 | AQ74: 0.000217982025 | AR74: 0.0001579467551 | AS74: 0.0005695912799 | AT74: 0.0007687186427 | AU74: 5.688265182e-06 | AV74: 0.002544487786 | AW74: 0.001386057534 | AX74: 0.006945839393 | AY74: 0.001991374598 | AZ74: 0.001175324642 | BA74: 0.002318730887 | BB74: 0.002417493132 | BC74: 0.001885852693 | BD74: 0.001958877537 | BE74: 2.570706361e-06 | BF74: 0.001642040711 | BG74: 0.001341489089 | BH74: 0.001966902689 | BI74: 0.0004557769767 | BJ74: 0.0007400736502 | BK74: 0.0004994187835 | BL74: 1.183204606e-05 | BM74: 5.69132156e-06 | BN74: 0.001128276394 | BO74: 0.0001428344287 | BP74: 0.001425637824 | BQ74: 0.0006428823605 | BR74: 0.001187511968 | BS74: 3.212224581e-06 | BT74: 0.001324115264 | BU74: 0.001664164542 | BV74: 0.001738395341 | BW74: 0.001664178005 | BX74: 0.000762102082 | BY74: 0.0004780680585 | BZ74: 0.002140227775 | CA74: 0.002592714367 | CB74: 0.002083193 | CC74: 3.858588438e-05 | CD74: 0.003839389026 | CE74: 0.00203168605 | CF74: 0.0009443351698 | CG74: 0.002936168311 | CH74: 0.001885815554 | CI74: 0.002079842881 | CJ74: 0.003122278304 | CK74: 0.0004270412504 | CL74: 0.003182668884 | CM74: 0.001987927687 | CN74: 0.001916983988 | CO74: 0.001092772744 | CP74: 0.0007263543634 | CQ74: 0.002160628382 | CR74: 0.001502786427 | CS74: 0.002205271105 | CT74: 0.004630758054 | CU74: 0.003773664438 | CV74: 0.001127593046 | CW74: 0.00138584631 | CX74: 0.0009734358045 | CY74: 0.0008718742493 | CZ74: 0.001167762444 | DA74: 0.001848389526 | DB74: 0.001682353091 | DC74: 5.584620509e-05 | DD74: 7.737236274e-06 | DE74: 0.001370062938 | DF74: 0.00155944297 | DG74: 0.00168783751 | DH74: 0.0001057621562 | DI74: 72
A75: 20020314 | B75: 7.91433091e-06 | C75: 0.0001171508784 | D75: 8.317190106e-05 | E75: 0.004097980481 | F75: 0.0001199295298 | G75: 0.002811904262 | H75: 0.001347387137 | I75: 3.570184915e-06 | J75: 0.0009450599496 | K75: 0.0017338901 | L75: 5.132445647e-06 | M75: 1.710078792e-06 | N75: 0.00206284752 | O75: 0.001702391135 | P75: 0.0009892823113 | Q75: 2.30360208e-05 | R75: 0.001655918416 | S75: 0.0003946850254 | T75: 5.986965569e-06 | U75: 3.868339599e-06 | V75: 0.0008550990029 | W75: 8.243270689e-06 | X75: 0.001580718304 | Y75: 0.0003428648822 | Z75: 0.0008284027803 | AA75: 0.001412850596 | AB75: 0.00337600091 | AC75: 0.0002025227096 | AD75: 2.479589527e-05 | AE75: 0.0002421424932 | AF75: 2.787576264e-05 | AG75: 0.0007858061188 | AH75: 0.0009604473325 | AI75: 0.000729046459 | AJ75: 0.0007546997415 | AK75: 7.063138825e-06 | AL75: 0.00124873445 | AM75: 0.001976229079 | AN75: 0.0008443111806 | AO75: 0.0004553557688 | AP75: 0.0003376171747 | AQ75: 0.0001073696586 | AR75: 9.655612952e-05 | AS75: 0.0003647897094 | AT75: 0.0006615639228 | AU75: 4.626455682e-06 | AV75: 0.001760510468 | AW75: 0.0009058876028 | AX75: 0.005582396845 | AY75: 0.001407238049 | AZ75: 0.0006985865343 | BA75: 0.001537769442 | BB75: 0.001655130153 | BC75: 0.001236897501 | BD75: 0.001127411532 | BE75: 2.070846791e-06 | BF75: 0.001035199578 | BG75: 0.0008100530267 | BH75: 0.001261131724 | BI75: 0.0003219808714 | BJ75: 0.0004407009416 | BK75: 0.0004600519242 | BL75: 9.717434523e-06 | BM75: 4.692513471e-06 | BN75: 0.0007090261489 | BO75: 0.0001295924869 | BP75: 0.0008299248759 | BQ75: 0.0004020565874 | BR75: 0.0007466392616 | BS75: 2.649631575e-06 | BT75: 0.0008293142968 | BU75: 0.0009285402157 | BV75: 0.0009241283783 | BW75: 0.001097878583 | BX75: 0.0004332101188 | BY75: 0.0002898923333 | BZ75: 0.001439063601 | CA75: 0.00179645003 | CB75: 0.001382182022 | CC75: 3.151817288e-05 | CD75: 0.002603723593 | CE75: 0.001440650108 | CF75: 0.0005924090195 | CG75: 0.001837067874 | CH75: 0.001157681215 | CI75: 0.001152684006 | CJ75: 0.001917415722 | CK75: 0.0006855334762 | CL75: 0.002078181052 | CM75: 0.001236932783 | CN75: 0.001215864844 | CO75: 0.0006148885441 | CP75: 0.0003750255153 | CQ75: 0.001347646177 | CR75: 0.0009761689613 | CS75: 0.001272383394 | CT75: 0.002672477285 | CU75: 0.002149751463 | CV75: 0.0007245206066 | CW75: 0.0008505723381 | CX75: 0.0005799771366 | CY75: 0.0004607689862 | CZ75: 0.0007452447597 | DA75: 0.001020867856 | DB75: 0.000880402395 | DC75: 2.571600701e-05 | DD75: 6.59940741e-06 | DE75: 0.0007109796307 | DF75: 0.0008255874546 | DG75: 0.0009076815054 | DH75: 9.687458002e-05 | DI75: 73
A76: 20020315 | B76: 1.20012395e-05 | C76: 0.0001083645625 | D76: 7.648844472e-05 | E76: 0.003017892603 | F76: 0.0001097536909 | G76: 0.001921897867 | H76: 0.0008600821224 | I76: 2.94143872e-06 | J76: 0.0005216543781 | K76: 0.001088967563 | L76: 4.228394888e-06 | M76: 1.419152524e-06 | N76: 0.001363577174 | O76: 0.0009809015588 | P76: 0.0006012382419 | Q76: 1.889471369e-05 | R76: 0.001173700416 | S76: 0.0002357538232 | T76: 4.913976935e-06 | U76: 3.175722604e-06 | V76: 0.0004673430698 | W76: 6.773540256e-06 | X76: 0.001008556464 | Y76: 0.0002359284667 | Z76: 0.0005416479717 | AA76: 0.0009194922827 | AB76: 0.002278114435 | AC76: 0.0001174235906 | AD76: 1.26495002e-05 | AE76: 0.0001985267646 | AF76: 2.283607674e-05 | AG76: 0.000450670871 | AH76: 0.0006204440132 | AI76: 0.0005169332471 | AJ76: 0.0004843305042 | AK76: 5.811600191e-06 | AL76: 0.0008334443231 | AM76: 0.001293531761 | AN76: 0.0005443178307 | AO76: 0.000296427677 | AP76: 0.0001804505589 | AQ76: 5.58466345e-05 | AR76: 6.422174664e-05 | AS76: 0.0002378881228 | AT76: 0.000583915575 | AU76: 4.460978876e-06 | AV76: 0.00124060972 | AW76: 0.0006039250686 | AX76: 0.004579108933 | AY76: 0.001032859625 | AZ76: 0.000422928064 | BA76: 0.00103859821 | BB76: 0.001153575561 | BC76: 0.0008278338658 | BD76: 0.0006581264819 | BE76: 1.720295924e-06 | BF76: 0.0006612783514 | BG76: 0.0004978988349 | BH76: 0.0008330411389 | BI76: 0.0002425734268 | BJ76: 0.0002735385155 | BK76: 0.0004237726617 | BL76: 7.981741816e-06 | BM76: 3.721973537e-06 | BN76: 0.0004673407138 | BO76: 0.0001176896178 | BP76: 0.0004933725183 | BQ76: 0.0002520507033 | BR76: 0.0004806934675 | BS76: 2.183828764e-06 | BT76: 0.0005414934526 | BU76: 0.0005395285043 | BV76: 0.0005008388064 | BW76: 0.0007566622294 | BX76: 0.0002549999362 | BY76: 0.0001780040643 | BZ76: 0.001004629306 | CA76: 0.001272080832 | CB76: 0.0009390901779 | CC76: 2.597861522e-05 | CD76: 0.001853498151 | CE76: 0.001043547835 | CF76: 0.0003753878936 | CG76: 0.001256114786 | CH76: 0.0007674221631 | CI76: 0.0006623756646 | CJ76: 0.001259275731 | CK76: 0.0008162912396 | CL76: 0.001415488353 | CM76: 0.0008010612308 | CN76: 0.000781880969 | CO76: 0.0003800239543 | CP76: 0.000201421671 | CQ76: 0.000933830911 | CR76: 0.0006550607504 | CS76: 0.0008153699743 | CT76: 0.001626524968 | CU76: 0.001289850878 | CV76: 0.0004855381998 | CW76: 0.0005433397436 | CX76: 0.0003689525916 | CY76: 0.0002676322854 | CZ76: 0.0005000146465 | DA76: 0.0006001465576 | DB76: 0.0004698385058 | DC76: 1.270751972e-05 | DD76: 5.643631164e-06 | DE76: 0.0003778052344 | DF76: 0.0004431358304 | DG76: 0.000495849153 | DH76: 9.420830717e-05 | DI76: 74
